Workbook

Sheet Control
A1: State Inventory Tool - Synthesis Tool Version 2025.1
A3: This tool will collect data from the individual sector modules and combine them, the final step in conducting a GHG inventory for your state.
A4: Before using this module, the user should conduct greenhouse gas inventories for all applicable sources using the individual sector modules. After completing each sector inventory, the user should export the data using the button provided in the final step of each sector module. The modules will then create an output file using a default file name. Please do not change the file names or alter the output files in any way. Once all eleven output files have been generated, the user of this Synthesis module should then begin here by choosing a state. In step 2, when the user clicks on the buttons to get the data, the user will be prompted to locate the output files. This module will then open the specified file and copy the necessary data. In order to attain correct results, please be sure to choose the proper files when prompted. Please see the User's Guide for the Synthesis Tool for additional information. Note: The default GWPs used in this module are from the IPCC Fifth Assessment Report (AR5) but can be adjusted in the Factors tab to reflect other sources.
B7: 1. Choose a State:
B9: 2. Locate Output File, Import, and Review Data for Each Module | G9: Summary File Created on:
C11: CO2 from Fossil Fuel Combustion | G11: =IF(CO2FFC!$AZ$1=0,"",CO2FFC!$AZ$1) -> 
C12: CO2 from Electricity Consumption | G12: =IF(IndirectCO2!AZ1=0,"",IndirectCO2!AZ1) -> 
C13: Stationary Combustion | G13: =IF(Stationary!AZ1=0,"",Stationary!AZ1) -> 
C14: Mobile Combustion | G14: =IF('Mobile Combustion'!AZ1=0,"",'Mobile Combustion'!AZ1) -> 
C15: Coal Mining | G15: =IF(Coal!AZ1=0,"",Coal!AZ1) -> 
C16: Natural Gas and Oil Systems | G16: =IF('Gas and Oil'!AZ1=0,"",'Gas and Oil'!AZ1) -> 
C17: Industrial Processes | G17: =IF(IP!AZ1=0,"",IP!AZ1) -> 
C18: Agriculture | G18: =IF(Agriculture!AZ1=0,"",Agriculture!AZ1) -> 
C19: Land Use, Land-Use Change, and Forestry | G19: =IF('Forest Management'!AZ1=0,"",'Forest Management'!AZ1) -> 
C20: Municipal Solid Waste | G20: =IF(Waste!AZ1=0,"",Waste!AZ1) -> 
C21: Wastewater | G21: =IF(Wastewater!AZ1=0,"",Wastewater!AZ1) -> 
B23: 3. View the Summary Sheets:
A25: TRUE
B32: Global Warming Potential Factors
B33: CH4 GWP | C33: 28
B34: N2O GWP | C34: 265

Sheet CO2FFC
A1: ="Summary of CO2 Emissions from Fossil Fuel Combustion in "&StateName&" (MMTCO2E)" -> Summary of CO2 Emissions from Fossil Fuel Combustion in Select a State . . . (MMTCO2E)
B3: Emissions (MMTCO2 Eq.) | C3: 1990 | D3: 1991 | E3: 1992 | F3: 1993 | G3: 1994 | H3: 1995 | I3: 1996 | J3: 1997 | K3: 1998 | L3: 1999 | M3: 2000 | N3: 2001 | O3: 2002 | P3: 2003 | Q3: 2004 | R3: 2005 | S3: 2006 | T3: 2007 | U3: 2008 | V3: 2009 | W3: 2010 | X3: 2011 | Y3: 2012 | Z3: 2013 | AA3: 2014 | AB3: 2015 | AC3: 2016 | AD3: 2017 | AE3: 2018 | AF3: 2019 | AG3: 2020 | AH3: 2021 | AI3: 2022 | AJ3: 2023 | AK3: 2024 | AL3: 2025
B4: Residential | C4: =SUM(C5:C8) -> 0 | D4: =SUM(D5:D8) -> 0 | E4: 0 | F4: 0 | G4: 0 | H4: 0 | I4: 0 | J4: 0 | K4: 0 | L4: 0 | M4: 0 | N4: 0 | O4: 0 | P4: 0 | Q4: 0 | R4: 0 | S4: 0 | T4: 0 | U4: 0 | V4: 0 | W4: 0 | X4: 0 | Y4: 0 | Z4: 0 | AA4: 0 | AB4: 0 | AC4: 0 | AD4: 0 | AE4: 0 | AF4: 0 | AG4: 0 | AH4: =SUM(AH5:AH8) -> 0 | AI4: 0 | AJ4: 0 | AK4: 0 | AL4: 0
B5: Coal
B6: Petroleum
B7: Natural Gas
B8: Other
B9: Commercial | C9: =SUM(C10:C13) -> 0 | D9: =SUM(D10:D13) -> 0 | E9: 0 | F9: 0 | G9: 0 | H9: 0 | I9: 0 | J9: 0 | K9: 0 | L9: 0 | M9: 0 | N9: 0 | O9: 0 | P9: 0 | Q9: 0 | R9: 0 | S9: 0 | T9: 0 | U9: 0 | V9: 0 | W9: 0 | X9: 0 | Y9: 0 | Z9: 0 | AA9: 0 | AB9: 0 | AC9: 0 | AD9: 0 | AE9: 0 | AF9: 0 | AG9: 0 | AH9: =SUM(AH10:AH13) -> 0 | AI9: 0 | AJ9: 0 | AK9: 0 | AL9: 0
B10: Coal
B11: Petroleum
B12: Natural Gas
B13: Other
B14: Industrial | C14: =SUM(C15:C18) -> 0 | D14: =SUM(D15:D18) -> 0 | E14: 0 | F14: 0 | G14: 0 | H14: 0 | I14: 0 | J14: 0 | K14: 0 | L14: 0 | M14: 0 | N14: 0 | O14: 0 | P14: 0 | Q14: 0 | R14: 0 | S14: 0 | T14: 0 | U14: 0 | V14: 0 | W14: 0 | X14: 0 | Y14: 0 | Z14: 0 | AA14: 0 | AB14: 0 | AC14: 0 | AD14: 0 | AE14: 0 | AF14: 0 | AG14: 0 | AH14: =SUM(AH15:AH18) -> 0 | AI14: 0 | AJ14: 0 | AK14: 0 | AL14: 0
B15: Coal
B16: Petroleum
B17: Natural Gas
B18: Other
B19: Transportation | C19: =SUM(C20:C23) -> 0 | D19: =SUM(D20:D23) -> 0 | E19: 0 | F19: 0 | G19: 0 | H19: 0 | I19: 0 | J19: 0 | K19: 0 | L19: 0 | M19: 0 | N19: 0 | O19: 0 | P19: 0 | Q19: 0 | R19: 0 | S19: 0 | T19: 0 | U19: 0 | V19: 0 | W19: 0 | X19: 0 | Y19: 0 | Z19: 0 | AA19: 0 | AB19: 0 | AC19: 0 | AD19: 0 | AE19: 0 | AF19: 0 | AG19: 0 | AH19: =SUM(AH20:AH23) -> 0 | AI19: 0 | AJ19: 0 | AK19: 0 | AL19: 0
B20: Coal
B21: Petroleum
B22: Natural Gas
B23: Other
B24: Electric Utilities | C24: =SUM(C25:C28) -> 0 | D24: =SUM(D25:D28) -> 0 | E24: 0 | F24: 0 | G24: 0 | H24: 0 | I24: 0 | J24: 0 | K24: 0 | L24: 0 | M24: 0 | N24: 0 | O24: 0 | P24: 0 | Q24: 0 | R24: 0 | S24: 0 | T24: 0 | U24: 0 | V24: 0 | W24: 0 | X24: 0 | Y24: 0 | Z24: 0 | AA24: 0 | AB24: 0 | AC24: 0 | AD24: 0 | AE24: 0 | AF24: 0 | AG24: 0 | AH24: =SUM(AH25:AH28) -> 0 | AI24: 0 | AJ24: 0 | AK24: 0 | AL24: 0
B25: Coal
B26: Petroleum
B27: Natural Gas
B28: Other
B29: International Bunker Fuels | C29: =C30 -> 0 | D29: =D30 -> 0 | E29: 0 | F29: 0 | G29: 0 | H29: 0 | I29: 0 | J29: 0 | K29: 0 | L29: 0 | M29: =M30 -> 0 | N29: 0 | O29: 0 | P29: 0 | Q29: 0 | R29: 0 | S29: 0 | T29: 0 | U29: 0 | V29: 0 | W29: 0 | X29: 0 | Y29: 0 | Z29: 0 | AA29: 0 | AB29: 0 | AC29: 0 | AD29: 0 | AE29: 0 | AF29: 0 | AG29: 0 | AH29: 0 | AI29: 0 | AJ29: 0 | AK29: 0 | AL29: 0
B30: Petroleum
B31: TOTAL | C31: =SUM(C32:C36) -> 0 | D31: =SUM(D32:D36) -> 0 | E31: =SUM(E32:E36) -> 0 | F31: 0 | G31: 0 | H31: 0 | I31: 0 | J31: 0 | K31: 0 | L31: 0 | M31: 0 | N31: 0 | O31: 0 | P31: 0 | Q31: 0 | R31: 0 | S31: 0 | T31: 0 | U31: 0 | V31: 0 | W31: 0 | X31: 0 | Y31: 0 | Z31: 0 | AA31: 0 | AB31: 0 | AC31: 0 | AD31: 0 | AE31: 0 | AF31: 0 | AG31: =SUM(AG32:AG36) -> 0 | AH31: 0 | AI31: 0 | AJ31: 0 | AK31: 0 | AL31: 0
B32: Coal | C32: =SUMIF($B$4:$B$28,"Coal",C$4:C$28) -> 0 | D32: =SUMIF($B$4:$B$28,"Coal",D$4:D$28) -> 0 | E32: 0 | F32: 0 | G32: 0 | H32: 0 | I32: 0 | J32: 0 | K32: 0 | L32: 0 | M32: 0 | N32: 0 | O32: 0 | P32: 0 | Q32: 0 | R32: 0 | S32: 0 | T32: 0 | U32: 0 | V32: 0 | W32: 0 | X32: 0 | Y32: 0 | Z32: 0 | AA32: 0 | AB32: 0 | AC32: 0 | AD32: 0 | AE32: 0 | AF32: 0 | AG32: 0 | AH32: 0 | AI32: 0 | AJ32: 0 | AK32: 0 | AL32: 0
B33: Petroleum | C33: =SUMIF($B$4:$B$28,"Petroleum",C$4:C$28) -> 0 | D33: =SUMIF($B$4:$B$28,"Petroleum",D$4:D$28) -> 0 | E33: 0 | F33: 0 | G33: 0 | H33: 0 | I33: 0 | J33: 0 | K33: 0 | L33: 0 | M33: 0 | N33: 0 | O33: 0 | P33: 0 | Q33: 0 | R33: 0 | S33: 0 | T33: 0 | U33: 0 | V33: 0 | W33: 0 | X33: 0 | Y33: 0 | Z33: 0 | AA33: 0 | AB33: 0 | AC33: 0 | AD33: 0 | AE33: 0 | AF33: 0 | AG33: 0 | AH33: 0 | AI33: 0 | AJ33: 0 | AK33: 0 | AL33: 0
B34: Natural Gas | C34: =SUMIF($B$4:$B$28,"Natural Gas",C$4:C$28) -> 0 | D34: =SUMIF($B$4:$B$28,"Natural Gas",D$4:D$28) -> 0 | E34: 0 | F34: 0 | G34: 0 | H34: 0 | I34: 0 | J34: 0 | K34: 0 | L34: 0 | M34: 0 | N34: 0 | O34: 0 | P34: 0 | Q34: 0 | R34: 0 | S34: 0 | T34: 0 | U34: 0 | V34: 0 | W34: 0 | X34: 0 | Y34: 0 | Z34: 0 | AA34: 0 | AB34: 0 | AC34: 0 | AD34: 0 | AE34: 0 | AF34: 0 | AG34: 0 | AH34: 0 | AI34: 0 | AJ34: 0 | AK34: 0 | AL34: 0
B35: Other | C35: =SUMIF($B$4:$B$28,"Other",C$4:C$28) -> 0 | D35: =SUMIF($B$4:$B$28,"Other",D$4:D$28) -> 0 | E35: 0 | F35: 0 | G35: 0 | H35: 0 | I35: 0 | J35: 0 | K35: 0 | L35: 0 | M35: 0 | N35: 0 | O35: 0 | P35: 0 | Q35: 0 | R35: 0 | S35: 0 | T35: 0 | U35: 0 | V35: 0 | W35: 0 | X35: 0 | Y35: 0 | Z35: 0 | AA35: 0 | AB35: 0 | AC35: 0 | AD35: 0 | AE35: 0 | AF35: 0 | AG35: 0 | AH35: 0 | AI35: 0 | AJ35: 0 | AK35: 0 | AL35: 0
B36: Additional CO2 Emissions
B37: =MAX(C37:AL37) -> 1990 | C37: =1990 -> 1990 | D37: =IF(D31=0,0,D3) -> 0 | E37: =IF(E31=0,0,E3) -> 0 | F37: 0 | G37: 0 | H37: 0 | I37: 0 | J37: 0 | K37: 0 | L37: 0 | M37: 0 | N37: 0 | O37: 0 | P37: 0 | Q37: 0 | R37: 0 | S37: 0 | T37: 0 | U37: 0 | V37: 0 | W37: 0 | X37: 0 | Y37: 0 | Z37: 0 | AA37: 0 | AB37: 0 | AC37: 0 | AD37: 0 | AE37: 0 | AF37: 0 | AG37: 0 | AH37: 0 | AI37: 0 | AJ37: 0 | AK37: 0 | AL37: 0
C38: 1 | D38: =IF(D3<=$B37,C38+1,0) -> 0 | E38: =IF(E3<=$B37,D38+1,0) -> 0 | F38: 0 | G38: 0 | H38: 0 | I38: 0 | J38: 0 | K38: 0 | L38: 0 | M38: 0 | N38: 0 | O38: 0 | P38: 0 | Q38: 0 | R38: 0 | S38: 0 | T38: 0 | U38: 0 | V38: 0 | W38: 0 | X38: 0 | Y38: 0 | Z38: 0 | AA38: 0 | AB38: 0 | AC38: 0 | AD38: 0 | AE38: 0 | AF38: 0 | AG38: 0 | AH38: 0 | AI38: 0 | AJ38: 0 | AK38: 0 | AL38: 0
AA40: ="Emissions by Fuel Type, 1990-"&B37 -> Emissions by Fuel Type, 1990-1990
AA41: ="Emissions by Sector, 1990-"&B37 -> Emissions by Sector, 1990-1990

Sheet IndirectCO2
A1: ="Summary of Indirect CO2 Emissions from Electricity Consumption in "&StateName&" (MMTCO2E)" -> Summary of Indirect CO2 Emissions from Electricity Consumption in Select a State . . . (MMTCO2E)
B3: Emissions (MMTCO2 Eq.) | C3: 1990 | D3: 1991 | E3: 1992 | F3: 1993 | G3: 1994 | H3: 1995 | I3: 1996 | J3: 1997 | K3: 1998 | L3: 1999 | M3: 2000 | N3: 2001 | O3: 2002 | P3: 2003 | Q3: 2004 | R3: 2005 | S3: 2006 | T3: 2007 | U3: 2008 | V3: 2009 | W3: 2010 | X3: 2011 | Y3: 2012 | Z3: 2013 | AA3: 2014 | AB3: 2015 | AC3: 2016 | AD3: 2017 | AE3: 2018 | AF3: 2019 | AG3: 2020 | AH3: 2021 | AI3: 2022 | AJ3: 2023 | AK3: 2024 | AL3: 2025
B4: Residential | C4: =SUM(C5:C9) -> 0 | D4: 0 | E4: 0 | F4: 0 | G4: 0 | H4: 0 | I4: 0 | J4: 0 | K4: 0 | L4: 0 | M4: =SUM(M5:M9) -> 0 | N4: =SUM(N5:N9) -> 0 | O4: 0 | P4: 0 | Q4: 0 | R4: 0 | S4: 0 | T4: 0 | U4: 0 | V4: 0 | W4: 0 | X4: 0 | Y4: 0 | Z4: 0 | AA4: 0 | AB4: 0 | AC4: 0 | AD4: 0 | AE4: 0 | AF4: 0 | AG4: 0 | AH4: 0 | AI4: 0 | AJ4: 0 | AK4: 0 | AL4: 0
B5: Space Heating
B6: Air-conditioning
B7: Water Heating
B8: Refrigeration
B9: Other Appliances and Lighting
B10: Commercial | C10: =SUM(C11:C20) -> 0 | D10: 0 | E10: 0 | F10: 0 | G10: 0 | H10: 0 | I10: 0 | J10: 0 | K10: 0 | L10: 0 | M10: =SUM(M11:M20) -> 0 | N10: =SUM(N11:N20) -> 0 | O10: 0 | P10: 0 | Q10: 0 | R10: 0 | S10: 0 | T10: 0 | U10: 0 | V10: 0 | W10: 0 | X10: 0 | Y10: 0 | Z10: 0 | AA10: 0 | AB10: 0 | AC10: 0 | AD10: 0 | AE10: 0 | AF10: 0 | AG10: 0 | AH10: 0 | AI10: 0 | AJ10: 0 | AK10: 0 | AL10: 0
B11: Space Heating
B12: Cooling
B13: Ventilation
B14: Water Heating
B15: Lighting
B16: Cooking
B17: Refrigeration
B18: Office Equipment
B19: Computers
B20: Other
B21: Industrial | C21: =SUM(C22,C25,C31,C37) -> 0 | D21: 0 | E21: 0 | F21: 0 | G21: 0 | H21: 0 | I21: 0 | J21: 0 | K21: 0 | L21: 0 | M21: =SUM(M22,M25,M31,M37) -> 0 | N21: =SUM(N22,N25,N31,N37) -> 0 | O21: 0 | P21: 0 | Q21: 0 | R21: 0 | S21: 0 | T21: 0 | U21: 0 | V21: 0 | W21: 0 | X21: 0 | Y21: 0 | Z21: 0 | AA21: 0 | AB21: 0 | AC21: 0 | AD21: 0 | AE21: 0 | AF21: 0 | AG21: 0 | AH21: 0 | AI21: 0 | AJ21: 0 | AK21: 0 | AL21: 0
B22: Indirect Uses-Boiler Fuel
B23: Conventional Boiler Use
B24: CHP and/or Cogeneration Process
B25: Direct Uses-Total Process
B26: Process Heating
B27: Process Cooling and Refrigeration
B28: Machine Drive
B29: Electro-Chemical Processes
B30: Other Process Use
B31: Direct Uses-Total Nonprocess
B32: Facility HVAC
B33: Facility Lighting
B34: Other Facility Support
B35: Onsite Transportation
B36: Other Nonprocess Use
B37: Other
B38: Transportation | C38: =SUM(C39:C47) -> 0 | D38: 0 | E38: 0 | F38: 0 | G38: 0 | H38: 0 | I38: 0 | J38: 0 | K38: 0 | L38: 0 | M38: =SUM(M39:M47) -> 0 | N38: =SUM(N39:N47) -> 0 | O38: 0 | P38: 0 | Q38: 0 | R38: 0 | S38: 0 | T38: 0 | U38: 0 | V38: 0 | W38: 0 | X38: 0 | Y38: 0 | Z38: 0 | AA38: 0 | AB38: 0 | AC38: 0 | AD38: 0 | AE38: 0 | AF38: 0 | AG38: 0 | AH38: 0 | AI38: 0 | AJ38: 0 | AK38: 0 | AL38: 0
B39: Automated Guideway
B40: Bus (charged batteries)
B41: Cable Car
B42: Commuter Rail
B43: Heavy Rail
B44: Inclined Plane
B45: Light Rail
B46: Trolleybus
B47: Other
B48: TOTAL | C48: =SUM(C49:C53) -> 0 | D48: =SUM(D49:D52) -> 0 | E48: 0 | F48: 0 | G48: 0 | H48: 0 | I48: 0 | J48: 0 | K48: 0 | L48: 0 | M48: =SUM(M49:M52) -> 0 | N48: =SUM(N49:N52) -> 0 | O48: 0 | P48: 0 | Q48: 0 | R48: 0 | S48: 0 | T48: 0 | U48: 0 | V48: 0 | W48: 0 | X48: 0 | Y48: 0 | Z48: 0 | AA48: 0 | AB48: 0 | AC48: 0 | AD48: 0 | AE48: 0 | AF48: 0 | AG48: 0 | AH48: 0 | AI48: 0 | AJ48: 0 | AK48: 0 | AL48: 0
B49: Residential | C49: =C4 -> 0 | D49: 0 | E49: 0 | F49: 0 | G49: 0 | H49: 0 | I49: 0 | J49: 0 | K49: 0 | L49: 0 | M49: =M4 -> 0 | N49: =N4 -> 0 | O49: 0 | P49: 0 | Q49: 0 | R49: 0 | S49: 0 | T49: 0 | U49: 0 | V49: 0 | W49: 0 | X49: 0 | Y49: 0 | Z49: 0 | AA49: 0 | AB49: 0 | AC49: 0 | AD49: 0 | AE49: 0 | AF49: 0 | AG49: 0 | AH49: 0 | AI49: 0 | AJ49: 0 | AK49: 0 | AL49: 0
B50: Commercial | C50: =C10 -> 0 | D50: 0 | E50: 0 | F50: 0 | G50: 0 | H50: 0 | I50: 0 | J50: 0 | K50: 0 | L50: 0 | M50: =M10 -> 0 | N50: =N10 -> 0 | O50: 0 | P50: 0 | Q50: 0 | R50: 0 | S50: 0 | T50: 0 | U50: 0 | V50: 0 | W50: 0 | X50: 0 | Y50: 0 | Z50: 0 | AA50: 0 | AB50: 0 | AC50: 0 | AD50: 0 | AE50: 0 | AF50: 0 | AG50: 0 | AH50: 0 | AI50: 0 | AJ50: 0 | AK50: 0 | AL50: 0
B51: Industrial | C51: =C21 -> 0 | D51: 0 | E51: 0 | F51: 0 | G51: 0 | H51: 0 | I51: 0 | J51: 0 | K51: 0 | L51: 0 | M51: =M21 -> 0 | N51: =N21 -> 0 | O51: 0 | P51: 0 | Q51: 0 | R51: 0 | S51: 0 | T51: 0 | U51: 0 | V51: 0 | W51: 0 | X51: 0 | Y51: 0 | Z51: 0 | AA51: 0 | AB51: 0 | AC51: 0 | AD51: 0 | AE51: 0 | AF51: 0 | AG51: 0 | AH51: 0 | AI51: 0 | AJ51: 0 | AK51: 0 | AL51: 0
B52: Transportation | C52: =C38 -> 0 | D52: =D38 -> 0 | E52: 0 | F52: 0 | G52: 0 | H52: 0 | I52: 0 | J52: 0 | K52: 0 | L52: 0 | M52: =M38 -> 0 | N52: =N38 -> 0 | O52: 0 | P52: 0 | Q52: 0 | R52: 0 | S52: 0 | T52: 0 | U52: 0 | V52: 0 | W52: 0 | X52: 0 | Y52: 0 | Z52: 0 | AA52: 0 | AB52: 0 | AC52: 0 | AD52: 0 | AE52: 0 | AF52: 0 | AG52: 0 | AH52: 0 | AI52: 0 | AJ52: 0 | AK52: 0 | AL52: 0
B53: Additional CO2 Emissions
B56: Emissions by Gas (MMTCO2 Eq.) | C56: 1990 | D56: 1991 | E56: 1992 | F56: 1993 | G56: 1994 | H56: 1995 | I56: 1996 | J56: 1997 | K56: 1998 | L56: 1999 | M56: 2000 | N56: 2001 | O56: 2002 | P56: 2003 | Q56: 2004 | R56: 2005 | S56: 2006 | T56: 2007 | U56: 2008 | V56: 2009 | W56: 2010 | X56: 2011 | Y56: 2012 | Z56: 2013 | AA56: 2014 | AB56: 2015 | AC56: 2016 | AD56: 2017 | AE56: 2018 | AF56: 2019 | AG56: 2020 | AH56: 2021 | AI56: 2022 | AJ56: 2023 | AK56: 2024 | AL56: 2025
B57: Carbon Dioxide
B58: Residential
B59: Commercial
B60: Industrial
B61: Transportation
B62: Methane
B63: Residential
B64: Commercial
B65: Industrial
B66: Transportation
B67: Nitrous Oxide
B68: Residential
B69: Commercial
B70: Industrial
B71: Transportation
B72: =MAX(C72:AL72) -> 1990 | C72: =1990 -> 1990 | D72: =IF(D48=0,0,D56) -> 0 | E72: =IF(E48=0,0,E56) -> 0 | F72: 0 | G72: 0 | H72: 0 | I72: 0 | J72: 0 | K72: 0 | L72: 0 | M72: 0 | N72: 0 | O72: 0 | P72: 0 | Q72: 0 | R72: 0 | S72: 0 | T72: 0 | U72: 0 | V72: 0 | W72: 0 | X72: 0 | Y72: 0 | Z72: 0 | AA72: 0 | AB72: 0 | AC72: 0 | AD72: 0 | AE72: 0 | AF72: 0 | AG72: 0 | AH72: 0 | AI72: 0 | AJ72: 0 | AK72: 0 | AL72: 0
O76: ="Indirect Emissions by Sector, 1990-"&B72 -> Indirect Emissions by Sector, 1990-1990

Sheet IndirectCO2 OLD (hidden)
A1: ="Summary of Indirect CO2 Emissions from Electricity Consumption in "&StateName&" (MMTCO2E)" -> Summary of Indirect CO2 Emissions from Electricity Consumption in Select a State . . . (MMTCO2E) | AZ1: 45552.59455
B3: Emissions (MMTCO2 Eq.) | C3: 1990 | D3: 1991 | E3: 1992 | F3: 1993 | G3: 1994 | H3: 1995 | I3: 1996 | J3: 1997 | K3: 1998 | L3: 1999 | M3: 2000 | N3: 2001 | O3: 2002 | P3: 2003 | Q3: 2004 | R3: 2005 | S3: 2006 | T3: 2007 | U3: 2008 | V3: 2009 | W3: 2010 | X3: 2011 | Y3: 2012 | Z3: 2013 | AA3: 2014 | AB3: 2015 | AC3: 2016 | AD3: 2017 | AE3: 2018 | AF3: 2019 | AG3: 2020 | AH3: 2021 | AI3: 2022 | AJ3: 2023 | AK3: 2024 | AL3: 2025
B4: Residential | C4: =SUM(C5:C9) -> 12.21180605 | D4: 12.29346189 | E4: 12.07482185 | F4: 12.78302255 | G4: 12.89610082 | H4: 13.74393731 | I4: 13.85467719 | J4: 13.96357975 | K4: 15.22147112 | L4: 15.0599546 | M4: =SUM(M5:M9) -> 15.79721824 | N4: =SUM(N5:N9) -> 14.70368288 | O4: 16.04675877 | P4: 16.28343811 | Q4: 16.44913035 | R4: 16.33003905 | S4: 15.41942311 | T4: 15.22007569 | U4: 15.47161486 | V4: 16.22678293 | W4: 17.68040957 | X4: 17.9142511 | Y4: 17.3741306 | Z4: 16.02612036 | AA4: 14.6834894 | AB4: 13.9816278 | AC4: 12.84083655 | AD4: 12.04914992 | AE4: 12.78473685 | AF4: 12.23860783 | AG4: 11.10707475 | AH4: =SUM(AH5:AH9) -> 11.96998353 | AI4: 12.33470063 | AJ4: 0 | AK4: 0 | AL4: 0
B5: Space Heating | C5: 1.322578273 | D5: 1.331421865 | E5: 1.307742439 | F5: 1.384442875 | G5: 1.39668962 | H5: 1.488513066 | I5: 1.500506554 | J5: 1.512301055 | K5: 1.648534779 | L5: 1.631042014 | M5: 1.710890062 | N5: 1.592456629 | O5: 1.600844063 | P5: 1.485361707 | Q5: 1.359966892 | R5: 1.210628925 | S5: 1.260777479 | T5: 1.360613769 | U5: 1.501155759 | V5: 1.6982447 | W5: 2.010019559 | X5: 2.198358377 | Y5: 2.288954463 | Z5: 2.256066518 | AA5: 2.199641065 | AB5: 2.220744772 | AC5: 1.967508294 | AD5: 1.778604392 | AE5: 1.815459798 | AF5: 1.669245898 | AG5: 1.452599888 | AH5: 1.565452392 | AI5: 1.61315064 | AJ5: 0 | AK5: 0 | AL5: 0
B6: Air-conditioning | C6: 2.73332843 | D6: 2.751605188 | E6: 2.702667707 | F6: 2.861181942 | G6: 2.88649188 | H6: 3.076260337 | I6: 3.101046879 | J6: 3.125422181 | K6: 3.406971876 | L6: 3.370820162 | M6: 3.535839462 | N6: 3.291077034 | O6: 3.790871274 | P6: 4.048899901 | Q6: 4.294271862 | R6: 4.465875589 | S6: 3.972439131 | T6: 3.679837115 | U6: 3.495421039 | V6: 3.408830448 | W6: 3.763793784 | X6: 3.863823444 | Y6: 3.796062498 | Z6: 3.546490024 | AA6: 3.290560684 | AB6: 3.172492532 | AC6: 2.928923855 | AD6: 2.762684176 | AE6: 2.946557995 | AF6: 2.835254228 | AG6: 2.586336386 | AH6: 2.787268892 | AI6: 2.872195042 | AJ6: 0 | AK6: 0 | AL6: 0
B7: Water Heating | C7: 1.322578273 | D7: 1.331421865 | E7: 1.307742439 | F7: 1.384442875 | G7: 1.39668962 | H7: 1.488513066 | I7: 1.500506554 | J7: 1.512301055 | K7: 1.648534779 | L7: 1.631042014 | M7: 1.710890062 | N7: 1.592456629 | O7: 1.766070163 | P7: 1.820687862 | Q7: 1.868074295 | R7: 1.883200549 | S7: 1.786168792 | T7: 1.770955033 | U7: 1.808231885 | V7: 1.904891043 | W7: 2.183323606 | X7: 2.321414648 | Y7: 2.357344743 | Z7: 2.272148301 | AA7: 2.17131101 | AB7: 2.15276279 | AC7: 1.942135909 | AD7: 1.789574049 | AE7: 1.864000019 | AF7: 1.751037188 | AG7: 1.558887685 | AH7: 1.679997689 | AI7: 1.731186053 | AJ7: 0 | AK7: 0 | AL7: 0
B8: Refrigeration | C8: 1.498922042 | D8: 1.508944781 | E8: 1.482108098 | F8: 1.569035259 | G8: 1.582914902 | H8: 1.686981475 | I8: 1.700574095 | J8: 1.713941196 | K8: 1.868339416 | L8: 1.848514282 | M8: 1.939008737 | N8: 1.80478418 | O8: 1.860553246 | P8: 1.777301258 | Q8: 1.683565884 | R8: 1.560366169 | S8: 1.451970073 | T8: 1.412089977 | U8: 1.413969906 | V8: 1.460480908 | W8: 1.488475535 | X8: 1.403963929 | Y8: 1.26057735 | Z8: 1.069556766 | AA8: 0.8945452984 | AB8: 0.770462472 | AC8: 0.7340134036 | AD8: 0.7135447414 | AE8: 0.7834050674 | AF8: 0.7751159418 | AG8: 0.7262999441 | AH8: 0.7827261958 | AI8: 0.8065753201 | AJ8: 0 | AK8: 0 | AL8: 0
B9: Other Appliances and Lighting | C9: 5.334399033 | D9: 5.37006819 | E9: 5.274561171 | F9: 5.583919597 | G9: 5.633314799 | H9: 6.003669368 | I9: 6.052043103 | J9: 6.099614257 | K9: 6.649090273 | L9: 6.578536123 | M9: 6.900589919 | N9: 6.422908405 | O9: 7.028420026 | P9: 7.151187381 | Q9: 7.243251413 | R9: 7.209967818 | S9: 6.948067633 | T9: 6.996579795 | U9: 7.25283627 | V9: 7.75433583 | W9: 8.234797083 | X9: 8.126690701 | Y9: 7.671191544 | Z9: 6.881858748 | AA9: 6.127431342 | AB9: 5.665165236 | AC9: 5.268255089 | AD9: 5.004742567 | AE9: 5.375313972 | AF9: 5.207954572 | AG9: 4.782950851 | AH9: 5.154538363 | AI9: 5.311593571 | AJ9: 0 | AK9: 0 | AL9: 0
B10: Commercial | C10: =SUM(C11:C20) -> 9.416638181 | D10: 9.424152522 | E10: 9.369795849 | F10: 9.622008833 | G10: 10.04743034 | H10: 10.2672398 | I10: 10.49239417 | J10: 10.76448354 | K10: 11.40102902 | L10: 11.59995993 | M10: =SUM(M11:M20) -> 11.97811237 | N10: =SUM(N11:N20) -> 11.57757811 | O10: 12.21829931 | P10: 12.5057553 | Q10: 12.8613589 | R10: 12.36227784 | S10: 12.05538116 | T10: 12.06271052 | U10: 12.30297608 | V10: 12.71030848 | W10: 13.09464402 | X10: 13.58478381 | Y10: 14.028562 | Z10: 12.65723959 | AA10: 11.45320122 | AB10: 11.07886141 | AC10: 10.43003328 | AD10: 9.996215754 | AE10: 9.844345533 | AF10: 9.59164019 | AG10: 8.172678512 | AH10: =SUM(AH11:AH20) -> 8.841033782 | AI10: 9.234039087 | AJ10: 0 | AK10: 0 | AL10: 0
B11: Space Heating | C11: 0.3124990547 | D11: 0.3127484244 | E11: 0.3109445525 | F11: 0.3193144524 | G11: 0.3334324226 | H11: 0.3407269844 | I11: 0.3481989215 | J11: 0.357228436 | K11: 0.378352733 | L11: 0.3849544223 | M11: 0.3975037292 | N11: 0.384211663 | O11: 0.4054745345 | P11: 0.4150140032 | Q11: 0.400920909 | R11: 0.3604740108 | S11: 0.3272537487 | T11: 0.3031665507 | U11: 0.2844351418 | V11: 0.2682623619 | W11: 0.2500103275 | X11: 0.2320177644 | Y11: 0.2113530998 | Z11: 0.2783186499 | AA11: 0.3311334279 | AB11: 0.3970092646 | AC11: 0.4459654873 | AD11: 0.4966199644 | AE11: 0.5572271057 | AF11: 0.5429230296 | AG11: 0.4626044441 | AH11: 0.5004358745 | AI11: 0.5226814578 | AJ11: 0 | AK11: 0 | AL11: 0
B12: Cooling | C12: 1.833327787 | D12: 1.834790756 | E12: 1.824208041 | F12: 1.873311454 | G12: 1.956136879 | H12: 1.998931642 | I12: 2.042767006 | J12: 2.095740158 | K12: 2.219669367 | L12: 2.258399277 | M12: 2.332021878 | N12: 2.254041756 | O12: 2.378783936 | P12: 2.434748819 | Q12: 2.516413404 | R12: 2.430714364 | S12: 2.382024217 | T12: 2.395132463 | U12: 2.45473109 | V12: 2.548289436 | W12: 2.638002381 | X12: 2.749875576 | Y12: 2.853266847 | Z12: 2.591968919 | AA12: 2.361343539 | AB12: 2.299583162 | AC12: 2.179424689 | AD12: 2.10268739 | AE12: 2.084442136 | AF12: 2.030934296 | AG12: 1.730483291 | AH12: 1.872000864 | AI12: 1.955215824 | AJ12: 0 | AK12: 0 | AL12: 0
B13: Ventilation | C13: 1.083330056 | D13: 1.084194538 | E13: 1.077941115 | F13: 1.106956768 | G13: 1.155899065 | H13: 1.181186879 | I13: 1.207089595 | J13: 1.238391912 | K13: 1.311622808 | L13: 1.334508664 | M13: 1.378012928 | N13: 1.331933765 | O13: 1.405645053 | P13: 1.438715211 | Q13: 1.519755557 | R13: 1.499354869 | S13: 1.499748378 | T13: 1.538298429 | U13: 1.607326241 | V13: 1.700201201 | W13: 1.792470145 | X13: 1.901950735 | Y13: 2.007854448 | Z13: 1.854608143 | AA13: 1.717118775 | AB13: 1.698656397 | AC13: 1.634630285 | AD13: 1.600621123 | AE13: 1.609767194 | AF13: 1.568444308 | AG13: 1.336412839 | AH13: 1.445703637 | AI13: 1.509968656 | AJ13: 0 | AK13: 0 | AL13: 0
B14: Water Heating | C14: 0.2916657844 | D14: 0.2918985294 | E14: 0.2902149157 | F14: 0.2980268222 | G14: 0.3112035944 | H14: 0.3180118521 | I14: 0.3249856601 | J14: 0.333413207 | K14: 0.3531292175 | L14: 0.3592907941 | M14: 0.3710034805 | N14: 0.3585975521 | O14: 0.3784428989 | P14: 0.387346403 | Q14: 0.3621720484 | R14: 0.313333737 | S14: 0.2716343405 | T14: 0.2378580571 | U14: 0.2079782466 | V14: 0.1791004753 | W14: 0.1476711017 | X14: 0.114974352 | Y14: 0.07925741243 | Z14: 0.1038166793 | AA14: 0.1231745811 | AB14: 0.1474268414 | AC14: 0.1654148996 | AD14: 0.1840495255 | AE14: 0.2063804095 | AF14: 0.2010826036 | AG14: 0.1713349793 | AH14: 0.1853466202 | AI14: 0.1935857251 | AJ14: 0 | AK14: 0 | AL14: 0
B15: Lighting | C15: 3.312489979 | D15: 3.315133299 | E15: 3.296012257 | F15: 3.384733196 | G15: 3.53438368 | H15: 3.611706034 | I15: 3.690908568 | J15: 3.786621422 | K15: 4.01053897 | L15: 4.080516876 | M15: 4.213539529 | N15: 4.072643627 | O15: 4.298030066 | P15: 4.399148434 | Q15: 4.255682328 | R15: 3.832406398 | S15: 3.485538725 | T15: 3.235777585 | U15: 3.043330715 | V15: 2.878687977 | W15: 2.692306065 | X15: 2.509418057 | Y15: 2.29846496 | Z15: 2.068687881 | AA15: 1.867288666 | AB15: 1.801796137 | AC15: 1.692074593 | AD15: 1.617670419 | AE15: 1.589129153 | AF15: 1.548336047 | AG15: 1.319279341 | AH15: 1.427168975 | AI15: 1.490610083 | AJ15: 0 | AK15: 0 | AL15: 0
B16: Cooking | C16: 0.08333308124 | D16: 0.08339957984 | E16: 0.08291854734 | F16: 0.08515052064 | G16: 0.0889153127 | H16: 0.09086052917 | I16: 0.09285304574 | J16: 0.09526091627 | K16: 0.1008940621 | L16: 0.1026545126 | M16: 0.1060009944 | N16: 0.1024564435 | O16: 0.1081265425 | P16: 0.1106704008 | Q16: 0.1307744274 | R16: 0.1419988435 | S16: 0.1543681348 | T16: 0.1703660987 | U16: 0.1899803482 | V16: 0.2130282413 | W16: 0.2367344772 | X16: 0.2635064736 | Y16: 0.2906105122 | Z16: 0.2671499241 | AA16: 0.2462135074 | AB16: 0.2424964868 | AC16: 0.2323714907 | AD16: 0.2266135682 | AE16: 0.2270184505 | AF16: 0.2211908639 | AG16: 0.1884684772 | AH16: 0.2038812822 | AI16: 0.2129442976 | AJ16: 0 | AK16: 0 | AL16: 0
B17: Refrigeration | C17: 1.020830245 | D17: 1.021644853 | E17: 1.015752205 | F17: 1.043093878 | G17: 1.089212581 | H17: 1.113041482 | I17: 1.13744981 | J17: 1.166946224 | K17: 1.235952261 | L17: 1.25751778 | M17: 1.298512182 | N17: 1.255091432 | O17: 1.324550146 | P17: 1.35571241 | Q17: 1.460024676 | R17: 1.466579302 | S17: 1.491812316 | T17: 1.554397992 | U17: 1.648265765 | V17: 1.767827253 | W17: 1.888238128 | X17: 2.028377242 | Y17: 2.166369273 | Z17: 1.801313083 | AA17: 1.491253491 | AB17: 1.308339406 | AC17: 1.105401435 | AD17: 0.9383625052 | AE17: 0.8048835971 | AF17: 0.7842221539 | AG17: 0.6682064193 | AH17: 0.7228518187 | AI17: 0.7549843279 | AJ17: 0 | AK17: 0 | AL17: 0
B18: Office Equipment | C18: 0.1249996219 | D18: 0.1250993698 | E18: 0.124377821 | F18: 0.127725781 | G18: 0.133372969 | H18: 0.1362907938 | I18: 0.1392795686 | J18: 0.1428913744 | K18: 0.1513410932 | L18: 0.1539817689 | M18: 0.1590014917 | N18: 0.1536846652 | O18: 0.1621898138 | P18: 0.1660056013 | Q18: 0.2082721486 | R18: 0.2362793911 | S18: 0.2656069513 | T18: 0.3009830859 | U18: 0.3428941385 | V18: 0.3913520144 | W18: 0.4414129288 | X18: 0.4975932984 | Y18: 0.554801887 | Z18: 0.4392532423 | AA18: 0.3419858139 | AB18: 0.2771388421 | AC18: 0.2103820567 | AD18: 0.1532068742 | AE18: 0.1031902048 | AF18: 0.1005413018 | AG18: 0.08566748965 | AH18: 0.09267331008 | AI18: 0.09679286255 | AJ18: 0 | AK18: 0 | AL18: 0
B19: Computers | C19: 0.3541655953 | D19: 0.3544482143 | E19: 0.3524038262 | F19: 0.3618897127 | G19: 0.377890079 | H19: 0.386157249 | I19: 0.3946254444 | J19: 0.4048588942 | K19: 0.4287997641 | L19: 0.4362816786 | M19: 0.4505042264 | N19: 0.4354398847 | O19: 0.4595378057 | P19: 0.4703492036 | Q19: 0.5510816748 | R19: 0.5944413137 | S19: 0.6428210595 | T19: 0.7063871656 | U19: 0.7848906291 | V19: 0.8774440497 | W19: 0.9725560565 | X19: 1.080106117 | Y19: 1.188861186 | Z19: 1.004435742 | AA19: 0.8471643822 | AB19: 0.759769837 | AC19: 0.6590653392 | AD19: 0.5777817205 | AE19: 0.5159510238 | AF19: 0.5027065089 | AG19: 0.4283374482 | AH19: 0.4633665504 | AI19: 0.4839643128 | AJ19: 0 | AK19: 0 | AL19: 0
B20: Other | C20: 0.9999969749 | D20: 1.000794958 | E20: 0.995022568 | F20: 1.021806248 | G20: 1.066983752 | H20: 1.09032635 | I20: 1.114236549 | J20: 1.143130995 | K20: 1.210728746 | L20: 1.231854151 | M20: 1.272011933 | N20: 1.229477321 | O20: 1.29751851 | P20: 1.32804481 | Q20: 1.456261726 | R20: 1.486695614 | S20: 1.534573293 | T20: 1.620343096 | U20: 1.739143761 | V20: 1.886115473 | W20: 2.035242406 | X20: 2.206964195 | Y20: 2.377722373 | Z20: 2.247687325 | AA20: 2.126525037 | AB20: 2.146645037 | AC20: 2.105303001 | AD20: 2.098602663 | AE20: 2.146356259 | AF20: 2.091259077 | AG20: 1.781883785 | AH20: 1.92760485 | AI20: 2.013291541 | AJ20: 0 | AK20: 0 | AL20: 0
B21: Industrial | C21: =SUM(C22,C25,C31,C37) -> 14.73495478 | D21: 15.14623971 | E21: 15.65307268 | F21: 16.20760718 | G21: 17.0227061 | H21: 17.49138797 | I21: 18.54700788 | J21: 18.51761087 | K21: 17.66660083 | L21: 17.94269889 | M21: =SUM(M22,M25,M31,M37) -> 18.20860821 | N21: =SUM(N22,N25,N31,N37) -> 16.28460731 | O21: 16.90428292 | P21: 15.53013973 | Q21: 16.12275672 | R21: 15.40520243 | S21: 15.01352614 | T21: 14.65147191 | U21: 14.44379954 | V21: 13.97189065 | W21: 15.2498904 | X21: 16.81724939 | Y21: 17.61833268 | Z21: 16.09097124 | AA21: 16.23723471 | AB21: 15.56732857 | AC21: 15.03811294 | AD21: 15.1616746 | AE21: 14.91825292 | AF21: 14.94831737 | AG21: 13.23632999 | AH21: =SUM(AH22,AH25,AH31,AH37) -> 14.93556936 | AI21: 15.74715283 | AJ21: 0 | AK21: 0 | AL21: 0
B22: Indirect Uses-Boiler Fuel | C22: 0.07121919926 | D22: 0.07320708344 | E22: 0.07565678477 | F22: 0.07833704434 | G22: 0.08227670298 | H22: 0.0845420067 | I22: 0.08964418757 | J22: 0.08950210152 | K22: 0.08538887185 | L22: 0.08672335048 | M22: 0.08800858339 | N22: 0.07870921291 | O22: 0.08170432225 | P22: 0.203992445 | Q22: 0.345626316 | R22: 0.458136601 | S22: 0.5711294651 | T22: 0.4617939952 | U22: 0.3610404035 | V22: 0.2581143894 | W22: 0.1822582606 | X22: 0.2349122435 | Y22: 0.2816398245 | Z22: 0.2896808294 | AA22: 0.3250658033 | AB22: 0.2876721573 | AC22: 0.2547256721 | AD22: 0.2334612986 | AE22: 0.2067307218 | AF22: 0.2071473421 | AG22: 0.1834233584 | AH22: 0.2069706856 | AI22: 0.2182172596 | AJ22: 0 | AK22: 0 | AL22: 0
B23: Conventional Boiler Use | C23: 0.04965635977 | D23: 0.05104237776 | E23: 0.05275038982 | F23: 0.05461915463 | G23: 0.05736601375 | H23: 0.05894545774 | I23: 0.06250286545 | J23: 0.0624037984 | K23: 0.05953591987 | L23: 0.06046636211 | M23: 0.06136246861 | N23: 0.05487864275 | O23: 0.05696693114 | P23: 0.186947572 | Q23: 0.3338294554 | R23: 0.4525006844 | S23: 0.5711294651 | T23: 0.4617939952 | U23: 0.3610404035 | V23: 0.2581143894 | W23: 0.1822582606 | X23: 0.2349122435 | Y23: 0.2816398245 | Z23: 0.2896808294 | AA23: 0.3250658033 | AB23: 0.2876721573 | AC23: 0.2547256721 | AD23: 0.2334612986 | AE23: 0.2067307218 | AF23: 0.2071473421 | AG23: 0.1834233584 | AH23: 0.2069706856 | AI23: 0.2182172596 | AJ23: 0 | AK23: 0 | AL23: 0
B24: CHP and/or Cogeneration Process | C24: 0.02156283949 | D24: 0.02216470568 | E24: 0.02290639496 | F24: 0.02371788971 | G24: 0.02491068924 | H24: 0.02559654896 | I24: 0.02714132212 | J24: 0.02709830312 | K24: 0.02585295198 | L24: 0.02625698837 | M24: 0.02664611477 | N24: 0.02383057016 | O24: 0.02473739111 | P24: 0.01704487299 | Q24: 0.01179686062 | R24: 0.005635916644 | S24: 0 | T24: 0 | U24: 0 | V24: 0 | W24: 0 | X24: 0 | Y24: 0 | Z24: 0 | AA24: 0 | AB24: 0 | AC24: 0 | AD24: 0 | AE24: 0 | AF24: 0 | AG24: 0 | AH24: 0 | AI24: 0 | AJ24: 0 | AK24: 0 | AL24: 0
B25: Direct Uses-Total Process | C25: 11.82443516 | D25: 12.1544811 | E25: 12.56120197 | F25: 13.00620214 | G25: 13.66029876 | H25: 14.03640433 | I25: 14.88351308 | J25: 14.85992271 | K25: 14.17700829 | L25: 14.39857012 | M25: 14.61195575 | N25: 13.06799282 | O25: 13.5652671 | P25: 12.46087304 | Q25: 12.93462708 | R25: 12.35729789 | S25: 12.04149191 | T25: 11.74257105 | U25: 11.5677131 | V25: 11.1816301 | W25: 12.19551997 | X25: 13.46099915 | Y25: 14.11482584 | Z25: 12.90271231 | AA25: 13.03162325 | AB25: 12.59946303 | AC25: 12.27304533 | AD25: 12.47662946 | AE25: 12.37740866 | AF25: 12.40235261 | AG25: 10.98194717 | AH25: 12.39177581 | AI25: 13.06513215 | AJ25: 0 | AK25: 0 | AL25: 0
B26: Process Heating | C26: 1.699290867 | D26: 1.746721805 | E26: 1.805171706 | F26: 1.869122728 | G26: 1.963123026 | H26: 2.017173197 | I26: 2.138911288 | J26: 2.135521113 | K26: 2.037379409 | L26: 2.069220084 | M26: 2.099885755 | N26: 1.878002674 | O26: 1.949466016 | P26: 1.72219811 | Q26: 1.716494016 | R26: 1.571857233 | S26: 1.465384892 | T26: 1.469179171 | U26: 1.48693245 | V26: 1.475668536 | W26: 1.651377614 | X26: 1.838295344 | Y26: 1.94387259 | Z26: 1.79180453 | AA26: 1.824690534 | AB26: 1.66438609 | AC26: 1.525672737 | AD26: 1.455401596 | AE26: 1.350557566 | AF26: 1.353279318 | AG26: 1.198292167 | AH26: 1.352125233 | AI26: 1.425598327 | AJ26: 0 | AK26: 0 | AL26: 0
B27: Process Cooling and Refrigeration | C27: 1.060172942 | D27: 1.089764696 | E27: 1.126231085 | F27: 1.166129578 | G27: 1.224775554 | H27: 1.258496991 | I27: 1.334448337 | J27: 1.332333237 | K27: 1.271103472 | L27: 1.290968595 | M27: 1.310100643 | N27: 1.1716697 | O27: 1.216255063 | P27: 1.097677863 | Q27: 1.119104015 | R27: 1.049747821 | S27: 1.004005393 | T27: 0.9939106949 | U27: 0.9937398384 | V27: 0.9747345969 | W27: 1.078586624 | X27: 1.183975124 | Y27: 1.234646034 | Z27: 1.122381807 | AA27: 1.127305683 | AB27: 1.1248123 | AC27: 1.129093971 | AD27: 1.181240591 | AE27: 1.204456769 | AF27: 1.206884087 | AG27: 1.068663157 | AH27: 1.205854849 | AI27: 1.271379761 | AJ27: 0 | AK27: 0 | AL27: 0
B28: Machine Drive | C28: 7.57555106 | D28: 7.787001319 | E28: 8.04757484 | F28: 8.332672727 | G28: 8.751732271 | H28: 8.99269151 | I28: 9.535407969 | J28: 9.520294346 | K28: 9.082772137 | L28: 9.22471997 | M28: 9.36142956 | N28: 8.372260114 | O28: 8.690848415 | P28: 8.006234343 | Q28: 8.334441633 | R28: 7.985197672 | S28: 7.803309211 | T28: 7.640520034 | U28: 7.557251382 | V28: 7.334551882 | W28: 8.031864761 | X28: 8.784576559 | Y28: 9.126768969 | Z28: 8.26590809 | AA28: 8.270763676 | AB28: 8.018666415 | AC28: 7.832172511 | AD28: 7.983336423 | AE28: 7.940580032 | AF28: 7.956582525 | AG28: 7.045338229 | AH28: 7.949797105 | AI28: 8.381780896 | AJ28: 0 | AK28: 0 | AL28: 0
B29: Electro-Chemical Processes | C29: 1.443048594 | D29: 1.483327247 | E29: 1.532963274 | F29: 1.587270888 | G29: 1.667096538 | H29: 1.712996287 | I29: 1.816377046 | J29: 1.813498088 | K29: 1.73015553 | L29: 1.757194833 | M29: 1.783236315 | N29: 1.594811795 | O29: 1.655498918 | P29: 1.550058164 | Q29: 1.639452977 | R29: 1.595387793 | S29: 1.582990173 | T29: 1.417190607 | U29: 1.27128666 | V29: 1.108045319 | W29: 1.076559387 | X29: 1.278978955 | Y29: 1.436046723 | Z29: 1.399362741 | AA29: 1.500690022 | AB29: 1.500065939 | AC29: 1.508277687 | AD29: 1.580363933 | AE29: 1.613726087 | AF29: 1.616978197 | AG29: 1.431790379 | AH29: 1.615599228 | AI29: 1.703389227 | AJ29: 0 | AK29: 0 | AL29: 0
B30: Other Process Use | C30: 0.04637169784 | D30: 0.04766603371 | E30: 0.04926106442 | F30: 0.05100621444 | G30: 0.0535713747 | H30: 0.05504634186 | I30: 0.05836843466 | J30: 0.05827592068 | K30: 0.05559774619 | L30: 0.05646664166 | M30: 0.05730347263 | N30: 0.05124853798 | O30: 0.05319869056 | P30: 0.08470455817 | Q30: 0.1251344395 | R30: 0.1551073671 | S30: 0.1858022372 | T30: 0.2217705448 | U30: 0.2585027685 | V30: 0.2886297632 | W30: 0.3571315864 | X30: 0.3751731641 | Y30: 0.3734915239 | Z30: 0.3232551443 | AA30: 0.3081733388 | AB30: 0.2915322824 | AC30: 0.2778284242 | AD30: 0.2762869155 | AE30: 0.268088206 | AF30: 0.2686284788 | AG30: 0.2378632391 | AH30: 0.2683993909 | AI30: 0.2829839375 | AJ30: 0 | AK30: 0 | AL30: 0
B31: Direct Uses-Total Nonprocess | C31: 2.409318847 | D31: 2.476568225 | E31: 2.559440704 | F31: 2.650112881 | G31: 2.783390058 | H31: 2.860024435 | I31: 3.032629304 | J31: 3.027822586 | K31: 2.888673566 | L31: 2.933818479 | M31: 2.977297426 | N31: 2.662703205 | O31: 2.764026632 | P31: 2.484176338 | Q31: 2.521701866 | R31: 2.354752039 | S31: 2.241554099 | T31: 2.246771798 | U31: 2.273358766 | V31: 2.255607372 | W31: 2.523620471 | X31: 2.771565182 | Y31: 2.891614321 | Z31: 2.630000318 | AA31: 2.642871726 | AB31: 2.468104915 | AC31: 2.32070669 | AD31: 2.275758909 | AE31: 2.176233209 | AF31: 2.180618929 | AG31: 1.930878974 | AH31: 2.178759284 | AI31: 2.297150821 | AJ31: 0 | AK31: 0 | AL31: 0
B32: Facility HVAC | C32: 1.301730844 | D32: 1.33806501 | E32: 1.38284018 | F32: 1.43182945 | G32: 1.503837774 | H32: 1.54524256 | I32: 1.638499242 | J32: 1.63590222 | K32: 1.560721398 | L32: 1.585112742 | M32: 1.608603983 | N32: 1.438631875 | O32: 1.493375908 | P32: 1.32218697 | Q32: 1.320947512 | R32: 1.212765479 | S32: 1.133794428 | T32: 1.139915892 | U32: 1.156747371 | V32: 1.150865056 | W32: 1.290963834 | X32: 1.428331743 | Y32: 1.501277679 | Z32: 1.375611938 | AA32: 1.392639123 | AB32: 1.294886448 | AC32: 1.211940298 | AD32: 1.182652321 | AE32: 1.12504889 | AF32: 1.127316179 | AG32: 0.9982079301 | AH32: 1.126354797 | AI32: 1.187559757 | AJ32: 0 | AK32: 0 | AL32: 0
B33: Facility Lighting | C33: 0.8679236112 | D33: 0.8921492643 | E33: 0.9220029224 | F33: 0.9546663136 | G33: 1.002677563 | H33: 1.030284032 | I33: 1.092462535 | J33: 1.090730982 | K33: 1.040604483 | L33: 1.05686731 | M33: 1.072529996 | N33: 0.9592018025 | O33: 0.9957021583 | P33: 0.8861107863 | Q33: 0.8901796278 | R33: 0.822140974 | S33: 0.7735400817 | T33: 0.7815925466 | U33: 0.796842123 | V33: 0.7962754458 | W33: 0.8969075737 | X33: 0.9626835523 | Y33: 0.9808760173 | Z33: 0.8705759936 | AA33: 0.8529933649 | AB33: 0.7955893621 | AC33: 0.7470864642 | AD33: 0.7315920322 | AE33: 0.6985606743 | AF33: 0.6999684697 | AG33: 0.6198031132 | AH33: 0.6993715325 | AI33: 0.7373746617 | AJ33: 0 | AK33: 0 | AL33: 0
B34: Other Facility Support | C34: 0.2057744092 | D34: 0.2115180246 | E34: 0.2185959734 | F34: 0.2263400766 | G34: 0.2377229753 | H34: 0.244268142 | I34: 0.2590099288 | J34: 0.258599398 | K34: 0.2467149987 | L34: 0.2505707224 | M34: 0.2542841598 | N34: 0.2274153873 | O34: 0.2360691894 | P34: 0.2305663317 | Q34: 0.2535739603 | R34: 0.255865491 | S34: 0.2625919452 | T34: 0.2520164159 | U34: 0.2442613645 | V34: 0.2322345749 | W34: 0.2490605468 | X34: 0.2800362085 | Y34: 0.299009411 | Z34: 0.2782331889 | AA34: 0.2859544215 | AB34: 0.2721210745 | AC34: 0.2609038346 | AD34: 0.2610650024 | AE34: 0.2549228508 | AF34: 0.2554365918 | AG34: 0.2261821806 | AH34: 0.255218754 | AI34: 0.2690870783 | AJ34: 0 | AK34: 0 | AL34: 0
B35: Onsite Transportation | C35: 0.01963068542 | D35: 0.02017862094 | E35: 0.0208538506 | F35: 0.02159263078 | G35: 0.02267854862 | H35: 0.02330295139 | I35: 0.02470930401 | J35: 0.02467013976 | K35: 0.02353637922 | L35: 0.02390421164 | M35: 0.02425847008 | N35: 0.02169521441 | O35: 0.022520779 | P35: 0.02466301723 | Q35: 0.02972868571 | R35: 0.03234657301 | S35: 0.03536494695 | T35: 0.03101994945 | U35: 0.02713760146 | V35: 0.02292077266 | W35: 0.02138252369 | X35: 0.03514161825 | Y35: 0.04892773388 | Z35: 0.05574824596 | AA35: 0.06741767363 | AB35: 0.06316432881 | AC35: 0.0595952099 | AD35: 0.05865136523 | AE35: 0.05629921617 | AF35: 0.05641267486 | AG35: 0.049951895 | AH35: 0.05636456581 | AI35: 0.05942735829 | AJ35: 0 | AK35: 0 | AL35: 0
B36: Other Nonprocess Use | C36: 0.01425929708 | D36: 0.01465730537 | E36: 0.01514777731 | F36: 0.01568441094 | G36: 0.01647319772 | H36: 0.01692675012 | I36: 0.01794829366 | J36: 0.01791984561 | K36: 0.01709630695 | L36: 0.01736349231 | M36: 0.01762081783 | N36: 0.01575892543 | O36: 0.01635859735 | P36: 0.0206492326 | Q36: 0.02727208016 | R36: 0.03163352217 | S36: 0.03626269719 | T36: 0.04222699375 | U36: 0.04837030628 | V36: 0.05331152288 | W36: 0.06530599221 | X36: 0.06537206042 | Y36: 0.06152347949 | Z36: 0.04983095135 | AA36: 0.04386714317 | AB36: 0.0423437019 | AC36: 0.04118088289 | AD36: 0.04179818842 | AE36: 0.04140157743 | AF36: 0.04148501321 | AG36: 0.03673385509 | AH36: 0.04144963455 | AI36: 0.04370196502 | AJ36: 0 | AK36: 0 | AL36: 0
B37: Other | C37: 0.4299815682 | D37: 0.4419832976 | E37: 0.4567732198 | F37: 0.4729551234 | G37: 0.4967405719 | H37: 0.5104172049 | I37: 0.5412213104 | J37: 0.5403634746 | K37: 0.5155301015 | L37: 0.5235869348 | M37: 0.53134645 | N37: 0.4752020684 | O37: 0.4932848582 | P37: 0.3810979058 | Q37: 0.320801462 | R37: 0.2350159091 | S37: 0.1593506676 | T37: 0.2003350677 | U37: 0.2416872715 | V37: 0.2765387959 | W37: 0.3484916953 | X37: 0.3497728164 | Y37: 0.330252699 | Z37: 0.2685777758 | AA37: 0.2376739318 | AB37: 0.2120884699 | AC37: 0.189635245 | AD37: 0.1758249298 | AE37: 0.157880325 | AF37: 0.1581984981 | AG37: 0.1400804834 | AH37: 0.1580635855 | AI37: 0.166652598 | AJ37: 0 | AK37: 0 | AL37: 0
B38: Transportation | C38: =SUM(C39:C47) -> 0.001669853557 | D38: 0.001669853557 | E38: 0.001670284659 | F38: 0.001503256193 | G38: 0.001837313124 | H38: 0.001837313124 | I38: 0.001837313124 | J38: 0.001670284659 | K38: 0.001503256193 | L38: 0.001670284659 | M38: =SUM(M39:M47) -> 0.001670284659 | N38: =SUM(N39:N47) -> 0.001670284659 | O38: 0.001670284659 | P38: 0.001670284659 | Q38: 0.009019537156 | R38: 0.006681138634 | S38: 0.001446761481 | T38: 0.00169916912 | U38: 0.002829282111 | V38: 0.004956158576 | W38: 0.005866989121 | X38: 0.006067124556 | Y38: 0.006105052186 | Z38: 0.005965057205 | AA38: 0.005344982561 | AB38: 0.005196037573 | AC38: 0.005157061094 | AD38: 0.005261480868 | AE38: 0.005141565713 | AF38: 0.004746159065 | AG38: 0.003956729626 | AH38: =SUM(AH39:AH47) -> 0.003691839976 | AI38: 0.004023847011 | AJ38: 0 | AK38: 0 | AL38: 0
B39: Automated Guideway | C39: 0 | D39: 0 | E39: 0 | F39: 0 | G39: 0 | H39: 0 | I39: 0 | J39: 0 | K39: 0 | L39: 0 | M39: 0 | N39: 0 | O39: 0 | P39: 0 | Q39: 0 | R39: 0 | S39: 0 | T39: 0 | U39: 0 | V39: 0 | W39: 0 | X39: 0 | Y39: 0 | Z39: 0 | AA39: 0 | AB39: 0 | AC39: 0 | AD39: 0 | AE39: 0 | AF39: 0 | AG39: 0 | AH39: 0 | AI39: 0 | AJ39: 0 | AK39: 0 | AL39: 0
B40: Bus (charged batteries) | C40: 0 | D40: 0 | E40: 0 | F40: 0 | G40: 0 | H40: 0 | I40: 0 | J40: 0 | K40: 0 | L40: 0 | M40: 0 | N40: 0 | O40: 0 | P40: 0 | Q40: 0 | R40: 0 | S40: 0 | T40: 0 | U40: 0 | V40: 0 | W40: 0 | X40: 0 | Y40: 0 | Z40: 0 | AA40: 0 | AB40: 0 | AC40: 0 | AD40: 0 | AE40: 0 | AF40: 0 | AG40: 0 | AH40: 0 | AI40: 0 | AJ40: 0 | AK40: 0 | AL40: 0
B41: Cable Car | C41: 0 | D41: 0 | E41: 0 | F41: 0 | G41: 0 | H41: 0 | I41: 0 | J41: 0 | K41: 0 | L41: 0 | M41: 0 | N41: 0 | O41: 0 | P41: 0 | Q41: 0 | R41: 0 | S41: 0 | T41: 0 | U41: 0 | V41: 0 | W41: 0 | X41: 0.006067124556 | Y41: 0.006105052186 | Z41: 0.005965057205 | AA41: 0.005344982561 | AB41: 0 | AC41: 0 | AD41: 0 | AE41: 0 | AF41: 0 | AG41: 0 | AH41: 0 | AI41: 0 | AJ41: 0 | AK41: 0 | AL41: 0
B42: Commuter Rail | C42: 0 | D42: 0 | E42: 0 | F42: 0 | G42: 0 | H42: 0 | I42: 0 | J42: 0 | K42: 0 | L42: 0 | M42: 0 | N42: 0 | O42: 0 | P42: 0 | Q42: 0 | R42: 0 | S42: 0 | T42: 0 | U42: 0 | V42: 0 | W42: 0 | X42: 0 | Y42: 0 | Z42: 0 | AA42: 0 | AB42: 0 | AC42: 0 | AD42: 0 | AE42: 0 | AF42: 0 | AG42: 0 | AH42: 0 | AI42: 0 | AJ42: 0 | AK42: 0 | AL42: 0
B43: Heavy Rail | C43: 0 | D43: 0 | E43: 0 | F43: 0 | G43: 0 | H43: 0 | I43: 0 | J43: 0 | K43: 0 | L43: 0 | M43: 0 | N43: 0 | O43: 0 | P43: 0 | Q43: 0 | R43: 0 | S43: 0 | T43: 0 | U43: 0 | V43: 0 | W43: 0 | X43: 0 | Y43: 0 | Z43: 0 | AA43: 0 | AB43: 0 | AC43: 0 | AD43: 0 | AE43: 0 | AF43: 0 | AG43: 0 | AH43: 0 | AI43: 0 | AJ43: 0 | AK43: 0 | AL43: 0
B44: Inclined Plane | C44: 0 | D44: 0 | E44: 0 | F44: 0 | G44: 0 | H44: 0 | I44: 0 | J44: 0 | K44: 0 | L44: 0 | M44: 0 | N44: 0 | O44: 0 | P44: 0 | Q44: 0 | R44: 0 | S44: 0 | T44: 0 | U44: 0 | V44: 0 | W44: 0 | X44: 0 | Y44: 0 | Z44: 0 | AA44: 0 | AB44: 0 | AC44: 0 | AD44: 0 | AE44: 0 | AF44: 0 | AG44: 0 | AH44: 0 | AI44: 0 | AJ44: 0 | AK44: 0 | AL44: 0
B45: Light Rail | C45: 0.001669853557 | D45: 0.001669853557 | E45: 0.001670284659 | F45: 0.001503256193 | G45: 0.001837313124 | H45: 0.001837313124 | I45: 0.001837313124 | J45: 0.001670284659 | K45: 0.001503256193 | L45: 0.001670284659 | M45: 0.001670284659 | N45: 0.001670284659 | O45: 0.001670284659 | P45: 0.001670284659 | Q45: 0.009019537156 | R45: 0.006681138634 | S45: 0.001446761481 | T45: 0.00169916912 | U45: 0.002829282111 | V45: 0.004956158576 | W45: 0.005866989121 | X45: 0 | Y45: 0 | Z45: 0 | AA45: 0 | AB45: 0 | AC45: 0 | AD45: 0 | AE45: 0 | AF45: 0 | AG45: 0 | AH45: 0 | AI45: 0 | AJ45: 0 | AK45: 0 | AL45: 0
B46: Trolleybus | C46: 0 | D46: 0 | E46: 0 | F46: 0 | G46: 0 | H46: 0 | I46: 0 | J46: 0 | K46: 0 | L46: 0 | M46: 0 | N46: 0 | O46: 0 | P46: 0 | Q46: 0 | R46: 0 | S46: 0 | T46: 0 | U46: 0 | V46: 0 | W46: 0 | X46: 0 | Y46: 0 | Z46: 0 | AA46: 0 | AB46: 0 | AC46: 0 | AD46: 0 | AE46: 0 | AF46: 0 | AG46: 0 | AH46: 0 | AI46: 0 | AJ46: 0 | AK46: 0 | AL46: 0
B47: Other | C47: 0 | D47: 0 | E47: 0 | F47: 0 | G47: 0 | H47: 0 | I47: 0 | J47: 0 | K47: 0 | L47: 0 | M47: 0 | N47: 0 | O47: 0 | P47: 0 | Q47: 0 | R47: 0 | S47: 0 | T47: 0 | U47: 0 | V47: 0 | W47: 0 | X47: 0 | Y47: 0 | Z47: 0 | AA47: 0 | AB47: 0.005196037573 | AC47: 0.005157061094 | AD47: 0.005261480868 | AE47: 0.005141565713 | AF47: 0.004746159065 | AG47: 0.003956729626 | AH47: 0.003691839976 | AI47: 0.004023847011 | AJ47: 0 | AK47: 0 | AL47: 0
B48: TOTAL | C48: =SUM(C49:C53) -> 36.36506886 | D48: =SUM(D49:D52) -> 36.86552397 | E48: 37.09936066 | F48: 38.61414182 | G48: 39.96807457 | H48: 41.50440239 | I48: 42.89591654 | J48: 43.24734444 | K48: 44.29060423 | L48: 44.60428369 | M48: =SUM(M49:M52) -> 45.98560911 | N48: =SUM(N49:N52) -> 42.56753858 | O48: 45.17101128 | P48: 44.32100341 | Q48: 45.44226551 | R48: 44.10420047 | S48: 42.48977717 | T48: 41.93595729 | U48: 42.22121976 | V48: 42.91393823 | W48: 46.03081097 | X48: 48.32235142 | Y48: 49.02713033 | Z48: 44.78029624 | AA48: 42.37927032 | AB48: 40.63301382 | AC48: 38.31413982 | AD48: 37.21230176 | AE48: 37.55247687 | AF48: 36.78331155 | AG48: 32.52003998 | AH48: =SUM(AH49:AH52) -> 35.75027852 | AI48: 37.31991639 | AJ48: 0 | AK48: 0 | AL48: 0
B49: Residential | C49: =C4 -> 12.21180605 | D49: 12.29346189 | E49: 12.07482185 | F49: 12.78302255 | G49: 12.89610082 | H49: 13.74393731 | I49: 13.85467719 | J49: 13.96357975 | K49: 15.22147112 | L49: 15.0599546 | M49: =M4 -> 15.79721824 | N49: =N4 -> 14.70368288 | O49: 16.04675877 | P49: 16.28343811 | Q49: 16.44913035 | R49: 16.33003905 | S49: 15.41942311 | T49: 15.22007569 | U49: 15.47161486 | V49: 16.22678293 | W49: 17.68040957 | X49: 17.9142511 | Y49: 17.3741306 | Z49: 16.02612036 | AA49: 14.6834894 | AB49: 13.9816278 | AC49: 12.84083655 | AD49: 12.04914992 | AE49: 12.78473685 | AF49: 12.23860783 | AG49: 11.10707475 | AH49: =AH4 -> 11.96998353 | AI49: 12.33470063 | AJ49: 0 | AK49: 0 | AL49: 0
B50: Commercial | C50: =C10 -> 9.416638181 | D50: 9.424152522 | E50: 9.369795849 | F50: 9.622008833 | G50: 10.04743034 | H50: 10.2672398 | I50: 10.49239417 | J50: 10.76448354 | K50: 11.40102902 | L50: 11.59995993 | M50: =M10 -> 11.97811237 | N50: =N10 -> 11.57757811 | O50: 12.21829931 | P50: 12.5057553 | Q50: 12.8613589 | R50: 12.36227784 | S50: 12.05538116 | T50: 12.06271052 | U50: 12.30297608 | V50: 12.71030848 | W50: 13.09464402 | X50: 13.58478381 | Y50: 14.028562 | Z50: 12.65723959 | AA50: 11.45320122 | AB50: 11.07886141 | AC50: 10.43003328 | AD50: 9.996215754 | AE50: 9.844345533 | AF50: 9.59164019 | AG50: 8.172678512 | AH50: =AH10 -> 8.841033782 | AI50: 9.234039087 | AJ50: 0 | AK50: 0 | AL50: 0
B51: Industrial | C51: =C21 -> 14.73495478 | D51: 15.14623971 | E51: 15.65307268 | F51: 16.20760718 | G51: 17.0227061 | H51: 17.49138797 | I51: 18.54700788 | J51: 18.51761087 | K51: 17.66660083 | L51: 17.94269889 | M51: =M21 -> 18.20860821 | N51: =N21 -> 16.28460731 | O51: 16.90428292 | P51: 15.53013973 | Q51: 16.12275672 | R51: 15.40520243 | S51: 15.01352614 | T51: 14.65147191 | U51: 14.44379954 | V51: 13.97189065 | W51: 15.2498904 | X51: 16.81724939 | Y51: 17.61833268 | Z51: 16.09097124 | AA51: 16.23723471 | AB51: 15.56732857 | AC51: 15.03811294 | AD51: 15.1616746 | AE51: 14.91825292 | AF51: 14.94831737 | AG51: 13.23632999 | AH51: =AH21 -> 14.93556936 | AI51: 15.74715283 | AJ51: 0 | AK51: 0 | AL51: 0
B52: Transportation | C52: =C38 -> 0.001669853557 | D52: =D38 -> 0.001669853557 | E52: 0.001670284659 | F52: 0.001503256193 | G52: 0.001837313124 | H52: 0.001837313124 | I52: 0.001837313124 | J52: 0.001670284659 | K52: 0.001503256193 | L52: 0.001670284659 | M52: =M38 -> 0.001670284659 | N52: =N38 -> 0.001670284659 | O52: 0.001670284659 | P52: 0.001670284659 | Q52: 0.009019537156 | R52: 0.006681138634 | S52: 0.001446761481 | T52: 0.00169916912 | U52: 0.002829282111 | V52: 0.004956158576 | W52: 0.005866989121 | X52: 0.006067124556 | Y52: 0.006105052186 | Z52: 0.005965057205 | AA52: 0.005344982561 | AB52: 0.005196037573 | AC52: 0.005157061094 | AD52: 0.005261480868 | AE52: 0.005141565713 | AF52: 0.004746159065 | AG52: 0.003956729626 | AH52: =AH38 -> 0.003691839976 | AI52: 0.004023847011 | AJ52: 0 | AK52: 0 | AL52: 0
B53: Additional CO2 Emissions
B54: =MAX(C54:AL54) -> 2022 | C54: =1990 -> 1990 | D54: =IF(D48=0,0,D3) -> 1991 | E54: =IF(E48=0,0,E3) -> 1992 | F54: 1993 | G54: 1994 | H54: 1995 | I54: 1996 | J54: 1997 | K54: 1998 | L54: 1999 | M54: 2000 | N54: 2001 | O54: 2002 | P54: 2003 | Q54: 2004 | R54: 2005 | S54: 2006 | T54: 2007 | U54: 2008 | V54: 2009 | W54: 2010 | X54: 2011 | Y54: 2012 | Z54: 2013 | AA54: 2014 | AB54: 2015 | AC54: 2016 | AD54: 2017 | AE54: 2018 | AF54: 2019 | AG54: 2020 | AH54: 2021 | AI54: 2022 | AJ54: 0 | AK54: 0 | AL54: 0
C55: 1 | D55: =IF(D3<=$B54,C55+1,0) -> 2 | E55: =IF(E3<=$B54,D55+1,0) -> 3 | F55: 4 | G55: 5 | H55: 6 | I55: 7 | J55: 8 | K55: 9 | L55: 10 | M55: 11 | N55: 12 | O55: 13 | P55: 14 | Q55: 15 | R55: 16 | S55: 17 | T55: 18 | U55: 19 | V55: 20 | W55: 21 | X55: 22 | Y55: 23 | Z55: 24 | AA55: 25 | AB55: 26 | AC55: 27 | AD55: 28 | AE55: 29 | AF55: 30 | AG55: 31 | AH55: 32 | AI55: 33 | AJ55: 0 | AK55: 0 | AL55: 0
O58: ="Indirect Emissions by Sector, 1990-"&B54 -> Indirect Emissions by Sector, 1990-2022

Sheet Stationary
A1: ="Summary of CH4 and N2O Emissions from Stationary Combustion in "&StateName&" (MMTCO2E)" -> Summary of CH4 and N2O Emissions from Stationary Combustion in Select a State . . . (MMTCO2E)
B3: Emissions (MMTCO2 Eq.) | C3: 1990 | D3: 1991 | E3: 1992 | F3: 1993 | G3: 1994 | H3: 1995 | I3: 1996 | J3: 1997 | K3: 1998 | L3: 1999 | M3: 2000 | N3: 2001 | O3: 2002 | P3: 2003 | Q3: 2004 | R3: 2005 | S3: 2006 | T3: 2007 | U3: 2008 | V3: 2009 | W3: 2010 | X3: 2011 | Y3: 2012 | Z3: 2013 | AA3: 2014 | AB3: 2015 | AC3: 2016 | AD3: 2017 | AE3: 2018 | AF3: 2019 | AG3: 2020 | AH3: 2021 | AI3: 2022 | AJ3: 2023 | AK3: 2024 | AL3: 2025
B4: Residential | C4: =SUM(C5:C6) -> 0 | D4: 0 | E4: 0 | F4: 0 | G4: 0 | H4: 0 | I4: 0 | J4: 0 | K4: 0 | L4: 0 | M4: =SUM(M5:M6) -> 0 | N4: 0 | O4: 0 | P4: 0 | Q4: 0 | R4: 0 | S4: =SUM(S5:S6) -> 0 | T4: 0 | U4: 0 | V4: 0 | W4: 0 | X4: 0 | Y4: 0 | Z4: 0 | AA4: 0 | AB4: 0 | AC4: 0 | AD4: 0 | AE4: 0 | AF4: 0 | AG4: 0 | AH4: =SUM(AH5:AH6) -> 0 | AI4: 0 | AJ4: 0 | AK4: 0 | AL4: 0
B5: N2O
B6: CH4
B7: Commercial | C7: =SUM(C8:C9) -> 0 | D7: 0 | E7: 0 | F7: 0 | G7: 0 | H7: 0 | I7: 0 | J7: 0 | K7: 0 | L7: 0 | M7: =SUM(M8:M9) -> 0 | N7: 0 | O7: 0 | P7: 0 | Q7: 0 | R7: 0 | S7: =SUM(S8:S9) -> 0 | T7: 0 | U7: 0 | V7: 0 | W7: 0 | X7: 0 | Y7: 0 | Z7: 0 | AA7: 0 | AB7: 0 | AC7: 0 | AD7: 0 | AE7: 0 | AF7: 0 | AG7: 0 | AH7: =SUM(AH8:AH9) -> 0 | AI7: 0 | AJ7: 0 | AK7: 0 | AL7: 0
B8: N2O
B9: CH4
B10: Industrial | C10: =SUM(C11:C12) -> 0 | D10: 0 | E10: 0 | F10: 0 | G10: 0 | H10: 0 | I10: 0 | J10: 0 | K10: 0 | L10: 0 | M10: =SUM(M11:M12) -> 0 | N10: 0 | O10: 0 | P10: 0 | Q10: 0 | R10: 0 | S10: =SUM(S11:S12) -> 0 | T10: 0 | U10: 0 | V10: 0 | W10: 0 | X10: 0 | Y10: 0 | Z10: 0 | AA10: 0 | AB10: 0 | AC10: 0 | AD10: 0 | AE10: 0 | AF10: 0 | AG10: 0 | AH10: =SUM(AH11:AH12) -> 0 | AI10: 0 | AJ10: 0 | AK10: 0 | AL10: 0
B11: N2O
B12: CH4
B13: Electric Utilities | C13: =SUM(C14:C15) -> 0 | D13: 0 | E13: 0 | F13: 0 | G13: 0 | H13: 0 | I13: 0 | J13: 0 | K13: 0 | L13: 0 | M13: =SUM(M14:M15) -> 0 | N13: 0 | O13: 0 | P13: 0 | Q13: 0 | R13: 0 | S13: =SUM(S14:S15) -> 0 | T13: 0 | U13: 0 | V13: 0 | W13: 0 | X13: 0 | Y13: 0 | Z13: 0 | AA13: 0 | AB13: 0 | AC13: 0 | AD13: 0 | AE13: 0 | AF13: 0 | AG13: 0 | AH13: =SUM(AH14:AH15) -> 0 | AI13: 0 | AJ13: 0 | AK13: 0 | AL13: 0
B14: N2O
B15: CH4
B16: N2O | C16: =SUMIF($B$5:$B$15,$B$16,C5:C15)+C18 -> 0 | D16: =SUMIF($B$5:$B$15,$B$16,D5:D15)+D18 -> 0 | E16: 0 | F16: 0 | G16: 0 | H16: 0 | I16: 0 | J16: 0 | K16: 0 | L16: 0 | M16: 0 | N16: 0 | O16: 0 | P16: 0 | Q16: 0 | R16: 0 | S16: 0 | T16: 0 | U16: 0 | V16: 0 | W16: 0 | X16: 0 | Y16: 0 | Z16: 0 | AA16: 0 | AB16: 0 | AC16: 0 | AD16: 0 | AE16: 0 | AF16: 0 | AG16: 0 | AH16: =SUMIF($B$5:$B$15,$B$16,AH5:AH15)+AH18 -> 0 | AI16: 0 | AJ16: 0 | AK16: 0 | AL16: 0
B17: CH4 | C17: =SUMIF($B$5:$B$15,$B$17,C5:C15)+C19 -> 0 | D17: =SUMIF($B$5:$B$15,$B$17,D5:D15)+D19 -> 0 | E17: 0 | F17: 0 | G17: 0 | H17: 0 | I17: 0 | J17: 0 | K17: 0 | L17: 0 | M17: 0 | N17: 0 | O17: 0 | P17: 0 | Q17: 0 | R17: 0 | S17: 0 | T17: 0 | U17: 0 | V17: 0 | W17: 0 | X17: 0 | Y17: 0 | Z17: 0 | AA17: 0 | AB17: 0 | AC17: 0 | AD17: 0 | AE17: 0 | AF17: 0 | AG17: 0 | AH17: =SUMIF($B$5:$B$15,$B$17,AH5:AH15)+AH19 -> 0 | AI17: 0 | AJ17: 0 | AK17: 0 | AL17: 0
B18: Additional N2O Emissions
B19: Additional CH4 Emissions
B20: TOTAL | C20: =SUM(C4,C7,C10,C13,C18,C19) -> 0 | D20: =SUM(D4,D7,D10,D13,D18,D19) -> 0 | E20: 0 | F20: 0 | G20: 0 | H20: 0 | I20: 0 | J20: 0 | K20: 0 | L20: 0 | M20: 0 | N20: 0 | O20: 0 | P20: 0 | Q20: 0 | R20: 0 | S20: 0 | T20: 0 | U20: 0 | V20: 0 | W20: 0 | X20: 0 | Y20: 0 | Z20: 0 | AA20: 0 | AB20: 0 | AC20: 0 | AD20: 0 | AE20: 0 | AF20: 0 | AG20: 0 | AH20: =SUM(AH4,AH7,AH10,AH13,AH18,AH19) -> 0 | AI20: 0 | AJ20: 0 | AK20: 0 | AL20: 0
B21: =MAX(C21:AL21) -> 1990 | C21: =1990 -> 1990 | D21: =IF(D20=0,0,D3) -> 0 | E21: =IF(E20=0,0,E3) -> 0 | F21: 0 | G21: 0 | H21: 0 | I21: 0 | J21: 0 | K21: 0 | L21: 0 | M21: 0 | N21: 0 | O21: 0 | P21: 0 | Q21: 0 | R21: 0 | S21: 0 | T21: 0 | U21: 0 | V21: 0 | W21: 0 | X21: 0 | Y21: 0 | Z21: 0 | AA21: 0 | AB21: 0 | AC21: 0 | AD21: 0 | AE21: 0 | AF21: 0 | AG21: 0 | AH21: 0 | AI21: 0 | AJ21: 0 | AK21: 0 | AL21: 0
C22: 1 | D22: =IF(D3<=$B21,C22+1,0) -> 0 | E22: =IF(E3<=$B21,D22+1,0) -> 0 | F22: 0 | G22: 0 | H22: 0 | I22: 0 | J22: 0 | K22: 0 | L22: 0 | M22: 0 | N22: 0 | O22: 0 | P22: 0 | Q22: 0 | R22: 0 | S22: 0 | T22: 0 | U22: 0 | V22: 0 | W22: 0 | X22: 0 | Y22: 0 | Z22: 0 | AA22: 0 | AB22: 0 | AC22: 0 | AD22: 0 | AE22: 0 | AF22: 0 | AG22: 0 | AH22: 0 | AI22: 0 | AJ22: 0 | AK22: 0 | AL22: 0
C25: ="Total Non-CO2 Emissions by Sector for "&StateName -> Total Non-CO2 Emissions by Sector for Select a State . . .
O28: ="Emissions by Sector, 1990-"&B21 -> Emissions by Sector, 1990-1990

Sheet Mobile Combustion
A1: ="Summary of CH4 and N2O Emissions from Mobile Combustion in "&StateName&" (MTCO2E)" -> Summary of CH4 and N2O Emissions from Mobile Combustion in Select a State . . . (MTCO2E)
B3: Total CH4 and N2O Emissions from Mobile Sources (MTCO2E)
B4: Fuel Type/Vehicle Type | C4: 1990 | D4: 1991 | E4: 1992 | F4: 1993 | G4: 1994 | H4: 1995 | I4: 1996 | J4: 1997 | K4: 1998 | L4: 1999 | M4: 2000 | N4: 2001 | O4: 2002 | P4: 2003 | Q4: 2004 | R4: 2005 | S4: 2006 | T4: 2007 | U4: 2008 | V4: 2009 | W4: 2010 | X4: 2011 | Y4: 2012 | Z4: 2013 | AA4: 2014 | AB4: 2015 | AC4: 2016 | AD4: 2017 | AE4: 2018 | AF4: 2019 | AG4: 2020 | AH4: 2021 | AI4: 2022 | AJ4: 2023 | AK4: 2024 | AL4: 2025
B5: Gasoline Highway
B6: Passenger Cars
B7: Light-Duty Trucks | BN7: ="Total Methane and Nitrous Oxide Emissions from Mobile Sources, by Mode/Vehicle Type, 1990-"&B30 -> Total Methane and Nitrous Oxide Emissions from Mobile Sources, by Mode/Vehicle Type, 1990-1990
B8: Heavy-Duty Vehicles | BN8: ="Total Methane and Nitrous Oxide Emissions from Non-Highway Mobile Sources, 1990-"&B30 -> Total Methane and Nitrous Oxide Emissions from Non-Highway Mobile Sources, 1990-1990
B9: Motorcycles | BN9: ="Methane Emissions from Mobile Sources, by Mode/Vehicle Type, 1990-"&B83 -> Methane Emissions from Mobile Sources, by Mode/Vehicle Type, 1990-1990
B10: Diesel Highway | BN10: ="Methane Emissions from Non-Highway Mobile Sources, 1990-"&B83 -> Methane Emissions from Non-Highway Mobile Sources, 1990-1990
B11: Passenger Cars | BN11: ="Nitrous Oxide Emissions from Mobile Sources, by Mode/Vehicle Type, 1990-"&B111 -> Nitrous Oxide Emissions from Mobile Sources, by Mode/Vehicle Type, 1990-1990
B12: Light-Duty Trucks | BN12: ="Nitrous Oxide Emissions from Non-Highway Mobile Sources, 1990-"&B111 -> Nitrous Oxide Emissions from Non-Highway Mobile Sources, 1990-1990
B13: Heavy-Duty Vehicles
B14: Heavy-Duty Buses
B15: Non-Highway
B16: Boats
B17: Locomotives
B18: Farm Equipment
B19: Construction Equipment
B20: Aircraft
B21: Other*
B22: Alternative Fuel Vehicles
B23: Light Duty Vehicles
B24: Heavy Duty Vehicles
B25: Buses
B26: Additional Emissions Source(s) | C26: =SUM(C79,C107) -> 0 | D26: =SUM(D79,D107) -> 0 | E26: 0 | F26: 0 | G26: 0 | H26: 0 | I26: 0 | J26: 0 | K26: 0 | L26: 0 | M26: 0 | N26: 0 | O26: 0 | P26: 0 | Q26: 0 | R26: 0 | S26: 0 | T26: 0 | U26: 0 | V26: 0 | W26: 0 | X26: 0 | Y26: 0 | Z26: 0 | AA26: 0 | AB26: 0 | AC26: 0 | AD26: 0 | AE26: 0 | AF26: 0 | AG26: 0 | AH26: =SUM(AH79,AH107) -> 0 | AI26: 0 | AJ26: 0 | AK26: 0 | AL26: 0
B27: Total | C27: =C5+C10+C15+C22+C26 -> 0 | D27: 0 | E27: 0 | F27: 0 | G27: 0 | H27: 0 | I27: 0 | J27: 0 | K27: 0 | L27: 0 | M27: 0 | N27: 0 | O27: 0 | P27: 0 | Q27: 0 | R27: 0 | S27: 0 | T27: 0 | U27: 0 | V27: 0 | W27: 0 | X27: 0 | Y27: 0 | Z27: 0 | AA27: 0 | AB27: 0 | AC27: 0 | AD27: 0 | AE27: 0 | AF27: 0 | AG27: 0 | AH27: =AH5+AH10+AH15+AH22+AH26 -> 0 | AI27: 0 | AJ27: 0 | AK27: 0 | AL27: 0
C28: 1 | D28: =IF(D$4<=$B30,C28+1,0) -> 0 | E28: =IF(E$4<=$B30,D28+1,0) -> 0 | F28: 0 | G28: 0 | H28: 0 | I28: 0 | J28: 0 | K28: 0 | L28: 0 | M28: 0 | N28: 0 | O28: 0 | P28: 0 | Q28: 0 | R28: 0 | S28: 0 | T28: 0 | U28: 0 | V28: 0 | W28: 0 | X28: 0 | Y28: 0 | Z28: 0 | AA28: 0 | AB28: 0 | AC28: 0 | AD28: 0 | AE28: 0 | AF28: 0 | AG28: 0 | AH28: 0 | AI28: 0 | AJ28: 0 | AK28: 0 | AL28: 0
B29: * "Other" includes snowmobiles, small gasoline powered utility equipment, heavy-duty gasoline powered utility equipment, and heavy-duty diesel powered utility equipment.
B30: =MAX(C30:AL30) -> 1990 | C30: 1990 | D30: =IF(D27=0,0,D4) -> 0 | E30: =IF(E27=0,0,E4) -> 0 | F30: 0 | G30: 0 | H30: 0 | I30: 0 | J30: 0 | K30: 0 | L30: 0 | M30: 0 | N30: 0 | O30: 0 | P30: 0 | Q30: 0 | R30: 0 | S30: 0 | T30: 0 | U30: 0 | V30: 0 | W30: 0 | X30: 0 | Y30: 0 | Z30: 0 | AA30: 0 | AB30: 0 | AC30: 0 | AD30: 0 | AE30: 0 | AF30: 0 | AG30: 0 | AH30: 0 | AI30: 0 | AJ30: 0 | AK30: 0 | AL30: 0
B31: Total CH4 and N2O Emissions from Mobile Sources (MTCE)
B32: Fuel Type/Vehicle Type | C32: 1990 | D32: 1991 | E32: 1992 | F32: 1993 | G32: 1994 | H32: 1995 | I32: 1996 | J32: 1997 | K32: 1998 | L32: 1999 | M32: 2000 | N32: 2001 | O32: 2002 | P32: 2003 | Q32: 2004 | R32: 2005 | S32: 2006 | T32: 2007 | U32: 2008 | V32: 2009 | W32: 2010 | X32: 2011 | Y32: 2012 | Z32: 2013 | AA32: 2014 | AB32: 2015 | AC32: 2016 | AD32: 2017 | AE32: 2018 | AF32: 2019 | AG32: 2020 | AH32: 2021 | AI32: 2022 | AJ32: 2023 | AK32: 2024 | AL32: 2025
B33: Gasoline Highway | C33: =C5*C_CO2 -> 0 | D33: 0 | E33: 0 | F33: 0 | G33: 0 | H33: 0 | I33: 0 | J33: 0 | K33: 0 | L33: 0 | M33: 0 | N33: 0 | O33: 0 | P33: 0 | Q33: 0 | R33: 0 | S33: 0 | T33: 0 | U33: 0 | V33: 0 | W33: 0 | X33: 0 | Y33: 0 | Z33: 0 | AA33: 0 | AB33: 0 | AC33: 0 | AD33: 0 | AE33: 0 | AF33: 0 | AG33: 0 | AH33: =AH5*C_CO2 -> 0 | AI33: 0 | AJ33: 0 | AK33: 0 | AL33: 0
B34: Passenger Cars | C34: =C6*C_CO2 -> 0 | D34: 0 | E34: 0 | F34: 0 | G34: 0 | H34: 0 | I34: 0 | J34: 0 | K34: 0 | L34: 0 | M34: 0 | N34: 0 | O34: 0 | P34: 0 | Q34: 0 | R34: 0 | S34: 0 | T34: 0 | U34: 0 | V34: 0 | W34: 0 | X34: 0 | Y34: 0 | Z34: 0 | AA34: 0 | AB34: 0 | AC34: 0 | AD34: 0 | AE34: 0 | AF34: 0 | AG34: 0 | AH34: =AH6*C_CO2 -> 0 | AI34: 0 | AJ34: 0 | AK34: 0 | AL34: 0
B35: Light-Duty Trucks | C35: =C7*C_CO2 -> 0 | D35: 0 | E35: 0 | F35: 0 | G35: 0 | H35: 0 | I35: 0 | J35: 0 | K35: 0 | L35: 0 | M35: 0 | N35: 0 | O35: 0 | P35: 0 | Q35: 0 | R35: 0 | S35: 0 | T35: 0 | U35: 0 | V35: 0 | W35: 0 | X35: 0 | Y35: 0 | Z35: 0 | AA35: 0 | AB35: 0 | AC35: 0 | AD35: 0 | AE35: 0 | AF35: 0 | AG35: 0 | AH35: =AH7*C_CO2 -> 0 | AI35: 0 | AJ35: 0 | AK35: 0 | AL35: 0
B36: Heavy-Duty Vehicles | C36: =C8*C_CO2 -> 0 | D36: 0 | E36: 0 | F36: 0 | G36: 0 | H36: 0 | I36: 0 | J36: 0 | K36: 0 | L36: 0 | M36: 0 | N36: 0 | O36: 0 | P36: 0 | Q36: 0 | R36: 0 | S36: 0 | T36: 0 | U36: 0 | V36: 0 | W36: 0 | X36: 0 | Y36: 0 | Z36: 0 | AA36: 0 | AB36: 0 | AC36: 0 | AD36: 0 | AE36: 0 | AF36: 0 | AG36: 0 | AH36: =AH8*C_CO2 -> 0 | AI36: 0 | AJ36: 0 | AK36: 0 | AL36: 0
B37: Motorcycles | C37: =C9*C_CO2 -> 0 | D37: 0 | E37: 0 | F37: 0 | G37: 0 | H37: 0 | I37: 0 | J37: 0 | K37: 0 | L37: 0 | M37: 0 | N37: 0 | O37: 0 | P37: 0 | Q37: 0 | R37: 0 | S37: 0 | T37: 0 | U37: 0 | V37: 0 | W37: 0 | X37: 0 | Y37: 0 | Z37: 0 | AA37: 0 | AB37: 0 | AC37: 0 | AD37: 0 | AE37: 0 | AF37: 0 | AG37: 0 | AH37: =AH9*C_CO2 -> 0 | AI37: 0 | AJ37: 0 | AK37: 0 | AL37: 0
B38: Diesel Highway | C38: =C10*C_CO2 -> 0 | D38: 0 | E38: 0 | F38: 0 | G38: 0 | H38: 0 | I38: 0 | J38: 0 | K38: 0 | L38: 0 | M38: 0 | N38: 0 | O38: 0 | P38: 0 | Q38: 0 | R38: 0 | S38: 0 | T38: 0 | U38: 0 | V38: 0 | W38: 0 | X38: 0 | Y38: 0 | Z38: 0 | AA38: 0 | AB38: 0 | AC38: 0 | AD38: 0 | AE38: 0 | AF38: 0 | AG38: 0 | AH38: =AH10*C_CO2 -> 0 | AI38: 0 | AJ38: 0 | AK38: 0 | AL38: 0
B39: Passenger Cars | C39: =C11*C_CO2 -> 0 | D39: 0 | E39: 0 | F39: 0 | G39: 0 | H39: 0 | I39: 0 | J39: 0 | K39: 0 | L39: 0 | M39: 0 | N39: 0 | O39: 0 | P39: 0 | Q39: 0 | R39: 0 | S39: 0 | T39: 0 | U39: 0 | V39: 0 | W39: 0 | X39: 0 | Y39: 0 | Z39: 0 | AA39: 0 | AB39: 0 | AC39: 0 | AD39: 0 | AE39: 0 | AF39: 0 | AG39: 0 | AH39: =AH11*C_CO2 -> 0 | AI39: 0 | AJ39: 0 | AK39: 0 | AL39: 0
B40: Light-Duty Trucks | C40: =C12*C_CO2 -> 0 | D40: 0 | E40: 0 | F40: 0 | G40: 0 | H40: 0 | I40: 0 | J40: 0 | K40: 0 | L40: 0 | M40: 0 | N40: 0 | O40: 0 | P40: 0 | Q40: 0 | R40: 0 | S40: 0 | T40: 0 | U40: 0 | V40: 0 | W40: 0 | X40: 0 | Y40: 0 | Z40: 0 | AA40: 0 | AB40: 0 | AC40: 0 | AD40: 0 | AE40: 0 | AF40: 0 | AG40: 0 | AH40: =AH12*C_CO2 -> 0 | AI40: 0 | AJ40: 0 | AK40: 0 | AL40: 0
B41: Heavy-Duty Vehicles | C41: =C13*C_CO2 -> 0 | D41: 0 | E41: 0 | F41: 0 | G41: 0 | H41: 0 | I41: 0 | J41: 0 | K41: 0 | L41: 0 | M41: 0 | N41: 0 | O41: 0 | P41: 0 | Q41: 0 | R41: 0 | S41: 0 | T41: 0 | U41: 0 | V41: 0 | W41: 0 | X41: 0 | Y41: 0 | Z41: 0 | AA41: 0 | AB41: 0 | AC41: 0 | AD41: 0 | AE41: 0 | AF41: 0 | AG41: 0 | AH41: =AH13*C_CO2 -> 0 | AI41: 0 | AJ41: 0 | AK41: 0 | AL41: 0
B42: Non-Highway | C42: =C15*C_CO2 -> 0 | D42: 0 | E42: 0 | F42: 0 | G42: 0 | H42: 0 | I42: 0 | J42: 0 | K42: 0 | L42: 0 | M42: 0 | N42: 0 | O42: 0 | P42: 0 | Q42: 0 | R42: 0 | S42: 0 | T42: 0 | U42: 0 | V42: 0 | W42: 0 | X42: 0 | Y42: 0 | Z42: 0 | AA42: 0 | AB42: 0 | AC42: 0 | AD42: 0 | AE42: 0 | AF42: 0 | AG42: 0 | AH42: =AH15*C_CO2 -> 0 | AI42: 0 | AJ42: 0 | AK42: 0 | AL42: 0
B43: Boats | C43: =C16*C_CO2 -> 0 | D43: 0 | E43: 0 | F43: 0 | G43: 0 | H43: 0 | I43: 0 | J43: 0 | K43: 0 | L43: 0 | M43: 0 | N43: 0 | O43: 0 | P43: 0 | Q43: 0 | R43: 0 | S43: 0 | T43: 0 | U43: 0 | V43: 0 | W43: 0 | X43: 0 | Y43: 0 | Z43: 0 | AA43: 0 | AB43: 0 | AC43: 0 | AD43: 0 | AE43: 0 | AF43: 0 | AG43: 0 | AH43: =AH16*C_CO2 -> 0 | AI43: 0 | AJ43: 0 | AK43: 0 | AL43: 0
B44: Locomotives | C44: =C17*C_CO2 -> 0 | D44: 0 | E44: 0 | F44: 0 | G44: 0 | H44: 0 | I44: 0 | J44: 0 | K44: 0 | L44: 0 | M44: 0 | N44: 0 | O44: 0 | P44: 0 | Q44: 0 | R44: 0 | S44: 0 | T44: 0 | U44: 0 | V44: 0 | W44: 0 | X44: 0 | Y44: 0 | Z44: 0 | AA44: 0 | AB44: 0 | AC44: 0 | AD44: 0 | AE44: 0 | AF44: 0 | AG44: 0 | AH44: =AH17*C_CO2 -> 0 | AI44: 0 | AJ44: 0 | AK44: 0 | AL44: 0
B45: Farm Equipment | C45: =C18*C_CO2 -> 0 | D45: 0 | E45: 0 | F45: 0 | G45: 0 | H45: 0 | I45: 0 | J45: 0 | K45: 0 | L45: 0 | M45: 0 | N45: 0 | O45: 0 | P45: 0 | Q45: 0 | R45: 0 | S45: 0 | T45: 0 | U45: 0 | V45: 0 | W45: 0 | X45: 0 | Y45: 0 | Z45: 0 | AA45: 0 | AB45: 0 | AC45: 0 | AD45: 0 | AE45: 0 | AF45: 0 | AG45: 0 | AH45: =AH18*C_CO2 -> 0 | AI45: 0 | AJ45: 0 | AK45: 0 | AL45: 0
B46: Construction Equipment | C46: =C19*C_CO2 -> 0 | D46: 0 | E46: 0 | F46: 0 | G46: 0 | H46: 0 | I46: 0 | J46: 0 | K46: 0 | L46: 0 | M46: 0 | N46: 0 | O46: 0 | P46: 0 | Q46: 0 | R46: 0 | S46: 0 | T46: 0 | U46: 0 | V46: 0 | W46: 0 | X46: 0 | Y46: 0 | Z46: 0 | AA46: 0 | AB46: 0 | AC46: 0 | AD46: 0 | AE46: 0 | AF46: 0 | AG46: 0 | AH46: =AH19*C_CO2 -> 0 | AI46: 0 | AJ46: 0 | AK46: 0 | AL46: 0
B47: Aircraft | C47: =C20*C_CO2 -> 0 | D47: 0 | E47: 0 | F47: 0 | G47: 0 | H47: 0 | I47: 0 | J47: 0 | K47: 0 | L47: 0 | M47: 0 | N47: 0 | O47: 0 | P47: 0 | Q47: 0 | R47: 0 | S47: 0 | T47: 0 | U47: 0 | V47: 0 | W47: 0 | X47: 0 | Y47: 0 | Z47: 0 | AA47: 0 | AB47: 0 | AC47: 0 | AD47: 0 | AE47: 0 | AF47: 0 | AG47: 0 | AH47: =AH20*C_CO2 -> 0 | AI47: 0 | AJ47: 0 | AK47: 0 | AL47: 0
B48: Other* | C48: =C21*C_CO2 -> 0 | D48: 0 | E48: 0 | F48: 0 | G48: 0 | H48: 0 | I48: 0 | J48: 0 | K48: 0 | L48: 0 | M48: 0 | N48: 0 | O48: 0 | P48: 0 | Q48: 0 | R48: 0 | S48: 0 | T48: 0 | U48: 0 | V48: 0 | W48: 0 | X48: 0 | Y48: 0 | Z48: 0 | AA48: 0 | AB48: 0 | AC48: 0 | AD48: 0 | AE48: 0 | AF48: 0 | AG48: 0 | AH48: =AH21*C_CO2 -> 0 | AI48: 0 | AJ48: 0 | AK48: 0 | AL48: 0
B49: Alternative Fuel Vehicles | C49: =C22*C_CO2 -> 0 | D49: 0 | E49: 0 | F49: 0 | G49: 0 | H49: 0 | I49: 0 | J49: 0 | K49: 0 | L49: 0 | M49: 0 | N49: 0 | O49: 0 | P49: 0 | Q49: 0 | R49: 0 | S49: 0 | T49: 0 | U49: 0 | V49: 0 | W49: 0 | X49: 0 | Y49: 0 | Z49: 0 | AA49: 0 | AB49: 0 | AC49: 0 | AD49: 0 | AE49: 0 | AF49: 0 | AG49: 0 | AH49: =AH22*C_CO2 -> 0 | AI49: 0 | AJ49: 0 | AK49: 0 | AL49: 0
B50: Light Duty Vehicles | C50: =C23*C_CO2 -> 0 | D50: 0 | E50: 0 | F50: 0 | G50: 0 | H50: 0 | I50: 0 | J50: 0 | K50: 0 | L50: 0 | M50: 0 | N50: 0 | O50: 0 | P50: 0 | Q50: 0 | R50: 0 | S50: 0 | T50: 0 | U50: 0 | V50: 0 | W50: 0 | X50: 0 | Y50: 0 | Z50: 0 | AA50: 0 | AB50: 0 | AC50: 0 | AD50: 0 | AE50: 0 | AF50: 0 | AG50: 0 | AH50: =AH23*C_CO2 -> 0 | AI50: 0 | AJ50: 0 | AK50: 0 | AL50: 0
B51: Heavy Duty Vehicles | C51: =C24*C_CO2 -> 0 | D51: 0 | E51: 0 | F51: 0 | G51: 0 | H51: 0 | I51: 0 | J51: 0 | K51: 0 | L51: 0 | M51: 0 | N51: 0 | O51: 0 | P51: 0 | Q51: 0 | R51: 0 | S51: 0 | T51: 0 | U51: 0 | V51: 0 | W51: 0 | X51: 0 | Y51: 0 | Z51: 0 | AA51: 0 | AB51: 0 | AC51: 0 | AD51: 0 | AE51: 0 | AF51: 0 | AG51: 0 | AH51: =AH24*C_CO2 -> 0 | AI51: 0 | AJ51: 0 | AK51: 0 | AL51: 0
B52: Buses | C52: =C25*C_CO2 -> 0 | D52: 0 | E52: 0 | F52: 0 | G52: 0 | H52: 0 | I52: 0 | J52: 0 | K52: 0 | L52: 0 | M52: 0 | N52: 0 | O52: 0 | P52: 0 | Q52: 0 | R52: 0 | S52: 0 | T52: 0 | U52: 0 | V52: 0 | W52: 0 | X52: 0 | Y52: 0 | Z52: 0 | AA52: 0 | AB52: 0 | AC52: 0 | AD52: 0 | AE52: 0 | AF52: 0 | AG52: 0 | AH52: =AH25*C_CO2 -> 0 | AI52: 0 | AJ52: 0 | AK52: 0 | AL52: 0
B53: Total | C53: =C27*C_CO2 -> 0 | D53: 0 | E53: 0 | F53: 0 | G53: 0 | H53: 0 | I53: 0 | J53: 0 | K53: 0 | L53: 0 | M53: 0 | N53: 0 | O53: 0 | P53: 0 | Q53: 0 | R53: 0 | S53: 0 | T53: 0 | U53: 0 | V53: 0 | W53: 0 | X53: 0 | Y53: 0 | Z53: 0 | AA53: 0 | AB53: 0 | AC53: 0 | AD53: 0 | AE53: 0 | AF53: 0 | AG53: 0 | AH53: =AH27*C_CO2 -> 0 | AI53: 0 | AJ53: 0 | AK53: 0 | AL53: 0
B54: * "Other" includes snowmobiles, small gasoline powered utility equipment, heavy-duty gasoline powered utility equipment, and heavy-duty diesel powered utility equipment.
B56: CH4 Emissions from Mobile Sources (MTCO2E)
B57: Fuel Type/Vehicle Type | C57: 1990 | D57: 1991 | E57: 1992 | F57: 1993 | G57: 1994 | H57: 1995 | I57: 1996 | J57: 1997 | K57: 1998 | L57: 1999 | M57: 2000 | N57: 2001 | O57: 2002 | P57: 2003 | Q57: 2004 | R57: 2005 | S57: 2006 | T57: 2007 | U57: 2008 | V57: 2009 | W57: 2010 | X57: 2011 | Y57: 2012 | Z57: 2013 | AA57: 2014 | AB57: 2015 | AC57: 2016 | AD57: 2017 | AE57: 2018 | AF57: 2019 | AG57: 2020 | AH57: 2021 | AI57: 2022 | AJ57: 2023 | AK57: 2024 | AL57: 2025
B58: Gasoline Highway
B59: Passenger Cars
B60: Light-Duty Trucks
B61: Heavy-Duty Vehicles
B62: Motorcycles
B63: Diesel Highway
B64: Passenger Cars
B65: Light-Duty Trucks
B66: Heavy-Duty Vehicles
B67: Heavy-Duty Buses
B68: Non-Highway
B69: Boats
B70: Locomotives
B71: Farm Equipment
B72: Construction Equipment
B73: Aircraft
B74: Other*
B75: Alternative Fuel Vehicles
B76: Light Duty Vehicles
B77: Heavy Duty Vehicles
B78: Buses
B79: Additional CH4 Emissions
B80: Total | C80: =C58+C63+C68+C75+C79 -> 0 | D80: 0 | E80: 0 | F80: 0 | G80: 0 | H80: 0 | I80: 0 | J80: 0 | K80: 0 | L80: 0 | M80: 0 | N80: 0 | O80: 0 | P80: 0 | Q80: 0 | R80: 0 | S80: 0 | T80: 0 | U80: 0 | V80: 0 | W80: 0 | X80: 0 | Y80: 0 | Z80: 0 | AA80: 0 | AB80: 0 | AC80: 0 | AD80: 0 | AE80: 0 | AF80: 0 | AG80: 0 | AH80: =AH58+AH63+AH68+AH75+AH79 -> 0 | AI80: 0 | AJ80: 0 | AK80: 0 | AL80: 0
C81: 1 | D81: =IF(D$4<=$B83,C81+1,0) -> 0 | E81: =IF(E$4<=$B83,D81+1,0) -> 0 | F81: 0 | G81: 0 | H81: 0 | I81: 0 | J81: 0 | K81: 0 | L81: 0 | M81: 0 | N81: 0 | O81: 0 | P81: 0 | Q81: 0 | R81: 0 | S81: 0 | T81: 0 | U81: 0 | V81: 0 | W81: 0 | X81: 0 | Y81: 0 | Z81: 0 | AA81: 0 | AB81: 0 | AC81: 0 | AD81: 0 | AE81: 0 | AF81: 0 | AG81: 0 | AH81: 0 | AI81: 0 | AJ81: 0 | AK81: 0 | AL81: 0
B82: * "Other" includes snowmobiles, small gasoline powered utility equipment, heavy-duty gasoline powered utility equipment, and heavy-duty diesel powered utility equipment.
B83: =MAX(C83:AL83) -> 1990 | C83: 1990 | D83: =IF(D80=0,0,D57) -> 0 | E83: =IF(E80=0,0,E57) -> 0 | F83: 0 | G83: 0 | H83: 0 | I83: 0 | J83: 0 | K83: 0 | L83: 0 | M83: 0 | N83: 0 | O83: 0 | P83: 0 | Q83: 0 | R83: 0 | S83: 0 | T83: 0 | U83: 0 | V83: 0 | W83: 0 | X83: 0 | Y83: 0 | Z83: 0 | AA83: 0 | AB83: 0 | AC83: 0 | AD83: 0 | AE83: 0 | AF83: 0 | AG83: 0 | AH83: 0 | AI83: 0 | AJ83: 0 | AK83: 0 | AL83: 0
B84: N2O Emissions from Mobile Sources (MTCO2E)
B85: Fuel Type/Vehicle Type | C85: 1990 | D85: 1991 | E85: 1992 | F85: 1993 | G85: 1994 | H85: 1995 | I85: 1996 | J85: 1997 | K85: 1998 | L85: 1999 | M85: 2000 | N85: 2001 | O85: 2002 | P85: 2003 | Q85: 2004 | R85: 2005 | S85: 2006 | T85: 2007 | U85: 2008 | V85: 2009 | W85: 2010 | X85: 2011 | Y85: 2012 | Z85: 2013 | AA85: 2014 | AB85: 2015 | AC85: 2016 | AD85: 2017 | AE85: 2018 | AF85: 2019 | AG85: 2020 | AH85: 2021 | AI85: 2022 | AJ85: 2023 | AK85: 2024 | AL85: 2025
B86: Gasoline Highway
B87: Passenger Cars
B88: Light-Duty Trucks
B89: Heavy-Duty Vehicles
B90: Motorcycles
B91: Diesel Highway
B92: Passenger Cars
B93: Light-Duty Trucks
B94: Heavy-Duty Vehicles
B95: Heavy-Duty Buses
B96: Non-Highway
B97: Boats
B98: Locomotives
B99: Farm Equipment
B100: Construction Equipment
B101: Aircraft
B102: Other*
B103: Alternative Fuel Vehicles
B104: Light Duty Vehicles
B105: Heavy Duty Vehicles
B106: Buses
B107: Additional N2O Emissions
B108: Total | C108: =C86+C91+C96+C103+C107 -> 0 | D108: 0 | E108: 0 | F108: 0 | G108: 0 | H108: 0 | I108: 0 | J108: 0 | K108: 0 | L108: 0 | M108: 0 | N108: 0 | O108: 0 | P108: 0 | Q108: 0 | R108: 0 | S108: 0 | T108: 0 | U108: 0 | V108: 0 | W108: 0 | X108: 0 | Y108: 0 | Z108: 0 | AA108: 0 | AB108: 0 | AC108: 0 | AD108: 0 | AE108: 0 | AF108: 0 | AG108: 0 | AH108: =AH86+AH91+AH96+AH103+AH107 -> 0 | AI108: 0 | AJ108: 0 | AK108: 0 | AL108: 0
B109: * "Other" includes snowmobiles, small gasoline powered utility equipment, heavy-duty gasoline powered utility equipment, and heavy-duty diesel powered utility equipment.
C110: 1 | D110: =IF(D$4<=$B111,C110+1,0) -> 0 | E110: =IF(E$4<=$B111,D110+1,0) -> 0 | F110: 0 | G110: 0 | H110: 0 | I110: 0 | J110: 0 | K110: 0 | L110: 0 | M110: 0 | N110: 0 | O110: 0 | P110: 0 | Q110: 0 | R110: 0 | S110: 0 | T110: 0 | U110: 0 | V110: 0 | W110: 0 | X110: 0 | Y110: 0 | Z110: 0 | AA110: 0 | AB110: 0 | AC110: 0 | AD110: 0 | AE110: 0 | AF110: 0 | AG110: 0 | AH110: 0 | AI110: 0 | AJ110: 0 | AK110: 0 | AL110: 0
B111: =MAX(C111:AL111) -> 1990 | C111: =1990 -> 1990 | D111: =IF(D108=0,0,D85) -> 0 | E111: =IF(E108=0,0,E85) -> 0 | F111: 0 | G111: 0 | H111: 0 | I111: 0 | J111: 0 | K111: 0 | L111: 0 | M111: 0 | N111: 0 | O111: 0 | P111: 0 | Q111: 0 | R111: 0 | S111: 0 | T111: 0 | U111: 0 | V111: 0 | W111: 0 | X111: 0 | Y111: 0 | Z111: 0 | AA111: 0 | AB111: 0 | AC111: 0 | AD111: 0 | AE111: 0 | AF111: 0 | AG111: 0 | AH111: 0 | AI111: 0 | AJ111: 0 | AK111: 0 | AL111: 0

Sheet Coal
A1: ="Summary of CH4 Emissions from Coal Mining Activities in "&StateName&" (MTCO2E)" -> Summary of CH4 Emissions from Coal Mining Activities in Select a State . . . (MTCO2E)
B3: Emissions (MTCO2E)
C4: 1990 | D4: 1991* | E4: 1992* | F4: 1993 | G4: 1994 | H4: 1995 | I4: 1996 | J4: 1997 | K4: 1998 | L4: 1999 | M4: 2000 | N4: 2001 | O4: 2002 | P4: 2003 | Q4: 2004 | R4: 2005 | S4: 2006 | T4: 2007 | U4: 2008 | V4: 2009 | W4: 2010 | X4: 2011 | Y4: 2012 | Z4: 2013 | AA4: 2014 | AB4: 2015 | AC4: 2016 | AD4: 2017 | AE4: 2018 | AF4: 2019 | AG4: 2020 | AH4: 2021 | AI4: 2022 | AJ4: 2023 | AK4: 2024 | AL4: 2025
B5: Coal Mining
B6: Abandoned Coal Mines
B7: Vented
B8: Sealed
B9: Flooded
B10: Additional Emissions Sources
B12: Emissions (MTCE)
C13: 1990 | D13: 1991* | E13: 1992* | F13: 1993 | G13: 1994 | H13: 1995 | I13: 1996 | J13: 1997 | K13: 1998 | L13: 1999 | M13: 2000 | N13: 2001 | O13: 2002 | P13: 2003 | Q13: 2004 | R13: 2005 | S13: 2006 | T13: 2007 | U13: 2008 | V13: 2009 | W13: 2010 | X13: 2011 | Y13: 2012 | Z13: 2013 | AA13: 2014 | AB13: 2015 | AC13: 2016 | AD13: 2017 | AE13: 2018 | AF13: 2019 | AG13: 2020 | AH13: 2020 | AI13: 2020 | AJ13: 2020 | AK13: 2020 | AL13: 2020
B14: Coal Mining | C14: =C5/CO2_C -> 0 | D14: 0 | E14: 0 | F14: 0 | G14: 0 | H14: 0 | I14: 0 | J14: 0 | K14: 0 | L14: 0 | M14: 0 | N14: 0 | O14: 0 | P14: 0 | Q14: 0 | R14: 0 | S14: =S5/CO2_C -> 0 | T14: 0 | U14: 0 | V14: 0 | W14: 0 | X14: 0 | Y14: 0 | Z14: 0 | AA14: 0 | AB14: 0 | AC14: 0 | AD14: 0 | AE14: 0 | AF14: 0 | AG14: 0 | AH14: =AH5/CO2_C -> 0 | AI14: 0 | AJ14: 0 | AK14: 0 | AL14: 0
B15: Abandoned Coal Mines | C15: =C6/CO2_C -> 0 | D15: 0 | E15: 0 | F15: 0 | G15: 0 | H15: 0 | I15: 0 | J15: 0 | K15: 0 | L15: 0 | M15: 0 | N15: 0 | O15: 0 | P15: 0 | Q15: 0 | R15: 0 | S15: =S6/CO2_C -> 0 | T15: 0 | U15: 0 | V15: 0 | W15: 0 | X15: 0 | Y15: 0 | Z15: 0 | AA15: 0 | AB15: 0 | AC15: 0 | AD15: 0 | AE15: 0 | AF15: 0 | AG15: 0 | AH15: =AH6/CO2_C -> 0 | AI15: 0 | AJ15: 0 | AK15: 0 | AL15: 0
B16: Vented | C16: =C7/CO2_C -> 0 | D16: 0 | E16: 0 | F16: 0 | G16: 0 | H16: 0 | I16: 0 | J16: 0 | K16: 0 | L16: 0 | M16: 0 | N16: 0 | O16: 0 | P16: 0 | Q16: 0 | R16: 0 | S16: =S7/CO2_C -> 0 | T16: 0 | U16: 0 | V16: 0 | W16: 0 | X16: 0 | Y16: 0 | Z16: 0 | AA16: 0 | AB16: 0 | AC16: 0 | AD16: 0 | AE16: 0 | AF16: 0 | AG16: 0 | AH16: =AH7/CO2_C -> 0 | AI16: 0 | AJ16: 0 | AK16: 0 | AL16: 0
B17: Sealed | C17: =C8/CO2_C -> 0 | D17: 0 | E17: 0 | F17: 0 | G17: 0 | H17: 0 | I17: 0 | J17: 0 | K17: 0 | L17: 0 | M17: 0 | N17: 0 | O17: 0 | P17: 0 | Q17: 0 | R17: 0 | S17: =S8/CO2_C -> 0 | T17: 0 | U17: 0 | V17: 0 | W17: 0 | X17: 0 | Y17: 0 | Z17: 0 | AA17: 0 | AB17: 0 | AC17: 0 | AD17: 0 | AE17: 0 | AF17: 0 | AG17: 0 | AH17: =AH8/CO2_C -> 0 | AI17: 0 | AJ17: 0 | AK17: 0 | AL17: 0
B18: Flooded | C18: =C9/CO2_C -> 0 | D18: 0 | E18: 0 | F18: 0 | G18: 0 | H18: 0 | I18: 0 | J18: 0 | K18: 0 | L18: 0 | M18: 0 | N18: 0 | O18: 0 | P18: 0 | Q18: 0 | R18: 0 | S18: =S9/CO2_C -> 0 | T18: 0 | U18: 0 | V18: 0 | W18: 0 | X18: 0 | Y18: 0 | Z18: 0 | AA18: 0 | AB18: 0 | AC18: 0 | AD18: 0 | AE18: 0 | AF18: 0 | AG18: 0 | AH18: =AH9/CO2_C -> 0 | AI18: 0 | AJ18: 0 | AK18: 0 | AL18: 0
B21: Emissions by Gas (MTCH4)
C22: 1990 | D22: 1991* | E22: 1992* | F22: 1993 | G22: 1994 | H22: 1995 | I22: 1996 | J22: 1997 | K22: 1998 | L22: 1999 | M22: 2000 | N22: 2001 | O22: 2002 | P22: 2003 | Q22: 2004 | R22: 2005 | S22: 2006 | T22: 2007 | U22: 2008 | V22: 2009 | W22: 2010 | X22: 2011 | Y22: 2012 | Z22: 2013 | AA22: 2014 | AB22: 2015 | AC22: 2016 | AD22: 2017 | AE22: 2018 | AF22: 2019 | AG22: 2020 | AH22: 2021 | AI22: 2022 | AJ22: 2023 | AK22: 2024 | AL22: 2025
B23: Coal Mining | C23: =C5/CH4GWP -> 0 | D23: 0 | E23: 0 | F23: 0 | G23: 0 | H23: 0 | I23: 0 | J23: 0 | K23: 0 | L23: 0 | M23: 0 | N23: 0 | O23: 0 | P23: 0 | Q23: 0 | R23: 0 | S23: =S5/CH4GWP -> 0 | T23: 0 | U23: 0 | V23: 0 | W23: 0 | X23: 0 | Y23: 0 | Z23: 0 | AA23: 0 | AB23: 0 | AC23: 0 | AD23: 0 | AE23: 0 | AF23: 0 | AG23: 0 | AH23: =AH5/CH4GWP -> 0 | AI23: 0 | AJ23: 0 | AK23: 0 | AL23: 0
B24: Abandoned Coal Mines | C24: =C6/CH4GWP -> 0 | D24: 0 | E24: 0 | F24: 0 | G24: 0 | H24: 0 | I24: 0 | J24: 0 | K24: 0 | L24: 0 | M24: 0 | N24: 0 | O24: 0 | P24: 0 | Q24: 0 | R24: 0 | S24: =S6/CH4GWP -> 0 | T24: 0 | U24: 0 | V24: 0 | W24: 0 | X24: 0 | Y24: 0 | Z24: 0 | AA24: 0 | AB24: 0 | AC24: 0 | AD24: 0 | AE24: 0 | AF24: 0 | AG24: 0 | AH24: =AH6/CH4GWP -> 0 | AI24: 0 | AJ24: 0 | AK24: 0 | AL24: 0
B25: Vented | C25: =C7/CH4GWP -> 0 | D25: 0 | E25: 0 | F25: 0 | G25: 0 | H25: 0 | I25: 0 | J25: 0 | K25: 0 | L25: 0 | M25: 0 | N25: 0 | O25: 0 | P25: 0 | Q25: 0 | R25: 0 | S25: =S7/CH4GWP -> 0 | T25: 0 | U25: 0 | V25: 0 | W25: 0 | X25: 0 | Y25: 0 | Z25: 0 | AA25: 0 | AB25: 0 | AC25: 0 | AD25: 0 | AE25: 0 | AF25: 0 | AG25: 0 | AH25: =AH7/CH4GWP -> 0 | AI25: 0 | AJ25: 0 | AK25: 0 | AL25: 0
B26: Sealed | C26: =C8/CH4GWP -> 0 | D26: 0 | E26: 0 | F26: 0 | G26: 0 | H26: 0 | I26: 0 | J26: 0 | K26: 0 | L26: 0 | M26: 0 | N26: 0 | O26: 0 | P26: 0 | Q26: 0 | R26: 0 | S26: =S8/CH4GWP -> 0 | T26: 0 | U26: 0 | V26: 0 | W26: 0 | X26: 0 | Y26: 0 | Z26: 0 | AA26: 0 | AB26: 0 | AC26: 0 | AD26: 0 | AE26: 0 | AF26: 0 | AG26: 0 | AH26: =AH8/CH4GWP -> 0 | AI26: 0 | AJ26: 0 | AK26: 0 | AL26: 0
B27: Flooded | C27: =C9/CH4GWP -> 0 | D27: 0 | E27: 0 | F27: 0 | G27: 0 | H27: 0 | I27: 0 | J27: 0 | K27: 0 | L27: 0 | M27: 0 | N27: 0 | O27: 0 | P27: 0 | Q27: 0 | R27: 0 | S27: =S9/CH4GWP -> 0 | T27: 0 | U27: 0 | V27: 0 | W27: 0 | X27: 0 | Y27: 0 | Z27: 0 | AA27: 0 | AB27: 0 | AC27: 0 | AD27: 0 | AE27: 0 | AF27: 0 | AG27: 0 | AH27: =AH9/CH4GWP -> 0 | AI27: 0 | AJ27: 0 | AK27: 0 | AL27: 0
C28: =SUM(C5:C6,C10) -> 0 | D28: =SUM(D5:D6,D10) -> 0 | E28: 0 | F28: 0 | G28: 0 | H28: 0 | I28: 0 | J28: 0 | K28: 0 | L28: 0 | M28: 0 | N28: 0 | O28: 0 | P28: 0 | Q28: 0 | R28: 0 | S28: 0 | T28: 0 | U28: 0 | V28: 0 | W28: 0 | X28: 0 | Y28: 0 | Z28: 0 | AA28: 0 | AB28: 0 | AC28: 0 | AD28: 0 | AE28: 0 | AF28: 0 | AG28: 0 | AH28: 0 | AI28: 0 | AJ28: 0 | AK28: 0 | AL28: 0
C29: 1 | D29: =IF(D31<=$B30,C29+1,0) -> 0 | E29: =IF(E31<=$B30,D29+1,0) -> 0 | F29: 0 | G29: 0 | H29: 0 | I29: 0 | J29: 0 | K29: 0 | L29: 0 | M29: 0 | N29: 0 | O29: 0 | P29: 0 | Q29: 0 | R29: 0 | S29: 0 | T29: 0 | U29: 0 | V29: 0 | W29: 0 | X29: 0 | Y29: 0 | Z29: 0 | AA29: 0 | AB29: 0 | AC29: 0 | AD29: 0 | AE29: 0 | AF29: 0 | AG29: 0 | AH29: 0 | AI29: 0 | AJ29: 0 | AK29: 0 | AL29: 0
B30: =MAX(C30:AL30) -> 1990 | C30: 1990 | D30: =IF(SUM(D23:D27)=0,0,C30+1) -> 0 | E30: =IF(SUM(E23:E27)=0,0,D30+1) -> 0 | F30: 0 | G30: 0 | H30: 0 | I30: 0 | J30: 0 | K30: 0 | L30: 0 | M30: 0 | N30: 0 | O30: 0 | P30: 0 | Q30: 0 | R30: 0 | S30: 0 | T30: 0 | U30: 0 | V30: 0 | W30: 0 | X30: 0 | Y30: 0 | Z30: 0 | AA30: 0 | AB30: 0 | AC30: 0 | AD30: 0 | AE30: 0 | AF30: 0 | AG30: 0 | AH30: 0 | AI30: 0 | AJ30: 0 | AK30: 0 | AL30: 0
C31: 1990 | D31: 1991 | E31: =D31+1 -> 1992 | F31: =E31+1 -> 1993 | G31: 1994 | H31: 1995 | I31: 1996 | J31: 1997 | K31: 1998 | L31: 1999 | M31: 2000 | N31: 2001 | O31: 2002 | P31: 2003 | Q31: 2004 | R31: 2005 | S31: 2006 | T31: 2007 | U31: 2008 | V31: 2009 | W31: 2010 | X31: 2011 | Y31: 2012 | Z31: 2013 | AA31: 2014 | AB31: 2015 | AC31: 2016 | AD31: 2017 | AE31: 2018 | AF31: 2019 | AG31: 2020 | AH31: 2021 | AI31: 2022 | AJ31: 2023 | AK31: 2024 | AL31: 2025
M33: ="Greenhouse Gas Emissions from Coal Mining, 1990-"&B30 -> Greenhouse Gas Emissions from Coal Mining, 1990-1990

Sheet Gas and Oil
A1: ="Summary of CH4 Emissions from Oil and Gas Activities in "&StateName&" (MMTCO2E)" -> Summary of CH4 Emissions from Oil and Gas Activities in Select a State . . . (MMTCO2E)
B3: Emissions (MMTCO2 Eq.)
C4: 1990 | D4: 1991 | E4: 1992 | F4: 1993 | G4: 1994 | H4: 1995 | I4: 1996 | J4: 1997 | K4: 1998 | L4: 1999 | M4: 2000 | N4: 2001 | O4: 2002 | P4: 2003 | Q4: 2004 | R4: 2005 | S4: 2006 | T4: 2007 | U4: 2008 | V4: 2009 | W4: 2010 | X4: 2011 | Y4: 2012 | Z4: 2013 | AA4: 2014 | AB4: 2015 | AC4: 2016 | AD4: 2017 | AE4: 2018 | AF4: 2019 | AG4: 2020 | AH4: 2021 | AI4: 2022 | AJ4: 2023 | AK4: 2024 | AL4: 2025
B5: Natural Gas | C5: =(C19*CH4GWP*10^-6)+C27 -> 0 | D5: 0 | E5: 0 | F5: 0 | G5: 0 | H5: 0 | I5: 0 | J5: 0 | K5: 0 | L5: 0 | M5: 0 | N5: 0 | O5: 0 | P5: 0 | Q5: 0 | R5: 0 | S5: =(S19*CH4GWP*10^-6)+S27 -> 0 | T5: 0 | U5: 0 | V5: 0 | W5: 0 | X5: 0 | Y5: 0 | Z5: 0 | AA5: 0 | AB5: 0 | AC5: 0 | AD5: 0 | AE5: 0 | AF5: 0 | AG5: 0 | AH5: =(AH19*CH4GWP*10^-6)+AH27 -> 0 | AI5: 0 | AJ5: 0 | AK5: 0 | AL5: 0
B6: Oil | C6: =C23*CH4GWP*10^-6 -> 0 | D6: 0 | E6: 0 | F6: 0 | G6: 0 | H6: 0 | I6: 0 | J6: 0 | K6: 0 | L6: 0 | M6: 0 | N6: 0 | O6: 0 | P6: 0 | Q6: 0 | R6: 0 | S6: =S23*CH4GWP*10^-6 -> 0 | T6: 0 | U6: 0 | V6: 0 | W6: 0 | X6: 0 | Y6: 0 | Z6: 0 | AA6: 0 | AB6: 0 | AC6: 0 | AD6: 0 | AE6: 0 | AF6: 0 | AG6: 0 | AH6: =AH23*CH4GWP*10^-6 -> 0 | AI6: 0 | AJ6: 0 | AK6: 0 | AL6: 0
B7: Additional Emissions Sources
B8: Total | C8: =C6+C5+C7 -> 0 | D8: =D6+D5+D7 -> 0 | E8: 0 | F8: 0 | G8: 0 | H8: 0 | I8: 0 | J8: 0 | K8: 0 | L8: 0 | M8: 0 | N8: 0 | O8: 0 | P8: 0 | Q8: 0 | R8: 0 | S8: 0 | T8: 0 | U8: 0 | V8: 0 | W8: 0 | X8: 0 | Y8: 0 | Z8: 0 | AA8: 0 | AB8: 0 | AC8: 0 | AD8: 0 | AE8: 0 | AF8: 0 | AG8: 0 | AH8: =AH6+AH5+AH7 -> 0 | AI8: 0 | AJ8: 0 | AK8: 0 | AL8: 0
B10: Emissions (MMTCE)
C11: 1990 | D11: 1991 | E11: 1992 | F11: 1993 | G11: 1994 | H11: 1995 | I11: 1996 | J11: 1997 | K11: 1998 | L11: 1999 | M11: 2000 | N11: 2001 | O11: 2002 | P11: 2003 | Q11: 2004 | R11: 2005 | S11: 2006 | T11: 2007 | U11: 2008 | V11: 2009 | W11: 2010 | X11: 2011 | Y11: 2012 | Z11: 2013 | AA11: 2014 | AB11: 2015 | AC11: 2016 | AD11: 2017 | AE11: 2018 | AF11: 2019 | AG11: 2020 | AH11: 2021 | AI11: 2022 | AJ11: 2023 | AK11: 2024 | AL11: 2025
B12: Natural Gas | C12: =C5*C_CO2 -> 0 | D12: 0 | E12: 0 | F12: 0 | G12: 0 | H12: 0 | I12: 0 | J12: 0 | K12: 0 | L12: 0 | M12: 0 | N12: 0 | O12: 0 | P12: 0 | Q12: 0 | R12: 0 | S12: 0 | T12: 0 | U12: 0 | V12: 0 | W12: 0 | X12: 0 | Y12: 0 | Z12: 0 | AA12: 0 | AB12: 0 | AC12: 0 | AD12: 0 | AE12: 0 | AF12: 0 | AG12: 0 | AH12: =AH5*C_CO2 -> 0 | AI12: 0 | AJ12: 0 | AK12: 0 | AL12: 0
B13: Oil | C13: =C6*C_CO2 -> 0 | D13: 0 | E13: 0 | F13: 0 | G13: 0 | H13: 0 | I13: 0 | J13: 0 | K13: 0 | L13: 0 | M13: 0 | N13: 0 | O13: 0 | P13: 0 | Q13: 0 | R13: 0 | S13: 0 | T13: 0 | U13: 0 | V13: 0 | W13: 0 | X13: 0 | Y13: 0 | Z13: 0 | AA13: 0 | AB13: 0 | AC13: 0 | AD13: 0 | AE13: 0 | AF13: 0 | AG13: 0 | AH13: =AH6*C_CO2 -> 0 | AI13: 0 | AJ13: 0 | AK13: 0 | AL13: 0
B14: Total | C14: =C13+C12 -> 0 | D14: =D13+D12 -> 0 | E14: 0 | F14: 0 | G14: 0 | H14: 0 | I14: 0 | J14: 0 | K14: 0 | L14: 0 | M14: =M13+M12 -> 0 | N14: 0 | O14: 0 | P14: 0 | Q14: 0 | R14: 0 | S14: =S13+S12 -> 0 | T14: 0 | U14: 0 | V14: 0 | W14: 0 | X14: 0 | Y14: 0 | Z14: 0 | AA14: 0 | AB14: 0 | AC14: 0 | AD14: 0 | AE14: 0 | AF14: 0 | AG14: 0 | AH14: =AH13+AH12 -> 0 | AI14: 0 | AJ14: 0 | AK14: 0 | AL14: 0
B17: Emissions by Gas (MTCH4)
C18: 1990 | D18: 1991 | E18: 1992 | F18: 1993 | G18: 1994 | H18: 1995 | I18: 1996 | J18: 1997 | K18: 1998 | L18: 1999 | M18: 2000 | N18: 2001 | O18: 2002 | P18: 2003 | Q18: 2004 | R18: 2005 | S18: 2006 | T18: 2007 | U18: 2008 | V18: 2009 | W18: 2010 | X18: 2011 | Y18: 2012 | Z18: 2013 | AA18: 2014 | AB18: 2015 | AC18: 2016 | AD18: 2017 | AE18: 2018 | AF18: 2019 | AG18: 2020 | AH18: 2021 | AI18: 2022 | AJ18: 2023 | AK18: 2024 | AL18: 2025
B19: Natural Gas | C19: =SUM(C20:C22) -> 0 | D19: 0 | E19: 0 | F19: 0 | G19: 0 | H19: 0 | I19: 0 | J19: 0 | K19: 0 | L19: 0 | M19: =SUM(M20:M22) -> 0 | N19: 0 | O19: 0 | P19: 0 | Q19: 0 | R19: 0 | S19: =SUM(S20:S22) -> 0 | T19: 0 | U19: 0 | V19: 0 | W19: 0 | X19: 0 | Y19: 0 | Z19: 0 | AA19: 0 | AB19: 0 | AC19: 0 | AD19: 0 | AE19: 0 | AF19: 0 | AG19: 0 | AH19: =SUM(AH20:AH22) -> 0 | AI19: 0 | AJ19: 0 | AK19: 0 | AL19: 0
B20: Production
B21: Transmission
B22: Distribution
B23: Oil
B24: Additional Emissions Sources
B25: Emissions by Gas (MMTCO2)
B27: Natural Gas Flaring
B28: Additional Emissions Sources | C28: 0 | D28: 0 | E28: 0 | F28: 0 | G28: 0 | H28: 0 | I28: 0 | J28: 0 | K28: 0 | L28: 0 | M28: 0 | N28: 0 | O28: 0 | P28: 0 | Q28: 0 | R28: 0 | S28: 0 | T28: 0 | U28: 0 | V28: 0 | W28: 0 | X28: 0 | Y28: 0 | Z28: 0 | AA28: 0 | AB28: 0 | AC28: 0 | AD28: 0 | AE28: 0 | AF28: 0 | AG28: 0 | AH28: 0 | AI28: 0 | AJ28: 0 | AK28: 0 | AL28: 0
C29: 1 | D29: =IF(D4<=$B30,C29+1,0) -> 0 | E29: =IF(E4<=$B30,D29+1,0) -> 0 | F29: 0 | G29: 0 | H29: 0 | I29: 0 | J29: 0 | K29: 0 | L29: 0 | M29: 0 | N29: 0 | O29: 0 | P29: 0 | Q29: 0 | R29: 0 | S29: 0 | T29: 0 | U29: 0 | V29: 0 | W29: 0 | X29: 0 | Y29: 0 | Z29: 0 | AA29: 0 | AB29: 0 | AC29: 0 | AD29: 0 | AE29: 0 | AF29: 0 | AG29: 0 | AH29: 0 | AI29: 0 | AJ29: 0 | AK29: 0 | AL29: 0
B30: =MAX(C30:AL30) -> 1990 | C30: 1990 | D30: =IF(D8=0,0,D4) -> 0 | E30: =IF(E8=0,0,E4) -> 0 | F30: 0 | G30: 0 | H30: 0 | I30: 0 | J30: 0 | K30: 0 | L30: 0 | M30: 0 | N30: 0 | O30: 0 | P30: 0 | Q30: 0 | R30: 0 | S30: 0 | T30: 0 | U30: 0 | V30: 0 | W30: 0 | X30: 0 | Y30: 0 | Z30: 0 | AA30: 0 | AB30: 0 | AC30: 0 | AD30: 0 | AE30: 0 | AF30: 0 | AG30: 0 | AH30: 0 | AI30: 0 | AJ30: 0 | AK30: 0 | AL30: 0
O36: ="Greenhouse Gas Emissions from Oil and Gas Activities, 1990-"&B30 -> Greenhouse Gas Emissions from Oil and Gas Activities, 1990-1990

Sheet Agriculture
A1: ="Summary of GHG Emissions from Agriculture in "&StateName&" (MMTCO2E)" -> Summary of GHG Emissions from Agriculture in Select a State . . . (MMTCO2E)
B4: Emissions (MMTCO2 Eq.)
C5: 1990 | D5: 1991 | E5: 1992 | F5: 1993 | G5: 1994 | H5: 1995 | I5: 1996 | J5: 1997 | K5: 1998 | L5: 1999 | M5: 2000 | N5: 2001 | O5: 2002 | P5: 2003 | Q5: 2004 | R5: 2005 | S5: 2006 | T5: 2007 | U5: 2008 | V5: 2009 | W5: 2010 | X5: 2011 | Y5: 2012 | Z5: 2013 | AA5: 2014 | AB5: 2015 | AC5: 2016 | AD5: 2017 | AE5: 2018 | AF5: 2019 | AG5: 2020 | AH5: 2021 | AI5: 2022 | AJ5: 2023 | AK5: 2024 | AL5: 2025
B6: Enteric Fermentation | C6: =C33*CH4GWP -> 0 | D6: =D33*CH4GWP -> 0 | E6: 0 | F6: 0 | G6: 0 | H6: 0 | I6: 0 | J6: 0 | K6: 0 | L6: 0 | M6: 0 | N6: 0 | O6: 0 | P6: 0 | Q6: 0 | R6: 0 | S6: 0 | T6: 0 | U6: 0 | V6: 0 | W6: 0 | X6: 0 | Y6: 0 | Z6: 0 | AA6: 0 | AB6: 0 | AC6: 0 | AD6: 0 | AE6: 0 | AF6: 0 | AG6: 0 | AH6: =AH33*CH4GWP -> 0 | AI6: =AI33*CH4GWP -> 0 | AJ6: 0 | AK6: 0 | AL6: 0
B7: Manure Management | C7: =C34*CH4GWP+C38*N2OGWP -> 0 | D7: =D34*CH4GWP+D38*N2OGWP -> 0 | E7: 0 | F7: 0 | G7: 0 | H7: 0 | I7: 0 | J7: 0 | K7: 0 | L7: 0 | M7: 0 | N7: 0 | O7: 0 | P7: 0 | Q7: 0 | R7: 0 | S7: 0 | T7: 0 | U7: 0 | V7: 0 | W7: 0 | X7: 0 | Y7: 0 | Z7: 0 | AA7: 0 | AB7: 0 | AC7: 0 | AD7: 0 | AE7: 0 | AF7: 0 | AG7: 0 | AH7: =AH34*CH4GWP+AH38*N2OGWP -> 0 | AI7: =AI34*CH4GWP+AI38*N2OGWP -> 0 | AJ7: 0 | AK7: 0 | AL7: 0
B8: Agricultural Soil Management | C8: =C39*N2OGWP -> 0 | D8: 0 | E8: 0 | F8: 0 | G8: 0 | H8: 0 | I8: 0 | J8: 0 | K8: 0 | L8: 0 | M8: 0 | N8: 0 | O8: 0 | P8: 0 | Q8: 0 | R8: 0 | S8: 0 | T8: 0 | U8: 0 | V8: 0 | W8: 0 | X8: 0 | Y8: 0 | Z8: 0 | AA8: 0 | AB8: 0 | AC8: 0 | AD8: 0 | AE8: 0 | AF8: 0 | AG8: 0 | AH8: =AH39*N2OGWP -> 0 | AI8: =AI39*N2OGWP -> 0 | AJ8: 0 | AK8: 0 | AL8: 0
B9: Rice Cultivation | C9: =C35*CH4GWP -> 0 | D9: 0 | E9: 0 | F9: 0 | G9: 0 | H9: 0 | I9: 0 | J9: 0 | K9: 0 | L9: 0 | M9: 0 | N9: 0 | O9: 0 | P9: 0 | Q9: 0 | R9: 0 | S9: 0 | T9: 0 | U9: 0 | V9: 0 | W9: 0 | X9: 0 | Y9: 0 | Z9: 0 | AA9: 0 | AB9: 0 | AC9: 0 | AD9: 0 | AE9: 0 | AF9: 0 | AG9: 0 | AH9: =AH35*CH4GWP -> 0 | AI9: =AI35*CH4GWP -> 0 | AJ9: 0 | AK9: 0 | AL9: 0
B10: Liming | C10: =C30 -> 0 | D10: 0 | E10: 0 | F10: 0 | G10: 0 | H10: 0 | I10: 0 | J10: 0 | K10: 0 | L10: 0 | M10: 0 | N10: 0 | O10: 0 | P10: 0 | Q10: 0 | R10: 0 | S10: 0 | T10: 0 | U10: 0 | V10: 0 | W10: 0 | X10: 0 | Y10: 0 | Z10: 0 | AA10: 0 | AB10: 0 | AC10: 0 | AD10: 0 | AE10: 0 | AF10: 0 | AG10: 0 | AH10: =AH30 -> 0 | AI10: =AI30 -> 0 | AJ10: 0 | AK10: 0 | AL10: 0
B11: Urea Fertilization | C11: =C31 -> 0 | D11: 0 | E11: 0 | F11: 0 | G11: 0 | H11: 0 | I11: 0 | J11: 0 | K11: 0 | L11: 0 | M11: 0 | N11: 0 | O11: 0 | P11: 0 | Q11: 0 | R11: 0 | S11: 0 | T11: 0 | U11: 0 | V11: 0 | W11: 0 | X11: 0 | Y11: 0 | Z11: 0 | AA11: 0 | AB11: 0 | AC11: 0 | AD11: 0 | AE11: 0 | AF11: 0 | AG11: 0 | AH11: =AH31 -> 0 | AI11: =AI31 -> 0 | AJ11: 0 | AK11: 0 | AL11: 0
B12: Burning of Agricultural Crop Waste | C12: =C36*CH4GWP+C40*N2OGWP -> 0 | D12: 0 | E12: 0 | F12: 0 | G12: 0 | H12: 0 | I12: 0 | J12: 0 | K12: 0 | L12: 0 | M12: 0 | N12: 0 | O12: 0 | P12: 0 | Q12: 0 | R12: 0 | S12: 0 | T12: 0 | U12: 0 | V12: 0 | W12: 0 | X12: 0 | Y12: 0 | Z12: 0 | AA12: 0 | AB12: 0 | AC12: 0 | AD12: 0 | AE12: 0 | AF12: 0 | AG12: 0 | AH12: =AH36*CH4GWP+AH40*N2OGWP -> 0 | AI12: =AI36*CH4GWP+AI40*N2OGWP -> 0 | AJ12: 0 | AK12: 0 | AL12: 0
B13: Additional Carbon Dioxide Emissions
B14: Additional Methane Emissions
B15: Additional Nitrous Oxide Emissions
B16: TOTAL | C16: =SUM(C6:C12,C13:C15) -> 0 | D16: =SUM(D6:D12,D13:D15) -> 0 | E16: 0 | F16: 0 | G16: 0 | H16: 0 | I16: 0 | J16: 0 | K16: 0 | L16: 0 | M16: 0 | N16: 0 | O16: 0 | P16: 0 | Q16: 0 | R16: 0 | S16: 0 | T16: 0 | U16: 0 | V16: 0 | W16: 0 | X16: 0 | Y16: 0 | Z16: 0 | AA16: 0 | AB16: 0 | AC16: 0 | AD16: 0 | AE16: 0 | AF16: 0 | AG16: 0 | AH16: =SUM(AH6:AH12,AH13:AH15) -> 0 | AI16: =SUM(AI6:AI12,AI13:AI15) -> 0 | AJ16: 0 | AK16: 0 | AL16: 0
B17: Emissions (MMTCE)
C18: 1990 | D18: 1991 | E18: 1992 | F18: 1993 | G18: 1994 | H18: 1995 | I18: 1996 | J18: 1997 | K18: 1998 | L18: 1999 | M18: 2000 | N18: 2001 | O18: 2002 | P18: 2003 | Q18: 2004 | R18: 2005 | S18: 2006 | T18: 2007 | U18: 2008 | V18: 2009 | W18: 2010 | X18: 2011 | Y18: 2012 | Z18: 2013 | AA18: 2014 | AB18: 2015 | AC18: 2016 | AD18: 2017 | AE18: 2018 | AF18: 2019 | AG18: 2020 | AH18: 2021 | AI18: 2022 | AJ18: 2023 | AK18: 2024 | AL18: 2025
B19: Enteric Fermentation | C19: =C6*C_CO2 -> 0 | D19: 0 | E19: 0 | F19: 0 | G19: 0 | H19: 0 | I19: 0 | J19: 0 | K19: 0 | L19: 0 | M19: 0 | N19: 0 | O19: 0 | P19: 0 | Q19: 0 | R19: 0 | S19: 0 | T19: 0 | U19: 0 | V19: 0 | W19: 0 | X19: 0 | Y19: 0 | Z19: 0 | AA19: 0 | AB19: 0 | AC19: 0 | AD19: 0 | AE19: 0 | AF19: 0 | AG19: 0 | AH19: =AH6*C_CO2 -> 0 | AI19: 0 | AJ19: 0 | AK19: 0 | AL19: 0
B20: Manure Management | C20: =C7*C_CO2 -> 0 | D20: 0 | E20: 0 | F20: 0 | G20: 0 | H20: 0 | I20: 0 | J20: 0 | K20: 0 | L20: 0 | M20: 0 | N20: 0 | O20: 0 | P20: 0 | Q20: 0 | R20: 0 | S20: 0 | T20: 0 | U20: 0 | V20: 0 | W20: 0 | X20: 0 | Y20: 0 | Z20: 0 | AA20: 0 | AB20: 0 | AC20: 0 | AD20: 0 | AE20: 0 | AF20: 0 | AG20: 0 | AH20: =AH7*C_CO2 -> 0 | AI20: 0 | AJ20: 0 | AK20: 0 | AL20: 0
B21: Agricultural Soil Management | C21: =C8*C_CO2 -> 0 | D21: 0 | E21: 0 | F21: 0 | G21: 0 | H21: 0 | I21: 0 | J21: 0 | K21: 0 | L21: 0 | M21: 0 | N21: 0 | O21: 0 | P21: 0 | Q21: 0 | R21: 0 | S21: 0 | T21: 0 | U21: 0 | V21: 0 | W21: 0 | X21: 0 | Y21: 0 | Z21: 0 | AA21: 0 | AB21: 0 | AC21: 0 | AD21: 0 | AE21: 0 | AF21: 0 | AG21: 0 | AH21: =AH8*C_CO2 -> 0 | AI21: 0 | AJ21: 0 | AK21: 0 | AL21: 0
B22: Rice Cultivation | C22: =C9*C_CO2 -> 0 | D22: 0 | E22: 0 | F22: 0 | G22: 0 | H22: 0 | I22: 0 | J22: 0 | K22: 0 | L22: 0 | M22: 0 | N22: 0 | O22: 0 | P22: 0 | Q22: 0 | R22: 0 | S22: 0 | T22: 0 | U22: 0 | V22: 0 | W22: 0 | X22: 0 | Y22: 0 | Z22: 0 | AA22: 0 | AB22: 0 | AC22: 0 | AD22: 0 | AE22: 0 | AF22: 0 | AG22: 0 | AH22: =AH9*C_CO2 -> 0 | AI22: 0 | AJ22: 0 | AK22: 0 | AL22: 0
B23: Burning of Agricultural Crop Waste | C23: =C12*C_CO2 -> 0 | D23: 0 | E23: 0 | F23: 0 | G23: 0 | H23: 0 | I23: 0 | J23: 0 | K23: 0 | L23: 0 | M23: 0 | N23: 0 | O23: 0 | P23: 0 | Q23: 0 | R23: 0 | S23: 0 | T23: 0 | U23: 0 | V23: 0 | W23: 0 | X23: 0 | Y23: 0 | Z23: 0 | AA23: 0 | AB23: 0 | AC23: 0 | AD23: 0 | AE23: 0 | AF23: 0 | AG23: 0 | AH23: =AH12*C_CO2 -> 0 | AI23: 0 | AJ23: 0 | AK23: 0 | AL23: 0
B24: TOTAL | C24: =SUM(C19:C23) -> 0 | D24: 0 | E24: 0 | F24: 0 | G24: 0 | H24: 0 | I24: 0 | J24: 0 | K24: 0 | L24: 0 | M24: =SUM(M19:M23) -> 0 | N24: 0 | O24: 0 | P24: 0 | Q24: 0 | R24: 0 | S24: =SUM(S19:S23) -> 0 | T24: 0 | U24: 0 | V24: 0 | W24: 0 | X24: 0 | Y24: 0 | Z24: 0 | AA24: 0 | AB24: 0 | AC24: 0 | AD24: 0 | AE24: 0 | AF24: 0 | AG24: 0 | AH24: =SUM(AH19:AH23) -> 0 | AI24: 0 | AJ24: 0 | AK24: 0 | AL24: 0
C25: 1 | D25: =IF(D5<=$B26,C25+1,0) -> 0 | E25: =IF(E5<=$B26,D25+1,0) -> 0 | F25: 0 | G25: 0 | H25: 0 | I25: 0 | J25: 0 | K25: 0 | L25: 0 | M25: 0 | N25: 0 | O25: 0 | P25: 0 | Q25: 0 | R25: 0 | S25: 0 | T25: 0 | U25: 0 | V25: 0 | W25: 0 | X25: 0 | Y25: 0 | Z25: 0 | AA25: 0 | AB25: 0 | AC25: 0 | AD25: 0 | AE25: 0 | AF25: 0 | AG25: 0 | AH25: 0 | AI25: 0 | AJ25: 0 | AK25: 0 | AL25: 0
B26: =MAX(C26:AL26) -> 1990 | C26: =1990 -> 1990 | D26: =IF(D16=0,0,D5) -> 0 | E26: =IF(E16=0,0,E5) -> 0 | F26: 0 | G26: 0 | H26: 0 | I26: 0 | J26: 0 | K26: 0 | L26: 0 | M26: 0 | N26: 0 | O26: 0 | P26: 0 | Q26: 0 | R26: 0 | S26: 0 | T26: 0 | U26: 0 | V26: 0 | W26: 0 | X26: 0 | Y26: 0 | Z26: 0 | AA26: 0 | AB26: 0 | AC26: 0 | AD26: 0 | AE26: 0 | AF26: 0 | AG26: 0 | AH26: 0 | AI26: 0 | AJ26: 0 | AK26: 0 | AL26: 0
B27: Emissions by Gas (MMTCH4 or MMTN2O)
C28: 1990 | D28: 1991 | E28: 1992 | F28: 1993 | G28: 1994 | H28: 1995 | I28: 1996 | J28: 1997 | K28: 1998 | L28: 1999 | M28: 2000 | N28: 2001 | O28: 2002 | P28: 2003 | Q28: 2004 | R28: 2005 | S28: 2006 | T28: 2007 | U28: 2008 | V28: 2009 | W28: 2010 | X28: 2011 | Y28: 2012 | Z28: 2013 | AA28: 2014 | AB28: 2015 | AC28: 2016 | AD28: 2017 | AE28: 2018 | AF28: 2019 | AG28: 2020 | AH28: 2021 | AI28: 2022 | AJ28: 2023 | AK28: 2024 | AL28: 2025
B29: Carbon Dioxide
B30: Liming
B31: Urea Fertilization
B32: Methane
B33: Enteric Fermentation
B34: Manure Management
B35: Rice Cultivation
B36: Burning of Agricultural Crop Waste
B37: Nitrous Oxide
B38: Manure Management
B39: Agricultural Soil Management
B40: Burning of Agricultural Crop Waste
B42: Nitrous Oxide Emissions from Agricultural Soil Management (Metric Tons N2O)
C43: 1990 | D43: 1991 | E43: 1992 | F43: 1993 | G43: 1994 | H43: 1995 | I43: 1996 | J43: 1997 | K43: 1998 | L43: 1999 | M43: 2000 | N43: 2001 | O43: 2002 | P43: 2003 | Q43: 2004 | R43: 2005 | S43: 2006 | T43: 2007 | U43: 2008 | V43: 2009 | W43: 2010 | X43: 2011 | Y43: 2012 | Z43: 2013 | AA43: 2014 | AB43: 2015 | AC43: 2016 | AD43: 2017 | AE43: 2018 | AF43: 2019 | AG43: 2020 | AH43: 2021 | AI43: 2022 | AJ43: 2023 | AK43: 2024 | AL43: 2025
B44: Direct
B45: Fertilizers
B46: Crop Residues
B47: N-Fixing Crops
B48: Histosols
B49: Livestock | C49: 5842.422099 | D49: 5663.05091 | E49: 5630.981191 | F49: 5699.238806 | G49: 5675.838448 | H49: 5861.041987 | I49: 5898.660203 | J49: 5592.993985 | K49: 5614.273259 | L49: 5293.767484 | M49: 5163.361291 | N49: 5131.918456 | O49: 5255.964294 | P49: 5300.310883 | Q49: 5463.618445 | R49: 5172.602411 | S49: 5519.659352 | T49: 5493.117346 | U49: 5397.585532 | V49: 5601.572909 | W49: 5712.475729 | X49: 5401.618945 | Y49: 5194.820782 | Z49: 6063.092864 | AA49: 6089.907598 | AB49: 5815.577005 | AC49: 5657.773398 | AD49: 5685.520034 | AE49: 6049.477003 | AF49: 5752.075257 | AG49: 5408.421131 | AH49: 5356.317182 | AI49: 5228.149984 | AJ49: 0 | AK49: 0 | AL49: 0
B50: Indirect
B51: Fertilizers
B52: Livestock
B53: Leaching/Runoff
B54: Fertilizer Runoff/Leached
B55: Manure Runoff/Leached | C55: 242.5321892 | D55: 237.0074538 | E55: 243.5818885 | F55: 248.7498313 | G55: 236.6610153 | H55: 244.2877306 | I55: 234.5242429 | J55: 228.6575767 | K55: 250.3205296 | L55: 223.1021781 | M55: 204.7788384 | N55: 227.4503969 | O55: 223.5827678 | P55: 212.5831713 | Q55: 237.6066461 | R55: 209.1881681 | S55: 222.7509613 | T55: 231.8064519 | U55: 229.5784687 | V55: 228.0657397 | W55: 223.1293613 | X55: 220.0505065 | Y55: 200.4330359 | Z55: 240.1360173 | AA55: 220.8099491 | AB55: 241.0996779 | AC55: 215.9600742 | AD55: 222.6174553 | AE55: 253.5027452 | AF55: 246.9938221 | AG55: 226.3933096 | AH55: 222.7545282 | AI55: 223.5140632 | AJ55: 0 | AK55: 0 | AL55: 0
B56: TOTAL | C56: =SUM(C44,C50) -> 0 | D56: 0 | E56: 0 | F56: 0 | G56: 0 | H56: 0 | I56: 0 | J56: 0 | K56: 0 | L56: 0 | M56: =SUM(M44,M50) -> 0 | N56: 0 | O56: 0 | P56: 0 | Q56: 0 | R56: 0 | S56: =SUM(S44,S50) -> 0 | T56: 0 | U56: 0 | V56: 0 | W56: 0 | X56: 0 | Y56: 0 | Z56: 0 | AA56: 0 | AB56: 0 | AC56: 0 | AD56: 0 | AE56: 0 | AF56: 0 | AG56: 0 | AH56: =SUM(AH44,AH50) -> 0 | AI56: 0 | AJ56: 0 | AK56: 0 | AL56: 0
B57: Direct | C57: 1 | D57: =IF(D5<=$B59,C57+1,0) -> 0 | E57: =IF(E5<=$B59,D57+1,0) -> 0 | F57: 0 | G57: 0 | H57: 0 | I57: 0 | J57: 0 | K57: 0 | L57: 0 | M57: 0 | N57: 0 | O57: 0 | P57: 0 | Q57: 0 | R57: 0 | S57: 0 | T57: 0 | U57: 0 | V57: 0 | W57: 0 | X57: 0 | Y57: 0 | Z57: 0 | AA57: 0 | AB57: 0 | AC57: 0 | AD57: 0 | AE57: 0 | AF57: 0 | AG57: 0 | AH57: 0 | AI57: 0 | AJ57: 0 | AK57: 0 | AL57: 0
B58: Indirect | C58: 1 | D58: =IF(D5<=$B60,C58+1,0) -> 0 | E58: =IF(E5<=$B60,D58+1,0) -> 0 | F58: 0 | G58: 0 | H58: 0 | I58: 0 | J58: 0 | K58: 0 | L58: 0 | M58: 0 | N58: 0 | O58: 0 | P58: 0 | Q58: 0 | R58: 0 | S58: 0 | T58: 0 | U58: 0 | V58: 0 | W58: 0 | X58: 0 | Y58: 0 | Z58: 0 | AA58: 0 | AB58: 0 | AC58: 0 | AD58: 0 | AE58: 0 | AF58: 0 | AG58: 0 | AH58: 0 | AI58: 0 | AJ58: 0 | AK58: 0 | AL58: 0
B59: =MAX(C59:AL59) -> 1990 | C59: =1990 -> 1990 | D59: =IF(D44=0,0,D43) -> 0 | E59: =IF(E44=0,0,E43) -> 0 | F59: 0 | G59: 0 | H59: 0 | I59: 0 | J59: 0 | K59: 0 | L59: 0 | M59: 0 | N59: 0 | O59: 0 | P59: 0 | Q59: 0 | R59: 0 | S59: 0 | T59: 0 | U59: 0 | V59: 0 | W59: 0 | X59: 0 | Y59: 0 | Z59: 0 | AA59: 0 | AB59: 0 | AC59: 0 | AD59: 0 | AE59: 0 | AF59: 0 | AG59: 0 | AH59: 0 | AI59: 0 | AJ59: 0 | AK59: 0 | AL59: 0
B60: =MAX(C60:AL60) -> 1990 | C60: 1990 | D60: =IF(D$50=0,0,D$43) -> 0 | E60: =IF(E$50=0,0,E$43) -> 0 | F60: 0 | G60: 0 | H60: 0 | I60: 0 | J60: 0 | K60: 0 | L60: 0 | M60: 0 | N60: 0 | O60: 0 | P60: 0 | Q60: 0 | R60: 0 | S60: 0 | T60: 0 | U60: 0 | V60: 0 | W60: 0 | X60: 0 | Y60: 0 | Z60: 0 | AA60: 0 | AB60: 0 | AC60: 0 | AD60: 0 | AE60: 0 | AF60: 0 | AG60: 0 | AH60: 0 | AI60: 0 | AJ60: 0 | AK60: 0 | AL60: 0
R61: ="Greenhouse Gas Emissions from Agriculture, 1990-"&B26 -> Greenhouse Gas Emissions from Agriculture, 1990-1990
R62: ="Direct Nitrous Oxide Emissions from Ag Soils, 1990-"&B59 -> Direct Nitrous Oxide Emissions from Ag Soils, 1990-1990
R63: ="Indirect Nitrous Oxide Emissions from Ag Soils, 1990-"&B60 -> Indirect Nitrous Oxide Emissions from Ag Soils, 1990-1990

Sheet IP
A1: ="Summary of GHG Emissions from Industrial Processes in "&StateName&" (MTCO2E)" -> Summary of GHG Emissions from Industrial Processes in Select a State . . . (MTCO2E)
B3: Emissions (MTCO2 Eq.) | C3: 1990 | D3: 1991 | E3: 1992 | F3: 1993 | G3: 1994 | H3: 1995 | I3: 1996 | J3: 1997 | K3: 1998 | L3: 1999 | M3: 2000 | N3: 2001 | O3: 2002 | P3: 2003 | Q3: 2004 | R3: 2005 | S3: 2006 | T3: 2007 | U3: 2008 | V3: 2009 | W3: 2010 | X3: 2011 | Y3: 2012 | Z3: 2013 | AA3: 2014 | AB3: 2015 | AC3: 2016 | AD3: 2017 | AE3: 2018 | AF3: 2019 | AG3: 2020 | AH3: 2021 | AI3: 2022 | AJ3: 2023 | AK3: 2024 | AL3: 2025
B4: Carbon Dioxide Emissions | C4: =SUM(C5:C13) -> 0 | D4: =SUM(D5:D13) -> 0 | E4: 0 | F4: 0 | G4: 0 | H4: 0 | I4: 0 | J4: 0 | K4: 0 | L4: 0 | M4: 0 | N4: 0 | O4: 0 | P4: 0 | Q4: 0 | R4: 0 | S4: 0 | T4: 0 | U4: 0 | V4: 0 | W4: 0 | X4: 0 | Y4: 0 | Z4: 0 | AA4: 0 | AB4: 0 | AC4: 0 | AD4: 0 | AE4: 0 | AF4: 0 | AG4: 0 | AH4: 0 | AI4: 0 | AJ4: 0 | AK4: 0 | AL4: 0
B5: Cement Manufacture
B6: Lime Manufacture
B7: Limestone and Dolomite Use
B8: Soda Ash
B9: Aluminum Production, CO2
B10: Iron & Steel Production
B11: Ammonia Production
B12: Urea Consumption
B13: Additional Carbon Dioxide Emissions
B14: Nitrous Oxide Emissions | C14: =SUM(C15:C17) -> 0 | D14: =SUM(D15:D17) -> 0 | E14: 0 | F14: 0 | G14: 0 | H14: 0 | I14: 0 | J14: 0 | K14: 0 | L14: 0 | M14: 0 | N14: 0 | O14: 0 | P14: 0 | Q14: 0 | R14: 0 | S14: 0 | T14: 0 | U14: 0 | V14: 0 | W14: 0 | X14: 0 | Y14: 0 | Z14: 0 | AA14: 0 | AB14: 0 | AC14: 0 | AD14: 0 | AE14: 0 | AF14: 0 | AG14: 0 | AH14: 0 | AI14: 0 | AJ14: 0 | AK14: 0 | AL14: 0
B15: Nitric Acid Production
B16: Adipic Acid Production
B17: Additional Nitrous Oxide Emissions
B18: HFC, PFC, SF6 and NF3 Emissions | C18: =SUM(C19:C25) -> 0 | D18: =SUM(D19:D25) -> 0 | E18: 0 | F18: 0 | G18: 0 | H18: 0 | I18: 0 | J18: 0 | K18: 0 | L18: 0 | M18: 0 | N18: 0 | O18: 0 | P18: 0 | Q18: 0 | R18: 0 | S18: 0 | T18: 0 | U18: 0 | V18: 0 | W18: 0 | X18: 0 | Y18: 0 | Z18: 0 | AA18: 0 | AB18: 0 | AC18: 0 | AD18: 0 | AE18: 0 | AF18: 0 | AG18: 0 | AH18: 0 | AI18: 0 | AJ18: 0 | AK18: 0 | AL18: 0
B19: ODS Substitutes
B20: Semiconductor Manufacturing
B21: Magnesium Production
B22: Electric Power Transmission and Distribution Systems
B23: HCFC-22 Production
B24: Aluminum Production, PFCs
B25: Additional HFC, PFC, SF6 and NF3 Emissions
B26: Total Emissions | C26: =SUM(C4,C14,C18) -> 0 | D26: 0 | E26: 0 | F26: 0 | G26: 0 | H26: 0 | I26: 0 | J26: 0 | K26: 0 | L26: 0 | M26: 0 | N26: 0 | O26: 0 | P26: 0 | Q26: 0 | R26: 0 | S26: 0 | T26: 0 | U26: 0 | V26: 0 | W26: 0 | X26: 0 | Y26: 0 | Z26: 0 | AA26: 0 | AB26: 0 | AC26: 0 | AD26: 0 | AE26: 0 | AF26: 0 | AG26: 0 | AH26: 0 | AI26: 0 | AJ26: 0 | AK26: 0 | AL26: 0
C27: 1 | D27: =IF(D3<=$B28,C27+1,0) -> 0 | E27: 0 | F27: 0 | G27: 0 | H27: 0 | I27: 0 | J27: 0 | K27: 0 | L27: 0 | M27: 0 | N27: 0 | O27: 0 | P27: 0 | Q27: 0 | R27: 0 | S27: 0 | T27: 0 | U27: 0 | V27: 0 | W27: 0 | X27: 0 | Y27: 0 | Z27: 0 | AA27: 0 | AB27: 0 | AC27: 0 | AD27: 0 | AE27: 0 | AF27: 0 | AG27: 0 | AH27: 0 | AI27: 0 | AJ27: 0 | AK27: 0 | AL27: 0
B28: =MAX(C28:AL28) -> 1990 | C28: 1990 | D28: =IF(D26=0,0,D3) -> 0 | E28: 0 | F28: 0 | G28: 0 | H28: 0 | I28: 0 | J28: 0 | K28: 0 | L28: 0 | M28: 0 | N28: 0 | O28: 0 | P28: 0 | Q28: 0 | R28: 0 | S28: 0 | T28: 0 | U28: 0 | V28: 0 | W28: 0 | X28: 0 | Y28: 0 | Z28: 0 | AA28: 0 | AB28: 0 | AC28: 0 | AD28: 0 | AE28: 0 | AF28: 0 | AG28: 0 | AH28: 0 | AI28: 0 | AJ28: 0 | AK28: 0 | AL28: 0
W30: ="Emissions by Gas Type, 1990-"&B28 -> Emissions by Gas Type, 1990-1990
W31: ="Carbon Dioxide Emissions, 1990-"&B28 -> Carbon Dioxide Emissions, 1990-1990
W32: ="Nitrous Oxide Emissions, 1990-"&B28 -> Nitrous Oxide Emissions, 1990-1990
W33: ="High GWP Emissions, 1990-"&B28 -> High GWP Emissions, 1990-1990

Sheet Forest Management
A1: ="Summary of Land-Use Change and Forest Emissions and Sequestration for "&StateName -> Summary of Land-Use Change and Forest Emissions and Sequestration for Select a State . . .
AZ2: default
B8: Emissions (MMTCO2E)
C9: 1990 | D9: 1991 | E9: 1992 | F9: 1993 | G9: 1994 | H9: 1995 | I9: 1996 | J9: 1997 | K9: 1998 | L9: 1999 | M9: 2000 | N9: 2001 | O9: 2002 | P9: 2003 | Q9: 2004 | R9: 2005 | S9: 2006 | T9: 2007 | U9: 2008 | V9: 2009 | W9: 2010 | X9: 2011 | Y9: 2012 | Z9: 2013 | AA9: 2014 | AB9: 2015 | AC9: 2016 | AD9: 2017 | AE9: 2018 | AF9: 2019 | AG9: 2020 | AH9: 2021 | AI9: 2022 | AJ9: 2023 | AK9: 2024 | AL9: 2025
B10: Forest Carbon Flux
B11: Aboveground Biomass
B12: Belowground Biomass
B13: Dead Wood
B14: Litter
B15: Soil (Mineral)
B16: Soil (Organic)
B17: Drained Organic Soil
B18: Total Wood products and landfills
B19: Forest Land Remaining Forest Land
B20: Aboveground Biomass
B21: Belowground Biomass
B22: Deadwood
B23: Litter
B24: Soil (Mineral)
B25: Soil (Organic)
B26: Drained Organic Soil
B27: Total wood products and landfills
B28: Land Converted to Forest Land
B29: Aboveground Biomass
B30: Belowground Biomass
B31: Deadwood
B32: Litter
B33: Soil (Mineral)
B34: Forest Land Converted to Land
B35: Aboveground Biomass
B36: Belowground Biomass
B37: Deadwood
B38: Litter
B39: Soil (Mineral)
B40: Urban Trees
B41: Landfilled Yard Trimmings and Food Scraps
B42: Grass
B43: Leaves
B44: Branches
B45: Landfilled Food Scraps
B46: Forest Fires
B47: CH4
B48: N2O
B49: N2O from Settlement Soils
B50: Agricultural Soil Carbon Flux
B51: Additional Emission Sources
B52: Additional Methane Emissions
B53: Additional Carbon Dioxide Emissions
B54: Additional Nitrous Oxide Emissions
B55: Total | C55: =SUM(C49,C40,C41,C46,C10,C50, C51, C52:C54) -> 0 | D55: =SUM(D49,D40,D41,D46,D10,D50, D51, D52:D54) -> 0 | E55: 0 | F55: 0 | G55: 0 | H55: 0 | I55: 0 | J55: 0 | K55: 0 | L55: 0 | M55: 0 | N55: 0 | O55: 0 | P55: 0 | Q55: 0 | R55: 0 | S55: 0 | T55: 0 | U55: 0 | V55: 0 | W55: 0 | X55: 0 | Y55: 0 | Z55: 0 | AA55: 0 | AB55: 0 | AC55: 0 | AD55: 0 | AE55: 0 | AF55: 0 | AG55: 0 | AH55: 0 | AI55: 0 | AJ55: 0 | AK55: 0 | AL55: 0
B56: =MAX(C56:AL56) -> 1990 | C56: 1990 | D56: =IF(D55=0,0,D9) -> 0 | E56: 0 | F56: 0 | G56: 0 | H56: 0 | I56: 0 | J56: 0 | K56: 0 | L56: 0 | M56: 0 | N56: 0 | O56: 0 | P56: 0 | Q56: 0 | R56: 0 | S56: 0 | T56: 0 | U56: 0 | V56: 0 | W56: 0 | X56: 0 | Y56: 0 | Z56: 0 | AA56: 0 | AB56: 0 | AC56: 0 | AD56: 0 | AE56: 0 | AF56: 0 | AG56: 0 | AH56: 0 | AI56: 0 | AJ56: 0 | AK56: 0 | AL56: 0
C58: 1 | D58: =IF(D9<=$B56,C58+1,0) -> 0 | E58: 0 | F58: 0 | G58: 0 | H58: 0 | I58: 0 | J58: 0 | K58: 0 | L58: 0 | M58: 0 | N58: 0 | O58: 0 | P58: 0 | Q58: 0 | R58: 0 | S58: 0 | T58: 0 | U58: 0 | V58: 0 | W58: 0 | X58: 0 | Y58: 0 | Z58: 0 | AA58: 0 | AB58: 0 | AC58: 0 | AD58: 0 | AE58: 0 | AF58: 0 | AG58: 0 | AH58: 0 | AI58: 0 | AJ58: 0 | AK58: 0 | AL58: 0
L60: ="Carbon Emissions and Sequestration from Land-Use Change and Forestry, 1990-"&B56 -> Carbon Emissions and Sequestration from Land-Use Change and Forestry, 1990-1990
L61: ="Carbon Emissions and Sequestration from Forest Carbon Flux, 1990-"&B56 -> Carbon Emissions and Sequestration from Forest Carbon Flux, 1990-1990

Sheet Waste
A1: ="Summary of GHG Emissions from Solid Waste in "&StateName&" (MMTCO2E)" -> Summary of GHG Emissions from Solid Waste in Select a State . . . (MMTCO2E)
B3: Total Emissions from Landfills and Waste Combustion (MMTCO2E)
C4: 1990 | D4: 1991 | E4: 1992 | F4: 1993 | G4: 1994 | H4: 1995 | I4: 1996 | J4: 1997 | K4: 1998 | L4: 1999 | M4: 2000 | N4: 2001 | O4: 2002 | P4: 2003 | Q4: 2004 | R4: 2005 | S4: 2006 | T4: 2007 | U4: 2008 | V4: 2009 | W4: 2010 | X4: 2011 | Y4: 2012 | Z4: 2013 | AA4: 2014 | AB4: 2015 | AC4: 2016 | AD4: 2017 | AE4: 2018 | AF4: 2019 | AG4: 2020 | AH4: 2021 | AI4: 2022 | AJ4: 2023 | AK4: 2024 | AL4: 2025
B5: CH4
B6: CO2
B7: N2O
B8: Additional Methane Emissions
B9: Additional Carbon Dioxide Emissions
B10: Additional Nitrous Oxide Emissions
B11: Total | C11: =SUM(C5:C7) -> 0 | D11: =SUM(D5:D7) -> 0 | E11: 0 | F11: 0 | G11: 0 | H11: 0 | I11: 0 | J11: 0 | K11: 0 | L11: 0 | M11: 0 | N11: 0 | O11: 0 | P11: 0 | Q11: 0 | R11: 0 | S11: 0 | T11: 0 | U11: 0 | V11: 0 | W11: 0 | X11: 0 | Y11: 0 | Z11: 0 | AA11: 0 | AB11: 0 | AC11: 0 | AD11: 0 | AE11: 0 | AF11: 0 | AG11: 0 | AH11: =SUM(AH5:AH7) -> 0 | AI11: 0 | AJ11: 0 | AK11: 0 | AL11: 0
B13: CH4 Emissions from Landfills (MTCO2E)
C14: 1990 | D14: 1991 | E14: 1992 | F14: 1993 | G14: 1994 | H14: 1995 | I14: 1996 | J14: 1997 | K14: 1998 | L14: 1999 | M14: 2000 | N14: 2001 | O14: 2002 | P14: 2003 | Q14: 2004 | R14: 2005 | S14: 2006 | T14: 2007 | U14: 2008 | V14: 2009 | W14: 2010 | X14: 2011 | Y14: 2012 | Z14: 2013 | AA14: 2014 | AB14: 2015 | AC14: 2016 | AD14: 2017 | AE14: 2018 | AF14: 2019 | AG14: 2020 | AH14: 2021 | AI14: 2022 | AJ14: 2023 | AK14: 2024 | AL14: 2025
B15: Potential CH4 | C15: =C16+C17 -> 0 | D15: 0 | E15: 0 | F15: 0 | G15: 0 | H15: 0 | I15: 0 | J15: 0 | K15: 0 | L15: 0 | M15: 0 | N15: 0 | O15: 0 | P15: 0 | Q15: 0 | R15: 0 | S15: =S16+S17 -> 0 | T15: 0 | U15: 0 | V15: 0 | W15: 0 | X15: 0 | Y15: 0 | Z15: 0 | AA15: 0 | AB15: 0 | AC15: 0 | AD15: 0 | AE15: 0 | AF15: 0 | AG15: 0 | AH15: =AH16+AH17 -> 0 | AI15: 0 | AJ15: 0 | AK15: 0 | AL15: 0
B16: MSW Generation
B17: Industrial Generation
B18: CH4 Avoided
B19: Flare
B20: Landfill Gas-to-Energy
B21: Oxidation at MSW Landfills
B22: Oxidation at Industrial Landfills
B23: Total CH4 Emissions | C23: =C15+C18-C21-C22 -> 0 | D23: 0 | E23: 0 | F23: 0 | G23: 0 | H23: 0 | I23: 0 | J23: 0 | K23: 0 | L23: 0 | M23: 0 | N23: 0 | O23: 0 | P23: 0 | Q23: 0 | R23: 0 | S23: =S15+S18-S21-S22 -> 0 | T23: 0 | U23: 0 | V23: 0 | W23: 0 | X23: 0 | Y23: 0 | Z23: 0 | AA23: 0 | AB23: 0 | AC23: 0 | AD23: 0 | AE23: 0 | AF23: 0 | AG23: 0 | AH23: =AH15+AH18-AH21-AH22 -> 0 | AI23: 0 | AJ23: 0 | AK23: 0 | AL23: 0
B25: CO2 and N2O Emissions from Waste Combustion (MTCO2E)
B26: Gas/Waste Product | C26: 1990 | D26: 1991 | E26: 1992 | F26: 1993 | G26: 1994 | H26: 1995 | I26: 1996 | J26: 1997 | K26: 1998 | L26: 1999 | M26: 2000 | N26: 2001 | O26: 2002 | P26: 2003 | Q26: 2004 | R26: 2005 | S26: 2006 | T26: 2007 | U26: 2008 | V26: 2009 | W26: 2010 | X26: 2011 | Y26: 2012 | Z26: 2013 | AA26: 2014 | AB26: 2015 | AC26: 2016 | AD26: 2017 | AE26: 2018 | AF26: 2019 | AG26: 2020 | AH26: 2021 | AI26: 2022 | AJ26: 2023 | AK26: 2024 | AL26: 2025
B27: CO2 | C27: =SUM(C28:C30) -> 0 | D27: =SUM(D28:D30) -> 0 | E27: 0 | F27: 0 | G27: 0 | H27: 0 | I27: 0 | J27: 0 | K27: 0 | L27: 0 | M27: =SUM(M28:M30) -> 0 | N27: 0 | O27: 0 | P27: 0 | Q27: 0 | R27: 0 | S27: =SUM(S28:S30) -> 0 | T27: 0 | U27: 0 | V27: 0 | W27: 0 | X27: 0 | Y27: 0 | Z27: 0 | AA27: 0 | AB27: 0 | AC27: 0 | AD27: 0 | AE27: 0 | AF27: 0 | AG27: 0 | AH27: =SUM(AH28:AH30) -> 0 | AI27: 0 | AJ27: 0 | AK27: 0 | AL27: 0
B28: Plastics
B29: Synthetic Rubber in MSW
B30: Synthetic Fibers
B31: N2O
B32: CH4
B33: Total CO2, N2O, CH4 Emissions | C33: =C27+C31+C32 -> 0 | D33: =D27+D31+D32 -> 0 | E33: 0 | F33: 0 | G33: 0 | H33: 0 | I33: 0 | J33: 0 | K33: 0 | L33: 0 | M33: 0 | N33: 0 | O33: 0 | P33: 0 | Q33: 0 | R33: 0 | S33: 0 | T33: 0 | U33: 0 | V33: 0 | W33: 0 | X33: 0 | Y33: 0 | Z33: 0 | AA33: 0 | AB33: 0 | AC33: 0 | AD33: 0 | AE33: 0 | AF33: 0 | AG33: 0 | AH33: =AH27+AH31+AH32 -> 0 | AI33: 0 | AJ33: 0 | AK33: 0 | AL33: 0
C34: 1 | D34: =IF(D4<=$B35,C34+1,0) -> 0 | E34: =IF(E4<=$B35,D34+1,0) -> 0 | F34: 0 | G34: 0 | H34: 0 | I34: 0 | J34: 0 | K34: 0 | L34: 0 | M34: 0 | N34: 0 | O34: 0 | P34: 0 | Q34: 0 | R34: 0 | S34: 0 | T34: 0 | U34: 0 | V34: 0 | W34: 0 | X34: 0 | Y34: 0 | Z34: 0 | AA34: 0 | AB34: 0 | AC34: 0 | AD34: 0 | AE34: 0 | AF34: 0 | AG34: 0 | AH34: 0 | AI34: 0 | AJ34: 0 | AK34: 0 | AL34: 0
B35: =MAX(C35:AL35) -> 1990 | C35: 1990 | D35: =IF(D33=0,0,D26) -> 0 | E35: 0 | F35: 0 | G35: 0 | H35: 0 | I35: 0 | J35: 0 | K35: 0 | L35: 0 | M35: 0 | N35: 0 | O35: 0 | P35: 0 | Q35: 0 | R35: 0 | S35: 0 | T35: 0 | U35: 0 | V35: 0 | W35: 0 | X35: 0 | Y35: 0 | Z35: 0 | AA35: 0 | AB35: 0 | AC35: 0 | AD35: 0 | AE35: 0 | AF35: 0 | AG35: 0 | AH35: 0 | AI35: 0 | AJ35: 0 | AK35: 0 | AL35: 0
U37: ="GHG Emissions from Landfills and Waste Combustion, 1990-"&B35 -> GHG Emissions from Landfills and Waste Combustion, 1990-1990
U38: ="Methane Emissions from Landfills, 1990-"&B35 -> Methane Emissions from Landfills, 1990-1990
U39: ="Emissions from Waste Combustion, 1990-"&B35 -> Emissions from Waste Combustion, 1990-1990

Sheet Wastewater
A1: ="Summary of CH4 and N2O Emissions from Wastewater in "&StateName&" (MMTCO2E)" -> Summary of CH4 and N2O Emissions from Wastewater in Select a State . . . (MMTCO2E)
B4: Emissions (MMTCO2E) | C4: 1990 | D4: 1991 | E4: 1992 | F4: 1993 | G4: 1994 | H4: 1995 | I4: 1996 | J4: 1997 | K4: 1998 | L4: 1999 | M4: 2000 | N4: 2001 | O4: 2002 | P4: 2003 | Q4: 2004 | R4: 2005 | S4: 2006 | T4: 2007 | U4: 2008 | V4: 2009 | W4: 2010 | X4: 2011 | Y4: 2012 | Z4: 2013 | AA4: 2014 | AB4: 2015 | AC4: 2016 | AD4: 2017 | AE4: 2018 | AF4: 2019 | AG4: 2020 | AH4: 2021 | AI4: 2022 | AJ4: 2023 | AK4: 2024 | AL4: 2025
B5: Municipal CH4
B6: Municipal N2O
B7: Industrial CH4
B8: Fruits & Vegetables
B9: Red Meat
B10: Poultry
B11: Pulp & Paper
B12: Additional Nitrous Oxide Emissions
B13: Additional Methane Emissions
B14: Total Emissions | C14: =SUM(C5:C7,C12,C13) -> 0 | D14: =SUM(D5:D7,D12,D13) -> 0 | E14: 0 | F14: 0 | G14: 0 | H14: 0 | I14: 0 | J14: 0 | K14: 0 | L14: 0 | M14: 0 | N14: 0 | O14: 0 | P14: 0 | Q14: 0 | R14: 0 | S14: 0 | T14: 0 | U14: 0 | V14: 0 | W14: 0 | X14: 0 | Y14: 0 | Z14: 0 | AA14: 0 | AB14: 0 | AC14: 0 | AD14: 0 | AE14: 0 | AF14: 0 | AG14: 0 | AH14: =SUM(AH5:AH7,AH12,AH13) -> 0 | AI14: 0 | AJ14: 0 | AK14: 0 | AL14: 0
B15: Emissions (MMTCE) | C15: 1990 | D15: 1991 | E15: 1992 | F15: 1993 | G15: 1994 | H15: 1995 | I15: 1996 | J15: 1997 | K15: 1998 | L15: 1999 | M15: 2000 | N15: 2001 | O15: 2002 | P15: 2003 | Q15: 2004 | R15: 2005 | S15: 2006 | T15: 2007 | U15: 2008 | V15: 2009 | W15: 2010 | X15: 2011 | Y15: 2012 | Z15: 2013 | AA15: 2014 | AB15: 2015 | AC15: 2016 | AD15: 2017 | AE15: 2018 | AF15: 2019 | AG15: 2020 | AH15: 2021 | AI15: 2022 | AJ15: 2023 | AK15: 2024 | AL15: 2025
B16: Municipal CH4 | C16: =C5/(44/12) -> 0 | D16: =D5/(44/12) -> 0 | E16: 0 | F16: 0 | G16: 0 | H16: 0 | I16: 0 | J16: 0 | K16: 0 | L16: 0 | M16: 0 | N16: 0 | O16: 0 | P16: 0 | Q16: 0 | R16: 0 | S16: =S5/(44/12) -> 0 | T16: 0 | U16: 0 | V16: 0 | W16: 0 | X16: 0 | Y16: 0 | Z16: 0 | AA16: 0 | AB16: 0 | AC16: 0 | AD16: 0 | AE16: 0 | AF16: 0 | AG16: 0 | AH16: =AH5/(44/12) -> 0 | AI16: 0 | AJ16: 0 | AK16: 0 | AL16: 0
B17: Municipal N2O | C17: 0 | D17: =D6/(44/12) -> 0 | E17: 0 | F17: 0 | G17: 0 | H17: 0 | I17: 0 | J17: 0 | K17: 0 | L17: 0 | M17: 0 | N17: 0 | O17: 0 | P17: 0 | Q17: 0 | R17: 0 | S17: =S6/(44/12) -> 0 | T17: 0 | U17: 0 | V17: 0 | W17: 0 | X17: 0 | Y17: 0 | Z17: 0 | AA17: 0 | AB17: 0 | AC17: 0 | AD17: 0 | AE17: 0 | AF17: 0 | AG17: 0 | AH17: =AH6/(44/12) -> 0 | AI17: 0 | AJ17: 0 | AK17: 0 | AL17: 0
B18: Industrial CH4 | C18: 0 | D18: =D7/(44/12) -> 0 | E18: 0 | F18: 0 | G18: 0 | H18: 0 | I18: 0 | J18: 0 | K18: 0 | L18: 0 | M18: 0 | N18: 0 | O18: 0 | P18: 0 | Q18: 0 | R18: 0 | S18: =S7/(44/12) -> 0 | T18: 0 | U18: 0 | V18: 0 | W18: 0 | X18: 0 | Y18: 0 | Z18: 0 | AA18: 0 | AB18: 0 | AC18: 0 | AD18: 0 | AE18: 0 | AF18: 0 | AG18: 0 | AH18: =AH7/(44/12) -> 0 | AI18: 0 | AJ18: 0 | AK18: 0 | AL18: 0
B19: Fruits & Vegetables | C19: 0 | D19: =D8/(44/12) -> 0 | E19: 0 | F19: 0 | G19: 0 | H19: 0 | I19: 0 | J19: 0 | K19: 0 | L19: 0 | M19: 0 | N19: 0 | O19: 0 | P19: 0 | Q19: 0 | R19: 0 | S19: =S8/(44/12) -> 0 | T19: 0 | U19: 0 | V19: 0 | W19: 0 | X19: 0 | Y19: 0 | Z19: 0 | AA19: 0 | AB19: 0 | AC19: 0 | AD19: 0 | AE19: 0 | AF19: 0 | AG19: 0 | AH19: =AH8/(44/12) -> 0 | AI19: 0 | AJ19: 0 | AK19: 0 | AL19: 0
B20: Red Meat | C20: 0 | D20: =D9/(44/12) -> 0 | E20: 0 | F20: 0 | G20: 0 | H20: 0 | I20: 0 | J20: 0 | K20: 0 | L20: 0 | M20: 0 | N20: 0 | O20: 0 | P20: 0 | Q20: 0 | R20: 0 | S20: =S9/(44/12) -> 0 | T20: 0 | U20: 0 | V20: 0 | W20: 0 | X20: 0 | Y20: 0 | Z20: 0 | AA20: 0 | AB20: 0 | AC20: 0 | AD20: 0 | AE20: 0 | AF20: 0 | AG20: 0 | AH20: =AH9/(44/12) -> 0 | AI20: 0 | AJ20: 0 | AK20: 0 | AL20: 0
B21: Poultry | C21: 0 | D21: =D10/(44/12) -> 0 | E21: 0 | F21: 0 | G21: 0 | H21: 0 | I21: 0 | J21: 0 | K21: 0 | L21: 0 | M21: 0 | N21: 0 | O21: 0 | P21: 0 | Q21: 0 | R21: 0 | S21: =S10/(44/12) -> 0 | T21: 0 | U21: 0 | V21: 0 | W21: 0 | X21: 0 | Y21: 0 | Z21: 0 | AA21: 0 | AB21: 0 | AC21: 0 | AD21: 0 | AE21: 0 | AF21: 0 | AG21: 0 | AH21: =AH10/(44/12) -> 0 | AI21: 0 | AJ21: 0 | AK21: 0 | AL21: 0
B22: Pulp & Paper | C22: 0 | D22: =D11/(44/12) -> 0 | E22: 0 | F22: 0 | G22: 0 | H22: 0 | I22: 0 | J22: 0 | K22: 0 | L22: 0 | M22: 0 | N22: 0 | O22: 0 | P22: 0 | Q22: 0 | R22: 0 | S22: =S11/(44/12) -> 0 | T22: 0 | U22: 0 | V22: 0 | W22: 0 | X22: 0 | Y22: 0 | Z22: 0 | AA22: 0 | AB22: 0 | AC22: 0 | AD22: 0 | AE22: 0 | AF22: 0 | AG22: 0 | AH22: =AH11/(44/12) -> 0 | AI22: 0 | AJ22: 0 | AK22: 0 | AL22: 0
B23: Total Emissions | C23: =C14/(44/12) -> 0 | D23: 0 | E23: 0 | F23: 0 | G23: 0 | H23: 0 | I23: 0 | J23: 0 | K23: 0 | L23: 0 | M23: 0 | N23: 0 | O23: 0 | P23: 0 | Q23: 0 | R23: 0 | S23: =S14/(44/12) -> 0 | T23: 0 | U23: 0 | V23: 0 | W23: 0 | X23: 0 | Y23: 0 | Z23: 0 | AA23: 0 | AB23: 0 | AC23: 0 | AD23: 0 | AE23: 0 | AF23: 0 | AG23: 0 | AH23: =AH14/(44/12) -> 0 | AI23: 0 | AJ23: 0 | AK23: 0 | AL23: 0
C24: 1 | D24: =IF(D4<=$B25,C24+1,0) -> 0 | E24: =IF(E4<=$B25,D24+1,0) -> 0 | F24: 0 | G24: 0 | H24: 0 | I24: 0 | J24: 0 | K24: 0 | L24: 0 | M24: 0 | N24: 0 | O24: 0 | P24: 0 | Q24: 0 | R24: 0 | S24: 0 | T24: 0 | U24: 0 | V24: 0 | W24: 0 | X24: 0 | Y24: 0 | Z24: 0 | AA24: 0 | AB24: 0 | AC24: 0 | AD24: 0 | AE24: 0 | AF24: 0 | AG24: 0 | AH24: 0 | AI24: 0 | AJ24: 0 | AK24: 0 | AL24: 0
B25: =MAX(C25:AL25) -> 1990 | C25: =1990 -> 1990 | D25: =IF(D23=0,0,D15) -> 0 | E25: =IF(E23=0,0,E15) -> 0 | F25: 0 | G25: 0 | H25: 0 | I25: 0 | J25: 0 | K25: 0 | L25: 0 | M25: 0 | N25: 0 | O25: 0 | P25: 0 | Q25: 0 | R25: 0 | S25: 0 | T25: 0 | U25: 0 | V25: 0 | W25: 0 | X25: 0 | Y25: 0 | Z25: 0 | AA25: 0 | AB25: 0 | AC25: 0 | AD25: 0 | AE25: 0 | AF25: 0 | AG25: 0 | AH25: 0 | AI25: 0 | AJ25: 0 | AK25: 0 | AL25: 0
AA26: ="Total Wastewater Emissions, 1990-"&B25 -> Total Wastewater Emissions, 1990-1990
AA27: ="Methane Emissions from Industrial Wastewater, 1990-"&B25 -> Methane Emissions from Industrial Wastewater, 1990-1990

Sheet Summary by Gas
A1: ="Summary of GHG Emissions by Gas in "&StateName&" ("&Units&")" -> Summary of GHG Emissions by Gas in Select a State . . . (MMTCO2E)
B4: Emissions (MMTCO2E)a | C4: 1990 | D4: 1991 | E4: 1992 | F4: 1993 | G4: 1994 | H4: 1995 | I4: 1996 | J4: 1997 | K4: 1998 | L4: 1999 | M4: 2000 | N4: 2001 | O4: 2002 | P4: 2003 | Q4: 2004 | R4: 2005 | S4: 2006 | T4: 2007 | U4: 2008 | V4: 2009 | W4: 2010 | X4: 2011 | Y4: 2012 | Z4: 2013 | AA4: 2014 | AB4: 2015 | AC4: 2016 | AD4: 2017 | AE4: 2018 | AF4: 2019 | AG4: 2020 | AH4: 2021 | AI4: 2022 | AJ4: 2023 | AK4: 2024 | AL4: 2025
B5: Gross CO2 | C5: =IF(C11<0,SUM(C7:C10),SUM(C7:C11)) -> 0 | D5: 0 | E5: 0 | F5: 0 | G5: 0 | H5: 0 | I5: 0 | J5: 0 | K5: 0 | L5: 0 | M5: 0 | N5: 0 | O5: 0 | P5: 0 | Q5: 0 | R5: 0 | S5: 0 | T5: 0 | U5: 0 | V5: 0 | W5: 0 | X5: 0 | Y5: 0 | Z5: 0 | AA5: 0 | AB5: 0 | AC5: 0 | AD5: 0 | AE5: 0 | AF5: 0 | AG5: 0 | AH5: =IF(AH11<0,SUM(AH7:AH10),SUM(AH7:AH11)) -> 0 | AI5: 0 | AJ5: 0 | AK5: 0 | AL5: 0
B6: Net CO2 | C6: =SUM(C7:C11) -> 0 | D6: 0 | E6: 0 | F6: 0 | G6: 0 | H6: 0 | I6: 0 | J6: 0 | K6: 0 | L6: 0 | M6: 0 | N6: 0 | O6: 0 | P6: 0 | Q6: 0 | R6: 0 | S6: 0 | T6: 0 | U6: 0 | V6: 0 | W6: 0 | X6: 0 | Y6: 0 | Z6: 0 | AA6: 0 | AB6: 0 | AC6: 0 | AD6: 0 | AE6: 0 | AF6: 0 | AG6: 0 | AH6: =SUM(AH7:AH11) -> 0 | AI6: 0 | AJ6: 0 | AK6: 0 | AL6: 0
B7: CO2 from Fossil Fuel Combustion | C7: =CO2FFC!C31*UFactor -> 0 | D7: =CO2FFC!D31*UFactor -> 0 | E7: =CO2FFC!E31*UFactor -> 0 | F7: =CO2FFC!F31*UFactor -> 0 | G7: =CO2FFC!G31*UFactor -> 0 | H7: =CO2FFC!H31*UFactor -> 0 | I7: =CO2FFC!I31*UFactor -> 0 | J7: =CO2FFC!J31*UFactor -> 0 | K7: =CO2FFC!K31*UFactor -> 0 | L7: =CO2FFC!L31*UFactor -> 0 | M7: =CO2FFC!M31*UFactor -> 0 | N7: =CO2FFC!N31*UFactor -> 0 | O7: =CO2FFC!O31*UFactor -> 0 | P7: =CO2FFC!P31*UFactor -> 0 | Q7: =CO2FFC!Q31*UFactor -> 0 | R7: =CO2FFC!R31*UFactor -> 0 | S7: =CO2FFC!S31*UFactor -> 0 | T7: =CO2FFC!T31*UFactor -> 0 | U7: =CO2FFC!U31*UFactor -> 0 | V7: =CO2FFC!V31*UFactor -> 0 | W7: =CO2FFC!W31*UFactor -> 0 | X7: =CO2FFC!X31*UFactor -> 0 | Y7: =CO2FFC!Y31*UFactor -> 0 | Z7: =CO2FFC!Z31*UFactor -> 0 | AA7: =CO2FFC!AA31*UFactor -> 0 | AB7: =CO2FFC!AB31*UFactor -> 0 | AC7: =CO2FFC!AC31*UFactor -> 0 | AD7: =CO2FFC!AD31*UFactor -> 0 | AE7: =CO2FFC!AE31*UFactor -> 0 | AF7: =CO2FFC!AF31*UFactor -> 0 | AG7: =CO2FFC!AG31*UFactor -> 0 | AH7: =CO2FFC!AH31*UFactor -> 0 | AI7: =CO2FFC!AI31*UFactor -> 0 | AJ7: =CO2FFC!AJ31*UFactor -> 0 | AK7: =CO2FFC!AK31*UFactor -> 0 | AL7: =CO2FFC!AL31*UFactor -> 0
B8: Industrial Processes | C8: =(IP!C4/10^6)*UFactor -> 0 | D8: =(IP!D4/10^6)*UFactor -> 0 | E8: =(IP!E4/10^6)*UFactor -> 0 | F8: =(IP!F4/10^6)*UFactor -> 0 | G8: =(IP!G4/10^6)*UFactor -> 0 | H8: =(IP!H4/10^6)*UFactor -> 0 | I8: =(IP!I4/10^6)*UFactor -> 0 | J8: =(IP!J4/10^6)*UFactor -> 0 | K8: =(IP!K4/10^6)*UFactor -> 0 | L8: =(IP!L4/10^6)*UFactor -> 0 | M8: =(IP!M4/10^6)*UFactor -> 0 | N8: =(IP!N4/10^6)*UFactor -> 0 | O8: =(IP!O4/10^6)*UFactor -> 0 | P8: =(IP!P4/10^6)*UFactor -> 0 | Q8: =(IP!Q4/10^6)*UFactor -> 0 | R8: =(IP!R4/10^6)*UFactor -> 0 | S8: =(IP!S4/10^6)*UFactor -> 0 | T8: =(IP!T4/10^6)*UFactor -> 0 | U8: =(IP!U4/10^6)*UFactor -> 0 | V8: =(IP!V4/10^6)*UFactor -> 0 | W8: =(IP!W4/10^6)*UFactor -> 0 | X8: =(IP!X4/10^6)*UFactor -> 0 | Y8: =(IP!Y4/10^6)*UFactor -> 0 | Z8: =(IP!Z4/10^6)*UFactor -> 0 | AA8: =(IP!AA4/10^6)*UFactor -> 0 | AB8: =(IP!AB4/10^6)*UFactor -> 0 | AC8: =(IP!AC4/10^6)*UFactor -> 0 | AD8: =(IP!AD4/10^6)*UFactor -> 0 | AE8: =(IP!AE4/10^6)*UFactor -> 0 | AF8: =(IP!AF4/10^6)*UFactor -> 0 | AG8: =(IP!AG4/10^6)*UFactor -> 0 | AH8: =(IP!AH4/10^6)*UFactor -> 0 | AI8: =(IP!AI4/10^6)*UFactor -> 0 | AJ8: =(IP!AJ4/10^6)*UFactor -> 0 | AK8: =(IP!AK4/10^6)*UFactor -> 0 | AL8: =(IP!AL4/10^6)*UFactor -> 0
B9: Waste | C9: =(Waste!C6)*UFactor -> 0 | D9: =(Waste!D6)*UFactor -> 0 | E9: =(Waste!E6)*UFactor -> 0 | F9: =(Waste!F6)*UFactor -> 0 | G9: =(Waste!G6)*UFactor -> 0 | H9: =(Waste!H6)*UFactor -> 0 | I9: =(Waste!I6)*UFactor -> 0 | J9: =(Waste!J6)*UFactor -> 0 | K9: =(Waste!K6)*UFactor -> 0 | L9: =(Waste!L6)*UFactor -> 0 | M9: =(Waste!M6)*UFactor -> 0 | N9: =(Waste!N6)*UFactor -> 0 | O9: =(Waste!O6)*UFactor -> 0 | P9: =(Waste!P6)*UFactor -> 0 | Q9: =(Waste!Q6)*UFactor -> 0 | R9: =(Waste!R6)*UFactor -> 0 | S9: =(Waste!S6)*UFactor -> 0 | T9: =(Waste!T6)*UFactor -> 0 | U9: =(Waste!U6)*UFactor -> 0 | V9: =(Waste!V6)*UFactor -> 0 | W9: =(Waste!W6)*UFactor -> 0 | X9: =(Waste!X6)*UFactor -> 0 | Y9: =(Waste!Y6)*UFactor -> 0 | Z9: =(Waste!Z6)*UFactor -> 0 | AA9: =(Waste!AA6)*UFactor -> 0 | AB9: =(Waste!AB6)*UFactor -> 0 | AC9: =(Waste!AC6)*UFactor -> 0 | AD9: =(Waste!AD6)*UFactor -> 0 | AE9: =(Waste!AE6)*UFactor -> 0 | AF9: =(Waste!AF6)*UFactor -> 0 | AG9: =(Waste!AG6)*UFactor -> 0 | AH9: =(Waste!AH6)*UFactor -> 0 | AI9: =(Waste!AI6)*UFactor -> 0 | AJ9: =(Waste!AJ6)*UFactor -> 0 | AK9: =(Waste!AK6)*UFactor -> 0 | AL9: =(Waste!AL6)*UFactor -> 0
B10: Agriculture | C10: =(Agriculture!C29+Agriculture!C13)*UFactor -> 0 | D10: =(Agriculture!D29+Agriculture!D13)*UFactor -> 0 | E10: =(Agriculture!E29+Agriculture!E13)*UFactor -> 0 | F10: =(Agriculture!F29+Agriculture!F13)*UFactor -> 0 | G10: =(Agriculture!G29+Agriculture!G13)*UFactor -> 0 | H10: =(Agriculture!H29+Agriculture!H13)*UFactor -> 0 | I10: =(Agriculture!I29+Agriculture!I13)*UFactor -> 0 | J10: =(Agriculture!J29+Agriculture!J13)*UFactor -> 0 | K10: =(Agriculture!K29+Agriculture!K13)*UFactor -> 0 | L10: =(Agriculture!L29+Agriculture!L13)*UFactor -> 0 | M10: =(Agriculture!M29+Agriculture!M13)*UFactor -> 0 | N10: =(Agriculture!N29+Agriculture!N13)*UFactor -> 0 | O10: =(Agriculture!O29+Agriculture!O13)*UFactor -> 0 | P10: =(Agriculture!P29+Agriculture!P13)*UFactor -> 0 | Q10: =(Agriculture!Q29+Agriculture!Q13)*UFactor -> 0 | R10: =(Agriculture!R29+Agriculture!R13)*UFactor -> 0 | S10: =(Agriculture!S29+Agriculture!S13)*UFactor -> 0 | T10: =(Agriculture!T29+Agriculture!T13)*UFactor -> 0 | U10: =(Agriculture!U29+Agriculture!U13)*UFactor -> 0 | V10: =(Agriculture!V29+Agriculture!V13)*UFactor -> 0 | W10: =(Agriculture!W29+Agriculture!W13)*UFactor -> 0 | X10: =(Agriculture!X29+Agriculture!X13)*UFactor -> 0 | Y10: =(Agriculture!Y29+Agriculture!Y13)*UFactor -> 0 | Z10: =(Agriculture!Z29+Agriculture!Z13)*UFactor -> 0 | AA10: =(Agriculture!AA29+Agriculture!AA13)*UFactor -> 0 | AB10: =(Agriculture!AB29+Agriculture!AB13)*UFactor -> 0 | AC10: =(Agriculture!AC29+Agriculture!AC13)*UFactor -> 0 | AD10: =(Agriculture!AD29+Agriculture!AD13)*UFactor -> 0 | AE10: =(Agriculture!AE29+Agriculture!AE13)*UFactor -> 0 | AF10: =(Agriculture!AF29+Agriculture!AF13)*UFactor -> 0 | AG10: =(Agriculture!AG29+Agriculture!AG13)*UFactor -> 0 | AH10: =(Agriculture!AH29+Agriculture!AH13)*UFactor -> 0 | AI10: =(Agriculture!AI29+Agriculture!AI13)*UFactor -> 0 | AJ10: =(Agriculture!AJ29+Agriculture!AJ13)*UFactor -> 0 | AK10: =(Agriculture!AK29+Agriculture!AK13)*UFactor -> 0 | AL10: =(Agriculture!AL29+Agriculture!AL13)*UFactor -> 0
B11: LULUCF | C11: =('Forest Management'!C55*UFactor)-SUM('Forest Management'!C46,'Forest Management'!C49,'Forest Management'!C52,'Forest Management'!C54)*UFactor -> 0 | D11: =('Forest Management'!D55*UFactor)-SUM('Forest Management'!D46,'Forest Management'!D49,'Forest Management'!D52,'Forest Management'!D54)*UFactor -> 0 | E11: =('Forest Management'!E55*UFactor)-SUM('Forest Management'!E46,'Forest Management'!E49,'Forest Management'!E52,'Forest Management'!E54)*UFactor -> 0 | F11: =('Forest Management'!F55*UFactor)-SUM('Forest Management'!F46,'Forest Management'!F49,'Forest Management'!F52,'Forest Management'!F54)*UFactor -> 0 | G11: =('Forest Management'!G55*UFactor)-SUM('Forest Management'!G46,'Forest Management'!G49,'Forest Management'!G52,'Forest Management'!G54)*UFactor -> 0 | H11: =('Forest Management'!H55*UFactor)-SUM('Forest Management'!H46,'Forest Management'!H49,'Forest Management'!H52,'Forest Management'!H54)*UFactor -> 0 | I11: =('Forest Management'!I55*UFactor)-SUM('Forest Management'!I46,'Forest Management'!I49,'Forest Management'!I52,'Forest Management'!I54)*UFactor -> 0 | J11: =('Forest Management'!J55*UFactor)-SUM('Forest Management'!J46,'Forest Management'!J49,'Forest Management'!J52,'Forest Management'!J54)*UFactor -> 0 | K11: =('Forest Management'!K55*UFactor)-SUM('Forest Management'!K46,'Forest Management'!K49,'Forest Management'!K52,'Forest Management'!K54)*UFactor -> 0 | L11: =('Forest Management'!L55*UFactor)-SUM('Forest Management'!L46,'Forest Management'!L49,'Forest Management'!L52,'Forest Management'!L54)*UFactor -> 0 | M11: =('Forest Management'!M55*UFactor)-SUM('Forest Management'!M46,'Forest Management'!M49,'Forest Management'!M52,'Forest Management'!M54)*UFactor -> 0 | N11: =('Forest Management'!N55*UFactor)-SUM('Forest Management'!N46,'Forest Management'!N49,'Forest Management'!N52,'Forest Management'!N54)*UFactor -> 0 | O11: =('Forest Management'!O55*UFactor)-SUM('Forest Management'!O46,'Forest Management'!O49,'Forest Management'!O52,'Forest Management'!O54)*UFactor -> 0 | P11: =('Forest Management'!P55*UFactor)-SUM('Forest Management'!P46,'Forest Management'!P49,'Forest Management'!P52,'Forest Management'!P54)*UFactor -> 0 | Q11: =('Forest Management'!Q55*UFactor)-SUM('Forest Management'!Q46,'Forest Management'!Q49,'Forest Management'!Q52,'Forest Management'!Q54)*UFactor -> 0 | R11: =('Forest Management'!R55*UFactor)-SUM('Forest Management'!R46,'Forest Management'!R49,'Forest Management'!R52,'Forest Management'!R54)*UFactor -> 0 | S11: =('Forest Management'!S55*UFactor)-SUM('Forest Management'!S46,'Forest Management'!S49,'Forest Management'!S52,'Forest Management'!S54)*UFactor -> 0 | T11: =('Forest Management'!T55*UFactor)-SUM('Forest Management'!T46,'Forest Management'!T49,'Forest Management'!T52,'Forest Management'!T54)*UFactor -> 0 | U11: =('Forest Management'!U55*UFactor)-SUM('Forest Management'!U46,'Forest Management'!U49,'Forest Management'!U52,'Forest Management'!U54)*UFactor -> 0 | V11: =('Forest Management'!V55*UFactor)-SUM('Forest Management'!V46,'Forest Management'!V49,'Forest Management'!V52,'Forest Management'!V54)*UFactor -> 0 | W11: =('Forest Management'!W55*UFactor)-SUM('Forest Management'!W46,'Forest Management'!W49,'Forest Management'!W52,'Forest Management'!W54)*UFactor -> 0 | X11: =('Forest Management'!X55*UFactor)-SUM('Forest Management'!X46,'Forest Management'!X49,'Forest Management'!X52,'Forest Management'!X54)*UFactor -> 0 | Y11: =('Forest Management'!Y55*UFactor)-SUM('Forest Management'!Y46,'Forest Management'!Y49,'Forest Management'!Y52,'Forest Management'!Y54)*UFactor -> 0 | Z11: =('Forest Management'!Z55*UFactor)-SUM('Forest Management'!Z46,'Forest Management'!Z49,'Forest Management'!Z52,'Forest Management'!Z54)*UFactor -> 0 | AA11: =('Forest Management'!AA55*UFactor)-SUM('Forest Management'!AA46,'Forest Management'!AA49,'Forest Management'!AA52,'Forest Management'!AA54)*UFactor -> 0 | AB11: =('Forest Management'!AB55*UFactor)-SUM('Forest Management'!AB46,'Forest Management'!AB49,'Forest Management'!AB52,'Forest Management'!AB54)*UFactor -> 0 | AC11: =('Forest Management'!AC55*UFactor)-SUM('Forest Management'!AC46,'Forest Management'!AC49,'Forest Management'!AC52,'Forest Management'!AC54)*UFactor -> 0 | AD11: =('Forest Management'!AD55*UFactor)-SUM('Forest Management'!AD46,'Forest Management'!AD49,'Forest Management'!AD52,'Forest Management'!AD54)*UFactor -> 0 | AE11: =('Forest Management'!AE55*UFactor)-SUM('Forest Management'!AE46,'Forest Management'!AE49,'Forest Management'!AE52,'Forest Management'!AE54)*UFactor -> 0 | AF11: =('Forest Management'!AF55*UFactor)-SUM('Forest Management'!AF46,'Forest Management'!AF49,'Forest Management'!AF52,'Forest Management'!AF54)*UFactor -> 0 | AG11: =('Forest Management'!AG55*UFactor)-SUM('Forest Management'!AG46,'Forest Management'!AG49,'Forest Management'!AG52,'Forest Management'!AG54)*UFactor -> 0 | AH11: =('Forest Management'!AH55*UFactor)-SUM('Forest Management'!AH46,'Forest Management'!AH49,'Forest Management'!AH52,'Forest Management'!AH54)*UFactor -> 0 | AI11: =('Forest Management'!AI55*UFactor)-SUM('Forest Management'!AI46,'Forest Management'!AI49,'Forest Management'!AI52,'Forest Management'!AI54)*UFactor -> 0 | AJ11: =('Forest Management'!AJ55*UFactor)-SUM('Forest Management'!AJ46,'Forest Management'!AJ49,'Forest Management'!AJ52,'Forest Management'!AJ54)*UFactor -> 0 | AK11: =('Forest Management'!AK55*UFactor)-SUM('Forest Management'!AK46,'Forest Management'!AK49,'Forest Management'!AK52,'Forest Management'!AK54)*UFactor -> 0 | AL11: =('Forest Management'!AL55*UFactor)-SUM('Forest Management'!AL46,'Forest Management'!AL49,'Forest Management'!AL52,'Forest Management'!AL54)*UFactor -> 0
B12: Indirect CO2 from Electricity Consumption | C12: =IndirectCO2!C57/1000 -> 0 | D12: =IndirectCO2!D57/1000 -> 0 | E12: =IndirectCO2!E57/1000 -> 0 | F12: =IndirectCO2!F57/1000 -> 0 | G12: =IndirectCO2!G57/1000 -> 0 | H12: =IndirectCO2!H57/1000 -> 0 | I12: =IndirectCO2!I57/1000 -> 0 | J12: =IndirectCO2!J57/1000 -> 0 | K12: =IndirectCO2!K57/1000 -> 0 | L12: =IndirectCO2!L57/1000 -> 0 | M12: =IndirectCO2!M57/1000 -> 0 | N12: =IndirectCO2!N57/1000 -> 0 | O12: =IndirectCO2!O57/1000 -> 0 | P12: =IndirectCO2!P57/1000 -> 0 | Q12: =IndirectCO2!Q57/1000 -> 0 | R12: =IndirectCO2!R57/1000 -> 0 | S12: =IndirectCO2!S57/1000 -> 0 | T12: =IndirectCO2!T57/1000 -> 0 | U12: =IndirectCO2!U57/1000 -> 0 | V12: =IndirectCO2!V57/1000 -> 0 | W12: =IndirectCO2!W57/1000 -> 0 | X12: =IndirectCO2!X57/1000 -> 0 | Y12: =IndirectCO2!Y57/1000 -> 0 | Z12: =IndirectCO2!Z57/1000 -> 0 | AA12: =IndirectCO2!AA57/1000 -> 0 | AB12: =IndirectCO2!AB57/1000 -> 0 | AC12: =IndirectCO2!AC57/1000 -> 0 | AD12: =IndirectCO2!AD57/1000 -> 0 | AE12: =IndirectCO2!AE57/1000 -> 0 | AF12: =IndirectCO2!AF57/1000 -> 0 | AG12: =IndirectCO2!AG57/1000 -> 0 | AH12: =IndirectCO2!AH57/1000 -> 0 | AI12: =IndirectCO2!AI57/1000 -> 0 | AJ12: =IndirectCO2!AJ57/1000 -> 0 | AK12: =IndirectCO2!AK57/1000 -> 0 | AL12: =IndirectCO2!AL57/1000 -> 0
B13: CH4 | C13: =SUM(C14:C21) -> 0 | D13: 0 | E13: 0 | F13: 0 | G13: 0 | H13: 0 | I13: 0 | J13: 0 | K13: 0 | L13: 0 | M13: 0 | N13: 0 | O13: 0 | P13: 0 | Q13: 0 | R13: 0 | S13: 0 | T13: 0 | U13: 0 | V13: 0 | W13: 0 | X13: 0 | Y13: 0 | Z13: 0 | AA13: 0 | AB13: 0 | AC13: 0 | AD13: 0 | AE13: 0 | AF13: 0 | AG13: 0 | AH13: =SUM(AH14:AH21) -> 0 | AI13: 0 | AJ13: 0 | AK13: 0 | AL13: 0
B14: Stationary Combustion | C14: =Stationary!C17*UFactor -> 0 | D14: =Stationary!D17*UFactor -> 0 | E14: =Stationary!E17*UFactor -> 0 | F14: =Stationary!F17*UFactor -> 0 | G14: =Stationary!G17*UFactor -> 0 | H14: =Stationary!H17*UFactor -> 0 | I14: =Stationary!I17*UFactor -> 0 | J14: =Stationary!J17*UFactor -> 0 | K14: =Stationary!K17*UFactor -> 0 | L14: =Stationary!L17*UFactor -> 0 | M14: =Stationary!M17*UFactor -> 0 | N14: =Stationary!N17*UFactor -> 0 | O14: =Stationary!O17*UFactor -> 0 | P14: =Stationary!P17*UFactor -> 0 | Q14: =Stationary!Q17*UFactor -> 0 | R14: =Stationary!R17*UFactor -> 0 | S14: =Stationary!S17*UFactor -> 0 | T14: =Stationary!T17*UFactor -> 0 | U14: =Stationary!U17*UFactor -> 0 | V14: =Stationary!V17*UFactor -> 0 | W14: =Stationary!W17*UFactor -> 0 | X14: =Stationary!X17*UFactor -> 0 | Y14: =Stationary!Y17*UFactor -> 0 | Z14: =Stationary!Z17*UFactor -> 0 | AA14: =Stationary!AA17*UFactor -> 0 | AB14: =Stationary!AB17*UFactor -> 0 | AC14: =Stationary!AC17*UFactor -> 0 | AD14: =Stationary!AD17*UFactor -> 0 | AE14: =Stationary!AE17*UFactor -> 0 | AF14: =Stationary!AF17*UFactor -> 0 | AG14: =Stationary!AG17*UFactor -> 0 | AH14: =Stationary!AH17*UFactor -> 0 | AI14: =Stationary!AI17*UFactor -> 0 | AJ14: =Stationary!AJ17*UFactor -> 0 | AK14: =Stationary!AK17*UFactor -> 0 | AL14: =Stationary!AL17*UFactor -> 0
B15: Mobile Combustion | C15: =('Mobile Combustion'!C80/10^6)*UFactor -> 0 | D15: =('Mobile Combustion'!D80/10^6)*UFactor -> 0 | E15: =('Mobile Combustion'!E80/10^6)*UFactor -> 0 | F15: =('Mobile Combustion'!F80/10^6)*UFactor -> 0 | G15: =('Mobile Combustion'!G80/10^6)*UFactor -> 0 | H15: =('Mobile Combustion'!H80/10^6)*UFactor -> 0 | I15: =('Mobile Combustion'!I80/10^6)*UFactor -> 0 | J15: =('Mobile Combustion'!J80/10^6)*UFactor -> 0 | K15: =('Mobile Combustion'!K80/10^6)*UFactor -> 0 | L15: =('Mobile Combustion'!L80/10^6)*UFactor -> 0 | M15: =('Mobile Combustion'!M80/10^6)*UFactor -> 0 | N15: =('Mobile Combustion'!N80/10^6)*UFactor -> 0 | O15: =('Mobile Combustion'!O80/10^6)*UFactor -> 0 | P15: =('Mobile Combustion'!P80/10^6)*UFactor -> 0 | Q15: =('Mobile Combustion'!Q80/10^6)*UFactor -> 0 | R15: =('Mobile Combustion'!R80/10^6)*UFactor -> 0 | S15: =('Mobile Combustion'!S80/10^6)*UFactor -> 0 | T15: =('Mobile Combustion'!T80/10^6)*UFactor -> 0 | U15: =('Mobile Combustion'!U80/10^6)*UFactor -> 0 | V15: =('Mobile Combustion'!V80/10^6)*UFactor -> 0 | W15: =('Mobile Combustion'!W80/10^6)*UFactor -> 0 | X15: =('Mobile Combustion'!X80/10^6)*UFactor -> 0 | Y15: =('Mobile Combustion'!Y80/10^6)*UFactor -> 0 | Z15: =('Mobile Combustion'!Z80/10^6)*UFactor -> 0 | AA15: =('Mobile Combustion'!AA80/10^6)*UFactor -> 0 | AB15: =('Mobile Combustion'!AB80/10^6)*UFactor -> 0 | AC15: =('Mobile Combustion'!AC80/10^6)*UFactor -> 0 | AD15: =('Mobile Combustion'!AD80/10^6)*UFactor -> 0 | AE15: =('Mobile Combustion'!AE80/10^6)*UFactor -> 0 | AF15: =('Mobile Combustion'!AF80/10^6)*UFactor -> 0 | AG15: =('Mobile Combustion'!AG80/10^6)*UFactor -> 0 | AH15: =('Mobile Combustion'!AH80/10^6)*UFactor -> 0 | AI15: =('Mobile Combustion'!AI80/10^6)*UFactor -> 0 | AJ15: =('Mobile Combustion'!AJ80/10^6)*UFactor -> 0 | AK15: =('Mobile Combustion'!AK80/10^6)*UFactor -> 0 | AL15: =('Mobile Combustion'!AL80/10^6)*UFactor -> 0
B16: Coal Mining | C16: =(Coal!C5+Coal!C6+Coal!C10)/10^6*UFactor -> 0 | D16: =(Coal!D5+Coal!D6+Coal!D10)/10^6*UFactor -> 0 | E16: =(Coal!E5+Coal!E6+Coal!E10)/10^6*UFactor -> 0 | F16: =(Coal!F5+Coal!F6+Coal!F10)/10^6*UFactor -> 0 | G16: =(Coal!G5+Coal!G6+Coal!G10)/10^6*UFactor -> 0 | H16: =(Coal!H5+Coal!H6+Coal!H10)/10^6*UFactor -> 0 | I16: =(Coal!I5+Coal!I6+Coal!I10)/10^6*UFactor -> 0 | J16: =(Coal!J5+Coal!J6+Coal!J10)/10^6*UFactor -> 0 | K16: =(Coal!K5+Coal!K6+Coal!K10)/10^6*UFactor -> 0 | L16: =(Coal!L5+Coal!L6+Coal!L10)/10^6*UFactor -> 0 | M16: =(Coal!M5+Coal!M6+Coal!M10)/10^6*UFactor -> 0 | N16: =(Coal!N5+Coal!N6+Coal!N10)/10^6*UFactor -> 0 | O16: =(Coal!O5+Coal!O6+Coal!O10)/10^6*UFactor -> 0 | P16: =(Coal!P5+Coal!P6+Coal!P10)/10^6*UFactor -> 0 | Q16: =(Coal!Q5+Coal!Q6+Coal!Q10)/10^6*UFactor -> 0 | R16: =(Coal!R5+Coal!R6+Coal!R10)/10^6*UFactor -> 0 | S16: =(Coal!S5+Coal!S6+Coal!S10)/10^6*UFactor -> 0 | T16: =(Coal!T5+Coal!T6+Coal!T10)/10^6*UFactor -> 0 | U16: =(Coal!U5+Coal!U6+Coal!U10)/10^6*UFactor -> 0 | V16: =(Coal!V5+Coal!V6+Coal!V10)/10^6*UFactor -> 0 | W16: =(Coal!W5+Coal!W6+Coal!W10)/10^6*UFactor -> 0 | X16: =(Coal!X5+Coal!X6+Coal!X10)/10^6*UFactor -> 0 | Y16: =(Coal!Y5+Coal!Y6+Coal!Y10)/10^6*UFactor -> 0 | Z16: =(Coal!Z5+Coal!Z6+Coal!Z10)/10^6*UFactor -> 0 | AA16: =(Coal!AA5+Coal!AA6+Coal!AA10)/10^6*UFactor -> 0 | AB16: =(Coal!AB5+Coal!AB6+Coal!AB10)/10^6*UFactor -> 0 | AC16: =(Coal!AC5+Coal!AC6+Coal!AC10)/10^6*UFactor -> 0 | AD16: =(Coal!AD5+Coal!AD6+Coal!AD10)/10^6*UFactor -> 0 | AE16: =(Coal!AE5+Coal!AE6+Coal!AE10)/10^6*UFactor -> 0 | AF16: =(Coal!AF5+Coal!AF6+Coal!AF10)/10^6*UFactor -> 0 | AG16: =(Coal!AG5+Coal!AG6+Coal!AG10)/10^6*UFactor -> 0 | AH16: =(Coal!AH5+Coal!AH6+Coal!AH10)/10^6*UFactor -> 0 | AI16: =(Coal!AI5+Coal!AI6+Coal!AI10)/10^6*UFactor -> 0 | AJ16: =(Coal!AJ5+Coal!AJ6+Coal!AJ10)/10^6*UFactor -> 0 | AK16: =(Coal!AK5+Coal!AK6+Coal!AK10)/10^6*UFactor -> 0 | AL16: =(Coal!AL5+Coal!AL6+Coal!AL10)/10^6*UFactor -> 0
B17: Natural Gas and Oil Systems | C17: =('Gas and Oil'!C8)*UFactor -> 0 | D17: =('Gas and Oil'!D8)*UFactor -> 0 | E17: =('Gas and Oil'!E8)*UFactor -> 0 | F17: =('Gas and Oil'!F8)*UFactor -> 0 | G17: =('Gas and Oil'!G8)*UFactor -> 0 | H17: =('Gas and Oil'!H8)*UFactor -> 0 | I17: =('Gas and Oil'!I8)*UFactor -> 0 | J17: =('Gas and Oil'!J8)*UFactor -> 0 | K17: =('Gas and Oil'!K8)*UFactor -> 0 | L17: =('Gas and Oil'!L8)*UFactor -> 0 | M17: =('Gas and Oil'!M8)*UFactor -> 0 | N17: =('Gas and Oil'!N8)*UFactor -> 0 | O17: =('Gas and Oil'!O8)*UFactor -> 0 | P17: =('Gas and Oil'!P8)*UFactor -> 0 | Q17: =('Gas and Oil'!Q8)*UFactor -> 0 | R17: =('Gas and Oil'!R8)*UFactor -> 0 | S17: =('Gas and Oil'!S8)*UFactor -> 0 | T17: =('Gas and Oil'!T8)*UFactor -> 0 | U17: =('Gas and Oil'!U8)*UFactor -> 0 | V17: =('Gas and Oil'!V8)*UFactor -> 0 | W17: =('Gas and Oil'!W8)*UFactor -> 0 | X17: =('Gas and Oil'!X8)*UFactor -> 0 | Y17: =('Gas and Oil'!Y8)*UFactor -> 0 | Z17: =('Gas and Oil'!Z8)*UFactor -> 0 | AA17: =('Gas and Oil'!AA8)*UFactor -> 0 | AB17: =('Gas and Oil'!AB8)*UFactor -> 0 | AC17: =('Gas and Oil'!AC8)*UFactor -> 0 | AD17: =('Gas and Oil'!AD8)*UFactor -> 0 | AE17: =('Gas and Oil'!AE8)*UFactor -> 0 | AF17: =('Gas and Oil'!AF8)*UFactor -> 0 | AG17: =('Gas and Oil'!AG8)*UFactor -> 0 | AH17: =('Gas and Oil'!AH8)*UFactor -> 0 | AI17: =('Gas and Oil'!AI8)*UFactor -> 0 | AJ17: =('Gas and Oil'!AJ8)*UFactor -> 0 | AK17: =('Gas and Oil'!AK8)*UFactor -> 0 | AL17: =('Gas and Oil'!AL8)*UFactor -> 0
B18: Agriculture | C18: =(Agriculture!C14+Agriculture!C32*CH4GWP)*UFactor -> 0 | D18: =(Agriculture!D14+Agriculture!D32*CH4GWP)*UFactor -> 0 | E18: =(Agriculture!E14+Agriculture!E32*CH4GWP)*UFactor -> 0 | F18: =(Agriculture!F14+Agriculture!F32*CH4GWP)*UFactor -> 0 | G18: =(Agriculture!G14+Agriculture!G32*CH4GWP)*UFactor -> 0 | H18: =(Agriculture!H14+Agriculture!H32*CH4GWP)*UFactor -> 0 | I18: =(Agriculture!I14+Agriculture!I32*CH4GWP)*UFactor -> 0 | J18: =(Agriculture!J14+Agriculture!J32*CH4GWP)*UFactor -> 0 | K18: =(Agriculture!K14+Agriculture!K32*CH4GWP)*UFactor -> 0 | L18: =(Agriculture!L14+Agriculture!L32*CH4GWP)*UFactor -> 0 | M18: =(Agriculture!M14+Agriculture!M32*CH4GWP)*UFactor -> 0 | N18: =(Agriculture!N14+Agriculture!N32*CH4GWP)*UFactor -> 0 | O18: =(Agriculture!O14+Agriculture!O32*CH4GWP)*UFactor -> 0 | P18: =(Agriculture!P14+Agriculture!P32*CH4GWP)*UFactor -> 0 | Q18: =(Agriculture!Q14+Agriculture!Q32*CH4GWP)*UFactor -> 0 | R18: =(Agriculture!R14+Agriculture!R32*CH4GWP)*UFactor -> 0 | S18: =(Agriculture!S14+Agriculture!S32*CH4GWP)*UFactor -> 0 | T18: =(Agriculture!T14+Agriculture!T32*CH4GWP)*UFactor -> 0 | U18: =(Agriculture!U14+Agriculture!U32*CH4GWP)*UFactor -> 0 | V18: =(Agriculture!V14+Agriculture!V32*CH4GWP)*UFactor -> 0 | W18: =(Agriculture!W14+Agriculture!W32*CH4GWP)*UFactor -> 0 | X18: =(Agriculture!X14+Agriculture!X32*CH4GWP)*UFactor -> 0 | Y18: =(Agriculture!Y14+Agriculture!Y32*CH4GWP)*UFactor -> 0 | Z18: =(Agriculture!Z14+Agriculture!Z32*CH4GWP)*UFactor -> 0 | AA18: =(Agriculture!AA14+Agriculture!AA32*CH4GWP)*UFactor -> 0 | AB18: =(Agriculture!AB14+Agriculture!AB32*CH4GWP)*UFactor -> 0 | AC18: =(Agriculture!AC14+Agriculture!AC32*CH4GWP)*UFactor -> 0 | AD18: =(Agriculture!AD14+Agriculture!AD32*CH4GWP)*UFactor -> 0 | AE18: =(Agriculture!AE14+Agriculture!AE32*CH4GWP)*UFactor -> 0 | AF18: =(Agriculture!AF14+Agriculture!AF32*CH4GWP)*UFactor -> 0 | AG18: =(Agriculture!AG14+Agriculture!AG32*CH4GWP)*UFactor -> 0 | AH18: =(Agriculture!AH14+Agriculture!AH32*CH4GWP)*UFactor -> 0 | AI18: =(Agriculture!AI14+Agriculture!AI32*CH4GWP)*UFactor -> 0 | AJ18: =(Agriculture!AJ14+Agriculture!AJ32*CH4GWP)*UFactor -> 0 | AK18: =(Agriculture!AK14+Agriculture!AK32*CH4GWP)*UFactor -> 0 | AL18: =(Agriculture!AL14+Agriculture!AL32*CH4GWP)*UFactor -> 0
B19: LULUCF | C19: =('Forest Management'!C47+'Forest Management'!C53)*UFactor -> 0 | D19: =('Forest Management'!D47+'Forest Management'!D53)*UFactor -> 0 | E19: =('Forest Management'!E47+'Forest Management'!E53)*UFactor -> 0 | F19: =('Forest Management'!F47+'Forest Management'!F53)*UFactor -> 0 | G19: =('Forest Management'!G47+'Forest Management'!G53)*UFactor -> 0 | H19: =('Forest Management'!H47+'Forest Management'!H53)*UFactor -> 0 | I19: =('Forest Management'!I47+'Forest Management'!I53)*UFactor -> 0 | J19: =('Forest Management'!J47+'Forest Management'!J53)*UFactor -> 0 | K19: =('Forest Management'!K47+'Forest Management'!K53)*UFactor -> 0 | L19: =('Forest Management'!L47+'Forest Management'!L53)*UFactor -> 0 | M19: =('Forest Management'!M47+'Forest Management'!M53)*UFactor -> 0 | N19: =('Forest Management'!N47+'Forest Management'!N53)*UFactor -> 0 | O19: =('Forest Management'!O47+'Forest Management'!O53)*UFactor -> 0 | P19: =('Forest Management'!P47+'Forest Management'!P53)*UFactor -> 0 | Q19: =('Forest Management'!Q47+'Forest Management'!Q53)*UFactor -> 0 | R19: =('Forest Management'!R47+'Forest Management'!R53)*UFactor -> 0 | S19: =('Forest Management'!S47+'Forest Management'!S53)*UFactor -> 0 | T19: =('Forest Management'!T47+'Forest Management'!T53)*UFactor -> 0 | U19: =('Forest Management'!U47+'Forest Management'!U53)*UFactor -> 0 | V19: =('Forest Management'!V47+'Forest Management'!V53)*UFactor -> 0 | W19: =('Forest Management'!W47+'Forest Management'!W53)*UFactor -> 0 | X19: =('Forest Management'!X47+'Forest Management'!X53)*UFactor -> 0 | Y19: =('Forest Management'!Y47+'Forest Management'!Y53)*UFactor -> 0 | Z19: =('Forest Management'!Z47+'Forest Management'!Z53)*UFactor -> 0 | AA19: =('Forest Management'!AA47+'Forest Management'!AA53)*UFactor -> 0 | AB19: =('Forest Management'!AB47+'Forest Management'!AB53)*UFactor -> 0 | AC19: =('Forest Management'!AC47+'Forest Management'!AC53)*UFactor -> 0 | AD19: =('Forest Management'!AD47+'Forest Management'!AD53)*UFactor -> 0 | AE19: =('Forest Management'!AE47+'Forest Management'!AE53)*UFactor -> 0 | AF19: =('Forest Management'!AF47+'Forest Management'!AF53)*UFactor -> 0 | AG19: =('Forest Management'!AG47+'Forest Management'!AG53)*UFactor -> 0 | AH19: =('Forest Management'!AH47+'Forest Management'!AH53)*UFactor -> 0 | AI19: =('Forest Management'!AI47+'Forest Management'!AI53)*UFactor -> 0 | AJ19: =('Forest Management'!AJ47+'Forest Management'!AJ53)*UFactor -> 0 | AK19: =('Forest Management'!AK47+'Forest Management'!AK53)*UFactor -> 0 | AL19: =('Forest Management'!AL47+'Forest Management'!AL53)*UFactor -> 0
B20: Waste | C20: =Waste!C5*UFactor -> 0 | D20: =Waste!D5*UFactor -> 0 | E20: =Waste!E5*UFactor -> 0 | F20: =Waste!F5*UFactor -> 0 | G20: =Waste!G5*UFactor -> 0 | H20: =Waste!H5*UFactor -> 0 | I20: =Waste!I5*UFactor -> 0 | J20: =Waste!J5*UFactor -> 0 | K20: =Waste!K5*UFactor -> 0 | L20: =Waste!L5*UFactor -> 0 | M20: =Waste!M5*UFactor -> 0 | N20: =Waste!N5*UFactor -> 0 | O20: =Waste!O5*UFactor -> 0 | P20: =Waste!P5*UFactor -> 0 | Q20: =Waste!Q5*UFactor -> 0 | R20: =Waste!R5*UFactor -> 0 | S20: =Waste!S5*UFactor -> 0 | T20: =Waste!T5*UFactor -> 0 | U20: =Waste!U5*UFactor -> 0 | V20: =Waste!V5*UFactor -> 0 | W20: =Waste!W5*UFactor -> 0 | X20: =Waste!X5*UFactor -> 0 | Y20: =Waste!Y5*UFactor -> 0 | Z20: =Waste!Z5*UFactor -> 0 | AA20: =Waste!AA5*UFactor -> 0 | AB20: =Waste!AB5*UFactor -> 0 | AC20: =Waste!AC5*UFactor -> 0 | AD20: =Waste!AD5*UFactor -> 0 | AE20: =Waste!AE5*UFactor -> 0 | AF20: =Waste!AF5*UFactor -> 0 | AG20: =Waste!AG5*UFactor -> 0 | AH20: =Waste!AH5*UFactor -> 0 | AI20: =Waste!AI5*UFactor -> 0 | AJ20: =Waste!AJ5*UFactor -> 0 | AK20: =Waste!AK5*UFactor -> 0 | AL20: =Waste!AL5*UFactor -> 0
B21: Wastewater | C21: =(Wastewater!C5+Wastewater!C7+Wastewater!C13)*UFactor -> 0 | D21: =(Wastewater!D5+Wastewater!D7+Wastewater!D13)*UFactor -> 0 | E21: =(Wastewater!E5+Wastewater!E7+Wastewater!E13)*UFactor -> 0 | F21: =(Wastewater!F5+Wastewater!F7+Wastewater!F13)*UFactor -> 0 | G21: =(Wastewater!G5+Wastewater!G7+Wastewater!G13)*UFactor -> 0 | H21: =(Wastewater!H5+Wastewater!H7+Wastewater!H13)*UFactor -> 0 | I21: =(Wastewater!I5+Wastewater!I7+Wastewater!I13)*UFactor -> 0 | J21: =(Wastewater!J5+Wastewater!J7+Wastewater!J13)*UFactor -> 0 | K21: =(Wastewater!K5+Wastewater!K7+Wastewater!K13)*UFactor -> 0 | L21: =(Wastewater!L5+Wastewater!L7+Wastewater!L13)*UFactor -> 0 | M21: =(Wastewater!M5+Wastewater!M7+Wastewater!M13)*UFactor -> 0 | N21: =(Wastewater!N5+Wastewater!N7+Wastewater!N13)*UFactor -> 0 | O21: =(Wastewater!O5+Wastewater!O7+Wastewater!O13)*UFactor -> 0 | P21: =(Wastewater!P5+Wastewater!P7+Wastewater!P13)*UFactor -> 0 | Q21: =(Wastewater!Q5+Wastewater!Q7+Wastewater!Q13)*UFactor -> 0 | R21: =(Wastewater!R5+Wastewater!R7+Wastewater!R13)*UFactor -> 0 | S21: =(Wastewater!S5+Wastewater!S7+Wastewater!S13)*UFactor -> 0 | T21: =(Wastewater!T5+Wastewater!T7+Wastewater!T13)*UFactor -> 0 | U21: =(Wastewater!U5+Wastewater!U7+Wastewater!U13)*UFactor -> 0 | V21: =(Wastewater!V5+Wastewater!V7+Wastewater!V13)*UFactor -> 0 | W21: =(Wastewater!W5+Wastewater!W7+Wastewater!W13)*UFactor -> 0 | X21: =(Wastewater!X5+Wastewater!X7+Wastewater!X13)*UFactor -> 0 | Y21: =(Wastewater!Y5+Wastewater!Y7+Wastewater!Y13)*UFactor -> 0 | Z21: =(Wastewater!Z5+Wastewater!Z7+Wastewater!Z13)*UFactor -> 0 | AA21: =(Wastewater!AA5+Wastewater!AA7+Wastewater!AA13)*UFactor -> 0 | AB21: =(Wastewater!AB5+Wastewater!AB7+Wastewater!AB13)*UFactor -> 0 | AC21: =(Wastewater!AC5+Wastewater!AC7+Wastewater!AC13)*UFactor -> 0 | AD21: =(Wastewater!AD5+Wastewater!AD7+Wastewater!AD13)*UFactor -> 0 | AE21: =(Wastewater!AE5+Wastewater!AE7+Wastewater!AE13)*UFactor -> 0 | AF21: =(Wastewater!AF5+Wastewater!AF7+Wastewater!AF13)*UFactor -> 0 | AG21: =(Wastewater!AG5+Wastewater!AG7+Wastewater!AG13)*UFactor -> 0 | AH21: =(Wastewater!AH5+Wastewater!AH7+Wastewater!AH13)*UFactor -> 0 | AI21: =(Wastewater!AI5+Wastewater!AI7+Wastewater!AI13)*UFactor -> 0 | AJ21: =(Wastewater!AJ5+Wastewater!AJ7+Wastewater!AJ13)*UFactor -> 0 | AK21: =(Wastewater!AK5+Wastewater!AK7+Wastewater!AK13)*UFactor -> 0 | AL21: =(Wastewater!AL5+Wastewater!AL7+Wastewater!AL13)*UFactor -> 0
B22: Indirect CO2 from Electricity Consumption | C22: =IndirectCO2!C62/1000 -> 0 | D22: =IndirectCO2!D62/1000 -> 0 | E22: =IndirectCO2!E62/1000 -> 0 | F22: =IndirectCO2!F62/1000 -> 0 | G22: =IndirectCO2!G62/1000 -> 0 | H22: =IndirectCO2!H62/1000 -> 0 | I22: =IndirectCO2!I62/1000 -> 0 | J22: =IndirectCO2!J62/1000 -> 0 | K22: =IndirectCO2!K62/1000 -> 0 | L22: =IndirectCO2!L62/1000 -> 0 | M22: =IndirectCO2!M62/1000 -> 0 | N22: =IndirectCO2!N62/1000 -> 0 | O22: =IndirectCO2!O62/1000 -> 0 | P22: =IndirectCO2!P62/1000 -> 0 | Q22: =IndirectCO2!Q62/1000 -> 0 | R22: =IndirectCO2!R62/1000 -> 0 | S22: =IndirectCO2!S62/1000 -> 0 | T22: =IndirectCO2!T62/1000 -> 0 | U22: =IndirectCO2!U62/1000 -> 0 | V22: =IndirectCO2!V62/1000 -> 0 | W22: =IndirectCO2!W62/1000 -> 0 | X22: =IndirectCO2!X62/1000 -> 0 | Y22: =IndirectCO2!Y62/1000 -> 0 | Z22: =IndirectCO2!Z62/1000 -> 0 | AA22: =IndirectCO2!AA62/1000 -> 0 | AB22: =IndirectCO2!AB62/1000 -> 0 | AC22: =IndirectCO2!AC62/1000 -> 0 | AD22: =IndirectCO2!AD62/1000 -> 0 | AE22: =IndirectCO2!AE62/1000 -> 0 | AF22: =IndirectCO2!AF62/1000 -> 0 | AG22: =IndirectCO2!AG62/1000 -> 0 | AH22: =IndirectCO2!AH62/1000 -> 0 | AI22: =IndirectCO2!AI62/1000 -> 0 | AJ22: =IndirectCO2!AJ62/1000 -> 0 | AK22: =IndirectCO2!AK62/1000 -> 0 | AL22: =IndirectCO2!AL62/1000 -> 0
B23: N2O | C23: =SUM(C24:C30) -> 0 | D23: 0 | E23: 0 | F23: 0 | G23: 0 | H23: 0 | I23: 0 | J23: 0 | K23: 0 | L23: 0 | M23: 0 | N23: 0 | O23: 0 | P23: 0 | Q23: 0 | R23: 0 | S23: 0 | T23: 0 | U23: 0 | V23: 0 | W23: 0 | X23: 0 | Y23: 0 | Z23: 0 | AA23: 0 | AB23: 0 | AC23: 0 | AD23: 0 | AE23: 0 | AF23: 0 | AG23: 0 | AH23: =SUM(AH24:AH30) -> 0 | AI23: 0 | AJ23: 0 | AK23: 0 | AL23: 0
B24: Stationary Combustion | C24: =Stationary!C16*UFactor -> 0 | D24: =Stationary!D16*UFactor -> 0 | E24: =Stationary!E16*UFactor -> 0 | F24: =Stationary!F16*UFactor -> 0 | G24: =Stationary!G16*UFactor -> 0 | H24: =Stationary!H16*UFactor -> 0 | I24: =Stationary!I16*UFactor -> 0 | J24: =Stationary!J16*UFactor -> 0 | K24: =Stationary!K16*UFactor -> 0 | L24: =Stationary!L16*UFactor -> 0 | M24: =Stationary!M16*UFactor -> 0 | N24: =Stationary!N16*UFactor -> 0 | O24: =Stationary!O16*UFactor -> 0 | P24: =Stationary!P16*UFactor -> 0 | Q24: =Stationary!Q16*UFactor -> 0 | R24: =Stationary!R16*UFactor -> 0 | S24: =Stationary!S16*UFactor -> 0 | T24: =Stationary!T16*UFactor -> 0 | U24: =Stationary!U16*UFactor -> 0 | V24: =Stationary!V16*UFactor -> 0 | W24: =Stationary!W16*UFactor -> 0 | X24: =Stationary!X16*UFactor -> 0 | Y24: =Stationary!Y16*UFactor -> 0 | Z24: =Stationary!Z16*UFactor -> 0 | AA24: =Stationary!AA16*UFactor -> 0 | AB24: =Stationary!AB16*UFactor -> 0 | AC24: =Stationary!AC16*UFactor -> 0 | AD24: =Stationary!AD16*UFactor -> 0 | AE24: =Stationary!AE16*UFactor -> 0 | AF24: =Stationary!AF16*UFactor -> 0 | AG24: =Stationary!AG16*UFactor -> 0 | AH24: =Stationary!AH16*UFactor -> 0 | AI24: =Stationary!AI16*UFactor -> 0 | AJ24: =Stationary!AJ16*UFactor -> 0 | AK24: =Stationary!AK16*UFactor -> 0 | AL24: =Stationary!AL16*UFactor -> 0
B25: Mobile Combustion | C25: ='Mobile Combustion'!C108/10^6*UFactor -> 0 | D25: ='Mobile Combustion'!D108/10^6*UFactor -> 0 | E25: ='Mobile Combustion'!E108/10^6*UFactor -> 0 | F25: ='Mobile Combustion'!F108/10^6*UFactor -> 0 | G25: ='Mobile Combustion'!G108/10^6*UFactor -> 0 | H25: ='Mobile Combustion'!H108/10^6*UFactor -> 0 | I25: ='Mobile Combustion'!I108/10^6*UFactor -> 0 | J25: ='Mobile Combustion'!J108/10^6*UFactor -> 0 | K25: ='Mobile Combustion'!K108/10^6*UFactor -> 0 | L25: ='Mobile Combustion'!L108/10^6*UFactor -> 0 | M25: ='Mobile Combustion'!M108/10^6*UFactor -> 0 | N25: ='Mobile Combustion'!N108/10^6*UFactor -> 0 | O25: ='Mobile Combustion'!O108/10^6*UFactor -> 0 | P25: ='Mobile Combustion'!P108/10^6*UFactor -> 0 | Q25: ='Mobile Combustion'!Q108/10^6*UFactor -> 0 | R25: ='Mobile Combustion'!R108/10^6*UFactor -> 0 | S25: ='Mobile Combustion'!S108/10^6*UFactor -> 0 | T25: ='Mobile Combustion'!T108/10^6*UFactor -> 0 | U25: ='Mobile Combustion'!U108/10^6*UFactor -> 0 | V25: ='Mobile Combustion'!V108/10^6*UFactor -> 0 | W25: ='Mobile Combustion'!W108/10^6*UFactor -> 0 | X25: ='Mobile Combustion'!X108/10^6*UFactor -> 0 | Y25: ='Mobile Combustion'!Y108/10^6*UFactor -> 0 | Z25: ='Mobile Combustion'!Z108/10^6*UFactor -> 0 | AA25: ='Mobile Combustion'!AA108/10^6*UFactor -> 0 | AB25: ='Mobile Combustion'!AB108/10^6*UFactor -> 0 | AC25: ='Mobile Combustion'!AC108/10^6*UFactor -> 0 | AD25: ='Mobile Combustion'!AD108/10^6*UFactor -> 0 | AE25: ='Mobile Combustion'!AE108/10^6*UFactor -> 0 | AF25: ='Mobile Combustion'!AF108/10^6*UFactor -> 0 | AG25: ='Mobile Combustion'!AG108/10^6*UFactor -> 0 | AH25: ='Mobile Combustion'!AH108/10^6*UFactor -> 0 | AI25: ='Mobile Combustion'!AI108/10^6*UFactor -> 0 | AJ25: ='Mobile Combustion'!AJ108/10^6*UFactor -> 0 | AK25: ='Mobile Combustion'!AK108/10^6*UFactor -> 0 | AL25: ='Mobile Combustion'!AL108/10^6*UFactor -> 0
B26: Industrial Processes | C26: =IP!C14/10^6*UFactor -> 0 | D26: =IP!D14/10^6*UFactor -> 0 | E26: =IP!E14/10^6*UFactor -> 0 | F26: =IP!F14/10^6*UFactor -> 0 | G26: =IP!G14/10^6*UFactor -> 0 | H26: =IP!H14/10^6*UFactor -> 0 | I26: =IP!I14/10^6*UFactor -> 0 | J26: =IP!J14/10^6*UFactor -> 0 | K26: =IP!K14/10^6*UFactor -> 0 | L26: =IP!L14/10^6*UFactor -> 0 | M26: =IP!M14/10^6*UFactor -> 0 | N26: =IP!N14/10^6*UFactor -> 0 | O26: =IP!O14/10^6*UFactor -> 0 | P26: =IP!P14/10^6*UFactor -> 0 | Q26: =IP!Q14/10^6*UFactor -> 0 | R26: =IP!R14/10^6*UFactor -> 0 | S26: =IP!S14/10^6*UFactor -> 0 | T26: =IP!T14/10^6*UFactor -> 0 | U26: =IP!U14/10^6*UFactor -> 0 | V26: =IP!V14/10^6*UFactor -> 0 | W26: =IP!W14/10^6*UFactor -> 0 | X26: =IP!X14/10^6*UFactor -> 0 | Y26: =IP!Y14/10^6*UFactor -> 0 | Z26: =IP!Z14/10^6*UFactor -> 0 | AA26: =IP!AA14/10^6*UFactor -> 0 | AB26: =IP!AB14/10^6*UFactor -> 0 | AC26: =IP!AC14/10^6*UFactor -> 0 | AD26: =IP!AD14/10^6*UFactor -> 0 | AE26: =IP!AE14/10^6*UFactor -> 0 | AF26: =IP!AF14/10^6*UFactor -> 0 | AG26: =IP!AG14/10^6*UFactor -> 0 | AH26: =IP!AH14/10^6*UFactor -> 0 | AI26: =IP!AI14/10^6*UFactor -> 0 | AJ26: =IP!AJ14/10^6*UFactor -> 0 | AK26: =IP!AK14/10^6*UFactor -> 0 | AL26: =IP!AL14/10^6*UFactor -> 0
B27: Agriculture | C27: =(Agriculture!C37*N2OGWP+Agriculture!C15)*UFactor -> 0 | D27: =(Agriculture!D37*N2OGWP+Agriculture!D15)*UFactor -> 0 | E27: =(Agriculture!E37*N2OGWP+Agriculture!E15)*UFactor -> 0 | F27: =(Agriculture!F37*N2OGWP+Agriculture!F15)*UFactor -> 0 | G27: =(Agriculture!G37*N2OGWP+Agriculture!G15)*UFactor -> 0 | H27: =(Agriculture!H37*N2OGWP+Agriculture!H15)*UFactor -> 0 | I27: =(Agriculture!I37*N2OGWP+Agriculture!I15)*UFactor -> 0 | J27: =(Agriculture!J37*N2OGWP+Agriculture!J15)*UFactor -> 0 | K27: =(Agriculture!K37*N2OGWP+Agriculture!K15)*UFactor -> 0 | L27: =(Agriculture!L37*N2OGWP+Agriculture!L15)*UFactor -> 0 | M27: =(Agriculture!M37*N2OGWP+Agriculture!M15)*UFactor -> 0 | N27: =(Agriculture!N37*N2OGWP+Agriculture!N15)*UFactor -> 0 | O27: =(Agriculture!O37*N2OGWP+Agriculture!O15)*UFactor -> 0 | P27: =(Agriculture!P37*N2OGWP+Agriculture!P15)*UFactor -> 0 | Q27: =(Agriculture!Q37*N2OGWP+Agriculture!Q15)*UFactor -> 0 | R27: =(Agriculture!R37*N2OGWP+Agriculture!R15)*UFactor -> 0 | S27: =(Agriculture!S37*N2OGWP+Agriculture!S15)*UFactor -> 0 | T27: =(Agriculture!T37*N2OGWP+Agriculture!T15)*UFactor -> 0 | U27: =(Agriculture!U37*N2OGWP+Agriculture!U15)*UFactor -> 0 | V27: =(Agriculture!V37*N2OGWP+Agriculture!V15)*UFactor -> 0 | W27: =(Agriculture!W37*N2OGWP+Agriculture!W15)*UFactor -> 0 | X27: =(Agriculture!X37*N2OGWP+Agriculture!X15)*UFactor -> 0 | Y27: =(Agriculture!Y37*N2OGWP+Agriculture!Y15)*UFactor -> 0 | Z27: =(Agriculture!Z37*N2OGWP+Agriculture!Z15)*UFactor -> 0 | AA27: =(Agriculture!AA37*N2OGWP+Agriculture!AA15)*UFactor -> 0 | AB27: =(Agriculture!AB37*N2OGWP+Agriculture!AB15)*UFactor -> 0 | AC27: =(Agriculture!AC37*N2OGWP+Agriculture!AC15)*UFactor -> 0 | AD27: =(Agriculture!AD37*N2OGWP+Agriculture!AD15)*UFactor -> 0 | AE27: =(Agriculture!AE37*N2OGWP+Agriculture!AE15)*UFactor -> 0 | AF27: =(Agriculture!AF37*N2OGWP+Agriculture!AF15)*UFactor -> 0 | AG27: =(Agriculture!AG37*N2OGWP+Agriculture!AG15)*UFactor -> 0 | AH27: =(Agriculture!AH37*N2OGWP+Agriculture!AH15)*UFactor -> 0 | AI27: =(Agriculture!AI37*N2OGWP+Agriculture!AI15)*UFactor -> 0 | AJ27: =(Agriculture!AJ37*N2OGWP+Agriculture!AJ15)*UFactor -> 0 | AK27: =(Agriculture!AK37*N2OGWP+Agriculture!AK15)*UFactor -> 0 | AL27: =(Agriculture!AL37*N2OGWP+Agriculture!AL15)*UFactor -> 0
B28: LULUCF | C28: =('Forest Management'!C48+'Forest Management'!C49+'Forest Management'!C54)*UFactor -> 0 | D28: =('Forest Management'!D48+'Forest Management'!D49+'Forest Management'!D54)*UFactor -> 0 | E28: =('Forest Management'!E48+'Forest Management'!E49+'Forest Management'!E54)*UFactor -> 0 | F28: =('Forest Management'!F48+'Forest Management'!F49+'Forest Management'!F54)*UFactor -> 0 | G28: =('Forest Management'!G48+'Forest Management'!G49+'Forest Management'!G54)*UFactor -> 0 | H28: =('Forest Management'!H48+'Forest Management'!H49+'Forest Management'!H54)*UFactor -> 0 | I28: =('Forest Management'!I48+'Forest Management'!I49+'Forest Management'!I54)*UFactor -> 0 | J28: =('Forest Management'!J48+'Forest Management'!J49+'Forest Management'!J54)*UFactor -> 0 | K28: =('Forest Management'!K48+'Forest Management'!K49+'Forest Management'!K54)*UFactor -> 0 | L28: =('Forest Management'!L48+'Forest Management'!L49+'Forest Management'!L54)*UFactor -> 0 | M28: =('Forest Management'!M48+'Forest Management'!M49+'Forest Management'!M54)*UFactor -> 0 | N28: =('Forest Management'!N48+'Forest Management'!N49+'Forest Management'!N54)*UFactor -> 0 | O28: =('Forest Management'!O48+'Forest Management'!O49+'Forest Management'!O54)*UFactor -> 0 | P28: =('Forest Management'!P48+'Forest Management'!P49+'Forest Management'!P54)*UFactor -> 0 | Q28: =('Forest Management'!Q48+'Forest Management'!Q49+'Forest Management'!Q54)*UFactor -> 0 | R28: =('Forest Management'!R48+'Forest Management'!R49+'Forest Management'!R54)*UFactor -> 0 | S28: =('Forest Management'!S48+'Forest Management'!S49+'Forest Management'!S54)*UFactor -> 0 | T28: =('Forest Management'!T48+'Forest Management'!T49+'Forest Management'!T54)*UFactor -> 0 | U28: =('Forest Management'!U48+'Forest Management'!U49+'Forest Management'!U54)*UFactor -> 0 | V28: =('Forest Management'!V48+'Forest Management'!V49+'Forest Management'!V54)*UFactor -> 0 | W28: =('Forest Management'!W48+'Forest Management'!W49+'Forest Management'!W54)*UFactor -> 0 | X28: =('Forest Management'!X48+'Forest Management'!X49+'Forest Management'!X54)*UFactor -> 0 | Y28: =('Forest Management'!Y48+'Forest Management'!Y49+'Forest Management'!Y54)*UFactor -> 0 | Z28: =('Forest Management'!Z48+'Forest Management'!Z49+'Forest Management'!Z54)*UFactor -> 0 | AA28: =('Forest Management'!AA48+'Forest Management'!AA49+'Forest Management'!AA54)*UFactor -> 0 | AB28: =('Forest Management'!AB48+'Forest Management'!AB49+'Forest Management'!AB54)*UFactor -> 0 | AC28: =('Forest Management'!AC48+'Forest Management'!AC49+'Forest Management'!AC54)*UFactor -> 0 | AD28: =('Forest Management'!AD48+'Forest Management'!AD49+'Forest Management'!AD54)*UFactor -> 0 | AE28: =('Forest Management'!AE48+'Forest Management'!AE49+'Forest Management'!AE54)*UFactor -> 0 | AF28: =('Forest Management'!AF48+'Forest Management'!AF49+'Forest Management'!AF54)*UFactor -> 0 | AG28: =('Forest Management'!AG48+'Forest Management'!AG49+'Forest Management'!AG54)*UFactor -> 0 | AH28: =('Forest Management'!AH48+'Forest Management'!AH49+'Forest Management'!AH54)*UFactor -> 0 | AI28: =('Forest Management'!AI48+'Forest Management'!AI49+'Forest Management'!AI54)*UFactor -> 0 | AJ28: =('Forest Management'!AJ48+'Forest Management'!AJ49+'Forest Management'!AJ54)*UFactor -> 0 | AK28: =('Forest Management'!AK48+'Forest Management'!AK49+'Forest Management'!AK54)*UFactor -> 0 | AL28: =('Forest Management'!AL48+'Forest Management'!AL49+'Forest Management'!AL54)*UFactor -> 0
B29: Waste | C29: =Waste!C7*UFactor -> 0 | D29: =Waste!D7*UFactor -> 0 | E29: =Waste!E7*UFactor -> 0 | F29: =Waste!F7*UFactor -> 0 | G29: =Waste!G7*UFactor -> 0 | H29: =Waste!H7*UFactor -> 0 | I29: =Waste!I7*UFactor -> 0 | J29: =Waste!J7*UFactor -> 0 | K29: =Waste!K7*UFactor -> 0 | L29: =Waste!L7*UFactor -> 0 | M29: =Waste!M7*UFactor -> 0 | N29: =Waste!N7*UFactor -> 0 | O29: =Waste!O7*UFactor -> 0 | P29: =Waste!P7*UFactor -> 0 | Q29: =Waste!Q7*UFactor -> 0 | R29: =Waste!R7*UFactor -> 0 | S29: =Waste!S7*UFactor -> 0 | T29: =Waste!T7*UFactor -> 0 | U29: =Waste!U7*UFactor -> 0 | V29: =Waste!V7*UFactor -> 0 | W29: =Waste!W7*UFactor -> 0 | X29: =Waste!X7*UFactor -> 0 | Y29: =Waste!Y7*UFactor -> 0 | Z29: =Waste!Z7*UFactor -> 0 | AA29: =Waste!AA7*UFactor -> 0 | AB29: =Waste!AB7*UFactor -> 0 | AC29: =Waste!AC7*UFactor -> 0 | AD29: =Waste!AD7*UFactor -> 0 | AE29: =Waste!AE7*UFactor -> 0 | AF29: =Waste!AF7*UFactor -> 0 | AG29: =Waste!AG7*UFactor -> 0 | AH29: =Waste!AH7*UFactor -> 0 | AI29: =Waste!AI7*UFactor -> 0 | AJ29: =Waste!AJ7*UFactor -> 0 | AK29: =Waste!AK7*UFactor -> 0 | AL29: =Waste!AL7*UFactor -> 0
B30: Wastewater | C30: =(Wastewater!C6+Wastewater!C12)*UFactor -> 0 | D30: =(Wastewater!D6+Wastewater!D12)*UFactor -> 0 | E30: =(Wastewater!E6+Wastewater!E12)*UFactor -> 0 | F30: =(Wastewater!F6+Wastewater!F12)*UFactor -> 0 | G30: =(Wastewater!G6+Wastewater!G12)*UFactor -> 0 | H30: =(Wastewater!H6+Wastewater!H12)*UFactor -> 0 | I30: =(Wastewater!I6+Wastewater!I12)*UFactor -> 0 | J30: =(Wastewater!J6+Wastewater!J12)*UFactor -> 0 | K30: =(Wastewater!K6+Wastewater!K12)*UFactor -> 0 | L30: =(Wastewater!L6+Wastewater!L12)*UFactor -> 0 | M30: =(Wastewater!M6+Wastewater!M12)*UFactor -> 0 | N30: =(Wastewater!N6+Wastewater!N12)*UFactor -> 0 | O30: =(Wastewater!O6+Wastewater!O12)*UFactor -> 0 | P30: =(Wastewater!P6+Wastewater!P12)*UFactor -> 0 | Q30: =(Wastewater!Q6+Wastewater!Q12)*UFactor -> 0 | R30: =(Wastewater!R6+Wastewater!R12)*UFactor -> 0 | S30: =(Wastewater!S6+Wastewater!S12)*UFactor -> 0 | T30: =(Wastewater!T6+Wastewater!T12)*UFactor -> 0 | U30: =(Wastewater!U6+Wastewater!U12)*UFactor -> 0 | V30: =(Wastewater!V6+Wastewater!V12)*UFactor -> 0 | W30: =(Wastewater!W6+Wastewater!W12)*UFactor -> 0 | X30: =(Wastewater!X6+Wastewater!X12)*UFactor -> 0 | Y30: =(Wastewater!Y6+Wastewater!Y12)*UFactor -> 0 | Z30: =(Wastewater!Z6+Wastewater!Z12)*UFactor -> 0 | AA30: =(Wastewater!AA6+Wastewater!AA12)*UFactor -> 0 | AB30: =(Wastewater!AB6+Wastewater!AB12)*UFactor -> 0 | AC30: =(Wastewater!AC6+Wastewater!AC12)*UFactor -> 0 | AD30: =(Wastewater!AD6+Wastewater!AD12)*UFactor -> 0 | AE30: =(Wastewater!AE6+Wastewater!AE12)*UFactor -> 0 | AF30: =(Wastewater!AF6+Wastewater!AF12)*UFactor -> 0 | AG30: =(Wastewater!AG6+Wastewater!AG12)*UFactor -> 0 | AH30: =(Wastewater!AH6+Wastewater!AH12)*UFactor -> 0 | AI30: =(Wastewater!AI6+Wastewater!AI12)*UFactor -> 0 | AJ30: =(Wastewater!AJ6+Wastewater!AJ12)*UFactor -> 0 | AK30: =(Wastewater!AK6+Wastewater!AK12)*UFactor -> 0 | AL30: =(Wastewater!AL6+Wastewater!AL12)*UFactor -> 0
B31: Indirect CO2 from Electricity Consumption | C31: =IndirectCO2!C67/1000 -> 0 | D31: =IndirectCO2!D67/1000 -> 0 | E31: =IndirectCO2!E67/1000 -> 0 | F31: =IndirectCO2!F67/1000 -> 0 | G31: =IndirectCO2!G67/1000 -> 0 | H31: =IndirectCO2!H67/1000 -> 0 | I31: =IndirectCO2!I67/1000 -> 0 | J31: =IndirectCO2!J67/1000 -> 0 | K31: =IndirectCO2!K67/1000 -> 0 | L31: =IndirectCO2!L67/1000 -> 0 | M31: =IndirectCO2!M67/1000 -> 0 | N31: =IndirectCO2!N67/1000 -> 0 | O31: =IndirectCO2!O67/1000 -> 0 | P31: =IndirectCO2!P67/1000 -> 0 | Q31: =IndirectCO2!Q67/1000 -> 0 | R31: =IndirectCO2!R67/1000 -> 0 | S31: =IndirectCO2!S67/1000 -> 0 | T31: =IndirectCO2!T67/1000 -> 0 | U31: =IndirectCO2!U67/1000 -> 0 | V31: =IndirectCO2!V67/1000 -> 0 | W31: =IndirectCO2!W67/1000 -> 0 | X31: =IndirectCO2!X67/1000 -> 0 | Y31: =IndirectCO2!Y67/1000 -> 0 | Z31: =IndirectCO2!Z67/1000 -> 0 | AA31: =IndirectCO2!AA67/1000 -> 0 | AB31: =IndirectCO2!AB67/1000 -> 0 | AC31: =IndirectCO2!AC67/1000 -> 0 | AD31: =IndirectCO2!AD67/1000 -> 0 | AE31: =IndirectCO2!AE67/1000 -> 0 | AF31: =IndirectCO2!AF67/1000 -> 0 | AG31: =IndirectCO2!AG67/1000 -> 0 | AH31: =IndirectCO2!AH67/1000 -> 0 | AI31: =IndirectCO2!AI67/1000 -> 0 | AJ31: =IndirectCO2!AJ67/1000 -> 0 | AK31: =IndirectCO2!AK67/1000 -> 0 | AL31: =IndirectCO2!AL67/1000 -> 0
B32: HFC, PFC, SF6 and NF3 Emissions | C32: =C33 -> 0 | D32: =D33 -> 0 | E32: 0 | F32: 0 | G32: 0 | H32: 0 | I32: 0 | J32: 0 | K32: 0 | L32: 0 | M32: =M33 -> 0 | N32: 0 | O32: 0 | P32: 0 | Q32: 0 | R32: 0 | S32: 0 | T32: 0 | U32: 0 | V32: 0 | W32: 0 | X32: 0 | Y32: 0 | Z32: 0 | AA32: 0 | AB32: 0 | AC32: 0 | AD32: 0 | AE32: 0 | AF32: 0 | AG32: 0 | AH32: 0 | AI32: 0 | AJ32: 0 | AK32: 0 | AL32: 0
B33: Industrial Processes | C33: =IP!C18/10^6*UFactor -> 0 | D33: =IP!D18/10^6*UFactor -> 0 | E33: =IP!E18/10^6*UFactor -> 0 | F33: =IP!F18/10^6*UFactor -> 0 | G33: =IP!G18/10^6*UFactor -> 0 | H33: =IP!H18/10^6*UFactor -> 0 | I33: =IP!I18/10^6*UFactor -> 0 | J33: =IP!J18/10^6*UFactor -> 0 | K33: =IP!K18/10^6*UFactor -> 0 | L33: =IP!L18/10^6*UFactor -> 0 | M33: =IP!M18/10^6*UFactor -> 0 | N33: =IP!N18/10^6*UFactor -> 0 | O33: =IP!O18/10^6*UFactor -> 0 | P33: =IP!P18/10^6*UFactor -> 0 | Q33: =IP!Q18/10^6*UFactor -> 0 | R33: =IP!R18/10^6*UFactor -> 0 | S33: =IP!S18/10^6*UFactor -> 0 | T33: =IP!T18/10^6*UFactor -> 0 | U33: =IP!U18/10^6*UFactor -> 0 | V33: =IP!V18/10^6*UFactor -> 0 | W33: =IP!W18/10^6*UFactor -> 0 | X33: =IP!X18/10^6*UFactor -> 0 | Y33: =IP!Y18/10^6*UFactor -> 0 | Z33: =IP!Z18/10^6*UFactor -> 0 | AA33: =IP!AA18/10^6*UFactor -> 0 | AB33: =IP!AB18/10^6*UFactor -> 0 | AC33: =IP!AC18/10^6*UFactor -> 0 | AD33: =IP!AD18/10^6*UFactor -> 0 | AE33: =IP!AE18/10^6*UFactor -> 0 | AF33: =IP!AF18/10^6*UFactor -> 0 | AG33: =IP!AG18/10^6*UFactor -> 0 | AH33: =IP!AH18/10^6*UFactor -> 0 | AI33: =IP!AI18/10^6*UFactor -> 0 | AJ33: =IP!AJ18/10^6*UFactor -> 0 | AK33: =IP!AK18/10^6*UFactor -> 0 | AL33: =IP!AL18/10^6*UFactor -> 0
B34: Indirect CO2 from Electricity Consumptionb | C34: ='Summary by Sector'!C17 -> 0 | D34: ='Summary by Sector'!D17 -> 0 | E34: ='Summary by Sector'!E17 -> 0 | F34: ='Summary by Sector'!F17 -> 0 | G34: ='Summary by Sector'!G17 -> 0 | H34: ='Summary by Sector'!H17 -> 0 | I34: ='Summary by Sector'!I17 -> 0 | J34: ='Summary by Sector'!J17 -> 0 | K34: ='Summary by Sector'!K17 -> 0 | L34: ='Summary by Sector'!L17 -> 0 | M34: ='Summary by Sector'!M17 -> 0 | N34: ='Summary by Sector'!N17 -> 0 | O34: ='Summary by Sector'!O17 -> 0 | P34: ='Summary by Sector'!P17 -> 0 | Q34: ='Summary by Sector'!Q17 -> 0 | R34: ='Summary by Sector'!R17 -> 0 | S34: ='Summary by Sector'!S17 -> 0 | T34: ='Summary by Sector'!T17 -> 0 | U34: ='Summary by Sector'!U17 -> 0 | V34: ='Summary by Sector'!V17 -> 0 | W34: ='Summary by Sector'!W17 -> 0 | X34: ='Summary by Sector'!X17 -> 0 | Y34: ='Summary by Sector'!Y17 -> 0 | Z34: ='Summary by Sector'!Z17 -> 0 | AA34: ='Summary by Sector'!AA17 -> 0 | AB34: ='Summary by Sector'!AB17 -> 0 | AC34: ='Summary by Sector'!AC17 -> 0 | AD34: ='Summary by Sector'!AD17 -> 0 | AE34: ='Summary by Sector'!AE17 -> 0 | AF34: ='Summary by Sector'!AF17 -> 0 | AG34: ='Summary by Sector'!AG17 -> 0 | AH34: ='Summary by Sector'!AH17 -> 0 | AI34: ='Summary by Sector'!AI17 -> 0 | AJ34: ='Summary by Sector'!AJ17 -> 0 | AK34: ='Summary by Sector'!AK17 -> 0 | AL34: ='Summary by Sector'!AL17 -> 0
B35: Gross Emissions | C35: =C5+C13+C23+C32 -> 0 | D35: 0 | E35: 0 | F35: 0 | G35: 0 | H35: 0 | I35: 0 | J35: 0 | K35: 0 | L35: 0 | M35: 0 | N35: 0 | O35: 0 | P35: 0 | Q35: 0 | R35: 0 | S35: 0 | T35: 0 | U35: 0 | V35: 0 | W35: 0 | X35: 0 | Y35: 0 | Z35: 0 | AA35: 0 | AB35: 0 | AC35: 0 | AD35: 0 | AE35: 0 | AF35: 0 | AG35: 0 | AH35: =AH5+AH13+AH23+AH32 -> 0 | AI35: 0 | AJ35: 0 | AK35: 0 | AL35: 0
B36: Sinks | C36: =IF(C11>0,0,C11) -> 0 | D36: 0 | E36: 0 | F36: 0 | G36: 0 | H36: 0 | I36: 0 | J36: 0 | K36: 0 | L36: 0 | M36: 0 | N36: 0 | O36: 0 | P36: 0 | Q36: 0 | R36: 0 | S36: 0 | T36: 0 | U36: 0 | V36: 0 | W36: 0 | X36: 0 | Y36: 0 | Z36: 0 | AA36: 0 | AB36: 0 | AC36: 0 | AD36: 0 | AE36: 0 | AF36: 0 | AG36: 0 | AH36: =IF(AH11>0,0,AH11) -> 0 | AI36: 0 | AJ36: 0 | AK36: 0 | AL36: 0
B37: Net Emissions (Sources and Sinks) | C37: =SUM(C35:C36) -> 0 | D37: =SUM(D35:D36) -> 0 | E37: 0 | F37: 0 | G37: 0 | H37: 0 | I37: 0 | J37: 0 | K37: 0 | L37: 0 | M37: =SUM(M35:M36) -> 0 | N37: 0 | O37: 0 | P37: 0 | Q37: 0 | R37: 0 | S37: =SUM(S35:S36) -> 0 | T37: 0 | U37: 0 | V37: 0 | W37: 0 | X37: 0 | Y37: 0 | Z37: 0 | AA37: 0 | AB37: 0 | AC37: 0 | AD37: 0 | AE37: 0 | AF37: 0 | AG37: 0 | AH37: =SUM(AH35:AH36) -> 0 | AI37: 0 | AJ37: 0 | AK37: 0 | AL37: 0
B38: Note: If the LULUCF sector is responsible for net sequestration, those totals will be registered in "Sinks."
B39: a Includes Additional Emission Sources
C40: 1 | D40: =IF(D4<=$B41,C40+1,0) -> 0 | E40: =IF(E4<=$B41,D40+1,0) -> 0 | F40: 0 | G40: 0 | H40: 0 | I40: 0 | J40: 0 | K40: 0 | L40: 0 | M40: 0 | N40: 0 | O40: 0 | P40: 0 | Q40: 0 | R40: 0 | S40: 0 | T40: 0 | U40: 0 | V40: 0 | W40: 0 | X40: 0 | Y40: 0 | Z40: 0 | AA40: 0 | AB40: 0 | AC40: 0 | AD40: 0 | AE40: 0 | AF40: 0 | AG40: 0 | AH40: 0 | AI40: 0 | AJ40: 0 | AK40: 0 | AL40: 0
B41: =MAX(C41:AL41) -> 1990 | C41: 1990 | D41: =IF(D35=0,0,D4) -> 0 | E41: 0 | F41: 0 | G41: 0 | H41: 0 | I41: 0 | J41: 0 | K41: 0 | L41: 0 | M41: 0 | N41: 0 | O41: 0 | P41: 0 | Q41: 0 | R41: 0 | S41: 0 | T41: 0 | U41: 0 | V41: 0 | W41: 0 | X41: 0 | Y41: 0 | Z41: 0 | AA41: 0 | AB41: 0 | AC41: 0 | AD41: 0 | AE41: 0 | AF41: 0 | AG41: 0 | AH41: 0 | AI41: 0 | AJ41: 0 | AK41: 0 | AL41: 0
B42: b Emissions from Electricity Consumption are not included in totals in order to avoid double counting with Fossil Fuel Combustion estimates.
I43: Press the up and down arrows below to change the year of the pie chart.
I45: Emissions Year: | K45: 2022
S66: ="GHG Emissions by Gas, 1990-"&B41 -> GHG Emissions by Gas, 1990-1990
S67: ="Carbon Dioxide Emissions by Source, 1990-"&B41 -> Carbon Dioxide Emissions by Source, 1990-1990
S68: ="Methane Emissions by Source, 1990-"&B41 -> Methane Emissions by Source, 1990-1990
S69: ="Nitrous Oxide Emissions by Source, 1990-"&B41 -> Nitrous Oxide Emissions by Source, 1990-1990
B154: For CO2 Emissions by source graph
B156: =B7 -> CO2 from Fossil Fuel Combustion | C156: =C4 -> 1990 | D156: 1991 | E156: 1992 | F156: 1993 | G156: 1994 | H156: 1995 | I156: 1996 | J156: 1997 | K156: 1998 | L156: 1999 | M156: 2000 | N156: 2001 | O156: 2002 | P156: 2003 | Q156: 2004 | R156: 2005
B157: =B8 -> Industrial Processes | C157: =C7 -> 0 | D157: 0 | E157: 0 | F157: 0 | G157: 0 | H157: 0 | I157: 0 | J157: 0 | K157: 0 | L157: 0 | M157: 0 | N157: 0 | O157: 0 | P157: 0 | Q157: 0 | R157: 0
B158: =B9 -> Waste | C158: =C8 -> 0 | D158: 0 | E158: 0 | F158: 0 | G158: 0 | H158: 0 | I158: 0 | J158: 0 | K158: 0 | L158: 0 | M158: 0 | N158: 0 | O158: 0 | P158: 0 | Q158: 0 | R158: 0
B159: =B11 -> LULUCF | C159: =C9 -> 0 | D159: 0 | E159: 0 | F159: 0 | G159: 0 | H159: 0 | I159: 0 | J159: 0 | K159: 0 | L159: 0 | M159: 0 | N159: 0 | O159: 0 | P159: 0 | Q159: 0 | R159: 0
C160: =IF(C11<0,0,C11) -> 0 | D160: 0 | E160: 0 | F160: 0 | G160: 0 | H160: 0 | I160: 0 | J160: 0 | K160: 0 | L160: 0 | M160: 0 | N160: 0 | O160: 0 | P160: 0 | Q160: 0 | R160: 0
A162: For Pie Chart | B162: =B5 -> Gross CO2 | C162: 1990 | D162: 1991 | E162: 1992 | F162: 1993 | G162: 1994 | H162: 1995 | I162: 1996 | J162: 1997 | K162: 1998 | L162: 1999 | M162: 2000 | N162: 2001 | O162: 2002 | P162: 2003 | Q162: 2004 | R162: 2005 | S162: 2006 | T162: 2007 | U162: 2008 | V162: 2009 | W162: 2010 | X162: 2011 | Y162: 2012 | Z162: 2013 | AA162: 2014 | AB162: 2015 | AC162: 2016 | AD162: 2017 | AE162: 2018 | AF162: 2019 | AG162: 2020 | AH162: 2021 | AI162: 2022 | AJ162: 2023 | AK162: 2024 | AL162: 2025
B163: =B13 -> CH4 | C163: =C5 -> 0 | D163: 0 | E163: 0 | F163: 0 | G163: 0 | H163: 0 | I163: 0 | J163: 0 | K163: 0 | L163: 0 | M163: 0 | N163: 0 | O163: 0 | P163: 0 | Q163: 0 | R163: 0 | S163: 0 | T163: 0 | U163: 0 | V163: 0 | W163: 0 | X163: 0 | Y163: 0 | Z163: 0 | AA163: 0 | AB163: 0 | AC163: 0 | AD163: 0 | AE163: 0 | AF163: 0 | AG163: 0 | AH163: =AH5 -> 0 | AI163: 0 | AJ163: 0 | AK163: 0 | AL163: 0
B164: =B23 -> N2O | C164: =C13 -> 0 | D164: 0 | E164: 0 | F164: 0 | G164: 0 | H164: 0 | I164: 0 | J164: 0 | K164: 0 | L164: 0 | M164: 0 | N164: 0 | O164: 0 | P164: 0 | Q164: 0 | R164: 0 | S164: 0 | T164: 0 | U164: 0 | V164: 0 | W164: 0 | X164: 0 | Y164: 0 | Z164: 0 | AA164: 0 | AB164: 0 | AC164: 0 | AD164: 0 | AE164: 0 | AF164: 0 | AG164: 0 | AH164: =AH13 -> 0 | AI164: 0 | AJ164: 0 | AK164: 0 | AL164: 0
B165: =B32 -> HFC, PFC, SF6 and NF3 Emissions | C165: =C23 -> 0 | D165: 0 | E165: 0 | F165: 0 | G165: 0 | H165: 0 | I165: 0 | J165: 0 | K165: 0 | L165: 0 | M165: 0 | N165: 0 | O165: 0 | P165: 0 | Q165: 0 | R165: 0 | S165: 0 | T165: 0 | U165: 0 | V165: 0 | W165: 0 | X165: 0 | Y165: 0 | Z165: 0 | AA165: 0 | AB165: 0 | AC165: 0 | AD165: 0 | AE165: 0 | AF165: 0 | AG165: 0 | AH165: =AH23 -> 0 | AI165: 0 | AJ165: 0 | AK165: 0 | AL165: 0
C166: =C32 -> 0 | D166: 0 | E166: 0 | F166: 0 | G166: 0 | H166: 0 | I166: 0 | J166: 0 | K166: 0 | L166: 0 | M166: 0 | N166: 0 | O166: 0 | P166: 0 | Q166: 0 | R166: 0 | S166: =S32 -> 0 | T166: 0 | U166: 0 | V166: 0 | W166: 0 | X166: 0 | Y166: 0 | Z166: 0 | AA166: 0 | AB166: 0 | AC166: 0 | AD166: 0 | AE166: 0 | AF166: 0 | AG166: 0 | AH166: =AH32 -> 0 | AI166: 0 | AJ166: 0 | AK166: 0 | AL166: 0
B169: ="GHG Emissions by Gas "&GasPieYear -> GHG Emissions by Gas 2022
B170: Gross CO2 | C170: =GasPieYear -> 2022
B171: CH4 | C171: =HLOOKUP($C$170,$C$162:$AL$166,2,FALSE) -> 0
B172: N2O | C172: =HLOOKUP($C$170,$C$162:$AL$166,3,FALSE) -> 0
B173: HFC, PFC, and SF6 | C173: =HLOOKUP($C$170,$C$162:$AL$166,4,FALSE) -> 0
C174: =HLOOKUP($C$170,$C$162:$AL$166,5,FALSE) -> 0

Sheet Summary by Sector
A1: ="Summary of GHG Emissions by Sector in "&StateName&" ("&Units&")" -> Summary of GHG Emissions by Sector in Select a State . . . (MMTCO2E)
B4: Emissions (MMTCO2E) | C4: 1990 | D4: 1991 | E4: 1992 | F4: 1993 | G4: 1994 | H4: 1995 | I4: 1996 | J4: 1997 | K4: 1998 | L4: 1999 | M4: 2000 | N4: 2001 | O4: 2002 | P4: 2003 | Q4: 2004 | R4: 2005 | S4: 2006 | T4: 2007 | U4: 2008 | V4: 2009 | W4: 2010 | X4: 2011 | Y4: 2012 | Z4: 2013 | AA4: 2014 | AB4: 2015 | AC4: 2016 | AD4: 2017 | AE4: 2018 | AF4: 2019 | AG4: 2020 | AH4: 2021 | AI4: 2022 | AJ4: 2023 | AK4: 2024 | AL4: 2025
B5: Energy | C5: =SUM(C6:C10) -> 0 | D5: 0 | E5: 0 | F5: 0 | G5: =SUM(G6:G10) -> 0 | H5: 0 | I5: 0 | J5: 0 | K5: 0 | L5: 0 | M5: =SUM(M6:M10) -> 0 | N5: 0 | O5: 0 | P5: 0 | Q5: 0 | R5: 0 | S5: =SUM(S6:S10) -> 0 | T5: 0 | U5: 0 | V5: 0 | W5: 0 | X5: 0 | Y5: 0 | Z5: 0 | AA5: 0 | AB5: 0 | AC5: 0 | AD5: 0 | AE5: 0 | AF5: 0 | AG5: =SUM(AG6:AG10) -> 0 | AH5: =SUM(AH6:AH10) -> 0 | AI5: 0 | AJ5: 0 | AK5: 0 | AL5: 0
B6: CO2 from Fossil Fuel Combustion | C6: =CO2FFC!C31*UFactor -> 0 | D6: =CO2FFC!D31*UFactor -> 0 | E6: =CO2FFC!E31*UFactor -> 0 | F6: =CO2FFC!F31*UFactor -> 0 | G6: =CO2FFC!G31*UFactor -> 0 | H6: =CO2FFC!H31*UFactor -> 0 | I6: =CO2FFC!I31*UFactor -> 0 | J6: =CO2FFC!J31*UFactor -> 0 | K6: =CO2FFC!K31*UFactor -> 0 | L6: =CO2FFC!L31*UFactor -> 0 | M6: =CO2FFC!M31*UFactor -> 0 | N6: =CO2FFC!N31*UFactor -> 0 | O6: =CO2FFC!O31*UFactor -> 0 | P6: =CO2FFC!P31*UFactor -> 0 | Q6: =CO2FFC!Q31*UFactor -> 0 | R6: =CO2FFC!R31*UFactor -> 0 | S6: =CO2FFC!S31*UFactor -> 0 | T6: =CO2FFC!T31*UFactor -> 0 | U6: =CO2FFC!U31*UFactor -> 0 | V6: =CO2FFC!V31*UFactor -> 0 | W6: =CO2FFC!W31*UFactor -> 0 | X6: =CO2FFC!X31*UFactor -> 0 | Y6: =CO2FFC!Y31*UFactor -> 0 | Z6: =CO2FFC!Z31*UFactor -> 0 | AA6: =CO2FFC!AA31*UFactor -> 0 | AB6: =CO2FFC!AB31*UFactor -> 0 | AC6: =CO2FFC!AC31*UFactor -> 0 | AD6: =CO2FFC!AD31*UFactor -> 0 | AE6: =CO2FFC!AE31*UFactor -> 0 | AF6: =CO2FFC!AF31*UFactor -> 0 | AG6: =CO2FFC!AG31*UFactor -> 0 | AH6: =CO2FFC!AH31*UFactor -> 0 | AI6: =CO2FFC!AI31*UFactor -> 0 | AJ6: =CO2FFC!AJ31*UFactor -> 0 | AK6: =CO2FFC!AK31*UFactor -> 0 | AL6: =CO2FFC!AL31*UFactor -> 0
B7: Stationary Combustion | C7: =Stationary!C20*UFactor -> 0 | D7: =Stationary!D20*UFactor -> 0 | E7: =Stationary!E20*UFactor -> 0 | F7: =Stationary!F20*UFactor -> 0 | G7: =Stationary!G20*UFactor -> 0 | H7: =Stationary!H20*UFactor -> 0 | I7: =Stationary!I20*UFactor -> 0 | J7: =Stationary!J20*UFactor -> 0 | K7: =Stationary!K20*UFactor -> 0 | L7: =Stationary!L20*UFactor -> 0 | M7: =Stationary!M20*UFactor -> 0 | N7: =Stationary!N20*UFactor -> 0 | O7: =Stationary!O20*UFactor -> 0 | P7: =Stationary!P20*UFactor -> 0 | Q7: =Stationary!Q20*UFactor -> 0 | R7: =Stationary!R20*UFactor -> 0 | S7: =Stationary!S20*UFactor -> 0 | T7: =Stationary!T20*UFactor -> 0 | U7: =Stationary!U20*UFactor -> 0 | V7: =Stationary!V20*UFactor -> 0 | W7: =Stationary!W20*UFactor -> 0 | X7: =Stationary!X20*UFactor -> 0 | Y7: =Stationary!Y20*UFactor -> 0 | Z7: =Stationary!Z20*UFactor -> 0 | AA7: =Stationary!AA20*UFactor -> 0 | AB7: =Stationary!AB20*UFactor -> 0 | AC7: =Stationary!AC20*UFactor -> 0 | AD7: =Stationary!AD20*UFactor -> 0 | AE7: =Stationary!AE20*UFactor -> 0 | AF7: =Stationary!AF20*UFactor -> 0 | AG7: =Stationary!AG20*UFactor -> 0 | AH7: =Stationary!AH20*UFactor -> 0 | AI7: =Stationary!AI20*UFactor -> 0 | AJ7: =Stationary!AJ20*UFactor -> 0 | AK7: =Stationary!AK20*UFactor -> 0 | AL7: =Stationary!AL20*UFactor -> 0
B8: Mobile Combustion | C8: =('Mobile Combustion'!C27/10^6)*UFactor -> 0 | D8: =('Mobile Combustion'!D27/10^6)*UFactor -> 0 | E8: =('Mobile Combustion'!E27/10^6)*UFactor -> 0 | F8: =('Mobile Combustion'!F27/10^6)*UFactor -> 0 | G8: =('Mobile Combustion'!G27/10^6)*UFactor -> 0 | H8: =('Mobile Combustion'!H27/10^6)*UFactor -> 0 | I8: =('Mobile Combustion'!I27/10^6)*UFactor -> 0 | J8: =('Mobile Combustion'!J27/10^6)*UFactor -> 0 | K8: =('Mobile Combustion'!K27/10^6)*UFactor -> 0 | L8: =('Mobile Combustion'!L27/10^6)*UFactor -> 0 | M8: =('Mobile Combustion'!M27/10^6)*UFactor -> 0 | N8: =('Mobile Combustion'!N27/10^6)*UFactor -> 0 | O8: =('Mobile Combustion'!O27/10^6)*UFactor -> 0 | P8: =('Mobile Combustion'!P27/10^6)*UFactor -> 0 | Q8: =('Mobile Combustion'!Q27/10^6)*UFactor -> 0 | R8: =('Mobile Combustion'!R27/10^6)*UFactor -> 0 | S8: =('Mobile Combustion'!S27/10^6)*UFactor -> 0 | T8: =('Mobile Combustion'!T27/10^6)*UFactor -> 0 | U8: =('Mobile Combustion'!U27/10^6)*UFactor -> 0 | V8: =('Mobile Combustion'!V27/10^6)*UFactor -> 0 | W8: =('Mobile Combustion'!W27/10^6)*UFactor -> 0 | X8: =('Mobile Combustion'!X27/10^6)*UFactor -> 0 | Y8: =('Mobile Combustion'!Y27/10^6)*UFactor -> 0 | Z8: =('Mobile Combustion'!Z27/10^6)*UFactor -> 0 | AA8: =('Mobile Combustion'!AA27/10^6)*UFactor -> 0 | AB8: =('Mobile Combustion'!AB27/10^6)*UFactor -> 0 | AC8: =('Mobile Combustion'!AC27/10^6)*UFactor -> 0 | AD8: =('Mobile Combustion'!AD27/10^6)*UFactor -> 0 | AE8: =('Mobile Combustion'!AE27/10^6)*UFactor -> 0 | AF8: =('Mobile Combustion'!AF27/10^6)*UFactor -> 0 | AG8: =('Mobile Combustion'!AG27/10^6)*UFactor -> 0 | AH8: =('Mobile Combustion'!AH27/10^6)*UFactor -> 0 | AI8: =('Mobile Combustion'!AI27/10^6)*UFactor -> 0 | AJ8: =('Mobile Combustion'!AJ27/10^6)*UFactor -> 0 | AK8: =('Mobile Combustion'!AK27/10^6)*UFactor -> 0 | AL8: =('Mobile Combustion'!AL27/10^6)*UFactor -> 0
B9: Coal Mining | C9: =((Coal!C5+Coal!C6+Coal!C10)/10^6)*UFactor -> 0 | D9: =((Coal!D5+Coal!D6+Coal!D10)/10^6)*UFactor -> 0 | E9: =((Coal!E5+Coal!E6+Coal!E10)/10^6)*UFactor -> 0 | F9: =((Coal!F5+Coal!F6+Coal!F10)/10^6)*UFactor -> 0 | G9: =((Coal!G5+Coal!G6+Coal!G10)/10^6)*UFactor -> 0 | H9: =((Coal!H5+Coal!H6+Coal!H10)/10^6)*UFactor -> 0 | I9: =((Coal!I5+Coal!I6+Coal!I10)/10^6)*UFactor -> 0 | J9: =((Coal!J5+Coal!J6+Coal!J10)/10^6)*UFactor -> 0 | K9: =((Coal!K5+Coal!K6+Coal!K10)/10^6)*UFactor -> 0 | L9: =((Coal!L5+Coal!L6+Coal!L10)/10^6)*UFactor -> 0 | M9: =((Coal!M5+Coal!M6+Coal!M10)/10^6)*UFactor -> 0 | N9: =((Coal!N5+Coal!N6+Coal!N10)/10^6)*UFactor -> 0 | O9: =((Coal!O5+Coal!O6+Coal!O10)/10^6)*UFactor -> 0 | P9: =((Coal!P5+Coal!P6+Coal!P10)/10^6)*UFactor -> 0 | Q9: =((Coal!Q5+Coal!Q6+Coal!Q10)/10^6)*UFactor -> 0 | R9: =((Coal!R5+Coal!R6+Coal!R10)/10^6)*UFactor -> 0 | S9: =((Coal!S5+Coal!S6+Coal!S10)/10^6)*UFactor -> 0 | T9: =((Coal!T5+Coal!T6+Coal!T10)/10^6)*UFactor -> 0 | U9: =((Coal!U5+Coal!U6+Coal!U10)/10^6)*UFactor -> 0 | V9: =((Coal!V5+Coal!V6+Coal!V10)/10^6)*UFactor -> 0 | W9: =((Coal!W5+Coal!W6+Coal!W10)/10^6)*UFactor -> 0 | X9: =((Coal!X5+Coal!X6+Coal!X10)/10^6)*UFactor -> 0 | Y9: =((Coal!Y5+Coal!Y6+Coal!Y10)/10^6)*UFactor -> 0 | Z9: =((Coal!Z5+Coal!Z6+Coal!Z10)/10^6)*UFactor -> 0 | AA9: =((Coal!AA5+Coal!AA6+Coal!AA10)/10^6)*UFactor -> 0 | AB9: =((Coal!AB5+Coal!AB6+Coal!AB10)/10^6)*UFactor -> 0 | AC9: =((Coal!AC5+Coal!AC6+Coal!AC10)/10^6)*UFactor -> 0 | AD9: =((Coal!AD5+Coal!AD6+Coal!AD10)/10^6)*UFactor -> 0 | AE9: =((Coal!AE5+Coal!AE6+Coal!AE10)/10^6)*UFactor -> 0 | AF9: =((Coal!AF5+Coal!AF6+Coal!AF10)/10^6)*UFactor -> 0 | AG9: =((Coal!AG5+Coal!AG6+Coal!AG10)/10^6)*UFactor -> 0 | AH9: =((Coal!AH5+Coal!AH6+Coal!AH10)/10^6)*UFactor -> 0 | AI9: =((Coal!AI5+Coal!AI6+Coal!AI10)/10^6)*UFactor -> 0 | AJ9: =((Coal!AJ5+Coal!AJ6+Coal!AJ10)/10^6)*UFactor -> 0 | AK9: =((Coal!AK5+Coal!AK6+Coal!AK10)/10^6)*UFactor -> 0 | AL9: =((Coal!AL5+Coal!AL6+Coal!AL10)/10^6)*UFactor -> 0
B10: Natural Gas and Oil Systems | C10: =('Gas and Oil'!C8)*UFactor -> 0 | D10: =('Gas and Oil'!D8)*UFactor -> 0 | E10: =('Gas and Oil'!E8)*UFactor -> 0 | F10: =('Gas and Oil'!F8)*UFactor -> 0 | G10: =('Gas and Oil'!G8)*UFactor -> 0 | H10: =('Gas and Oil'!H8)*UFactor -> 0 | I10: =('Gas and Oil'!I8)*UFactor -> 0 | J10: =('Gas and Oil'!J8)*UFactor -> 0 | K10: =('Gas and Oil'!K8)*UFactor -> 0 | L10: =('Gas and Oil'!L8)*UFactor -> 0 | M10: =('Gas and Oil'!M8)*UFactor -> 0 | N10: =('Gas and Oil'!N8)*UFactor -> 0 | O10: =('Gas and Oil'!O8)*UFactor -> 0 | P10: =('Gas and Oil'!P8)*UFactor -> 0 | Q10: =('Gas and Oil'!Q8)*UFactor -> 0 | R10: =('Gas and Oil'!R8)*UFactor -> 0 | S10: =('Gas and Oil'!S8)*UFactor -> 0 | T10: =('Gas and Oil'!T8)*UFactor -> 0 | U10: =('Gas and Oil'!U8)*UFactor -> 0 | V10: =('Gas and Oil'!V8)*UFactor -> 0 | W10: =('Gas and Oil'!W8)*UFactor -> 0 | X10: =('Gas and Oil'!X8)*UFactor -> 0 | Y10: =('Gas and Oil'!Y8)*UFactor -> 0 | Z10: =('Gas and Oil'!Z8)*UFactor -> 0 | AA10: =('Gas and Oil'!AA8)*UFactor -> 0 | AB10: =('Gas and Oil'!AB8)*UFactor -> 0 | AC10: =('Gas and Oil'!AC8)*UFactor -> 0 | AD10: =('Gas and Oil'!AD8)*UFactor -> 0 | AE10: =('Gas and Oil'!AE8)*UFactor -> 0 | AF10: =('Gas and Oil'!AF8)*UFactor -> 0 | AG10: =('Gas and Oil'!AG8)*UFactor -> 0 | AH10: =('Gas and Oil'!AH8)*UFactor -> 0 | AI10: =('Gas and Oil'!AI8)*UFactor -> 0 | AJ10: =('Gas and Oil'!AJ8)*UFactor -> 0 | AK10: =('Gas and Oil'!AK8)*UFactor -> 0 | AL10: =('Gas and Oil'!AL8)*UFactor -> 0
B11: Industrial Processes | C11: =(IP!C26/10^6)*UFactor -> 0 | D11: =(IP!D26/10^6)*UFactor -> 0 | E11: =(IP!E26/10^6)*UFactor -> 0 | F11: =(IP!F26/10^6)*UFactor -> 0 | G11: =(IP!G26/10^6)*UFactor -> 0 | H11: =(IP!H26/10^6)*UFactor -> 0 | I11: =(IP!I26/10^6)*UFactor -> 0 | J11: =(IP!J26/10^6)*UFactor -> 0 | K11: =(IP!K26/10^6)*UFactor -> 0 | L11: =(IP!L26/10^6)*UFactor -> 0 | M11: =(IP!M26/10^6)*UFactor -> 0 | N11: =(IP!N26/10^6)*UFactor -> 0 | O11: =(IP!O26/10^6)*UFactor -> 0 | P11: =(IP!P26/10^6)*UFactor -> 0 | Q11: =(IP!Q26/10^6)*UFactor -> 0 | R11: =(IP!R26/10^6)*UFactor -> 0 | S11: =(IP!S26/10^6)*UFactor -> 0 | T11: =(IP!T26/10^6)*UFactor -> 0 | U11: =(IP!U26/10^6)*UFactor -> 0 | V11: =(IP!V26/10^6)*UFactor -> 0 | W11: =(IP!W26/10^6)*UFactor -> 0 | X11: =(IP!X26/10^6)*UFactor -> 0 | Y11: =(IP!Y26/10^6)*UFactor -> 0 | Z11: =(IP!Z26/10^6)*UFactor -> 0 | AA11: =(IP!AA26/10^6)*UFactor -> 0 | AB11: =(IP!AB26/10^6)*UFactor -> 0 | AC11: =(IP!AC26/10^6)*UFactor -> 0 | AD11: =(IP!AD26/10^6)*UFactor -> 0 | AE11: =(IP!AE26/10^6)*UFactor -> 0 | AF11: =(IP!AF26/10^6)*UFactor -> 0 | AG11: =(IP!AG26/10^6)*UFactor -> 0 | AH11: =(IP!AH26/10^6)*UFactor -> 0 | AI11: =(IP!AI26/10^6)*UFactor -> 0 | AJ11: =(IP!AJ26/10^6)*UFactor -> 0 | AK11: =(IP!AK26/10^6)*UFactor -> 0 | AL11: =(IP!AL26/10^6)*UFactor -> 0
B12: Agriculture | C12: =Agriculture!C16*UFactor -> 0 | D12: =Agriculture!D16*UFactor -> 0 | E12: =Agriculture!E16*UFactor -> 0 | F12: =Agriculture!F16*UFactor -> 0 | G12: =Agriculture!G16*UFactor -> 0 | H12: =Agriculture!H16*UFactor -> 0 | I12: =Agriculture!I16*UFactor -> 0 | J12: =Agriculture!J16*UFactor -> 0 | K12: =Agriculture!K16*UFactor -> 0 | L12: =Agriculture!L16*UFactor -> 0 | M12: =Agriculture!M16*UFactor -> 0 | N12: =Agriculture!N16*UFactor -> 0 | O12: =Agriculture!O16*UFactor -> 0 | P12: =Agriculture!P16*UFactor -> 0 | Q12: =Agriculture!Q16*UFactor -> 0 | R12: =Agriculture!R16*UFactor -> 0 | S12: =Agriculture!S16*UFactor -> 0 | T12: =Agriculture!T16*UFactor -> 0 | U12: =Agriculture!U16*UFactor -> 0 | V12: =Agriculture!V16*UFactor -> 0 | W12: =Agriculture!W16*UFactor -> 0 | X12: =Agriculture!X16*UFactor -> 0 | Y12: =Agriculture!Y16*UFactor -> 0 | Z12: =Agriculture!Z16*UFactor -> 0 | AA12: =Agriculture!AA16*UFactor -> 0 | AB12: =Agriculture!AB16*UFactor -> 0 | AC12: =Agriculture!AC16*UFactor -> 0 | AD12: =Agriculture!AD16*UFactor -> 0 | AE12: =Agriculture!AE16*UFactor -> 0 | AF12: =Agriculture!AF16*UFactor -> 0 | AG12: =Agriculture!AG16*UFactor -> 0 | AH12: =Agriculture!AH16*UFactor -> 0 | AI12: =Agriculture!AI16*UFactor -> 0 | AJ12: =Agriculture!AJ16*UFactor -> 0 | AK12: =Agriculture!AK16*UFactor -> 0 | AL12: =Agriculture!AL16*UFactor -> 0
B13: LULUCF | C13: ='Forest Management'!C55*UFactor -> 0 | D13: ='Forest Management'!D55*UFactor -> 0 | E13: ='Forest Management'!E55*UFactor -> 0 | F13: ='Forest Management'!F55*UFactor -> 0 | G13: ='Forest Management'!G55*UFactor -> 0 | H13: ='Forest Management'!H55*UFactor -> 0 | I13: ='Forest Management'!I55*UFactor -> 0 | J13: ='Forest Management'!J55*UFactor -> 0 | K13: ='Forest Management'!K55*UFactor -> 0 | L13: ='Forest Management'!L55*UFactor -> 0 | M13: ='Forest Management'!M55*UFactor -> 0 | N13: ='Forest Management'!N55*UFactor -> 0 | O13: ='Forest Management'!O55*UFactor -> 0 | P13: ='Forest Management'!P55*UFactor -> 0 | Q13: ='Forest Management'!Q55*UFactor -> 0 | R13: ='Forest Management'!R55*UFactor -> 0 | S13: ='Forest Management'!S55*UFactor -> 0 | T13: ='Forest Management'!T55*UFactor -> 0 | U13: ='Forest Management'!U55*UFactor -> 0 | V13: ='Forest Management'!V55*UFactor -> 0 | W13: ='Forest Management'!W55*UFactor -> 0 | X13: ='Forest Management'!X55*UFactor -> 0 | Y13: ='Forest Management'!Y55*UFactor -> 0 | Z13: ='Forest Management'!Z55*UFactor -> 0 | AA13: ='Forest Management'!AA55*UFactor -> 0 | AB13: ='Forest Management'!AB55*UFactor -> 0 | AC13: ='Forest Management'!AC55*UFactor -> 0 | AD13: ='Forest Management'!AD55*UFactor -> 0 | AE13: ='Forest Management'!AE55*UFactor -> 0 | AF13: ='Forest Management'!AF55*UFactor -> 0 | AG13: ='Forest Management'!AG55*UFactor -> 0 | AH13: ='Forest Management'!AH55*UFactor -> 0 | AI13: ='Forest Management'!AI55*UFactor -> 0 | AJ13: ='Forest Management'!AJ55*UFactor -> 0 | AK13: ='Forest Management'!AK55*UFactor -> 0 | AL13: ='Forest Management'!AL55*UFactor -> 0
B14: Waste | C14: =SUM(C15:C16) -> 0 | D14: =SUM(D15:D16) -> 0 | E14: 0 | F14: 0 | G14: =SUM(G15:G16) -> 0 | H14: 0 | I14: 0 | J14: 0 | K14: 0 | L14: 0 | M14: =SUM(M15:M16) -> 0 | N14: 0 | O14: 0 | P14: 0 | Q14: 0 | R14: 0 | S14: =SUM(S15:S16) -> 0 | T14: 0 | U14: 0 | V14: 0 | W14: 0 | X14: 0 | Y14: 0 | Z14: 0 | AA14: 0 | AB14: 0 | AC14: 0 | AD14: 0 | AE14: 0 | AF14: 0 | AG14: =SUM(AG15:AG16) -> 0 | AH14: =SUM(AH15:AH16) -> 0 | AI14: 0 | AJ14: 0 | AK14: 0 | AL14: 0
B15: Municipal Solid Waste | C15: =Waste!C11*UFactor -> 0 | D15: =Waste!D11*UFactor -> 0 | E15: =Waste!E11*UFactor -> 0 | F15: =Waste!F11*UFactor -> 0 | G15: =Waste!G11*UFactor -> 0 | H15: =Waste!H11*UFactor -> 0 | I15: =Waste!I11*UFactor -> 0 | J15: =Waste!J11*UFactor -> 0 | K15: =Waste!K11*UFactor -> 0 | L15: =Waste!L11*UFactor -> 0 | M15: =Waste!M11*UFactor -> 0 | N15: =Waste!N11*UFactor -> 0 | O15: =Waste!O11*UFactor -> 0 | P15: =Waste!P11*UFactor -> 0 | Q15: =Waste!Q11*UFactor -> 0 | R15: =Waste!R11*UFactor -> 0 | S15: =Waste!S11*UFactor -> 0 | T15: =Waste!T11*UFactor -> 0 | U15: =Waste!U11*UFactor -> 0 | V15: =Waste!V11*UFactor -> 0 | W15: =Waste!W11*UFactor -> 0 | X15: =Waste!X11*UFactor -> 0 | Y15: =Waste!Y11*UFactor -> 0 | Z15: =Waste!Z11*UFactor -> 0 | AA15: =Waste!AA11*UFactor -> 0 | AB15: =Waste!AB11*UFactor -> 0 | AC15: =Waste!AC11*UFactor -> 0 | AD15: =Waste!AD11*UFactor -> 0 | AE15: =Waste!AE11*UFactor -> 0 | AF15: =Waste!AF11*UFactor -> 0 | AG15: =Waste!AG11*UFactor -> 0 | AH15: =Waste!AH11*UFactor -> 0 | AI15: =Waste!AI11*UFactor -> 0 | AJ15: =Waste!AJ11*UFactor -> 0 | AK15: =Waste!AK11*UFactor -> 0 | AL15: =Waste!AL11*UFactor -> 0
B16: Wastewater | C16: =Wastewater!C14*UFactor -> 0 | D16: =Wastewater!D14*UFactor -> 0 | E16: =Wastewater!E14*UFactor -> 0 | F16: =Wastewater!F14*UFactor -> 0 | G16: =Wastewater!G14*UFactor -> 0 | H16: =Wastewater!H14*UFactor -> 0 | I16: =Wastewater!I14*UFactor -> 0 | J16: =Wastewater!J14*UFactor -> 0 | K16: =Wastewater!K14*UFactor -> 0 | L16: =Wastewater!L14*UFactor -> 0 | M16: =Wastewater!M14*UFactor -> 0 | N16: =Wastewater!N14*UFactor -> 0 | O16: =Wastewater!O14*UFactor -> 0 | P16: =Wastewater!P14*UFactor -> 0 | Q16: =Wastewater!Q14*UFactor -> 0 | R16: =Wastewater!R14*UFactor -> 0 | S16: =Wastewater!S14*UFactor -> 0 | T16: =Wastewater!T14*UFactor -> 0 | U16: =Wastewater!U14*UFactor -> 0 | V16: =Wastewater!V14*UFactor -> 0 | W16: =Wastewater!W14*UFactor -> 0 | X16: =Wastewater!X14*UFactor -> 0 | Y16: =Wastewater!Y14*UFactor -> 0 | Z16: =Wastewater!Z14*UFactor -> 0 | AA16: =Wastewater!AA14*UFactor -> 0 | AB16: =Wastewater!AB14*UFactor -> 0 | AC16: =Wastewater!AC14*UFactor -> 0 | AD16: =Wastewater!AD14*UFactor -> 0 | AE16: =Wastewater!AE14*UFactor -> 0 | AF16: =Wastewater!AF14*UFactor -> 0 | AG16: =Wastewater!AG14*UFactor -> 0 | AH16: =Wastewater!AH14*UFactor -> 0 | AI16: =Wastewater!AI14*UFactor -> 0 | AJ16: =Wastewater!AJ14*UFactor -> 0 | AK16: =Wastewater!AK14*UFactor -> 0 | AL16: =Wastewater!AL14*UFactor -> 0
B17: Indirect CO2 from Electricity Consumption* | C17: =IndirectCO2!C48 -> 0 | D17: =IndirectCO2!D48 -> 0 | E17: =IndirectCO2!E48 -> 0 | F17: =IndirectCO2!F48 -> 0 | G17: =IndirectCO2!G48 -> 0 | H17: =IndirectCO2!H48 -> 0 | I17: =IndirectCO2!I48 -> 0 | J17: =IndirectCO2!J48 -> 0 | K17: =IndirectCO2!K48 -> 0 | L17: =IndirectCO2!L48 -> 0 | M17: =IndirectCO2!M48 -> 0 | N17: =IndirectCO2!N48 -> 0 | O17: =IndirectCO2!O48 -> 0 | P17: =IndirectCO2!P48 -> 0 | Q17: =IndirectCO2!Q48 -> 0 | R17: =IndirectCO2!R48 -> 0 | S17: =IndirectCO2!S48 -> 0 | T17: =IndirectCO2!T48 -> 0 | U17: =IndirectCO2!U48 -> 0 | V17: =IndirectCO2!V48 -> 0 | W17: =IndirectCO2!W48 -> 0 | X17: =IndirectCO2!X48 -> 0 | Y17: =IndirectCO2!Y48 -> 0 | Z17: =IndirectCO2!Z48 -> 0 | AA17: =IndirectCO2!AA48 -> 0 | AB17: =IndirectCO2!AB48 -> 0 | AC17: =IndirectCO2!AC48 -> 0 | AD17: =IndirectCO2!AD48 -> 0 | AE17: =IndirectCO2!AE48 -> 0 | AF17: =IndirectCO2!AF48 -> 0 | AG17: =IndirectCO2!AG48 -> 0 | AH17: =IndirectCO2!AH48 -> 0 | AI17: =IndirectCO2!AI48 -> 0 | AJ17: =IndirectCO2!AJ48 -> 0 | AK17: =IndirectCO2!AK48 -> 0 | AL17: =IndirectCO2!AL48 -> 0
B18: Gross Emissions | C18: =IF(C13>0,C5+C11+C12+C13+C14,C5+C11+C12+C14) -> 0 | D18: 0 | E18: 0 | F18: 0 | G18: 0 | H18: 0 | I18: 0 | J18: 0 | K18: 0 | L18: 0 | M18: 0 | N18: 0 | O18: 0 | P18: 0 | Q18: 0 | R18: 0 | S18: 0 | T18: 0 | U18: 0 | V18: 0 | W18: 0 | X18: 0 | Y18: 0 | Z18: 0 | AA18: 0 | AB18: 0 | AC18: 0 | AD18: 0 | AE18: 0 | AF18: 0 | AG18: =IF(AG13>0,AG5+AG11+AG12+AG13+AG14,AG5+AG11+AG12+AG14) -> 0 | AH18: =IF(AH13>0,AH5+AH11+AH12+AH13+AH14,AH5+AH11+AH12+AH14) -> 0 | AI18: 0 | AJ18: 0 | AK18: 0 | AL18: 0
B19: Sinks | C19: =IF(C13<0,C13,0) -> 0 | D19: =IF(D13<0,D13,0) -> 0 | E19: =IF(E13<0,E13,0) -> 0 | F19: 0 | G19: 0 | H19: 0 | I19: 0 | J19: 0 | K19: 0 | L19: 0 | M19: =IF(M13<0,M13,0) -> 0 | N19: 0 | O19: 0 | P19: 0 | Q19: 0 | R19: 0 | S19: =IF(S13<0,S13,0) -> 0 | T19: 0 | U19: 0 | V19: 0 | W19: 0 | X19: 0 | Y19: 0 | Z19: 0 | AA19: 0 | AB19: 0 | AC19: 0 | AD19: 0 | AE19: 0 | AF19: 0 | AG19: =IF(AG13<0,AG13,0) -> 0 | AH19: =IF(AH13<0,AH13,0) -> 0 | AI19: 0 | AJ19: 0 | AK19: 0 | AL19: 0
B20: Net Emissions | C20: =C18+C19 -> 0 | D20: =D18+D19 -> 0 | E20: =E18+E19 -> 0 | F20: 0 | G20: 0 | H20: 0 | I20: 0 | J20: 0 | K20: 0 | L20: 0 | M20: =M18+M19 -> 0 | N20: 0 | O20: 0 | P20: 0 | Q20: 0 | R20: 0 | S20: =S18+S19 -> 0 | T20: 0 | U20: 0 | V20: 0 | W20: 0 | X20: 0 | Y20: 0 | Z20: 0 | AA20: 0 | AB20: 0 | AC20: 0 | AD20: 0 | AE20: 0 | AF20: 0 | AG20: =AG18+AG19 -> 0 | AH20: =AH18+AH19 -> 0 | AI20: 0 | AJ20: 0 | AK20: 0 | AL20: 0
B21: * Emissions from Electricity Consumption are not included in totals in order to avoid double counting with Fossil Fuel Combustion estimates.
C22: 1 | D22: =IF(D4<=$B23,C22+1,0) -> 2 | E22: =IF(E4<=$B23,D22+1,0) -> 3 | F22: 4 | G22: 5 | H22: 6 | I22: 7 | J22: 8 | K22: 9 | L22: 10 | M22: 11 | N22: 12 | O22: 13 | P22: 14 | Q22: 15 | R22: 16 | S22: 17 | T22: 18 | U22: 19 | V22: 20 | W22: 21 | X22: 22 | Y22: 23 | Z22: 24 | AA22: 25 | AB22: 26 | AC22: 27 | AD22: 28 | AE22: 29 | AF22: 30 | AG22: 31 | AH22: 32 | AI22: 0 | AJ22: 0 | AK22: 0 | AL22: 0
B23: =MAX(C23:AL23) -> 2021 | C23: 1990 | D23: =IF(D18=0,0,D4) -> 0 | E23: 0 | F23: 0 | G23: 0 | H23: 0 | I23: 0 | J23: 0 | K23: 0 | L23: 0 | M23: 0 | N23: 0 | O23: 0 | P23: 0 | Q23: 0 | R23: 0 | S23: 0 | T23: 0 | U23: 0 | V23: 0 | W23: 0 | X23: 0 | Y23: 0 | Z23: 0 | AA23: 0 | AB23: 0 | AC23: 0 | AD23: 0 | AE23: 0 | AF23: 0 | AG23: 0 | AH23: 2021 | AI23: 0 | AJ23: 0 | AK23: 0 | AL23: 0
H24: Press the up and down arrows below to change the year of the pie chart.
I26: Emissions Year: | J26: 2022
R46: ="GHG Emissions by Sector, 1990-"&B23 -> GHG Emissions by Sector, 1990-2021
R47: ="GHG Emissions by Sector (excluding Fossil Fuel Combustion), 1990-"&B23 -> GHG Emissions by Sector (excluding Fossil Fuel Combustion), 1990-2021
B91: ="GHG Emissions by Sector "&J26 -> GHG Emissions by Sector 2022
C92: =J26 -> 2022
B93: Energy | C93: =HLOOKUP($C$92,$C$104:$AL$109,2,FALSE) -> 0
B94: Industrial Processes | C94: =HLOOKUP($C$92,$C$104:$AL$109,3,FALSE) -> 0
B95: Agriculture | C95: =HLOOKUP($C$92,$C$104:$AL$109,4,FALSE) -> 0
B96: LULUCF | C96: =HLOOKUP($C$92,$C$104:$AL$109,5,FALSE) -> 0
B97: Waste | C97: =HLOOKUP($C$92,$C$104:$AL$109,6,FALSE) -> 0
A101: This row links to the chart above
B102: Energy (no CO2FFC) | C102: =SUM(C7:C10) -> 0 | D102: 0 | E102: 0 | F102: 0 | G102: 0 | H102: 0 | I102: 0 | J102: 0 | K102: 0 | L102: 0 | M102: 0 | N102: 0 | O102: 0 | P102: 0 | Q102: 0 | R102: 0 | S102: 0 | T102: 0 | U102: 0 | V102: 0 | W102: 0 | X102: 0 | Y102: 0 | Z102: 0 | AA102: 0 | AB102: 0 | AC102: 0 | AD102: 0 | AE102: 0 | AF102: 0 | AG102: =SUM(AG7:AG10) -> 0 | AH102: =SUM(AH7:AH10) -> 0 | AI102: 0 | AJ102: 0 | AK102: 0 | AL102: 0
A104: For Pie Chart | C104: 1990 | D104: 1991 | E104: 1992 | F104: 1993 | G104: 1994 | H104: 1995 | I104: 1996 | J104: 1997 | K104: 1998 | L104: 1999 | M104: 2000 | N104: 2001 | O104: 2002 | P104: 2003 | Q104: 2004 | R104: 2005 | S104: 2006 | T104: 2007 | U104: 2008 | V104: 2009 | W104: 2010 | X104: 2011 | Y104: 2012 | Z104: 2013 | AA104: 2014 | AB104: 2015 | AC104: 2016 | AD104: 2017 | AE104: 2018 | AF104: 2019 | AG104: 2020 | AH104: 2021 | AI104: 2022 | AJ104: 2023 | AK104: 2024 | AL104: 2025
B105: =B5 -> Energy | C105: 0 | D105: 0 | E105: 0 | F105: 0 | G105: 0 | H105: 0 | I105: 0 | J105: 0 | K105: 0 | L105: 0 | M105: 0 | N105: 0 | O105: 0 | P105: 0 | Q105: 0 | R105: 0 | S105: 0 | T105: 0 | U105: 0 | V105: 0 | W105: 0 | X105: 0 | Y105: 0 | Z105: 0 | AA105: 0 | AB105: 0 | AC105: 0 | AD105: 0 | AE105: 0 | AF105: 0 | AG105: =AG5 -> 0 | AH105: =AH5 -> 0 | AI105: 0 | AJ105: 0 | AK105: 0 | AL105: 0
B106: =B11 -> Industrial Processes | C106: 0 | D106: 0 | E106: 0 | F106: 0 | G106: 0 | H106: 0 | I106: 0 | J106: 0 | K106: 0 | L106: 0 | M106: 0 | N106: 0 | O106: 0 | P106: 0 | Q106: 0 | R106: 0 | S106: 0 | T106: 0 | U106: 0 | V106: 0 | W106: 0 | X106: 0 | Y106: 0 | Z106: 0 | AA106: 0 | AB106: 0 | AC106: 0 | AD106: 0 | AE106: 0 | AF106: 0 | AG106: =AG11 -> 0 | AH106: =AH11 -> 0 | AI106: 0 | AJ106: 0 | AK106: 0 | AL106: 0
B107: =B12 -> Agriculture | C107: 0 | D107: 0 | E107: 0 | F107: 0 | G107: 0 | H107: 0 | I107: 0 | J107: 0 | K107: 0 | L107: 0 | M107: 0 | N107: 0 | O107: 0 | P107: 0 | Q107: 0 | R107: 0 | S107: 0 | T107: 0 | U107: 0 | V107: 0 | W107: 0 | X107: 0 | Y107: 0 | Z107: 0 | AA107: 0 | AB107: 0 | AC107: 0 | AD107: 0 | AE107: 0 | AF107: 0 | AG107: =AG12 -> 0 | AH107: =AH12 -> 0 | AI107: 0 | AJ107: 0 | AK107: 0 | AL107: 0
B108: =B13 -> LULUCF | C108: =IF(C13<0,0,C13) -> 0 | D108: 0 | E108: 0 | F108: 0 | G108: 0 | H108: 0 | I108: 0 | J108: 0 | K108: 0 | L108: 0 | M108: 0 | N108: 0 | O108: 0 | P108: 0 | Q108: 0 | R108: 0 | S108: =IF(S13<0,0,S13) -> 0 | T108: 0 | U108: 0 | V108: 0 | W108: 0 | X108: 0 | Y108: 0 | Z108: 0 | AA108: 0 | AB108: 0 | AC108: 0 | AD108: 0 | AE108: 0 | AF108: 0 | AG108: =IF(AG13<0,0,AG13) -> 0 | AH108: =IF(AH13<0,0,AH13) -> 0 | AI108: 0 | AJ108: 0 | AK108: 0 | AL108: 0
B109: =B14 -> Waste | C109: =C14 -> 0 | D109: 0 | E109: 0 | F109: 0 | G109: 0 | H109: 0 | I109: 0 | J109: 0 | K109: 0 | L109: 0 | M109: 0 | N109: 0 | O109: 0 | P109: 0 | Q109: 0 | R109: 0 | S109: =S14 -> 0 | T109: 0 | U109: 0 | V109: 0 | W109: 0 | X109: 0 | Y109: 0 | Z109: 0 | AA109: 0 | AB109: 0 | AC109: 0 | AD109: 0 | AE109: 0 | AF109: 0 | AG109: =AG14 -> 0 | AH109: =AH14 -> 0 | AI109: 0 | AJ109: 0 | AK109: 0 | AL109: 0

Sheet Gas Intensity
A1: ="Summary of GHG Emissions by Population in "&StateName -> Summary of GHG Emissions by Population in Select a State . . .
B5: Emissions Per Capita (MTCO2E) | C5: 1990 | D5: 1991 | E5: 1992 | F5: 1993 | G5: 1994 | H5: 1995 | I5: 1996 | J5: 1997 | K5: 1998 | L5: 1999 | M5: 2000 | N5: 2001 | O5: 2002 | P5: 2003 | Q5: 2004 | R5: 2005 | S5: 2006 | T5: 2007 | U5: 2008 | V5: 2009 | W5: 2010 | X5: 2011 | Y5: 2012 | Z5: 2013 | AA5: 2014 | AB5: 2015 | AC5: 2016 | AD5: 2017 | AE5: 2018 | AF5: 2019 | AG5: 2020 | AH5: 2021 | AI5: 2022 | AJ5: 2023 | AK5: 2024 | AL5: 2025
B6: Gross Emissions Intensity | C6: =IF(ISERROR(('Summary by Gas'!C35/VLOOKUP(StateID,Population!$A$3:$AF$54,'Gas Intensity'!C5-1988,FALSE))*1000),0,('Summary by Gas'!C35/VLOOKUP(StateID,Population!$A$3:$AF$54,'Gas Intensity'!C5-1988,FALSE))*1000) -> 0 | D6: =IF(ISERROR(('Summary by Gas'!D35/VLOOKUP(StateID,Population!$A$3:$AF$54,'Gas Intensity'!D5-1988,FALSE))*1000),0,('Summary by Gas'!D35/VLOOKUP(StateID,Population!$A$3:$AF$54,'Gas Intensity'!D5-1988,FALSE))*1000) -> 0 | E6: =IF(ISERROR(('Summary by Gas'!E35/VLOOKUP(StateID,Population!$A$3:$AF$54,'Gas Intensity'!E5-1988,FALSE))*1000),0,('Summary by Gas'!E35/VLOOKUP(StateID,Population!$A$3:$AF$54,'Gas Intensity'!E5-1988,FALSE))*1000) -> 0 | F6: =IF(ISERROR(('Summary by Gas'!F35/VLOOKUP(StateID,Population!$A$3:$AF$54,'Gas Intensity'!F5-1988,FALSE))*1000),0,('Summary by Gas'!F35/VLOOKUP(StateID,Population!$A$3:$AF$54,'Gas Intensity'!F5-1988,FALSE))*1000) -> 0 | G6: =IF(ISERROR(('Summary by Gas'!G35/VLOOKUP(StateID,Population!$A$3:$AF$54,'Gas Intensity'!G5-1988,FALSE))*1000),0,('Summary by Gas'!G35/VLOOKUP(StateID,Population!$A$3:$AF$54,'Gas Intensity'!G5-1988,FALSE))*1000) -> 0 | H6: =IF(ISERROR(('Summary by Gas'!H35/VLOOKUP(StateID,Population!$A$3:$AF$54,'Gas Intensity'!H5-1988,FALSE))*1000),0,('Summary by Gas'!H35/VLOOKUP(StateID,Population!$A$3:$AF$54,'Gas Intensity'!H5-1988,FALSE))*1000) -> 0 | I6: =IF(ISERROR(('Summary by Gas'!I35/VLOOKUP(StateID,Population!$A$3:$AF$54,'Gas Intensity'!I5-1988,FALSE))*1000),0,('Summary by Gas'!I35/VLOOKUP(StateID,Population!$A$3:$AF$54,'Gas Intensity'!I5-1988,FALSE))*1000) -> 0 | J6: =IF(ISERROR(('Summary by Gas'!J35/VLOOKUP(StateID,Population!$A$3:$AF$54,'Gas Intensity'!J5-1988,FALSE))*1000),0,('Summary by Gas'!J35/VLOOKUP(StateID,Population!$A$3:$AF$54,'Gas Intensity'!J5-1988,FALSE))*1000) -> 0 | K6: =IF(ISERROR(('Summary by Gas'!K35/VLOOKUP(StateID,Population!$A$3:$AF$54,'Gas Intensity'!K5-1988,FALSE))*1000),0,('Summary by Gas'!K35/VLOOKUP(StateID,Population!$A$3:$AF$54,'Gas Intensity'!K5-1988,FALSE))*1000) -> 0 | L6: =IF(ISERROR(('Summary by Gas'!L35/VLOOKUP(StateID,Population!$A$3:$AF$54,'Gas Intensity'!L5-1988,FALSE))*1000),0,('Summary by Gas'!L35/VLOOKUP(StateID,Population!$A$3:$AF$54,'Gas Intensity'!L5-1988,FALSE))*1000) -> 0 | M6: =IF(ISERROR(('Summary by Gas'!M35/VLOOKUP(StateID,Population!$A$3:$AF$54,'Gas Intensity'!M5-1988,FALSE))*1000),0,('Summary by Gas'!M35/VLOOKUP(StateID,Population!$A$3:$AF$54,'Gas Intensity'!M5-1988,FALSE))*1000) -> 0 | N6: =IF(ISERROR(('Summary by Gas'!N35/VLOOKUP(StateID,Population!$A$3:$AF$54,'Gas Intensity'!N5-1988,FALSE))*1000),0,('Summary by Gas'!N35/VLOOKUP(StateID,Population!$A$3:$AF$54,'Gas Intensity'!N5-1988,FALSE))*1000) -> 0 | O6: =IF(ISERROR(('Summary by Gas'!O35/VLOOKUP(StateID,Population!$A$3:$AF$54,'Gas Intensity'!O5-1988,FALSE))*1000),0,('Summary by Gas'!O35/VLOOKUP(StateID,Population!$A$3:$AF$54,'Gas Intensity'!O5-1988,FALSE))*1000) -> 0 | P6: =IF(ISERROR(('Summary by Gas'!P35/VLOOKUP(StateID,Population!$A$3:$AF$54,'Gas Intensity'!P5-1988,FALSE))*1000),0,('Summary by Gas'!P35/VLOOKUP(StateID,Population!$A$3:$AF$54,'Gas Intensity'!P5-1988,FALSE))*1000) -> 0 | Q6: =IF(ISERROR(('Summary by Gas'!Q35/VLOOKUP(StateID,Population!$A$3:$AF$54,'Gas Intensity'!Q5-1988,FALSE))*1000),0,('Summary by Gas'!Q35/VLOOKUP(StateID,Population!$A$3:$AF$54,'Gas Intensity'!Q5-1988,FALSE))*1000) -> 0 | R6: =IF(ISERROR(('Summary by Gas'!R35/VLOOKUP(StateID,Population!$A$3:$AF$54,'Gas Intensity'!R5-1988,FALSE))*1000),0,('Summary by Gas'!R35/VLOOKUP(StateID,Population!$A$3:$AF$54,'Gas Intensity'!R5-1988,FALSE))*1000) -> 0 | S6: =IF(ISERROR(('Summary by Gas'!S35/VLOOKUP(StateID,Population!$A$3:$AF$54,'Gas Intensity'!S5-1988,FALSE))*1000),0,('Summary by Gas'!S35/VLOOKUP(StateID,Population!$A$3:$AF$54,'Gas Intensity'!S5-1988,FALSE))*1000) -> 0 | T6: =IF(ISERROR(('Summary by Gas'!T35/VLOOKUP(StateID,Population!$A$3:$AF$54,'Gas Intensity'!T5-1988,FALSE))*1000),0,('Summary by Gas'!T35/VLOOKUP(StateID,Population!$A$3:$AF$54,'Gas Intensity'!T5-1988,FALSE))*1000) -> 0 | U6: =IF(ISERROR(('Summary by Gas'!U35/VLOOKUP(StateID,Population!$A$3:$AF$54,'Gas Intensity'!U5-1988,FALSE))*1000),0,('Summary by Gas'!U35/VLOOKUP(StateID,Population!$A$3:$AF$54,'Gas Intensity'!U5-1988,FALSE))*1000) -> 0 | V6: =IF(ISERROR(('Summary by Gas'!V35/VLOOKUP(StateID,Population!$A$3:$AF$54,'Gas Intensity'!V5-1988,FALSE))*1000),0,('Summary by Gas'!V35/VLOOKUP(StateID,Population!$A$3:$AF$54,'Gas Intensity'!V5-1988,FALSE))*1000) -> 0 | W6: =IF(ISERROR(('Summary by Gas'!W35/VLOOKUP(StateID,Population!$A$3:$AF$54,'Gas Intensity'!W5-1988,FALSE))*1000),0,('Summary by Gas'!W35/VLOOKUP(StateID,Population!$A$3:$AF$54,'Gas Intensity'!W5-1988,FALSE))*1000) -> 0 | X6: =IF(ISERROR(('Summary by Gas'!X35/VLOOKUP(StateID,Population!$A$3:$AF$54,'Gas Intensity'!X5-1988,FALSE))*1000),0,('Summary by Gas'!X35/VLOOKUP(StateID,Population!$A$3:$AF$54,'Gas Intensity'!X5-1988,FALSE))*1000) -> 0 | Y6: =IF(ISERROR(('Summary by Gas'!Y35/VLOOKUP(StateID,Population!$A$3:$AF$54,'Gas Intensity'!Y5-1988,FALSE))*1000),0,('Summary by Gas'!Y35/VLOOKUP(StateID,Population!$A$3:$AF$54,'Gas Intensity'!Y5-1988,FALSE))*1000) -> 0 | Z6: =IF(ISERROR(('Summary by Gas'!Z35/VLOOKUP(StateID,Population!$A$3:$AF$54,'Gas Intensity'!Z5-1988,FALSE))*1000),0,('Summary by Gas'!Z35/VLOOKUP(StateID,Population!$A$3:$AF$54,'Gas Intensity'!Z5-1988,FALSE))*1000) -> 0 | AA6: =IF(ISERROR(('Summary by Gas'!AA35/VLOOKUP(StateID,Population!$A$3:$AF$54,'Gas Intensity'!AA5-1988,FALSE))*1000),0,('Summary by Gas'!AA35/VLOOKUP(StateID,Population!$A$3:$AF$54,'Gas Intensity'!AA5-1988,FALSE))*1000) -> 0 | AB6: =IF(ISERROR(('Summary by Gas'!AB35/VLOOKUP(StateID,Population!$A$3:$AF$54,'Gas Intensity'!AB5-1988,FALSE))*1000),0,('Summary by Gas'!AB35/VLOOKUP(StateID,Population!$A$3:$AF$54,'Gas Intensity'!AB5-1988,FALSE))*1000) -> 0 | AC6: =IF(ISERROR(('Summary by Gas'!AC35/VLOOKUP(StateID,Population!$A$3:$AF$54,'Gas Intensity'!AC5-1988,FALSE))*1000),0,('Summary by Gas'!AC35/VLOOKUP(StateID,Population!$A$3:$AF$54,'Gas Intensity'!AC5-1988,FALSE))*1000) -> 0 | AD6: =IF(ISERROR(('Summary by Gas'!AD35/VLOOKUP(StateID,Population!$A$3:$AF$54,'Gas Intensity'!AD5-1988,FALSE))*1000),0,('Summary by Gas'!AD35/VLOOKUP(StateID,Population!$A$3:$AF$54,'Gas Intensity'!AD5-1988,FALSE))*1000) -> 0 | AE6: =IF(ISERROR(('Summary by Gas'!AE35/VLOOKUP(StateID,Population!$A$3:$AF$54,'Gas Intensity'!AE5-1988,FALSE))*1000),0,('Summary by Gas'!AE35/VLOOKUP(StateID,Population!$A$3:$AF$54,'Gas Intensity'!AE5-1988,FALSE))*1000) -> 0 | AF6: =IF(ISERROR(('Summary by Gas'!AF35/VLOOKUP(StateID,Population!$A$3:$AF$54,'Gas Intensity'!AF5-1988,FALSE))*1000),0,('Summary by Gas'!AF35/VLOOKUP(StateID,Population!$A$3:$AF$54,'Gas Intensity'!AF5-1988,FALSE))*1000) -> 0 | AG6: =IF(ISERROR(('Summary by Gas'!AG35/VLOOKUP(StateID,Population!$A$3:$AK$54,'Gas Intensity'!AG5-1988,FALSE))*1000),0,('Summary by Gas'!AG35/VLOOKUP(StateID,Population!$A$3:$AK$54,'Gas Intensity'!AG5-1988,FALSE))*1000) -> 0 | AH6: =IF(ISERROR(('Summary by Gas'!AH35/VLOOKUP(StateID,Population!$A$3:$AK$54,'Gas Intensity'!AH5-1988,FALSE))*1000),0,('Summary by Gas'!AH35/VLOOKUP(StateID,Population!$A$3:$AK$54,'Gas Intensity'!AH5-1988,FALSE))*1000) -> 0 | AI6: =IF(ISERROR(('Summary by Gas'!AI35/VLOOKUP(StateID,Population!$A$3:$AK$54,'Gas Intensity'!AI5-1988,FALSE))*1000),0,('Summary by Gas'!AI35/VLOOKUP(StateID,Population!$A$3:$AK$54,'Gas Intensity'!AI5-1988,FALSE))*1000) -> 0 | AJ6: =IF(ISERROR(('Summary by Gas'!AJ35/VLOOKUP(StateID,Population!$A$3:$AK$54,'Gas Intensity'!AJ5-1988,FALSE))*1000),0,('Summary by Gas'!AJ35/VLOOKUP(StateID,Population!$A$3:$AK$54,'Gas Intensity'!AJ5-1988,FALSE))*1000) -> 0 | AK6: =IF(ISERROR(('Summary by Gas'!AK35/VLOOKUP(StateID,Population!$A$3:$AK$54,'Gas Intensity'!AK5-1988,FALSE))*1000),0,('Summary by Gas'!AK35/VLOOKUP(StateID,Population!$A$3:$AK$54,'Gas Intensity'!AK5-1988,FALSE))*1000) -> 0 | AL6: =IF(ISERROR(('Summary by Gas'!AL35/VLOOKUP(StateID,Population!$A$3:$AK$54,'Gas Intensity'!AL5-1988,FALSE))*1000),0,('Summary by Gas'!AL35/VLOOKUP(StateID,Population!$A$3:$AK$54,'Gas Intensity'!AL5-1988,FALSE))*1000) -> 0
B7: Net Emissions Intensity (Sources and Sinks) | C7: =IF(ISERROR(('Summary by Gas'!C37/VLOOKUP(StateID,Population!$A$3:$AF$54,'Gas Intensity'!C5-1988,FALSE))*1000),0,('Summary by Gas'!C37/VLOOKUP(StateID,Population!$A$3:$AF$54,'Gas Intensity'!C5-1988,FALSE))*1000) -> 0 | D7: =IF(ISERROR(('Summary by Gas'!D37/VLOOKUP(StateID,Population!$A$3:$AF$54,'Gas Intensity'!D5-1988,FALSE))*1000),0,('Summary by Gas'!D37/VLOOKUP(StateID,Population!$A$3:$AF$54,'Gas Intensity'!D5-1988,FALSE))*1000) -> 0 | E7: =IF(ISERROR(('Summary by Gas'!E37/VLOOKUP(StateID,Population!$A$3:$AF$54,'Gas Intensity'!E5-1988,FALSE))*1000),0,('Summary by Gas'!E37/VLOOKUP(StateID,Population!$A$3:$AF$54,'Gas Intensity'!E5-1988,FALSE))*1000) -> 0 | F7: =IF(ISERROR(('Summary by Gas'!F37/VLOOKUP(StateID,Population!$A$3:$AF$54,'Gas Intensity'!F5-1988,FALSE))*1000),0,('Summary by Gas'!F37/VLOOKUP(StateID,Population!$A$3:$AF$54,'Gas Intensity'!F5-1988,FALSE))*1000) -> 0 | G7: =IF(ISERROR(('Summary by Gas'!G37/VLOOKUP(StateID,Population!$A$3:$AF$54,'Gas Intensity'!G5-1988,FALSE))*1000),0,('Summary by Gas'!G37/VLOOKUP(StateID,Population!$A$3:$AF$54,'Gas Intensity'!G5-1988,FALSE))*1000) -> 0 | H7: =IF(ISERROR(('Summary by Gas'!H37/VLOOKUP(StateID,Population!$A$3:$AF$54,'Gas Intensity'!H5-1988,FALSE))*1000),0,('Summary by Gas'!H37/VLOOKUP(StateID,Population!$A$3:$AF$54,'Gas Intensity'!H5-1988,FALSE))*1000) -> 0 | I7: =IF(ISERROR(('Summary by Gas'!I37/VLOOKUP(StateID,Population!$A$3:$AF$54,'Gas Intensity'!I5-1988,FALSE))*1000),0,('Summary by Gas'!I37/VLOOKUP(StateID,Population!$A$3:$AF$54,'Gas Intensity'!I5-1988,FALSE))*1000) -> 0 | J7: =IF(ISERROR(('Summary by Gas'!J37/VLOOKUP(StateID,Population!$A$3:$AF$54,'Gas Intensity'!J5-1988,FALSE))*1000),0,('Summary by Gas'!J37/VLOOKUP(StateID,Population!$A$3:$AF$54,'Gas Intensity'!J5-1988,FALSE))*1000) -> 0 | K7: =IF(ISERROR(('Summary by Gas'!K37/VLOOKUP(StateID,Population!$A$3:$AF$54,'Gas Intensity'!K5-1988,FALSE))*1000),0,('Summary by Gas'!K37/VLOOKUP(StateID,Population!$A$3:$AF$54,'Gas Intensity'!K5-1988,FALSE))*1000) -> 0 | L7: =IF(ISERROR(('Summary by Gas'!L37/VLOOKUP(StateID,Population!$A$3:$AF$54,'Gas Intensity'!L5-1988,FALSE))*1000),0,('Summary by Gas'!L37/VLOOKUP(StateID,Population!$A$3:$AF$54,'Gas Intensity'!L5-1988,FALSE))*1000) -> 0 | M7: =IF(ISERROR(('Summary by Gas'!M37/VLOOKUP(StateID,Population!$A$3:$AF$54,'Gas Intensity'!M5-1988,FALSE))*1000),0,('Summary by Gas'!M37/VLOOKUP(StateID,Population!$A$3:$AF$54,'Gas Intensity'!M5-1988,FALSE))*1000) -> 0 | N7: =IF(ISERROR(('Summary by Gas'!N37/VLOOKUP(StateID,Population!$A$3:$AF$54,'Gas Intensity'!N5-1988,FALSE))*1000),0,('Summary by Gas'!N37/VLOOKUP(StateID,Population!$A$3:$AF$54,'Gas Intensity'!N5-1988,FALSE))*1000) -> 0 | O7: =IF(ISERROR(('Summary by Gas'!O37/VLOOKUP(StateID,Population!$A$3:$AF$54,'Gas Intensity'!O5-1988,FALSE))*1000),0,('Summary by Gas'!O37/VLOOKUP(StateID,Population!$A$3:$AF$54,'Gas Intensity'!O5-1988,FALSE))*1000) -> 0 | P7: =IF(ISERROR(('Summary by Gas'!P37/VLOOKUP(StateID,Population!$A$3:$AF$54,'Gas Intensity'!P5-1988,FALSE))*1000),0,('Summary by Gas'!P37/VLOOKUP(StateID,Population!$A$3:$AF$54,'Gas Intensity'!P5-1988,FALSE))*1000) -> 0 | Q7: =IF(ISERROR(('Summary by Gas'!Q37/VLOOKUP(StateID,Population!$A$3:$AF$54,'Gas Intensity'!Q5-1988,FALSE))*1000),0,('Summary by Gas'!Q37/VLOOKUP(StateID,Population!$A$3:$AF$54,'Gas Intensity'!Q5-1988,FALSE))*1000) -> 0 | R7: =IF(ISERROR(('Summary by Gas'!R37/VLOOKUP(StateID,Population!$A$3:$AF$54,'Gas Intensity'!R5-1988,FALSE))*1000),0,('Summary by Gas'!R37/VLOOKUP(StateID,Population!$A$3:$AF$54,'Gas Intensity'!R5-1988,FALSE))*1000) -> 0 | S7: =IF(ISERROR(('Summary by Gas'!S37/VLOOKUP(StateID,Population!$A$3:$AF$54,'Gas Intensity'!S5-1988,FALSE))*1000),0,('Summary by Gas'!S37/VLOOKUP(StateID,Population!$A$3:$AF$54,'Gas Intensity'!S5-1988,FALSE))*1000) -> 0 | T7: =IF(ISERROR(('Summary by Gas'!T37/VLOOKUP(StateID,Population!$A$3:$AF$54,'Gas Intensity'!T5-1988,FALSE))*1000),0,('Summary by Gas'!T37/VLOOKUP(StateID,Population!$A$3:$AF$54,'Gas Intensity'!T5-1988,FALSE))*1000) -> 0 | U7: =IF(ISERROR(('Summary by Gas'!U37/VLOOKUP(StateID,Population!$A$3:$AF$54,'Gas Intensity'!U5-1988,FALSE))*1000),0,('Summary by Gas'!U37/VLOOKUP(StateID,Population!$A$3:$AF$54,'Gas Intensity'!U5-1988,FALSE))*1000) -> 0 | V7: =IF(ISERROR(('Summary by Gas'!V37/VLOOKUP(StateID,Population!$A$3:$AF$54,'Gas Intensity'!V5-1988,FALSE))*1000),0,('Summary by Gas'!V37/VLOOKUP(StateID,Population!$A$3:$AF$54,'Gas Intensity'!V5-1988,FALSE))*1000) -> 0 | W7: =IF(ISERROR(('Summary by Gas'!W37/VLOOKUP(StateID,Population!$A$3:$AF$54,'Gas Intensity'!W5-1988,FALSE))*1000),0,('Summary by Gas'!W37/VLOOKUP(StateID,Population!$A$3:$AF$54,'Gas Intensity'!W5-1988,FALSE))*1000) -> 0 | X7: =IF(ISERROR(('Summary by Gas'!X37/VLOOKUP(StateID,Population!$A$3:$AF$54,'Gas Intensity'!X5-1988,FALSE))*1000),0,('Summary by Gas'!X37/VLOOKUP(StateID,Population!$A$3:$AF$54,'Gas Intensity'!X5-1988,FALSE))*1000) -> 0 | Y7: =IF(ISERROR(('Summary by Gas'!Y37/VLOOKUP(StateID,Population!$A$3:$AF$54,'Gas Intensity'!Y5-1988,FALSE))*1000),0,('Summary by Gas'!Y37/VLOOKUP(StateID,Population!$A$3:$AF$54,'Gas Intensity'!Y5-1988,FALSE))*1000) -> 0 | Z7: =IF(ISERROR(('Summary by Gas'!Z37/VLOOKUP(StateID,Population!$A$3:$AF$54,'Gas Intensity'!Z5-1988,FALSE))*1000),0,('Summary by Gas'!Z37/VLOOKUP(StateID,Population!$A$3:$AF$54,'Gas Intensity'!Z5-1988,FALSE))*1000) -> 0 | AA7: =IF(ISERROR(('Summary by Gas'!AA37/VLOOKUP(StateID,Population!$A$3:$AF$54,'Gas Intensity'!AA5-1988,FALSE))*1000),0,('Summary by Gas'!AA37/VLOOKUP(StateID,Population!$A$3:$AF$54,'Gas Intensity'!AA5-1988,FALSE))*1000) -> 0 | AB7: =IF(ISERROR(('Summary by Gas'!AB37/VLOOKUP(StateID,Population!$A$3:$AF$54,'Gas Intensity'!AB5-1988,FALSE))*1000),0,('Summary by Gas'!AB37/VLOOKUP(StateID,Population!$A$3:$AF$54,'Gas Intensity'!AB5-1988,FALSE))*1000) -> 0 | AC7: =IF(ISERROR(('Summary by Gas'!AC37/VLOOKUP(StateID,Population!$A$3:$AF$54,'Gas Intensity'!AC5-1988,FALSE))*1000),0,('Summary by Gas'!AC37/VLOOKUP(StateID,Population!$A$3:$AF$54,'Gas Intensity'!AC5-1988,FALSE))*1000) -> 0 | AD7: =IF(ISERROR(('Summary by Gas'!AD37/VLOOKUP(StateID,Population!$A$3:$AF$54,'Gas Intensity'!AD5-1988,FALSE))*1000),0,('Summary by Gas'!AD37/VLOOKUP(StateID,Population!$A$3:$AF$54,'Gas Intensity'!AD5-1988,FALSE))*1000) -> 0 | AE7: =IF(ISERROR(('Summary by Gas'!AE37/VLOOKUP(StateID,Population!$A$3:$AF$54,'Gas Intensity'!AE5-1988,FALSE))*1000),0,('Summary by Gas'!AE37/VLOOKUP(StateID,Population!$A$3:$AF$54,'Gas Intensity'!AE5-1988,FALSE))*1000) -> 0 | AF7: =IF(ISERROR(('Summary by Gas'!AF37/VLOOKUP(StateID,Population!$A$3:$AF$54,'Gas Intensity'!AF5-1988,FALSE))*1000),0,('Summary by Gas'!AF37/VLOOKUP(StateID,Population!$A$3:$AF$54,'Gas Intensity'!AF5-1988,FALSE))*1000) -> 0 | AG7: =IF(ISERROR(('Summary by Gas'!AG37/VLOOKUP(StateID,Population!$A$3:$AK$54,'Gas Intensity'!AG5-1988,FALSE))*1000),0,('Summary by Gas'!AG37/VLOOKUP(StateID,Population!$A$3:$AK$54,'Gas Intensity'!AG5-1988,FALSE))*1000) -> 0 | AH7: =IF(ISERROR(('Summary by Gas'!AH37/VLOOKUP(StateID,Population!$A$3:$AK$54,'Gas Intensity'!AH5-1988,FALSE))*1000),0,('Summary by Gas'!AH37/VLOOKUP(StateID,Population!$A$3:$AK$54,'Gas Intensity'!AH5-1988,FALSE))*1000) -> 0 | AI7: =IF(ISERROR(('Summary by Gas'!AI37/VLOOKUP(StateID,Population!$A$3:$AK$54,'Gas Intensity'!AI5-1988,FALSE))*1000),0,('Summary by Gas'!AI37/VLOOKUP(StateID,Population!$A$3:$AK$54,'Gas Intensity'!AI5-1988,FALSE))*1000) -> 0 | AJ7: =IF(ISERROR(('Summary by Gas'!AJ37/VLOOKUP(StateID,Population!$A$3:$AK$54,'Gas Intensity'!AJ5-1988,FALSE))*1000),0,('Summary by Gas'!AJ37/VLOOKUP(StateID,Population!$A$3:$AK$54,'Gas Intensity'!AJ5-1988,FALSE))*1000) -> 0 | AK7: =IF(ISERROR(('Summary by Gas'!AK37/VLOOKUP(StateID,Population!$A$3:$AK$54,'Gas Intensity'!AK5-1988,FALSE))*1000),0,('Summary by Gas'!AK37/VLOOKUP(StateID,Population!$A$3:$AK$54,'Gas Intensity'!AK5-1988,FALSE))*1000) -> 0 | AL7: =IF(ISERROR(('Summary by Gas'!AL37/VLOOKUP(StateID,Population!$A$3:$AK$54,'Gas Intensity'!AL5-1988,FALSE))*1000),0,('Summary by Gas'!AL37/VLOOKUP(StateID,Population!$A$3:$AK$54,'Gas Intensity'!AL5-1988,FALSE))*1000) -> 0
C8: 1 | D8: =IF(D5<=$B9,C8+1,0) -> 0 | E8: =IF(E5<=$B9,D8+1,0) -> 0 | F8: 0 | G8: 0 | H8: 0 | I8: 0 | J8: 0 | K8: 0 | L8: 0 | M8: 0 | N8: 0 | O8: 0 | P8: 0 | Q8: 0 | R8: 0 | S8: 0 | T8: 0 | U8: 0 | V8: 0 | W8: 0 | X8: 0 | Y8: 0 | Z8: 0 | AA8: 0 | AB8: 0 | AC8: 0 | AD8: 0 | AE8: 0 | AF8: 0 | AG8: 0 | AH8: 0 | AI8: 0 | AJ8: 0 | AK8: 0 | AL8: 0
B9: =MAX(C9:AL9) -> 1990 | C9: =1990 -> 1990 | D9: =IF(D6=0,0,D5) -> 0 | E9: =IF(E6=0,0,E5) -> 0 | F9: 0 | G9: 0 | H9: 0 | I9: 0 | J9: 0 | K9: 0 | L9: 0 | M9: 0 | N9: 0 | O9: 0 | P9: 0 | Q9: 0 | R9: 0 | S9: 0 | T9: 0 | U9: 0 | V9: 0 | W9: 0 | X9: 0 | Y9: 0 | Z9: 0 | AA9: 0 | AB9: 0 | AC9: 0 | AD9: 0 | AE9: 0 | AF9: 0 | AG9: 0 | AH9: 0 | AI9: 0 | AJ9: 0 | AK9: 0 | AL9: 0
B10: Emissions Per GSP (Gross State Product) (MTCO2E) | C10: 1990 | D10: 1991 | E10: 1992 | F10: 1993 | G10: 1994 | H10: 1995 | I10: 1996 | J10: 1997 | K10: 1998 | L10: 1999 | M10: 2000 | N10: 2001 | O10: 2002 | P10: 2003 | Q10: 2004 | R10: 2005 | S10: 2006 | T10: 2007 | U10: 2008 | V10: 2009 | W10: 2010 | X10: 2011 | Y10: 2012 | Z10: 2013 | AA10: 2014 | AB10: 2015 | AC10: 2016 | AD10: 2017 | AE10: 2018 | AF10: 2019 | AG10: 2020 | AH10: 2021 | AI10: 2022 | AJ10: 2023 | AK10: 2024 | AL10: 2025
B11: Gross Emissions Intensity | C11: =IF(ISERROR(('Summary by Gas'!C35/VLOOKUP(StateID,'GSP from BEA'!$A$3:$AF$54,'Gas Intensity'!C10-1988,FALSE))*1000000),0,('Summary by Gas'!C35/VLOOKUP(StateID,'GSP from BEA'!$A$3:$AF$54,'Gas Intensity'!C10-1988,FALSE))*1000000) -> 0 | D11: =IF(ISERROR(('Summary by Gas'!D35/VLOOKUP(StateID,'GSP from BEA'!$A$3:$AF$54,'Gas Intensity'!D10-1988,FALSE))*1000000),0,('Summary by Gas'!D35/VLOOKUP(StateID,'GSP from BEA'!$A$3:$AF$54,'Gas Intensity'!D10-1988,FALSE))*1000000) -> 0 | E11: =IF(ISERROR(('Summary by Gas'!E35/VLOOKUP(StateID,'GSP from BEA'!$A$3:$AF$54,'Gas Intensity'!E10-1988,FALSE))*1000000),0,('Summary by Gas'!E35/VLOOKUP(StateID,'GSP from BEA'!$A$3:$AF$54,'Gas Intensity'!E10-1988,FALSE))*1000000) -> 0 | F11: =IF(ISERROR(('Summary by Gas'!F35/VLOOKUP(StateID,'GSP from BEA'!$A$3:$AF$54,'Gas Intensity'!F10-1988,FALSE))*1000000),0,('Summary by Gas'!F35/VLOOKUP(StateID,'GSP from BEA'!$A$3:$AF$54,'Gas Intensity'!F10-1988,FALSE))*1000000) -> 0 | G11: =IF(ISERROR(('Summary by Gas'!G35/VLOOKUP(StateID,'GSP from BEA'!$A$3:$AF$54,'Gas Intensity'!G10-1988,FALSE))*1000000),0,('Summary by Gas'!G35/VLOOKUP(StateID,'GSP from BEA'!$A$3:$AF$54,'Gas Intensity'!G10-1988,FALSE))*1000000) -> 0 | H11: =IF(ISERROR(('Summary by Gas'!H35/VLOOKUP(StateID,'GSP from BEA'!$A$3:$AF$54,'Gas Intensity'!H10-1988,FALSE))*1000000),0,('Summary by Gas'!H35/VLOOKUP(StateID,'GSP from BEA'!$A$3:$AF$54,'Gas Intensity'!H10-1988,FALSE))*1000000) -> 0 | I11: =IF(ISERROR(('Summary by Gas'!I35/VLOOKUP(StateID,'GSP from BEA'!$A$3:$AF$54,'Gas Intensity'!I10-1988,FALSE))*1000000),0,('Summary by Gas'!I35/VLOOKUP(StateID,'GSP from BEA'!$A$3:$AF$54,'Gas Intensity'!I10-1988,FALSE))*1000000) -> 0 | J11: =IF(ISERROR(('Summary by Gas'!J35/VLOOKUP(StateID,'GSP from BEA'!$A$3:$AF$54,'Gas Intensity'!J10-1988,FALSE))*1000000),0,('Summary by Gas'!J35/VLOOKUP(StateID,'GSP from BEA'!$A$3:$AF$54,'Gas Intensity'!J10-1988,FALSE))*1000000) -> 0 | K11: =IF(ISERROR(('Summary by Gas'!K35/VLOOKUP(StateID,'GSP from BEA'!$A$3:$AF$54,'Gas Intensity'!K10-1988,FALSE))*1000000),0,('Summary by Gas'!K35/VLOOKUP(StateID,'GSP from BEA'!$A$3:$AF$54,'Gas Intensity'!K10-1988,FALSE))*1000000) -> 0 | L11: =IF(ISERROR(('Summary by Gas'!L35/VLOOKUP(StateID,'GSP from BEA'!$A$3:$AF$54,'Gas Intensity'!L10-1988,FALSE))*1000000),0,('Summary by Gas'!L35/VLOOKUP(StateID,'GSP from BEA'!$A$3:$AF$54,'Gas Intensity'!L10-1988,FALSE))*1000000) -> 0 | M11: =IF(ISERROR(('Summary by Gas'!M35/VLOOKUP(StateID,'GSP from BEA'!$A$3:$AF$54,'Gas Intensity'!M10-1988,FALSE))*1000000),0,('Summary by Gas'!M35/VLOOKUP(StateID,'GSP from BEA'!$A$3:$AF$54,'Gas Intensity'!M10-1988,FALSE))*1000000) -> 0 | N11: =IF(ISERROR(('Summary by Gas'!N35/VLOOKUP(StateID,'GSP from BEA'!$A$3:$AF$54,'Gas Intensity'!N10-1988,FALSE))*1000000),0,('Summary by Gas'!N35/VLOOKUP(StateID,'GSP from BEA'!$A$3:$AF$54,'Gas Intensity'!N10-1988,FALSE))*1000000) -> 0 | O11: =IF(ISERROR(('Summary by Gas'!O35/VLOOKUP(StateID,'GSP from BEA'!$A$3:$AF$54,'Gas Intensity'!O10-1988,FALSE))*1000000),0,('Summary by Gas'!O35/VLOOKUP(StateID,'GSP from BEA'!$A$3:$AF$54,'Gas Intensity'!O10-1988,FALSE))*1000000) -> 0 | P11: =IF(ISERROR(('Summary by Gas'!P35/VLOOKUP(StateID,'GSP from BEA'!$A$3:$AF$54,'Gas Intensity'!P10-1988,FALSE))*1000000),0,('Summary by Gas'!P35/VLOOKUP(StateID,'GSP from BEA'!$A$3:$AF$54,'Gas Intensity'!P10-1988,FALSE))*1000000) -> 0 | Q11: =IF(ISERROR(('Summary by Gas'!Q35/VLOOKUP(StateID,'GSP from BEA'!$A$3:$AF$54,'Gas Intensity'!Q10-1988,FALSE))*1000000),0,('Summary by Gas'!Q35/VLOOKUP(StateID,'GSP from BEA'!$A$3:$AF$54,'Gas Intensity'!Q10-1988,FALSE))*1000000) -> 0 | R11: =IF(ISERROR(('Summary by Gas'!R35/VLOOKUP(StateID,'GSP from BEA'!$A$3:$AF$54,'Gas Intensity'!R10-1988,FALSE))*1000000),0,('Summary by Gas'!R35/VLOOKUP(StateID,'GSP from BEA'!$A$3:$AF$54,'Gas Intensity'!R10-1988,FALSE))*1000000) -> 0 | S11: =IF(ISERROR(('Summary by Gas'!S35/VLOOKUP(StateID,'GSP from BEA'!$A$3:$AF$54,'Gas Intensity'!S10-1988,FALSE))*1000000),0,('Summary by Gas'!S35/VLOOKUP(StateID,'GSP from BEA'!$A$3:$AF$54,'Gas Intensity'!S10-1988,FALSE))*1000000) -> 0 | T11: =IF(ISERROR(('Summary by Gas'!T35/VLOOKUP(StateID,'GSP from BEA'!$A$3:$AF$54,'Gas Intensity'!T10-1988,FALSE))*1000000),0,('Summary by Gas'!T35/VLOOKUP(StateID,'GSP from BEA'!$A$3:$AF$54,'Gas Intensity'!T10-1988,FALSE))*1000000) -> 0 | U11: =IF(ISERROR(('Summary by Gas'!U35/VLOOKUP(StateID,'GSP from BEA'!$A$3:$AF$54,'Gas Intensity'!U10-1988,FALSE))*1000000),0,('Summary by Gas'!U35/VLOOKUP(StateID,'GSP from BEA'!$A$3:$AF$54,'Gas Intensity'!U10-1988,FALSE))*1000000) -> 0 | V11: =IF(ISERROR(('Summary by Gas'!V35/VLOOKUP(StateID,'GSP from BEA'!$A$3:$AF$54,'Gas Intensity'!V10-1988,FALSE))*1000000),0,('Summary by Gas'!V35/VLOOKUP(StateID,'GSP from BEA'!$A$3:$AF$54,'Gas Intensity'!V10-1988,FALSE))*1000000) -> 0 | W11: =IF(ISERROR(('Summary by Gas'!W35/VLOOKUP(StateID,'GSP from BEA'!$A$3:$AF$54,'Gas Intensity'!W10-1988,FALSE))*1000000),0,('Summary by Gas'!W35/VLOOKUP(StateID,'GSP from BEA'!$A$3:$AF$54,'Gas Intensity'!W10-1988,FALSE))*1000000) -> 0 | X11: =IF(ISERROR(('Summary by Gas'!X35/VLOOKUP(StateID,'GSP from BEA'!$A$3:$AF$54,'Gas Intensity'!X10-1988,FALSE))*1000000),0,('Summary by Gas'!X35/VLOOKUP(StateID,'GSP from BEA'!$A$3:$AF$54,'Gas Intensity'!X10-1988,FALSE))*1000000) -> 0 | Y11: =IF(ISERROR(('Summary by Gas'!Y35/VLOOKUP(StateID,'GSP from BEA'!$A$3:$AF$54,'Gas Intensity'!Y10-1988,FALSE))*1000000),0,('Summary by Gas'!Y35/VLOOKUP(StateID,'GSP from BEA'!$A$3:$AF$54,'Gas Intensity'!Y10-1988,FALSE))*1000000) -> 0 | Z11: =IF(ISERROR(('Summary by Gas'!Z35/VLOOKUP(StateID,'GSP from BEA'!$A$3:$AF$54,'Gas Intensity'!Z10-1988,FALSE))*1000000),0,('Summary by Gas'!Z35/VLOOKUP(StateID,'GSP from BEA'!$A$3:$AF$54,'Gas Intensity'!Z10-1988,FALSE))*1000000) -> 0 | AA11: =IF(ISERROR(('Summary by Gas'!AA35/VLOOKUP(StateID,'GSP from BEA'!$A$3:$AF$54,'Gas Intensity'!AA10-1988,FALSE))*1000000),0,('Summary by Gas'!AA35/VLOOKUP(StateID,'GSP from BEA'!$A$3:$AF$54,'Gas Intensity'!AA10-1988,FALSE))*1000000) -> 0 | AB11: =IF(ISERROR(('Summary by Gas'!AB35/VLOOKUP(StateID,'GSP from BEA'!$A$3:$AF$54,'Gas Intensity'!AB10-1988,FALSE))*1000000),0,('Summary by Gas'!AB35/VLOOKUP(StateID,'GSP from BEA'!$A$3:$AF$54,'Gas Intensity'!AB10-1988,FALSE))*1000000) -> 0 | AC11: =IF(ISERROR(('Summary by Gas'!AC35/VLOOKUP(StateID,'GSP from BEA'!$A$3:$AF$54,'Gas Intensity'!AC10-1988,FALSE))*1000000),0,('Summary by Gas'!AC35/VLOOKUP(StateID,'GSP from BEA'!$A$3:$AF$54,'Gas Intensity'!AC10-1988,FALSE))*1000000) -> 0 | AD11: =IF(ISERROR(('Summary by Gas'!AD35/VLOOKUP(StateID,'GSP from BEA'!$A$3:$AF$54,'Gas Intensity'!AD10-1988,FALSE))*1000000),0,('Summary by Gas'!AD35/VLOOKUP(StateID,'GSP from BEA'!$A$3:$AF$54,'Gas Intensity'!AD10-1988,FALSE))*1000000) -> 0 | AE11: =IF(ISERROR(('Summary by Gas'!AE35/VLOOKUP(StateID,'GSP from BEA'!$A$3:$AF$54,'Gas Intensity'!AE10-1988,FALSE))*1000000),0,('Summary by Gas'!AE35/VLOOKUP(StateID,'GSP from BEA'!$A$3:$AF$54,'Gas Intensity'!AE10-1988,FALSE))*1000000) -> 0 | AF11: =IF(ISERROR(('Summary by Gas'!AF35/VLOOKUP(StateID,'GSP from BEA'!$A$3:$AK$54,'Gas Intensity'!AF10-1988,FALSE))*1000000),0,('Summary by Gas'!AF35/VLOOKUP(StateID,'GSP from BEA'!$A$3:$AK$54,'Gas Intensity'!AF10-1988,FALSE))*1000000) -> 0 | AG11: =IF(ISERROR(('Summary by Gas'!AG35/VLOOKUP(StateID,'GSP from BEA'!$A$3:$AK$54,'Gas Intensity'!AG10-1988,FALSE))*1000000),0,('Summary by Gas'!AG35/VLOOKUP(StateID,'GSP from BEA'!$A$3:$AK$54,'Gas Intensity'!AG10-1988,FALSE))*1000000) -> 0 | AH11: =IF(ISERROR(('Summary by Gas'!AH35/VLOOKUP(StateID,'GSP from BEA'!$A$3:$AK$54,'Gas Intensity'!AH10-1988,FALSE))*1000000),0,('Summary by Gas'!AH35/VLOOKUP(StateID,'GSP from BEA'!$A$3:$AK$54,'Gas Intensity'!AH10-1988,FALSE))*1000000) -> 0 | AI11: =IF(ISERROR(('Summary by Gas'!AI35/VLOOKUP(StateID,'GSP from BEA'!$A$3:$AK$54,'Gas Intensity'!AI10-1988,FALSE))*1000000),0,('Summary by Gas'!AI35/VLOOKUP(StateID,'GSP from BEA'!$A$3:$AK$54,'Gas Intensity'!AI10-1988,FALSE))*1000000) -> 0 | AJ11: =IF(ISERROR(('Summary by Gas'!AJ35/VLOOKUP(StateID,'GSP from BEA'!$A$3:$AK$54,'Gas Intensity'!AJ10-1988,FALSE))*1000000),0,('Summary by Gas'!AJ35/VLOOKUP(StateID,'GSP from BEA'!$A$3:$AK$54,'Gas Intensity'!AJ10-1988,FALSE))*1000000) -> 0 | AK11: =IF(ISERROR(('Summary by Gas'!AK35/VLOOKUP(StateID,'GSP from BEA'!$A$3:$AK$54,'Gas Intensity'!AK10-1988,FALSE))*1000000),0,('Summary by Gas'!AK35/VLOOKUP(StateID,'GSP from BEA'!$A$3:$AK$54,'Gas Intensity'!AK10-1988,FALSE))*1000000) -> 0 | AL11: =IF(ISERROR(('Summary by Gas'!AL35/VLOOKUP(StateID,'GSP from BEA'!$A$3:$AK$54,'Gas Intensity'!AL10-1988,FALSE))*1000000),0,('Summary by Gas'!AL35/VLOOKUP(StateID,'GSP from BEA'!$A$3:$AK$54,'Gas Intensity'!AL10-1988,FALSE))*1000000) -> 0
B12: Net Emissions Intensity (Sources and Sinks) | C12: =IF(ISERROR('Summary by Gas'!C37/VLOOKUP(StateID,'GSP from BEA'!$A$3:$AF$54,'Gas Intensity'!C10-1988,FALSE)*1000000),0,'Summary by Gas'!C37/VLOOKUP(StateID,'GSP from BEA'!$A$3:$AF$54,'Gas Intensity'!C10-1988,FALSE)*1000000) -> 0 | D12: =IF(ISERROR('Summary by Gas'!D37/VLOOKUP(StateID,'GSP from BEA'!$A$3:$AF$54,'Gas Intensity'!D10-1988,FALSE)*1000000),0,'Summary by Gas'!D37/VLOOKUP(StateID,'GSP from BEA'!$A$3:$AF$54,'Gas Intensity'!D10-1988,FALSE)*1000000) -> 0 | E12: =IF(ISERROR('Summary by Gas'!E37/VLOOKUP(StateID,'GSP from BEA'!$A$3:$AF$54,'Gas Intensity'!E10-1988,FALSE)*1000000),0,'Summary by Gas'!E37/VLOOKUP(StateID,'GSP from BEA'!$A$3:$AF$54,'Gas Intensity'!E10-1988,FALSE)*1000000) -> 0 | F12: =IF(ISERROR('Summary by Gas'!F37/VLOOKUP(StateID,'GSP from BEA'!$A$3:$AF$54,'Gas Intensity'!F10-1988,FALSE)*1000000),0,'Summary by Gas'!F37/VLOOKUP(StateID,'GSP from BEA'!$A$3:$AF$54,'Gas Intensity'!F10-1988,FALSE)*1000000) -> 0 | G12: =IF(ISERROR('Summary by Gas'!G37/VLOOKUP(StateID,'GSP from BEA'!$A$3:$AF$54,'Gas Intensity'!G10-1988,FALSE)*1000000),0,'Summary by Gas'!G37/VLOOKUP(StateID,'GSP from BEA'!$A$3:$AF$54,'Gas Intensity'!G10-1988,FALSE)*1000000) -> 0 | H12: =IF(ISERROR('Summary by Gas'!H37/VLOOKUP(StateID,'GSP from BEA'!$A$3:$AF$54,'Gas Intensity'!H10-1988,FALSE)*1000000),0,'Summary by Gas'!H37/VLOOKUP(StateID,'GSP from BEA'!$A$3:$AF$54,'Gas Intensity'!H10-1988,FALSE)*1000000) -> 0 | I12: =IF(ISERROR('Summary by Gas'!I37/VLOOKUP(StateID,'GSP from BEA'!$A$3:$AF$54,'Gas Intensity'!I10-1988,FALSE)*1000000),0,'Summary by Gas'!I37/VLOOKUP(StateID,'GSP from BEA'!$A$3:$AF$54,'Gas Intensity'!I10-1988,FALSE)*1000000) -> 0 | J12: =IF(ISERROR('Summary by Gas'!J37/VLOOKUP(StateID,'GSP from BEA'!$A$3:$AF$54,'Gas Intensity'!J10-1988,FALSE)*1000000),0,'Summary by Gas'!J37/VLOOKUP(StateID,'GSP from BEA'!$A$3:$AF$54,'Gas Intensity'!J10-1988,FALSE)*1000000) -> 0 | K12: =IF(ISERROR('Summary by Gas'!K37/VLOOKUP(StateID,'GSP from BEA'!$A$3:$AF$54,'Gas Intensity'!K10-1988,FALSE)*1000000),0,'Summary by Gas'!K37/VLOOKUP(StateID,'GSP from BEA'!$A$3:$AF$54,'Gas Intensity'!K10-1988,FALSE)*1000000) -> 0 | L12: =IF(ISERROR('Summary by Gas'!L37/VLOOKUP(StateID,'GSP from BEA'!$A$3:$AF$54,'Gas Intensity'!L10-1988,FALSE)*1000000),0,'Summary by Gas'!L37/VLOOKUP(StateID,'GSP from BEA'!$A$3:$AF$54,'Gas Intensity'!L10-1988,FALSE)*1000000) -> 0 | M12: =IF(ISERROR('Summary by Gas'!M37/VLOOKUP(StateID,'GSP from BEA'!$A$3:$AF$54,'Gas Intensity'!M10-1988,FALSE)*1000000),0,'Summary by Gas'!M37/VLOOKUP(StateID,'GSP from BEA'!$A$3:$AF$54,'Gas Intensity'!M10-1988,FALSE)*1000000) -> 0 | N12: =IF(ISERROR('Summary by Gas'!N37/VLOOKUP(StateID,'GSP from BEA'!$A$3:$AF$54,'Gas Intensity'!N10-1988,FALSE)*1000000),0,'Summary by Gas'!N37/VLOOKUP(StateID,'GSP from BEA'!$A$3:$AF$54,'Gas Intensity'!N10-1988,FALSE)*1000000) -> 0 | O12: =IF(ISERROR('Summary by Gas'!O37/VLOOKUP(StateID,'GSP from BEA'!$A$3:$AF$54,'Gas Intensity'!O10-1988,FALSE)*1000000),0,'Summary by Gas'!O37/VLOOKUP(StateID,'GSP from BEA'!$A$3:$AF$54,'Gas Intensity'!O10-1988,FALSE)*1000000) -> 0 | P12: =IF(ISERROR('Summary by Gas'!P37/VLOOKUP(StateID,'GSP from BEA'!$A$3:$AF$54,'Gas Intensity'!P10-1988,FALSE)*1000000),0,'Summary by Gas'!P37/VLOOKUP(StateID,'GSP from BEA'!$A$3:$AF$54,'Gas Intensity'!P10-1988,FALSE)*1000000) -> 0 | Q12: =IF(ISERROR('Summary by Gas'!Q37/VLOOKUP(StateID,'GSP from BEA'!$A$3:$AF$54,'Gas Intensity'!Q10-1988,FALSE)*1000000),0,'Summary by Gas'!Q37/VLOOKUP(StateID,'GSP from BEA'!$A$3:$AF$54,'Gas Intensity'!Q10-1988,FALSE)*1000000) -> 0 | R12: =IF(ISERROR('Summary by Gas'!R37/VLOOKUP(StateID,'GSP from BEA'!$A$3:$AF$54,'Gas Intensity'!R10-1988,FALSE)*1000000),0,'Summary by Gas'!R37/VLOOKUP(StateID,'GSP from BEA'!$A$3:$AF$54,'Gas Intensity'!R10-1988,FALSE)*1000000) -> 0 | S12: =IF(ISERROR('Summary by Gas'!S37/VLOOKUP(StateID,'GSP from BEA'!$A$3:$AF$54,'Gas Intensity'!S10-1988,FALSE)*1000000),0,'Summary by Gas'!S37/VLOOKUP(StateID,'GSP from BEA'!$A$3:$AF$54,'Gas Intensity'!S10-1988,FALSE)*1000000) -> 0 | T12: =IF(ISERROR('Summary by Gas'!T37/VLOOKUP(StateID,'GSP from BEA'!$A$3:$AF$54,'Gas Intensity'!T10-1988,FALSE)*1000000),0,'Summary by Gas'!T37/VLOOKUP(StateID,'GSP from BEA'!$A$3:$AF$54,'Gas Intensity'!T10-1988,FALSE)*1000000) -> 0 | U12: =IF(ISERROR('Summary by Gas'!U37/VLOOKUP(StateID,'GSP from BEA'!$A$3:$AF$54,'Gas Intensity'!U10-1988,FALSE)*1000000),0,'Summary by Gas'!U37/VLOOKUP(StateID,'GSP from BEA'!$A$3:$AF$54,'Gas Intensity'!U10-1988,FALSE)*1000000) -> 0 | V12: =IF(ISERROR('Summary by Gas'!V37/VLOOKUP(StateID,'GSP from BEA'!$A$3:$AF$54,'Gas Intensity'!V10-1988,FALSE)*1000000),0,'Summary by Gas'!V37/VLOOKUP(StateID,'GSP from BEA'!$A$3:$AF$54,'Gas Intensity'!V10-1988,FALSE)*1000000) -> 0 | W12: =IF(ISERROR('Summary by Gas'!W37/VLOOKUP(StateID,'GSP from BEA'!$A$3:$AF$54,'Gas Intensity'!W10-1988,FALSE)*1000000),0,'Summary by Gas'!W37/VLOOKUP(StateID,'GSP from BEA'!$A$3:$AF$54,'Gas Intensity'!W10-1988,FALSE)*1000000) -> 0 | X12: =IF(ISERROR('Summary by Gas'!X37/VLOOKUP(StateID,'GSP from BEA'!$A$3:$AF$54,'Gas Intensity'!X10-1988,FALSE)*1000000),0,'Summary by Gas'!X37/VLOOKUP(StateID,'GSP from BEA'!$A$3:$AF$54,'Gas Intensity'!X10-1988,FALSE)*1000000) -> 0 | Y12: =IF(ISERROR('Summary by Gas'!Y37/VLOOKUP(StateID,'GSP from BEA'!$A$3:$AF$54,'Gas Intensity'!Y10-1988,FALSE)*1000000),0,'Summary by Gas'!Y37/VLOOKUP(StateID,'GSP from BEA'!$A$3:$AF$54,'Gas Intensity'!Y10-1988,FALSE)*1000000) -> 0 | Z12: =IF(ISERROR('Summary by Gas'!Z37/VLOOKUP(StateID,'GSP from BEA'!$A$3:$AF$54,'Gas Intensity'!Z10-1988,FALSE)*1000000),0,'Summary by Gas'!Z37/VLOOKUP(StateID,'GSP from BEA'!$A$3:$AF$54,'Gas Intensity'!Z10-1988,FALSE)*1000000) -> 0 | AA12: =IF(ISERROR('Summary by Gas'!AA37/VLOOKUP(StateID,'GSP from BEA'!$A$3:$AF$54,'Gas Intensity'!AA10-1988,FALSE)*1000000),0,'Summary by Gas'!AA37/VLOOKUP(StateID,'GSP from BEA'!$A$3:$AF$54,'Gas Intensity'!AA10-1988,FALSE)*1000000) -> 0 | AB12: =IF(ISERROR('Summary by Gas'!AB37/VLOOKUP(StateID,'GSP from BEA'!$A$3:$AF$54,'Gas Intensity'!AB10-1988,FALSE)*1000000),0,'Summary by Gas'!AB37/VLOOKUP(StateID,'GSP from BEA'!$A$3:$AF$54,'Gas Intensity'!AB10-1988,FALSE)*1000000) -> 0 | AC12: =IF(ISERROR('Summary by Gas'!AC37/VLOOKUP(StateID,'GSP from BEA'!$A$3:$AF$54,'Gas Intensity'!AC10-1988,FALSE)*1000000),0,'Summary by Gas'!AC37/VLOOKUP(StateID,'GSP from BEA'!$A$3:$AF$54,'Gas Intensity'!AC10-1988,FALSE)*1000000) -> 0 | AD12: =IF(ISERROR('Summary by Gas'!AD37/VLOOKUP(StateID,'GSP from BEA'!$A$3:$AF$54,'Gas Intensity'!AD10-1988,FALSE)*1000000),0,'Summary by Gas'!AD37/VLOOKUP(StateID,'GSP from BEA'!$A$3:$AF$54,'Gas Intensity'!AD10-1988,FALSE)*1000000) -> 0 | AE12: =IF(ISERROR('Summary by Gas'!AE37/VLOOKUP(StateID,'GSP from BEA'!$A$3:$AF$54,'Gas Intensity'!AE10-1988,FALSE)*1000000),0,'Summary by Gas'!AE37/VLOOKUP(StateID,'GSP from BEA'!$A$3:$AF$54,'Gas Intensity'!AE10-1988,FALSE)*1000000) -> 0 | AF12: =IF(ISERROR('Summary by Gas'!AF37/VLOOKUP(StateID,'GSP from BEA'!$A$3:$AK$54,'Gas Intensity'!AF10-1988,FALSE)*1000000),0,'Summary by Gas'!AF37/VLOOKUP(StateID,'GSP from BEA'!$A$3:$AK$54,'Gas Intensity'!AF10-1988,FALSE)*1000000) -> 0 | AG12: =IF(ISERROR('Summary by Gas'!AG37/VLOOKUP(StateID,'GSP from BEA'!$A$3:$AK$54,'Gas Intensity'!AG10-1988,FALSE)*1000000),0,'Summary by Gas'!AG37/VLOOKUP(StateID,'GSP from BEA'!$A$3:$AK$54,'Gas Intensity'!AG10-1988,FALSE)*1000000) -> 0 | AH12: =IF(ISERROR('Summary by Gas'!AH37/VLOOKUP(StateID,'GSP from BEA'!$A$3:$AK$54,'Gas Intensity'!AH10-1988,FALSE)*1000000),0,'Summary by Gas'!AH37/VLOOKUP(StateID,'GSP from BEA'!$A$3:$AK$54,'Gas Intensity'!AH10-1988,FALSE)*1000000) -> 0 | AI12: =IF(ISERROR('Summary by Gas'!AI37/VLOOKUP(StateID,'GSP from BEA'!$A$3:$AK$54,'Gas Intensity'!AI10-1988,FALSE)*1000000),0,'Summary by Gas'!AI37/VLOOKUP(StateID,'GSP from BEA'!$A$3:$AK$54,'Gas Intensity'!AI10-1988,FALSE)*1000000) -> 0 | AJ12: =IF(ISERROR('Summary by Gas'!AJ37/VLOOKUP(StateID,'GSP from BEA'!$A$3:$AK$54,'Gas Intensity'!AJ10-1988,FALSE)*1000000),0,'Summary by Gas'!AJ37/VLOOKUP(StateID,'GSP from BEA'!$A$3:$AK$54,'Gas Intensity'!AJ10-1988,FALSE)*1000000) -> 0 | AK12: =IF(ISERROR('Summary by Gas'!AK37/VLOOKUP(StateID,'GSP from BEA'!$A$3:$AK$54,'Gas Intensity'!AK10-1988,FALSE)*1000000),0,'Summary by Gas'!AK37/VLOOKUP(StateID,'GSP from BEA'!$A$3:$AK$54,'Gas Intensity'!AK10-1988,FALSE)*1000000) -> 0 | AL12: =IF(ISERROR('Summary by Gas'!AL37/VLOOKUP(StateID,'GSP from BEA'!$A$3:$AK$54,'Gas Intensity'!AL10-1988,FALSE)*1000000),0,'Summary by Gas'!AL37/VLOOKUP(StateID,'GSP from BEA'!$A$3:$AK$54,'Gas Intensity'!AL10-1988,FALSE)*1000000) -> 0
V15: ="Gross GHG Emissions Per Capita, 1990-"&B9 -> Gross GHG Emissions Per Capita, 1990-1990
V16: ="Gross GHG Emissions Per GSP, 1990-"&B9 -> Gross GHG Emissions Per GSP, 1990-1990

Sheet Population
B1: 1990-2022: U.S. Census Data Archives
B2: 000 people | C2: Source: U.S. Census American FactFinder https://factfinder.census.gov/
A3: State | B3: 1990 | C3: 1991 | D3: 1992 | E3: 1993 | F3: 1994 | G3: 1995 | H3: 1996 | I3: 1997 | J3: 1998 | K3: 1999 | L3: 2000 | M3: 2001 | N3: 2002 | O3: 2003 | P3: 2004 | Q3: 2005 | R3: 2006 | S3: 2007 | T3: 2008 | U3: 2009 | V3: 2010 | W3: 2011 | X3: 2012 | Y3: 2013 | Z3: 2014 | AA3: 2015 | AB3: 2016 | AC3: 2017 | AD3: 2018 | AE3: 2019 | AF3: 2020 | AG3: 2021 | AH3: 2022 | AI3: 2023 | AJ3: 2024 | AK3: 2025
A4: AL | B4: 4050.055 | C4: 4099.156 | D4: 4154.014 | E4: 4214.202 | F4: 4260.229 | G4: 4296.8 | H4: 4331.102 | I4: 4367.935 | J4: 4404.701 | K4: 4430.141 | L4: 4452.173 | M4: 4467.634 | N4: 4480.089 | O4: 4503.491 | P4: 4530.729 | Q4: 4569.805 | R4: 4628.981 | S4: 4672.84 | T4: 4718.206 | U4: 4757.938 | V4: 4785.514 | W4: 4799.642 | X4: 4816.632 | Y4: 4831.586 | Z4: 4843.737 | AA4: 4854.803 | AB4: 4866.824 | AC4: 4877.989 | AD4: 4891.628 | AE4: 4907.965 | AF4: 5031.362 | AG4: 5049.846 | AH4: 5074.296 | AI4: =AH4 -> 5074.296 | AJ4: 5074.296 | AK4: 5074.296
A5: AK | B5: 553.29 | C5: 570.193 | D5: 588.736 | E5: 599.432 | F5: 603.308 | G5: 604.412 | H5: 608.569 | I5: 612.968 | J5: 619.932 | K5: 624.779 | L5: 627.963 | M5: 633.714 | N5: 642.337 | O5: 648.414 | P5: 659.286 | Q5: 666.946 | R5: 675.302 | S5: 680.3 | T5: 687.455 | U5: 698.895 | V5: 713.982 | W5: 722.349 | X5: 730.81 | Y5: 737.626 | Z5: 737.075 | AA5: 738.43 | AB5: 742.575 | AC5: 740.983 | AD5: 736.624 | AE5: 733.603 | AF5: 732.923 | AG5: 734.182 | AH5: 733.583 | AI5: =AH5 -> 733.583 | AJ5: =AI5 -> 733.583 | AK5: =AJ5 -> 733.583
A6: AZ | B6: 3684.097 | C6: 3788.576 | D6: 3915.74 | E6: 4065.44 | F6: 4245.089 | G6: 4432.499 | H6: 4586.94 | I6: 4736.99 | J6: 4883.342 | K6: 5023.823 | L6: 5160.586 | M6: 5273.477 | N6: 5396.255 | O6: 5510.364 | P6: 5652.404 | Q6: 5839.077 | R6: 6029.141 | S6: 6167.681 | T6: 6280.362 | U6: 6343.154 | V6: 6407.342 | W6: 6473.416 | X6: 6556.344 | Y6: 6634.69 | Z6: 6732.873 | AA6: 6832.81 | AB6: 6944.767 | AC6: 7048.088 | AD6: 7164.228 | AE6: 7291.843 | AF6: 7179.943 | AG6: 7264.877 | AH6: 7359.197 | AI6: 7359.197 | AJ6: 7359.197 | AK6: 7359.197
A7: AR | B7: 2356.586 | C7: 2383.144 | D7: 2415.984 | E7: 2456.303 | F7: 2494.019 | G7: 2535.399 | H7: 2572.109 | I7: 2601.09 | J7: 2626.289 | K7: 2651.86 | L7: 2678.588 | M7: 2691.571 | N7: 2705.927 | O7: 2724.816 | P7: 2749.686 | Q7: 2781.097 | R7: 2821.761 | S7: 2848.65 | T7: 2874.554 | U7: 2896.843 | V7: 2921.998 | W7: 2941.038 | X7: 2952.876 | Y7: 2960.459 | Z7: 2968.759 | AA7: 2979.732 | AB7: 2991.815 | AC7: 3003.855 | AD7: 3012.161 | AE7: 3020.985 | AF7: 3014.195 | AG7: 3028.122 | AH7: 3045.637 | AI7: 3045.637 | AJ7: 3045.637 | AK7: 3045.637
A8: CA | B8: 29959.515 | C8: 30470.736 | D8: 30974.659 | E8: 31274.928 | F8: 31484.435 | G8: 31696.582 | H8: 32018.834 | I8: 32486.01 | J8: 32987.675 | K8: 33499.204 | L8: 33987.977 | M8: 34479.458 | N8: 34871.843 | O8: 35253.159 | P8: 35574.576 | Q8: 35827.943 | R8: 36021.202 | S8: 36250.311 | T8: 36604.337 | U8: 36961.229 | V8: 37319.55 | W8: 37636.311 | X8: 37944.551 | Y8: 38253.768 | Z8: 38586.706 | AA8: 38904.296 | AB8: 39149.186 | AC8: 39337.785 | AD8: 39437.463 | AE8: 39437.61 | AF8: 39501.653 | AG8: 39142.991 | AH8: 39029.342 | AI8: 39029.342 | AJ8: 39029.342 | AK8: 39029.342
A9: CO | B9: 3307.618 | C9: 3387.119 | D9: 3495.939 | E9: 3613.734 | F9: 3724.168 | G9: 3826.653 | H9: 3919.972 | I9: 4018.293 | J9: 4116.639 | K9: 4226.018 | L9: 4326.921 | M9: 4425.687 | N9: 4490.406 | O9: 4528.732 | P9: 4575.013 | Q9: 4631.888 | R9: 4720.423 | S9: 4803.868 | T9: 4889.73 | U9: 4972.195 | V9: 5047.539 | W9: 5121.9 | X9: 5193.66 | Y9: 5270.774 | Z9: 5352.637 | AA9: 5454.328 | AB9: 5543.844 | AC9: 5617.421 | AD9: 5697.155 | AE9: 5758.486 | AF9: 5784.865 | AG9: 5811.297 | AH9: 5839.926 | AI9: 5839.926 | AJ9: 5839.926 | AK9: 5839.926
A10: CT | B10: 3291.967 | C10: 3302.895 | D10: 3300.712 | E10: 3309.175 | F10: 3316.121 | G10: 3324.144 | H10: 3336.685 | I10: 3349.348 | J10: 3365.352 | K10: 3386.401 | L10: 3411.777 | M10: 3432.835 | N10: 3458.749 | O10: 3484.336 | P10: 3496.094 | Q10: 3506.956 | R10: 3517.46 | S10: 3527.27 | T10: 3545.579 | U10: 3561.807 | V10: 3579.173 | W10: 3588.632 | X10: 3595.211 | Y10: 3595.792 | Z10: 3595.697 | AA10: 3588.561 | AB10: 3579.83 | AC10: 3575.324 | AD10: 3574.561 | AE10: 3566.022 | AF10: 3597.362 | AG10: 3623.355 | AH10: 3626.205 | AI10: 3626.205 | AJ10: 3626.205 | AK10: 3626.205
A11: DE | B11: 669.567 | C11: 683.08 | D11: 694.925 | E11: 706.378 | F11: 717.545 | G11: 729.734 | H11: 740.977 | I11: 751.487 | J11: 763.335 | K11: 774.99 | L11: 786.373 | M11: 795.699 | N11: 806.169 | O11: 818.003 | P11: 830.803 | Q11: 845.15 | R11: 859.268 | S11: 871.749 | T11: 883.874 | U11: 891.73 | V11: 899.647 | W11: 907.59 | X11: 915.518 | Y11: 924.062 | Z11: 933.131 | AA11: 942.065 | AB11: 949.989 | AC11: 957.942 | AD11: 966.985 | AE11: 976.668 | AF11: 992.114 | AG11: 1004.807 | AH11: 1018.396 | AI11: 1018.396 | AJ11: 1018.396 | AK11: 1018.396
A12: DC | B12: 605.321 | C12: 600.87 | D12: 597.565 | E12: 595.301 | F12: 589.239 | G12: 580.517 | H12: 572.377 | I12: 567.736 | J12: 565.23 | K12: 570.213 | L12: 572.046 | M12: 574.504 | N12: 573.158 | O12: 568.502 | P12: 567.754 | Q12: 567.136 | R12: 570.681 | S12: 574.404 | T12: 580.236 | U12: 592.228 | V12: 605.282 | W12: 620.29 | X12: 635.737 | Y12: 651.559 | Z12: 663.603 | AA12: 677.014 | AB12: 687.576 | AC12: 697.079 | AD12: 704.147 | AE12: 708.253 | AF12: 670.868 | AG12: 668.791 | AH12: 671.803 | AI12: 671.803 | AJ12: 671.803 | AK12: 671.803
A13: FL | B13: 13033.307 | C13: 13369.798 | D13: 13650.553 | E13: 13927.185 | F13: 14239.444 | G13: 14537.875 | H13: 14853.36 | I13: 15186.304 | J13: 15486.559 | K13: 15759.421 | L13: 16047.515 | M13: 16356.966 | N13: 16689.37 | O13: 17004.085 | P13: 17415.318 | Q13: 17842.038 | R13: 18166.99 | S13: 18367.842 | T13: 18527.305 | U13: 18652.644 | V13: 18846.143 | W13: 19055.607 | X13: 19302.016 | Y13: 19551.678 | Z13: 19853.88 | AA13: 20219.111 | AB13: 20627.237 | AC13: 20977.089 | AD13: 21254.926 | AE13: 21492.056 | AF13: 21589.602 | AG13: 21828.069 | AH13: 22244.823 | AI13: 22244.823 | AJ13: 22244.823 | AK13: 22244.823
A14: GA | B14: 6512.602 | C14: 6653.005 | D14: 6817.203 | E14: 6978.24 | F14: 7157.165 | G14: 7328.413 | H14: 7501.069 | I14: 7685.099 | J14: 7863.536 | K14: 8045.965 | L14: 8227.303 | M14: 8377.038 | N14: 8508.256 | O14: 8622.793 | P14: 8769.252 | Q14: 8925.922 | R14: 9155.813 | S14: 9349.988 | T14: 9504.843 | U14: 9620.846 | V14: 9712.209 | W14: 9803.63 | X14: 9903.58 | Y14: 9975.592 | Z14: 10071.204 | AA14: 10183.353 | AB14: 10308.442 | AC14: 10417.031 | AD14: 10519.389 | AE14: 10628.02 | AF14: 10729.828 | AG14: 10788.029 | AH14: 10912.876 | AI14: 10912.876 | AJ14: 10912.876 | AK14: 10912.876
A15: HI | B15: 1113.491 | C15: 1136.754 | D15: 1158.613 | E15: 1172.838 | F15: 1187.536 | G15: 1196.854 | H15: 1203.755 | I15: 1211.64 | J15: 1215.233 | K15: 1210.3 | L15: 1213.519 | M15: 1225.948 | N15: 1239.613 | O15: 1251.154 | P15: 1273.569 | Q15: 1292.729 | R15: 1309.731 | S15: 1315.675 | T15: 1332.213 | U15: 1346.717 | V15: 1364.004 | W15: 1379.562 | X15: 1395.199 | Y15: 1408.822 | Z15: 1415.335 | AA15: 1422.999 | AB15: 1428.885 | AC15: 1425.763 | AD15: 1423.102 | AE15: 1415.615 | AF15: 1451.043 | AG15: 1447.154 | AH15: 1440.196 | AI15: 1440.196 | AJ15: 1440.196 | AK15: 1440.196
A16: ID | B16: 1012.384 | C16: 1041.316 | D16: 1071.685 | E16: 1108.768 | F16: 1145.14 | G16: 1177.322 | H16: 1203.083 | I16: 1228.52 | J16: 1252.33 | K16: 1275.674 | L16: 1299.43 | M16: 1319.962 | N16: 1340.372 | O16: 1363.38 | P16: 1391.802 | Q16: 1428.241 | R16: 1468.669 | S16: 1505.105 | T16: 1534.32 | U16: 1554.439 | V16: 1570.819 | W16: 1584.272 | X16: 1595.91 | Y16: 1612.053 | Z16: 1632.248 | AA16: 1652.495 | AB16: 1684.036 | AC16: 1719.745 | AD16: 1752.074 | AE16: 1789.06 | AF16: 1849.202 | AG16: 1904.314 | AH16: 1939.033 | AI16: 1939.033 | AJ16: 1939.033 | AK16: 1939.033
A17: IL | B17: 11453.316 | C17: 11568.964 | D17: 11694.184 | E17: 11809.579 | F17: 11912.585 | G17: 12008.437 | H17: 12101.997 | I17: 12185.715 | J17: 12271.847 | K17: 12359.02 | L17: 12434.161 | M17: 12488.445 | N17: 12525.556 | O17: 12556.006 | P17: 12589.773 | Q17: 12609.903 | R17: 12643.955 | S17: 12695.866 | T17: 12747.038 | U17: 12796.778 | V17: 12840.545 | W17: 12867.783 | X17: 12883.029 | Y17: 12895.778 | Z17: 12885.092 | AA17: 12859.585 | AB17: 12821.709 | AC17: 12779.893 | AD17: 12724.685 | AE17: 12667.017 | AF17: 12786.58 | AG17: 12686.469 | AH17: 12582.032 | AI17: 12582.032 | AJ17: 12582.032 | AK17: 12582.032
A18: IN | B18: 5557.798 | C18: 5616.388 | D18: 5674.547 | E18: 5739.019 | F18: 5793.526 | G18: 5851.459 | H18: 5906.013 | I18: 5955.267 | J18: 5998.88 | K18: 6044.969 | L18: 6091.866 | M18: 6127.76 | N18: 6155.967 | O18: 6196.638 | P18: 6233.007 | Q18: 6278.616 | R18: 6332.669 | S18: 6379.599 | T18: 6424.806 | U18: 6459.325 | V18: 6490.555 | W18: 6517.25 | X18: 6538.989 | Y18: 6570.575 | Z18: 6596.019 | AA18: 6611.442 | AB18: 6637.898 | AC18: 6662.068 | AD18: 6698.481 | AE18: 6731.01 | AF18: 6788.799 | AG18: 6813.532 | AH18: 6833.037 | AI18: 6833.037 | AJ18: 6833.037 | AK18: 6833.037
A19: IA | B19: 2781.018 | C19: 2797.613 | D19: 2818.401 | E19: 2836.972 | F19: 2850.746 | G19: 2867.373 | H19: 2880 | I19: 2891.119 | J19: 2902.872 | K19: 2917.634 | L19: 2929.067 | M19: 2931.997 | N19: 2934.234 | O19: 2941.999 | P19: 2953.635 | Q19: 2964.454 | R19: 2982.644 | S19: 2999.212 | T19: 3016.734 | U19: 3032.87 | V19: 3050.819 | W19: 3066.772 | X19: 3076.844 | Y19: 3093.935 | Z19: 3110.643 | AA19: 3122.541 | AB19: 3133.21 | AC19: 3143.734 | AD19: 3149.9 | AE19: 3159.596 | AF19: 3190.571 | AG19: 3197.689 | AH19: 3200.517 | AI19: 3200.517 | AJ19: 3200.517 | AK19: 3200.517
A20: KS | B20: 2481.349 | C20: 2498.722 | D20: 2532.394 | E20: 2556.547 | F20: 2580.513 | G20: 2601.007 | H20: 2614.554 | I20: 2635.292 | J20: 2660.598 | K20: 2678.338 | L20: 2693.681 | M20: 2702.162 | N20: 2713.535 | O20: 2723.004 | P20: 2734.373 | Q20: 2745.299 | R20: 2762.931 | S20: 2783.785 | T20: 2808.076 | U20: 2832.704 | V20: 2858.266 | W20: 2869.677 | X20: 2886.024 | Y20: 2894.306 | Z20: 2901.861 | AA20: 2910.717 | AB20: 2912.977 | AC20: 2910.892 | AD20: 2912.748 | AE20: 2912.635 | AF20: 2937.919 | AG20: 2937.922 | AH20: 2937.15 | AI20: 2937.15 | AJ20: 2937.15 | AK20: 2937.15
A21: KY | B21: 3694.048 | C21: 3722.328 | D21: 3765.469 | E21: 3812.206 | F21: 3849.088 | G21: 3887.427 | H21: 3919.535 | I21: 3952.747 | J21: 3985.39 | K21: 4018.053 | L21: 4049.021 | M21: 4068.132 | N21: 4089.875 | O21: 4117.17 | P21: 4146.101 | Q21: 4182.742 | R21: 4219.239 | S21: 4256.672 | T21: 4289.878 | U21: 4317.074 | V21: 4348.464 | W21: 4370.817 | X21: 4387.865 | Y21: 4406.906 | Z21: 4416.992 | AA21: 4429.126 | AB21: 4440.306 | AC21: 4455.59 | AD21: 4464.273 | AE21: 4472.345 | AF21: 4507.445 | AG21: 4506.589 | AH21: 4512.31 | AI21: 4512.31 | AJ21: 4512.31 | AK21: 4512.31
A22: LA | B22: 4221.532 | C22: 4253.279 | D22: 4293.003 | E22: 4316.428 | F22: 4347.481 | G22: 4378.779 | H22: 4398.877 | I22: 4421.071 | J22: 4440.344 | K22: 4460.811 | L22: 4471.885 | M22: 4477.875 | N22: 4497.267 | O22: 4521.042 | P22: 4552.238 | Q22: 4576.628 | R22: 4302.665 | S22: 4375.581 | T22: 4435.586 | U22: 4491.648 | V22: 4544.635 | W22: 4576.244 | X22: 4602.067 | Y22: 4626.04 | Z22: 4645.938 | AA22: 4666.998 | AB22: 4681.346 | AC22: 4673.673 | AD22: 4664.45 | AE22: 4658.285 | AF22: 4651.664 | AG22: 4627.098 | AH22: 4590.241 | AI22: 4590.241 | AJ22: 4590.241 | AK22: 4590.241
A23: ME | B23: 1231.719 | C23: 1237.081 | D23: 1238.508 | E23: 1242.302 | F23: 1242.662 | G23: 1243.48 | H23: 1249.06 | I23: 1254.774 | J23: 1259.127 | K23: 1266.808 | L23: 1277.072 | M23: 1285.692 | N23: 1295.96 | O23: 1306.513 | P23: 1313.688 | Q23: 1318.787 | R23: 1323.619 | S23: 1327.04 | T23: 1330.509 | U23: 1329.59 | V23: 1327.651 | W23: 1328.473 | X23: 1328.094 | Y23: 1328.543 | Z23: 1331.217 | AA23: 1329.098 | AB23: 1332.348 | AC23: 1335.743 | AD23: 1340.123 | AE23: 1345.77 | AF23: 1363.557 | AG23: 1377.238 | AH23: 1385.34 | AI23: 1385.34 | AJ23: 1385.34 | AK23: 1385.34
A24: MD | B24: 4799.77 | C24: 4867.641 | D24: 4923.368 | E24: 4971.889 | F24: 5023.06 | G24: 5070.033 | H24: 5111.986 | I24: 5157.328 | J24: 5204.464 | K24: 5254.509 | L24: 5311.034 | M24: 5374.691 | N24: 5440.389 | O24: 5496.269 | P24: 5546.935 | Q24: 5592.379 | R24: 5627.367 | S24: 5653.408 | T24: 5684.965 | U24: 5730.388 | V24: 5788.784 | W24: 5840.241 | X24: 5888.375 | Y24: 5925.197 | Z24: 5960.064 | AA24: 5988.528 | AB24: 6007.014 | AC24: 6028.186 | AD24: 6042.153 | AE24: 6054.954 | AF24: 6173.205 | AG24: 6174.61 | AH24: 6164.66 | AI24: 6164.66 | AJ24: 6164.66 | AK24: 6164.66
A25: MA | B25: 6022.639 | C25: 6018.47 | D25: 6028.709 | E25: 6060.569 | F25: 6095.241 | G25: 6141.445 | H25: 6179.756 | I25: 6226.058 | J25: 6271.838 | K25: 6317.345 | L25: 6361.104 | M25: 6397.634 | N25: 6417.206 | O25: 6422.565 | P25: 6412.281 | Q25: 6403.29 | R25: 6410.084 | S25: 6431.559 | T25: 6468.967 | U25: 6517.613 | V25: 6566.44 | W25: 6614.218 | X25: 6664.269 | Y25: 6715.158 | Z25: 6764.864 | AA25: 6797.484 | AB25: 6827.28 | AC25: 6863.56 | AD25: 6885.72 | AE25: 6894.883 | AF25: 6995.729 | AG25: 6989.69 | AH25: 6981.974 | AI25: 6981.974 | AJ25: 6981.974 | AK25: 6981.974
A26: MI | B26: 9311.319 | C26: 9400.446 | D26: 9479.065 | E26: 9540.114 | F26: 9597.737 | G26: 9676.211 | H26: 9758.645 | I26: 9809.051 | J26: 9847.942 | K26: 9897.116 | L26: 9952.45 | M26: 9991.12 | N26: 10015.71 | O26: 10041.152 | P26: 10055.315 | Q26: 10051.137 | R26: 10036.081 | S26: 10001.284 | T26: 9946.889 | U26: 9901.591 | V26: 9877.597 | W26: 9883.053 | X26: 9898.289 | Y26: 9914.802 | Z26: 9932.033 | AA26: 9934.483 | AB26: 9954.117 | AC26: 9976.752 | AD26: 9987.286 | AE26: 9984.795 | AF26: 10069.577 | AG26: 10037.504 | AH26: 10034.113 | AI26: 10034.113 | AJ26: 10034.113 | AK26: 10034.113
A27: MN | B27: 4389.857 | C27: 4440.859 | D27: 4495.572 | E27: 4555.954 | F27: 4610.355 | G27: 4660.18 | H27: 4712.827 | I27: 4763.39 | J27: 4813.412 | K27: 4873.481 | L27: 4933.692 | M27: 4982.796 | N27: 5018.935 | O27: 5053.572 | P27: 5087.713 | Q27: 5119.598 | R27: 5163.555 | S27: 5207.203 | T27: 5247.018 | U27: 5281.203 | V27: 5310.934 | W27: 5346.62 | X27: 5377.5 | Y27: 5414.722 | Z27: 5452.665 | AA27: 5484.002 | AB27: 5525.36 | AC27: 5569.283 | AD27: 5608.762 | AE27: 5640.053 | AF27: 5709.852 | AG27: 5711.471 | AH27: 5717.184 | AI27: 5717.184 | AJ27: 5717.184 | AK27: 5717.184
A28: MS | B28: 2578.897 | C28: 2598.733 | D28: 2623.734 | E28: 2655.1 | F28: 2688.992 | G28: 2722.659 | H28: 2748.085 | I28: 2777.004 | J28: 2804.834 | K28: 2828.408 | L28: 2848.353 | M28: 2852.994 | N28: 2858.681 | O28: 2868.312 | P28: 2889.01 | Q28: 2905.943 | R28: 2904.978 | S28: 2928.35 | T28: 2947.806 | U28: 2958.774 | V28: 2970.615 | W28: 2979.147 | X28: 2984.599 | Y28: 2989.839 | Z28: 2991.892 | AA28: 2990.231 | AB28: 2990.595 | AC28: 2990.674 | AD28: 2982.879 | AE28: 2978.227 | AF28: 2958.141 | AG28: 2949.586 | AH28: 2940.057 | AI28: 2940.057 | AJ28: 2940.057 | AK28: 2940.057
A29: MO | B29: 5128.88 | C29: 5170.8 | D29: 5217.101 | E29: 5271.175 | F29: 5324.497 | G29: 5378.247 | H29: 5431.553 | I29: 5481.193 | J29: 5521.765 | K29: 5561.948 | L29: 5607.285 | M29: 5641.142 | N29: 5674.825 | O29: 5709.403 | P29: 5747.741 | Q29: 5790.3 | R29: 5842.704 | S29: 5887.612 | T29: 5923.916 | U29: 5961.088 | V29: 5996.089 | W29: 6011.182 | X29: 6026.027 | Y29: 6042.989 | Z29: 6059.13 | AA29: 6075.411 | AB29: 6091.384 | AC29: 6111.382 | AD29: 6125.986 | AE29: 6140.475 | AF29: 6153.998 | AG29: 6169.823 | AH29: 6177.957 | AI29: 6177.957 | AJ29: 6177.957 | AK29: 6177.957
A30: MT | B30: 800.204 | C30: 809.68 | D30: 825.77 | E30: 844.761 | F30: 861.306 | G30: 876.553 | H30: 886.254 | I30: 889.865 | J30: 892.431 | K30: 897.507 | L30: 903.773 | M30: 906.961 | N30: 911.667 | O30: 919.63 | P30: 930.009 | Q30: 940.102 | R30: 952.692 | S30: 964.706 | T30: 976.415 | U30: 983.982 | V30: 990.73 | W30: 997.518 | X30: 1004.168 | Y30: 1014.158 | Z30: 1022.657 | AA30: 1031.495 | AB30: 1042.137 | AC30: 1053.862 | AD30: 1061.818 | AE30: 1070.123 | AF30: 1087.075 | AG30: 1106.227 | AH30: 1122.867 | AI30: 1122.867 | AJ30: 1122.867 | AK30: 1122.867
A31: NE | B31: 1581.66 | C31: 1595.919 | D31: 1611.687 | E31: 1625.59 | F31: 1639.041 | G31: 1656.992 | H31: 1673.74 | I31: 1686.418 | J31: 1695.816 | K31: 1704.764 | L31: 1713.82 | M31: 1719.836 | N31: 1728.292 | O31: 1738.643 | P31: 1749.37 | Q31: 1761.497 | R31: 1772.693 | S31: 1783.44 | T31: 1796.378 | U31: 1812.683 | V31: 1829.591 | W31: 1840.914 | X31: 1853.691 | Y31: 1865.813 | Z31: 1879.955 | AA31: 1892.059 | AB31: 1906.483 | AC31: 1916.998 | AD31: 1925.512 | AE31: 1932.571 | AF31: 1962.642 | AG31: 1963.554 | AH31: 1967.923 | AI31: 1967.923 | AJ31: 1967.923 | AK31: 1967.923
A32: NV | B32: 1220.695 | C32: 1296.171 | D32: 1351.367 | E32: 1411.215 | F32: 1499.298 | G32: 1581.578 | H32: 1666.32 | I32: 1764.104 | J32: 1853.191 | K32: 1934.718 | L32: 2018.741 | M32: 2098.399 | N32: 2173.791 | O32: 2248.85 | P32: 2346.222 | Q32: 2432.143 | R32: 2522.658 | S32: 2601.072 | T32: 2653.63 | U32: 2684.665 | V32: 2702.483 | W32: 2713.114 | X32: 2744.67 | Y32: 2776.956 | Z32: 2818.935 | AA32: 2868.531 | AB32: 2919.555 | AC32: 2972.097 | AD32: 3030.725 | AE32: 3090.771 | AF32: 3115.648 | AG32: 3146.402 | AH32: 3177.772 | AI32: 3177.772 | AJ32: 3177.772 | AK32: 3177.772
A33: NH | B33: 1112.384 | C33: 1109.929 | D33: 1117.784 | E33: 1129.458 | F33: 1142.56 | G33: 1157.561 | H33: 1174.719 | I33: 1189.425 | J33: 1205.94 | K33: 1222.014 | L33: 1239.882 | M33: 1255.517 | N33: 1269.089 | O33: 1279.84 | P33: 1290.121 | Q33: 1298.492 | R33: 1308.389 | S33: 1312.54 | T33: 1315.906 | U33: 1316.102 | V33: 1316.807 | W33: 1320.444 | X33: 1324.677 | Y33: 1327.272 | Z33: 1334.257 | AA33: 1337.48 | AB33: 1343.694 | AC33: 1350.395 | AD33: 1355.064 | AE33: 1360.783 | AF33: 1378.587 | AG33: 1387.505 | AH33: 1395.231 | AI33: 1395.231 | AJ33: 1395.231 | AK33: 1395.231
A34: NJ | B34: 7762.963 | C34: 7814.676 | D34: 7880.508 | E34: 7948.915 | F34: 8014.306 | G34: 8083.242 | H34: 8149.596 | I34: 8218.808 | J34: 8287.418 | K34: 8359.592 | L34: 8430.621 | M34: 8492.671 | N34: 8552.643 | O34: 8601.402 | P34: 8634.561 | Q34: 8651.974 | R34: 8661.679 | S34: 8677.885 | T34: 8711.09 | U34: 8755.602 | V34: 8799.451 | W34: 8828.552 | X34: 8845.671 | Y34: 8857.821 | Z34: 8867.277 | AA34: 8870.312 | AB34: 8873.584 | AC34: 8888.147 | AD34: 8891.73 | AE34: 8891.258 | AF34: 9271.689 | AG34: 9267.961 | AH34: 9261.699 | AI34: 9261.699 | AJ34: 9261.699 | AK34: 9261.699
A35: NM | B35: 1521.574 | C35: 1555.305 | D35: 1595.442 | E35: 1636.453 | F35: 1682.398 | G35: 1720.394 | H35: 1752.326 | I35: 1774.839 | J35: 1793.484 | K35: 1808.082 | L35: 1821.204 | M35: 1831.69 | N35: 1855.309 | O35: 1877.574 | P35: 1903.808 | Q35: 1932.274 | R35: 1962.137 | S35: 1990.07 | T35: 2010.662 | U35: 2036.802 | V35: 2064.614 | W35: 2080.707 | X35: 2087.715 | Y35: 2092.833 | Z35: 2090.236 | AA35: 2090.071 | AB35: 2092.555 | AC35: 2092.844 | AD35: 2093.754 | AE35: 2099.634 | AF35: 2118.39 | AG35: 2116.677 | AH35: 2113.344 | AI35: 2113.344 | AJ35: 2113.344 | AK35: 2113.344
A36: NY | B36: 18020.784 | C36: 18122.51 | D36: 18246.653 | E36: 18374.954 | F36: 18459.47 | G36: 18524.104 | H36: 18588.46 | I36: 18656.546 | J36: 18755.906 | K36: 18882.725 | L36: 19001.78 | M36: 19082.838 | N36: 19137.8 | O36: 19175.939 | P36: 19171.567 | Q36: 19132.61 | R36: 19104.631 | S36: 19132.335 | T36: 19212.436 | U36: 19307.066 | V36: 19399.956 | W36: 19499.921 | X36: 19574.362 | Y36: 19626.488 | Z36: 19653.431 | AA36: 19657.321 | AB36: 19636.391 | AC36: 19593.849 | AD36: 19544.098 | AE36: 19463.131 | AF36: 20108.296 | AG36: 19857.492 | AH36: 19677.151 | AI36: 19677.151 | AJ36: 19677.151 | AK36: 19677.151
A37: NC | B37: 6664.016 | C37: 6784.28 | D37: 6897.214 | E37: 7042.818 | F37: 7187.398 | G37: 7344.674 | H37: 7500.67 | I37: 7656.825 | J37: 7809.121 | K37: 7949.361 | L37: 8081.614 | M37: 8210.122 | N37: 8326.201 | O37: 8422.501 | P37: 8553.152 | Q37: 8705.407 | R37: 8917.27 | S37: 9118.037 | T37: 9309.449 | U37: 9449.566 | V37: 9574.586 | W37: 9658.913 | X37: 9751.81 | Y37: 9846.717 | Z37: 9937.295 | AA37: 10037.218 | AB37: 10161.802 | AC37: 10275.758 | AD37: 10391.358 | AE37: 10501.384 | AF37: 10449.445 | AG37: 10565.885 | AH37: 10698.973 | AI37: 10698.973 | AJ37: 10698.973 | AK37: 10698.973
A38: ND | B38: 637.685 | C38: 635.753 | D38: 638.223 | E38: 641.216 | F38: 644.804 | G38: 647.832 | H38: 650.382 | I38: 649.716 | J38: 647.532 | K38: 644.259 | L38: 642.023 | M38: 639.062 | N38: 638.168 | O38: 638.817 | P38: 644.705 | Q38: 646.089 | R38: 649.422 | S38: 652.822 | T38: 657.569 | U38: 664.968 | V38: 674.752 | W38: 685.526 | X38: 702.227 | Y38: 723.149 | Z38: 738.736 | AA38: 755.537 | AB38: 756.114 | AC38: 756.755 | AD38: 760.062 | AE38: 763.724 | AF38: 779.518 | AG38: 777.934 | AH38: 779.261 | AI38: 779.261 | AJ38: 779.261 | AK38: 779.261
A39: OH | B39: 10864.162 | C39: 10945.762 | D39: 11029.431 | E39: 11101.14 | F39: 11152.454 | G39: 11202.751 | H39: 11242.827 | I39: 11277.357 | J39: 11311.536 | K39: 11335.454 | L39: 11363.543 | M39: 11387.404 | N39: 11407.889 | O39: 11434.788 | P39: 11452.251 | Q39: 11463.32 | R39: 11481.213 | S39: 11500.468 | T39: 11515.391 | U39: 11528.896 | V39: 11539.449 | W39: 11545.735 | X39: 11550.971 | Y39: 11579.692 | Z39: 11606.573 | AA39: 11622.315 | AB39: 11640.06 | AC39: 11665.706 | AD39: 11680.892 | AE39: 11696.507 | AF39: 11797.517 | AG39: 11764.342 | AH39: 11756.058 | AI39: 11756.058 | AJ39: 11756.058 | AK39: 11756.058
A40: OK | B40: 3148.825 | C40: 3175.44 | D40: 3220.517 | E40: 3252.285 | F40: 3280.94 | G40: 3308.208 | H40: 3340.129 | I40: 3372.917 | J40: 3405.194 | K40: 3437.147 | L40: 3454.365 | M40: 3467.1 | N40: 3489.08 | O40: 3504.892 | P40: 3525.233 | Q40: 3548.597 | R40: 3594.09 | S40: 3634.349 | T40: 3668.976 | U40: 3717.572 | V40: 3760.014 | W40: 3788.824 | X40: 3819.32 | Y40: 3853.891 | Z40: 3879.187 | AA40: 3910.518 | AB40: 3928.143 | AC40: 3933.602 | AD40: 3943.488 | AE40: 3960.676 | AF40: 3964.912 | AG40: 3991.225 | AH40: 4019.8 | AI40: 4019.8 | AJ40: 4019.8 | AK40: 4019.8
A41: OR | B41: 2860.375 | C41: 2928.507 | D41: 2991.755 | E41: 3060.367 | F41: 3121.264 | G41: 3184.369 | H41: 3247.111 | I41: 3304.31 | J41: 3352.449 | K41: 3393.941 | L41: 3429.708 | M41: 3467.937 | N41: 3513.424 | O41: 3547.376 | P41: 3569.463 | Q41: 3613.202 | R41: 3670.883 | S41: 3722.417 | T41: 3768.748 | U41: 3808.6 | V41: 3837.614 | W41: 3872.672 | X41: 3900.102 | Y41: 3924.11 | Z41: 3965.447 | AA41: 4018.542 | AB41: 4093.271 | AC41: 4147.294 | AD41: 4183.538 | AE41: 4216.116 | AF41: 4244.795 | AG41: 4256.301 | AH41: 4240.137 | AI41: 4240.137 | AJ41: 4240.137 | AK41: 4240.137
A42: PA | B42: 11903.299 | C42: 11982.164 | D42: 12049.45 | E42: 12119.724 | F42: 12166.05 | G42: 12198.403 | H42: 12220.464 | I42: 12227.814 | J42: 12245.672 | K42: 12263.805 | L42: 12284.173 | M42: 12298.97 | N42: 12331.031 | O42: 12374.658 | P42: 12410.722 | Q42: 12449.99 | R42: 12510.809 | S42: 12563.937 | T42: 12612.285 | U42: 12666.858 | V42: 12711.406 | W42: 12747.052 | X42: 12769.123 | Y42: 12779.538 | Z42: 12792.392 | AA42: 12789.838 | AB42: 12788.468 | AC42: 12794.679 | AD42: 12809.107 | AE42: 12798.883 | AF42: 12994.44 | AG42: 13012.059 | AH42: 12972.008 | AI42: 12972.008 | AJ42: 12972.008 | AK42: 12972.008
A43: RI | B43: 1005.995 | C43: 1010.649 | D43: 1012.581 | E43: 1015.112 | F43: 1015.96 | G43: 1017.002 | H43: 1020.893 | I43: 1025.353 | J43: 1031.155 | K43: 1040.402 | L43: 1050.268 | M43: 1057.142 | N43: 1065.995 | O43: 1071.342 | P43: 1074.579 | Q43: 1067.916 | R43: 1063.096 | S43: 1057.315 | T43: 1055.003 | U43: 1053.646 | V43: 1053.994 | W43: 1053.829 | X43: 1054.893 | Y43: 1055.56 | Z43: 1056.511 | AA43: 1056.886 | AB43: 1057.816 | AC43: 1056.554 | AD43: 1059.338 | AE43: 1058.158 | AF43: 1096.345 | AG43: 1096.985 | AH43: 1093.734 | AI43: 1093.734 | AJ43: 1093.734 | AK43: 1093.734
A44: SC | B44: 3501.155 | C44: 3570.404 | D44: 3620.464 | E44: 3663.314 | F44: 3705.397 | G44: 3748.582 | H44: 3796.2 | I44: 3859.696 | J44: 3919.235 | K44: 3974.682 | L44: 4024.223 | M44: 4064.995 | N44: 4107.795 | O44: 4150.297 | P44: 4210.921 | Q44: 4270.15 | R44: 4357.847 | S44: 4444.11 | T44: 4528.996 | U44: 4589.872 | V44: 4635.846 | W44: 4672.655 | X44: 4719.027 | Y44: 4766.469 | Z44: 4826.858 | AA44: 4896.006 | AB44: 4963.031 | AC44: 5027.102 | AD44: 5091.702 | AE44: 5157.702 | AF44: 5131.848 | AG44: 5193.266 | AH44: 5282.634 | AI44: 5282.634 | AJ44: 5282.634 | AK44: 5282.634
A45: SD | B45: 697.101 | C45: 703.669 | D45: 712.801 | E45: 722.159 | F45: 730.79 | G45: 737.925 | H45: 742.213 | I45: 744.223 | J45: 746.058 | K45: 750.412 | L45: 755.844 | M45: 757.972 | N45: 760.02 | O45: 763.729 | P45: 770.396 | Q45: 775.493 | R45: 783.033 | S45: 791.623 | T45: 799.124 | U45: 807.067 | V45: 816.193 | W45: 823.74 | X45: 833.859 | Y45: 842.751 | Z45: 849.67 | AA45: 854.663 | AB45: 863.693 | AC45: 873.732 | AD45: 879.386 | AE45: 887.127 | AF45: 887.799 | AG45: 896.164 | AH45: 909.824 | AI45: 909.824 | AJ45: 909.824 | AK45: 909.824
A46: TN | B46: 4894.492 | C46: 4966.587 | D46: 5049.742 | E46: 5137.584 | F46: 5231.438 | G46: 5326.936 | H46: 5416.643 | I46: 5499.233 | J46: 5570.045 | K46: 5638.706 | L46: 5703.719 | M46: 5750.789 | N46: 5795.918 | O46: 5847.812 | P46: 5910.809 | Q46: 5991.057 | R46: 6088.766 | S46: 6175.727 | T46: 6247.411 | U46: 6306.019 | V46: 6355.518 | W46: 6400.298 | X46: 6455.752 | Y46: 6496.943 | Z46: 6544.617 | AA46: 6595.354 | AB46: 6651.277 | AC46: 6714.748 | AD46: 6778.18 | AE46: 6830.325 | AF46: 6925.619 | AG46: 6968.351 | AH46: 7051.339 | AI46: 7051.339 | AJ46: 7051.339 | AK46: 7051.339
A47: TX | B47: 17056.755 | C47: 17398.005 | D47: 17759.738 | E47: 18161.612 | F47: 18564.062 | G47: 18958.751 | H47: 19340.342 | I47: 19740.317 | J47: 20157.531 | K47: 20558.22 | L47: 20944.499 | M47: 21319.622 | N47: 21690.325 | O47: 22030.931 | P47: 22394.023 | Q47: 22778.123 | R47: 23359.58 | S47: 23831.983 | T47: 24309.039 | U47: 24801.761 | V47: 25241.897 | W47: 25645.504 | X47: 26084.12 | Y47: 26479.646 | Z47: 26963.092 | AA47: 27468.531 | AB47: 27914.064 | AC47: 28291.024 | AD47: 28624.564 | AE47: 28986.794 | AF47: 29232.474 | AG47: 29558.864 | AH47: 30029.572 | AI47: 30029.572 | AJ47: 30029.572 | AK47: 30029.572
A48: UT | B48: 1731.223 | C48: 1779.78 | D48: 1836.799 | E48: 1898.404 | F48: 1960.446 | G48: 2014.177 | H48: 2067.976 | I48: 2119.784 | J48: 2165.96 | K48: 2203.482 | L48: 2244.502 | M48: 2283.715 | N48: 2324.815 | O48: 2360.137 | P48: 2401.58 | Q48: 2457.719 | R48: 2525.507 | S48: 2597.746 | T48: 2663.029 | U48: 2723.421 | V48: 2775.413 | W48: 2814.797 | X48: 2854.146 | Y48: 2898.773 | Z48: 2938.327 | AA48: 2983.626 | AB48: 3044.241 | AC48: 3103.54 | AD48: 3155.153 | AE48: 3203.383 | AF48: 3283.785 | AG48: 3339.113 | AH48: 3380.8 | AI48: 3380.8 | AJ48: 3380.8 | AK48: 3380.8
A49: VT | B49: 564.798 | C49: 568.606 | D49: 572.751 | E49: 577.748 | F49: 583.836 | G49: 589.002 | H49: 593.701 | I49: 597.239 | J49: 600.416 | K49: 604.683 | L49: 609.618 | M49: 612.223 | N49: 615.442 | O49: 617.858 | P49: 619.92 | Q49: 621.215 | R49: 622.892 | S49: 623.481 | T49: 624.151 | U49: 624.817 | V49: 625.886 | W49: 627.197 | X49: 626.361 | Y49: 626.603 | Z49: 625.693 | AA49: 625.81 | AB49: 624.366 | AC49: 625.132 | AD49: 624.802 | AE49: 624.046 | AF49: 642.893 | AG49: 646.972 | AH49: 647.064 | AI49: 647.064 | AJ49: 647.064 | AK49: 647.064
A50: VA | B50: 6216.884 | C50: 6301.217 | D50: 6414.307 | E50: 6509.63 | F50: 6593.139 | G50: 6670.693 | H50: 6750.884 | I50: 6829.183 | J50: 6900.918 | K50: 7000.174 | L50: 7105.817 | M50: 7198.362 | N50: 7286.873 | O50: 7366.977 | P50: 7475.575 | Q50: 7577.105 | R50: 7673.725 | S50: 7751 | T50: 7833.496 | U50: 7925.937 | V50: 8024.004 | W50: 8102.437 | X50: 8187.456 | Y50: 8255.861 | Z50: 8315.43 | AA50: 8367.303 | AB50: 8417.651 | AC50: 8471.011 | AD50: 8510.92 | AE50: 8556.642 | AF50: 8636.471 | AG50: 8657.365 | AH50: 8683.619 | AI50: 8683.619 | AJ50: 8683.619 | AK50: 8683.619
A51: WA | B51: 4903.043 | C51: 5025.624 | D51: 5160.757 | E51: 5278.842 | F51: 5375.161 | G51: 5481.027 | H51: 5569.753 | I51: 5674.747 | J51: 5769.562 | K51: 5842.564 | L51: 5910.512 | M51: 5985.722 | N51: 6052.349 | O51: 6104.115 | P51: 6178.645 | Q51: 6257.305 | R51: 6370.753 | S51: 6461.587 | T51: 6562.231 | U51: 6667.426 | V51: 6743.009 | W51: 6827.479 | X51: 6898.599 | Y51: 6966.252 | Z51: 7057.531 | AA51: 7167.287 | AB51: 7299.961 | AC51: 7427.951 | AD51: 7526.793 | AE51: 7614.024 | AF51: 7724.031 | AG51: 7740.745 | AH51: 7785.786 | AI51: 7785.786 | AJ51: 7785.786 | AK51: 7785.786
A52: WV | B52: 1792.548 | C52: 1798.735 | D52: 1806.451 | E52: 1817.539 | F52: 1820.421 | G52: 1823.7 | H52: 1822.808 | I52: 1819.113 | J52: 1815.609 | K52: 1811.799 | L52: 1807.021 | M52: 1801.481 | N52: 1805.414 | O52: 1812.295 | P52: 1816.438 | Q52: 1820.492 | R52: 1827.912 | S52: 1834.052 | T52: 1840.31 | U52: 1847.775 | V52: 1854.265 | W52: 1856.606 | X52: 1857.446 | Y52: 1854.768 | Z52: 1850.569 | AA52: 1843.332 | AB52: 1832.435 | AC52: 1818.683 | AD52: 1805.953 | AE52: 1795.263 | AF52: 1791.42 | AG52: 1785.526 | AH52: 1775.156 | AI52: 1775.156 | AJ52: 1775.156 | AK52: 1775.156
A53: WI | B53: 4904.562 | C53: 4964.343 | D53: 5025.398 | E53: 5084.889 | F53: 5133.678 | G53: 5184.836 | H53: 5229.986 | I53: 5266.213 | J53: 5297.672 | K53: 5332.666 | L53: 5373.999 | M53: 5406.835 | N53: 5445.162 | O53: 5479.203 | P53: 5514.026 | Q53: 5546.166 | R53: 5577.655 | S53: 5610.775 | T53: 5640.996 | U53: 5669.264 | V53: 5690.538 | W53: 5705.84 | X53: 5720.825 | Y53: 5738.012 | Z53: 5753.199 | AA53: 5762.927 | AB53: 5775.17 | AC53: 5793.147 | AD53: 5809.319 | AE53: 5824.581 | AF53: 5896.271 | AG53: 5880.101 | AH53: 5892.539 | AI53: 5892.539 | AJ53: 5892.539 | AK53: 5892.539
A54: WY | B54: 453.69 | C54: 459.26 | D54: 466.251 | E54: 473.081 | F54: 480.283 | G54: 485.16 | H54: 488.167 | I54: 489.451 | J54: 490.787 | K54: 491.78 | L54: 494.3 | M54: 494.657 | N54: 500.017 | O54: 503.453 | P54: 509.106 | Q54: 514.157 | R54: 522.667 | S54: 534.876 | T54: 546.043 | U54: 559.851 | V54: 564.531 | W54: 567.491 | X54: 576.656 | Y54: 582.62 | Z54: 583.159 | AA54: 586.389 | AB54: 585.243 | AC54: 579.994 | AD54: 579.054 | AE54: 580.116 | AF54: 577.605 | AG54: 579.483 | AH54: 581.381 | AI54: 581.381 | AJ54: 581.381 | AK54: 581.381
A56: USA | B56: =SUM(B4:B55) -> 249622.814 | C56: =SUM(C4:C55) -> 252980.941 | D56: =SUM(D4:D55) -> 256514.224 | E56: 259918.588 | F56: 263125.821 | G56: 266278.393 | H56: 269394.284 | I56: 272646.925 | J56: 275854.104 | K56: 279040.168 | L56: 282162.411 | M56: 284968.955 | N56: 287625.193 | O56: 290107.933 | P56: 292805.298 | Q56: 295516.599 | R56: 298379.912 | S56: 301231.207 | T56: 304093.966 | U56: 306771.529 | V56: 309327.143 | W56: 311583.481 | X56: 313877.662 | Y56: 316059.947 | Z56: 318386.329 | AA56: 320738.994 | AB56: 323071.755 | AC56: 325122.128 | AD56: 326838.199 | AE56: 328329.953 | AF56: 331511.512 | AG56: 332031.554 | AH56: 333287.557 | AI56: 333287.557 | AJ56: 333287.557 | AK56: 333287.557
A58: Sources: US Census American FactFinder https://factfinder.census.gov/
B59: Population Division, U.S. Census Bureau.

Sheet GSP from BEA
A1: Source: U.S. Department of Commerce, Bureau of Economic Analysis 1997-2022. Annual Gross Domestic Product (GDP) by State in current dollars <https://apps.bea.gov/itable/iTable.cfm?ReqID=70>
A2: Gross Domestic Product by State (millions of current dollars)
A3: State | B3: 1990 | C3: 1991 | D3: 1992 | E3: 1993 | F3: 1994 | G3: 1995 | H3: 1996 | I3: 1997 | J3: 1998 | K3: 1999 | L3: 2000 | M3: 2001 | N3: 2002 | O3: 2003 | P3: 2004 | Q3: 2005 | R3: 2006 | S3: 2007 | T3: 2008 | U3: 2009 | V3: 2010 | W3: 2011 | X3: 2012 | Y3: 2013 | Z3: 2014 | AA3: 2015 | AB3: 2016 | AC3: 2017 | AD3: 2018 | AE3: 2019 | AF3: 2020 | AG3: 2021 | AH3: 2022 | AI3: 2023 | AJ3: 2024 | AK3: 2025
A4: AL | B4: 71610 | C4: 76043.3 | D4: 81260.1 | E4: 84562.8 | F4: 90098.5 | G4: 95819.1 | H4: 100145.9 | I4: 160396.4 | J4: 166531.8 | K4: 168695.3 | L4: 168448.3 | M4: 172430.4 | N4: 178040 | O4: 189913.7 | P4: 197246.5 | Q4: 199923.9 | R4: 202025.5 | S4: 200967.4 | T4: 194192.1 | U4: 199455 | V4: 201372.8 | W4: 203675.5 | X4: 206962.9 | Y4: 206070 | Z4: 208950.3 | AA4: 212862.8 | AB4: 216615.5 | AC4: 220808.8 | AD4: 224944.6 | AE4: 222081.4 | AF4: 231892.6 | AG4: 235807.3 | AH4: 241753.1 | AI4: =AH4 -> 241753.1 | AJ4: 241753.1 | AK4: 241753.1
A5: AK | B5: 25039.5 | C5: 22282.5 | D5: 22752.8 | E5: 23284.2 | F5: 23604.7 | G5: 25448.8 | H5: 26736.9 | I5: 40263.7 | J5: 39783.1 | K5: 38428.1 | L5: 40014.4 | M5: 41904.7 | N5: 41235 | O5: 42880.1 | P5: 44406.8 | Q5: 47546.2 | R5: 50126.7 | S5: 49926.6 | T5: 54951.9 | U5: 53652 | V5: 54045.5 | W5: 57087.4 | X5: 54627.6 | Y5: 53303.3 | Z5: 53681.1 | AA5: 53463.9 | AB5: 53550.9 | AC5: 52479.6 | AD5: 52325.3 | AE5: 50344.6 | AF5: 51021.8 | AG5: 50315.1 | AH5: 53006.3 | AI5: =AH5 -> 53006.3 | AJ5: 53006.3 | AK5: 53006.3
A6: AZ | B6: 70631.7 | C6: 73358.3 | D6: 82682.2 | E6: 89299.8 | F6: 100374.2 | G6: 109905.7 | H6: 119530.2 | I6: 197492.1 | J6: 214293.9 | K6: 224729.3 | L6: 230885.6 | M6: 238257.1 | N6: 253743.1 | O6: 264990 | P6: 283806.2 | Q6: 296424.4 | R6: 306611.6 | S6: 302277.9 | T6: 277412.4 | U6: 282252.5 | V6: 290411.3 | W6: 297077.3 | X6: 298859.9 | Y6: 301721.2 | Z6: 308582.8 | AA6: 319008.4 | AB6: 333099 | AC6: 346398.3 | AD6: 359645.7 | AE6: 362603.5 | AF6: 390805.2 | AG6: 403474.2 | AH6: 414273.3 | AI6: =AH6 -> 414273.3 | AJ6: 414273.3 | AK6: 414273.3
A7: AR | B7: 38679.8 | C7: 41571.7 | D7: 45017.8 | E7: 47566 | F7: 51415.9 | G7: 54611.8 | H7: 57976.4 | I7: 89905.3 | J7: 94756.9 | K7: 95509.8 | L7: 95528.7 | M7: 98556.6 | N7: 102948 | O7: 108581.8 | P7: 112451.1 | Q7: 114890.4 | R7: 114026.7 | S7: 113628 | T7: 109833.1 | U7: 113000.9 | V7: 115241.8 | W7: 116616.2 | X7: 119842.8 | Y7: 121409.4 | Z7: 121532.5 | AA7: 123034.9 | AB7: 123882.6 | AC7: 126371.2 | AD7: 127216 | AE7: 128061.2 | AF7: 135568.8 | AG7: 137355.5 | AH7: 140784.7 | AI7: =AH7 -> 140784.7 | AJ7: 140784.7 | AK7: 140784.7
A8: CA | B8: 773460 | C8: 790045.6 | D8: 807358.4 | E8: 826446.9 | F8: 861360 | G8: 911576.8 | H8: 964185.5 | I8: 1538612.3 | J8: 1655438.5 | K8: 1784320.6 | L8: 1784567.7 | M8: 1821509.5 | N8: 1895287.6 | O8: 1956745.5 | P8: 2042141 | Q8: 2120435.4 | R8: 2168940.4 | S8: 2192331.8 | T8: 2110679.4 | U8: 2153852.8 | V8: 2192887.2 | W8: 2255437.3 | X8: 2340335.3 | Y8: 2428675.7 | Z8: 2545979.5 | AA8: 2623711.7 | AB8: 2740550.3 | AC8: 2850970.3 | AD8: 2962792.1 | AE8: 2925146.9 | AF8: 3146185.3 | AG8: 3167460.8 | AH8: 3233151 | AI8: =AH8 -> 3233151 | AJ8: 3233151 | AK8: 3233151
A9: CO | B9: 75570.5 | C9: 79766.2 | D9: 87302.1 | E9: 95658.7 | F9: 104506.8 | G9: 112707.9 | H9: 121081 | I9: 206449.1 | J9: 221040.8 | K9: 238739.3 | L9: 242650.1 | M9: 243701.9 | N9: 246017.4 | O9: 250069.3 | P9: 261992.9 | Q9: 268190.8 | R9: 278733.8 | S9: 281803.3 | T9: 275659.1 | U9: 279385.6 | V9: 283963.8 | W9: 289339.5 | X9: 301484.1 | Y9: 315399 | Z9: 330526.1 | AA9: 337685.2 | AB9: 350209.1 | AC9: 365204.5 | AD9: 383596 | AE9: 380921.9 | AF9: 406961.5 | AG9: 416114.4 | AH9: 428040.4 | AI9: =AH9 -> 428040.4 | AJ9: 428040.4 | AK9: 428040.4
A10: CT | B10: 100169 | C10: 101474.7 | D10: 105758.8 | E10: 107680 | F10: 113115.1 | G10: 123212.2 | H10: 129111.3 | I10: 212255 | J10: 218860 | K10: 233874.2 | L10: 236338.1 | M10: 234307.3 | N10: 236719.1 | O10: 252680.8 | P10: 258203.7 | Q10: 269478.6 | R10: 278485.4 | S10: 277793.2 | T10: 265530.8 | U10: 266773.4 | V10: 261555.8 | W10: 263649.9 | X10: 258911 | Y10: 260605.8 | Z10: 268869.8 | AA10: 268196.2 | AB10: 273875.1 | AC10: 274582.8 | AD10: 274219.4 | AE10: 258625 | AF10: 268846.7 | AG10: 276668.8 | AH10: 282478.5 | AI10: =AH10 -> 282478.5 | AJ10: 282478.5 | AK10: 282478.5
A11: DE | B11: 19928.3 | C11: 21746 | D11: 22907.1 | E11: 23508.6 | F11: 25637.9 | G11: 27720.9 | H11: 29156.5 | I11: 56487 | J11: 60866.2 | K11: 63388.8 | L11: 65724.8 | M11: 63702.5 | N11: 64316.8 | O11: 67735.5 | P11: 66381.2 | Q11: 68411.8 | R11: 68132.4 | S11: 65771.3 | T11: 69186.2 | U11: 68291.9 | V11: 71103.5 | W11: 70562.4 | X11: 68656.8 | Y11: 73961.7 | Z11: 76211.2 | AA11: 71941.4 | AB11: 69555.6 | AC11: 70856.4 | AD11: 74597.4 | AE11: 72550.3 | AF11: 74436.7 | AG11: 75172.6 | AH11: 74262.8 | AI11: =AH11 -> 74262.8 | AJ11: 74262.8 | AK11: 74262.8
A12: DC | B12: 39688.4 | C12: 41430 | D12: 43186.5 | E12: 45356.2 | F12: 46654.8 | G12: 47093.9 | H12: 47822.9 | I12: 88108.1 | J12: 92096.8 | K12: 92764.3 | L12: 96185.3 | M12: 99014.7 | N12: 100969.4 | O12: 106547.2 | P12: 108884.1 | Q12: 108848.3 | R12: 112287.6 | S12: 116213.7 | T12: 115646 | U12: 120393.2 | V12: 122636.4 | W12: 123567.9 | X12: 124094.8 | Y12: 126883.9 | Z12: 129110.2 | AA12: 132217.8 | AB12: 134298.8 | AC12: 138056.8 | AD12: 138867.4 | AE12: 137762.3 | AF12: 142676.3 | AG12: 144029.6 | AH12: 145493.3 | AI12: =AH12 -> 145493.3 | AJ12: 145493.3 | AK12: 145493.3
A13: FL | B13: 256589.3 | C13: 267669.1 | D13: 284672.6 | E13: 304403 | F13: 327167.4 | G13: 346951.2 | H13: 370912.5 | I13: 634032.3 | J13: 664152 | K13: 693837.3 | L13: 714638 | M13: 746252.8 | N13: 781834.2 | O13: 833946.8 | P13: 883164.5 | Q13: 909298.9 | R13: 922288.3 | S13: 891766.9 | T13: 840480.6 | U13: 851956.4 | V13: 849395.3 | W13: 857861.3 | X13: 880183.5 | Y13: 905648.5 | Z13: 945929 | AA13: 978989.7 | AB13: 1014866.9 | AC13: 1050433.8 | AD13: 1079271 | AE13: 1068377.5 | AF13: 1164778.2 | AG13: 1218430.2 | AH13: 1279118.8 | AI13: =AH13 -> 1279118.8 | AJ13: 1279118.8 | AK13: 1279118.8
A14: GA | B14: 140646.1 | C14: 147759.8 | D14: 160061.8 | E14: 171658.9 | F14: 187995.6 | G14: 203397.1 | H14: 219989 | I14: 377705.9 | J14: 404465.2 | K14: 417713.5 | L14: 422731.6 | M14: 427329.7 | N14: 439074.6 | O14: 461245.4 | P14: 480838.3 | Q14: 487524.9 | R14: 492238.7 | S14: 481860.3 | T14: 464016.8 | U14: 471588.2 | V14: 481215.4 | W14: 489027.3 | X14: 499900.2 | Y14: 517511.9 | Z14: 540108.5 | AA14: 561718.3 | AB14: 583543.3 | AC14: 600934.7 | AD14: 620792.4 | AE14: 602321.8 | AF14: 639236 | AG14: 655827.3 | AH14: 661114.6 | AI14: =AH14 -> 661114.6 | AJ14: 661114.6 | AK14: 661114.6
A15: HI | B15: 32534.3 | C15: 34356.7 | D15: 36129.5 | E15: 36732.4 | F15: 37394.9 | G15: 37763.1 | H15: 38124.6 | I15: 58946.1 | J15: 59612.1 | K15: 60745.7 | L15: 60446.4 | M15: 62355.2 | N15: 65623.7 | O15: 69332 | P15: 72941.9 | Q15: 74892.9 | R15: 76434.1 | S15: 76830.2 | T15: 74118.5 | U15: 76130.2 | V15: 77174.2 | W15: 78694 | X15: 80534.9 | Y15: 81304.9 | Z15: 83857.6 | AA15: 85670.4 | AB15: 87436.4 | AC15: 88836.4 | AD15: 88945.3 | AE15: 79592.5 | AF15: 84121.5 | AG15: 85211.4 | AH15: 86887.7 | AI15: =AH15 -> 86887.7 | AJ15: 86887.7 | AK15: 86887.7
A16: ID | B16: 18004.2 | C16: 18851.7 | D16: 20631.6 | E16: 23099.8 | F16: 25455.5 | G16: 27762.4 | H16: 28914.6 | I16: 40879.3 | J16: 44821.5 | K16: 49793 | L16: 48695.4 | M16: 49840.5 | N16: 51542.6 | O16: 55137.1 | P16: 59331.9 | Q16: 60738.6 | R16: 61812.1 | S16: 63878.2 | T16: 61276.1 | U16: 62626.4 | V16: 62704 | W16: 62007.3 | X16: 64769.8 | Y16: 66784.9 | Z16: 67790.5 | AA16: 70442.5 | AB16: 72935.1 | AC16: 77652.1 | AD16: 81261.3 | AE16: 82818.6 | AF16: 87992.9 | AG16: 91683.7 | AH16: 94914.3 | AI16: =AH16 -> 94914.3 | AJ16: 94914.3 | AK16: 94914.3
A17: IL | B17: 279019.1 | C17: 288473.5 | D17: 306236.3 | E17: 320078.9 | F17: 347971.5 | G17: 364450.7 | H17: 383504.1 | I17: 639642.7 | J17: 663857.8 | K17: 687111.4 | L17: 688404.3 | M17: 692398.1 | N17: 703548.8 | O17: 726139 | P17: 741248.6 | Q17: 759825.7 | R17: 769571.6 | S17: 759095.3 | T17: 740794.3 | U17: 755391.4 | V17: 772225.6 | W17: 790723.3 | X17: 795435.2 | Y17: 811490.1 | Z17: 825424.9 | AA17: 826404.7 | AB17: 832826.8 | AC17: 851517.2 | AD17: 857985 | AE17: 810210.1 | AF17: 852749.1 | AG17: 864170.9 | AH17: 875568.8 | AI17: =AH17 -> 875568.8 | AJ17: 875568.8 | AK17: 875568.8
A18: IN | B18: 110859.6 | C18: 114637 | D18: 124714.3 | E18: 132108.2 | F18: 143335.2 | G18: 150403.9 | H18: 158350.1 | I18: 260549.9 | J18: 268864.3 | K18: 278990.4 | L18: 273884.4 | M18: 280723 | N18: 293045.2 | O18: 303819.8 | P18: 306344.6 | Q18: 312525.5 | R18: 322661.7 | S18: 322384.3 | T18: 299789 | U18: 320731.8 | V18: 321532.8 | W18: 323876.2 | X18: 333207.4 | Y18: 343827.8 | Z18: 341205.2 | AA18: 348439.2 | AB18: 357535.8 | AC18: 368762.9 | AD18: 371044.5 | AE18: 359184.7 | AF18: 384051 | AG18: 396009.2 | AH18: 401472.2 | AI18: =AH18 -> 401472.2 | AJ18: 401472.2 | AK18: 401472.2
A19: IA | B19: 56121.5 | C19: 57944.2 | D19: 61870.3 | E19: 63385.5 | F19: 70161 | G19: 73136.6 | H19: 78819.2 | I19: 121031 | J19: 123683.4 | K19: 129323.4 | L19: 128077.5 | M19: 131035.2 | N19: 137476.9 | O19: 149063.2 | P19: 153626.8 | Q19: 155704.5 | R19: 162838.1 | S19: 160469.1 | T19: 156737.2 | U19: 161593.1 | V19: 164559.3 | W19: 170923.7 | X19: 171069.1 | Y19: 180309.9 | Z19: 185989.2 | AA19: 186729.9 | AB19: 187125 | AC19: 189245.1 | AD19: 188318.4 | AE19: 187136.7 | AF19: 198470.8 | AG19: 197846.3 | AH19: 200442.3 | AI19: =AH19 -> 200442.3 | AJ19: 200442.3 | AK19: 200442.3
A20: KS | B20: 51873.7 | C20: 53980.7 | D20: 56901.7 | E20: 58953.2 | F20: 63304.1 | G20: 65281.9 | H20: 69616.1 | I20: 112625.7 | J20: 115486.4 | K20: 118840.9 | L20: 119474.1 | M20: 121050.5 | N20: 123486.7 | O20: 124793.2 | P20: 129588.2 | Q20: 136135.8 | R20: 143586.6 | S20: 147265 | T20: 141902.5 | U20: 143870.1 | V20: 147836.8 | W20: 150077.1 | X20: 150702.9 | Y20: 154110.1 | Z20: 158602.6 | AA20: 164643.7 | AB20: 166273.6 | AC20: 169796.9 | AD20: 170351.7 | AE20: 168540.8 | AF20: 172839.8 | AG20: 174794.6 | AH20: 182349.6 | AI20: =AH20 -> 182349.6 | AJ20: 182349.6 | AK20: 182349.6
A21: KY | B21: 68412.1 | C21: 71679.2 | D21: 77531.4 | E21: 81618.1 | F21: 87645.7 | G21: 91914.7 | H21: 96616.8 | I21: 160810.1 | J21: 165761.9 | K21: 161101 | L21: 161316.4 | M21: 165435.3 | N21: 170481.9 | O21: 175344.6 | P21: 182017.9 | Q21: 186332.6 | R21: 185790 | S21: 186515.9 | T21: 178112.8 | U21: 186720.6 | V21: 188389.8 | W21: 192060.1 | X21: 196698 | Y21: 196795.8 | Z21: 199487.1 | AA21: 201007.2 | AB21: 203564 | AC21: 205940.1 | AD21: 211739.7 | AE21: 206288.8 | AF21: 214565.1 | AG21: 217568.1 | AH21: 225234.6 | AI21: =AH21 -> 225234.6 | AJ21: 225234.6 | AK21: 225234.6
A22: LA | B22: 95177.1 | C22: 96043.2 | D22: 90889.7 | E22: 95866.4 | F22: 105118.9 | G22: 112875.7 | H22: 118807.2 | I22: 209356.6 | J22: 213475.3 | K22: 206556.1 | L22: 210534.7 | M22: 214856.1 | N22: 223576 | O22: 234620.8 | P22: 249560.9 | Q22: 247139.7 | R22: 234216.4 | S22: 237061.6 | T22: 241868.8 | U22: 253466.9 | V22: 241235.9 | W22: 242416.8 | X22: 236482.3 | Y22: 243042.9 | Z22: 239584.1 | AA22: 235554.2 | AB22: 239830.7 | AC22: 245220.3 | AD22: 246361.1 | AE22: 228825.3 | AF22: 234014.4 | AG22: 231262.3 | AH22: 238195.9 | AI22: =AH22 -> 238195.9 | AJ22: 238195.9 | AK22: 238195.9
A23: ME | B23: 23256.1 | C23: 23378.6 | D23: 24329.4 | E23: 25201.9 | F23: 26543.5 | G23: 28152.6 | H23: 29255.9 | I23: 48138.5 | J23: 50620.3 | K23: 52958.5 | L23: 54066.2 | M23: 55406.5 | N23: 56882.4 | O23: 58934.8 | P23: 59589.7 | Q23: 59986 | R23: 60032.6 | S23: 59845.1 | T23: 58771.8 | U23: 59958.5 | V23: 59429.7 | W23: 59181.7 | X23: 59013.9 | Y23: 59589.8 | Z23: 60563 | AA23: 62037.1 | AB23: 63000.6 | AC23: 64806.3 | AD23: 66351.2 | AE23: 67420.6 | AF23: 70869.9 | AG23: 72413.5 | AH23: 73780.8 | AI23: =AH23 -> 73780.8 | AJ23: 73780.8 | AK23: 73780.8
A24: MD | B24: 112834.8 | C24: 115427.6 | D24: 119535.3 | E24: 125515.4 | F24: 133311.3 | G24: 139070.1 | H24: 145023.1 | I24: 248662.9 | J24: 258913.4 | K24: 269301.2 | L24: 281053.6 | M24: 290400.3 | N24: 297690.6 | O24: 311504.8 | P24: 325644.5 | Q24: 329874 | R24: 331763.5 | S24: 338165.4 | T24: 336285.8 | U24: 352622.9 | V24: 360155.9 | W24: 361561.8 | X24: 364633.2 | Y24: 370343.9 | Z24: 378745.9 | AA24: 391950.9 | AB24: 399714.5 | AC24: 402480.9 | AD24: 402346.2 | AE24: 388532.3 | AF24: 405905.3 | AG24: 412282.6 | AH24: 420996.9 | AI24: =AH24 -> 420996.9 | AJ24: 420996.9 | AK24: 420996.9
A25: MA | B25: 159504.9 | C25: 160727.6 | D25: 167434.9 | E25: 173527.4 | F25: 185710.2 | G25: 196408.7 | H25: 210630.5 | I25: 335504.4 | J25: 353837.9 | K25: 382599.6 | L25: 388180.8 | M25: 388451.6 | N25: 397069.9 | O25: 407886 | P25: 417075.6 | Q25: 426926.1 | R25: 440373.8 | S25: 447526.8 | T25: 441307.6 | U25: 462330.8 | V25: 472664.3 | W25: 483286.3 | X25: 486991.8 | Y25: 496250.9 | Z25: 514398.7 | AA25: 521662.8 | AB25: 530129.4 | AC25: 549262.1 | AD25: 566706.2 | AE25: 556196.4 | AF25: 591911.5 | AG25: 604357.7 | AH25: 615148.4 | AI25: =AH25 -> 615148.4 | AJ25: 615148.4 | AK25: 615148.4
A26: MI | B26: 193102.7 | C26: 197717.2 | D26: 212056.8 | E26: 226368 | F26: 251483.9 | G26: 256614.9 | H26: 270319.7 | I26: 431274.3 | J26: 457637.6 | K26: 467654.4 | L26: 453301.5 | M26: 465788.4 | N26: 477085.4 | O26: 485082.7 | P26: 493796.3 | Q26: 483763.6 | R26: 482935.1 | S26: 455256.7 | T26: 416297.1 | U26: 441271.5 | V26: 453989.1 | W26: 463302.6 | X26: 472779.9 | Y26: 479534.9 | Z26: 490618.7 | AA26: 500159.5 | AB26: 505101.5 | AC26: 516843 | AD26: 517845.2 | AE26: 502483.7 | AF26: 531500 | AG26: 539898.2 | AH26: 547771.8 | AI26: =AH26 -> 547771.8 | AJ26: 547771.8 | AK26: 547771.8
A27: MN | B27: 102756.6 | C27: 106102.5 | D27: 114517.8 | E27: 117947.4 | F27: 128167.2 | G27: 135124.1 | H27: 145880.3 | I27: 237724 | J27: 247004.7 | K27: 263345.6 | L27: 263518.7 | M27: 268982.8 | N27: 280796.9 | O27: 293753.9 | P27: 301761.2 | Q27: 302272.7 | R27: 304208 | S27: 309290.4 | T27: 296875.2 | U27: 308091.9 | V27: 315213.3 | W27: 321053.9 | X27: 329774.5 | Y27: 338623.9 | Z27: 345456.2 | AA27: 350603.6 | AB27: 354721.9 | AC27: 364799.7 | AD27: 368688.7 | AE27: 358127.2 | AF27: 374733.3 | AG27: 379111.5 | AH27: 383618.6 | AI27: =AH27 -> 383618.6 | AJ27: 383618.6 | AK27: 383618.6
A28: MS | B28: 38757 | C28: 40862.1 | D28: 44011.8 | E28: 47340.3 | F28: 51601.6 | G28: 54984.3 | H28: 57460.1 | I28: 90960.1 | J28: 93597.7 | K28: 93957 | L28: 93515.5 | M28: 94561.5 | N28: 98762.1 | O28: 101369.5 | P28: 103691.8 | Q28: 105879.9 | R28: 107713.9 | S28: 109434 | T28: 105360 | U28: 106711.8 | V28: 106491.1 | W28: 108646.5 | X28: 109032.7 | Y28: 109299.6 | Z28: 109401.7 | AA28: 109911 | AB28: 110281.4 | AC28: 110174.8 | AD28: 110537.9 | AE28: 109894.1 | AF28: 114198.5 | AG28: 114152.9 | AH28: 114949.8 | AI28: =AH28 -> 114949.8 | AJ28: 114949.8 | AK28: 114949.8
A29: MO | B29: 103565.7 | C29: 109161.6 | D29: 115288.4 | E29: 118905.6 | F29: 130566.7 | G29: 140059.8 | H29: 148256.8 | I29: 249234 | J29: 256290.4 | K29: 262665.4 | L29: 260381.1 | M29: 264997.7 | N29: 271970.5 | O29: 279128.2 | P29: 285341.7 | Q29: 286558.3 | R29: 288320.8 | S29: 297881.8 | T29: 289566.8 | U29: 295986.4 | V29: 292984.2 | W29: 296514.3 | X29: 302025.7 | Y29: 303617.8 | Z29: 308009.9 | AA29: 308423.3 | AB29: 311273.8 | AC29: 314182.4 | AD29: 320880.8 | AE29: 315276.2 | AF29: 330117.5 | AG29: 336625.8 | AH29: 344115.4 | AI29: =AH29 -> 344115.4 | AJ29: 344115.4 | AK29: 344115.4
A30: MT | B30: 13241.9 | C30: 13875.2 | D30: 14936.9 | E30: 16054.4 | F30: 17062.1 | G30: 17519.3 | H30: 18118.7 | I30: 31456.1 | J30: 31633.4 | K30: 32513.7 | L30: 32689.6 | M30: 33663.8 | N30: 35249.5 | O30: 36949.9 | P30: 38849 | Q30: 40055 | R30: 42057.7 | S30: 42049.3 | T30: 40938.4 | U30: 42469.8 | V30: 43532.2 | W30: 44329.1 | X30: 45114.7 | Y30: 46166.7 | Z30: 47765.6 | AA30: 47189.6 | AB30: 48470.5 | AC30: 49455 | AD30: 50318.9 | AE30: 50159.6 | AF30: 52952 | AG30: 53983.4 | AH30: 55192.6 | AI30: =AH30 -> 55192.6 | AJ30: 55192.6 | AK30: 55192.6
A31: NE | B31: 33734.3 | C31: 35613.3 | D31: 38213.6 | E31: 39353.4 | F31: 43504.3 | G31: 45111.3 | H31: 49006.9 | I31: 75750 | J31: 77421.1 | K31: 80268.2 | L31: 82268.1 | M31: 83433.2 | N31: 88310.7 | O31: 90607.6 | P31: 94556 | Q31: 97322.8 | R31: 99780.7 | S31: 99860.1 | T31: 99986.4 | U31: 103940.8 | V31: 109734.2 | W31: 109686.3 | X31: 111382.2 | Y31: 115651.9 | Z31: 119640.8 | AA31: 121303.1 | AB31: 123219.9 | AC31: 125543.4 | AD31: 127481.8 | AE31: 126890.6 | AF31: 133495.7 | AG31: 137078.1 | AH31: 144182.9 | AI31: =AH31 -> 144182.9 | AJ31: 144182.9 | AK31: 144182.9
A32: NV | B32: 30980 | C32: 32785.6 | D32: 36051.6 | E32: 40039.1 | F32: 45172.8 | G32: 49249.3 | H32: 54418.6 | I32: 102779.4 | J32: 110091 | K32: 114810.2 | L32: 116267.3 | M32: 120180.1 | N32: 125905.4 | O32: 139373 | P32: 150680.9 | Q32: 156297.9 | R32: 157734.3 | S32: 152745.6 | T32: 140304.3 | U32: 142614.2 | V32: 144341.2 | W32: 142986.1 | X32: 144549.3 | Y32: 145303.6 | Z32: 151055.9 | AA32: 156007.4 | AB32: 163199.1 | AC32: 168638.5 | AD32: 175771.3 | AE32: 165793.9 | AF32: 181102.9 | AG32: 187226.2 | AH32: 192215.6 | AI32: =AH32 -> 192215.6 | AJ32: 192215.6 | AK32: 192215.6
A33: NH | B33: 23767.8 | C33: 24762.6 | D33: 26331.8 | E33: 27362.1 | F33: 29190.1 | G33: 31875.5 | H33: 34560.6 | I33: 54954.5 | J33: 56913.1 | K33: 60742.5 | L33: 61719.4 | M33: 63474.2 | N33: 66119.4 | O33: 68428.1 | P33: 69556.1 | Q33: 71424.5 | R33: 71943.5 | S33: 71195.6 | T33: 70498.6 | U33: 72950.4 | V33: 73465 | W33: 74082.8 | X33: 75503.4 | Y33: 76836.2 | Z33: 79319.3 | AA33: 80736.1 | AB33: 81179.6 | AC33: 82269.5 | AD33: 84031.2 | AE33: 83182.1 | AF33: 89890.1 | AG33: 90150.5 | AH33: 91254.7 | AI33: =AH33 -> 91254.7 | AJ33: 91254.7 | AK33: 91254.7
A34: NJ | B34: 214357 | C34: 221915 | D34: 230774.5 | E34: 240389.4 | F34: 251572.6 | G34: 263468 | H34: 278191.1 | I34: 461237.3 | J34: 477827.9 | K34: 503901.5 | L34: 509631.5 | M34: 517752.2 | N34: 529815.9 | O34: 536174 | P34: 546357.8 | Q34: 555211 | R34: 560823.8 | S34: 573202.7 | T34: 546362.2 | U34: 554764.4 | V34: 548479.3 | W34: 560729.7 | X34: 570952.4 | Y34: 570696.4 | Z34: 581414.9 | AA34: 587049.7 | AB34: 590086.7 | AC34: 606892.2 | AD34: 617110.7 | AE34: 595973.4 | AF34: 629011.3 | AG34: 646731.3 | AH34: 656480.3 | AI34: =AH34 -> 656480.3 | AJ34: 656480.3 | AK34: 656480.3
A35: NM | B35: 26600.3 | C35: 30295.3 | D35: 32638.4 | E35: 36876.1 | F35: 41684.5 | G35: 42145.9 | H35: 44532.1 | I35: 67718.1 | J35: 71421 | K35: 72733.8 | L35: 72996.4 | M35: 75345.9 | N35: 78766.8 | O35: 85751 | P35: 86295.9 | Q35: 88554.5 | R35: 89392.3 | S35: 89012.9 | T35: 90829.2 | U35: 90721 | V35: 90552.3 | W35: 90762.4 | X35: 90104 | Y35: 92621.1 | Z35: 93503.9 | AA35: 93043.5 | AB35: 93210.1 | AC35: 96077 | AD35: 100446.2 | AE35: 97511.9 | AF35: 99572.3 | AG35: 101315 | AH35: 105463.3 | AI35: =AH35 -> 105463.3 | AJ35: 105463.3 | AK35: 105463.3
A36: NY | B36: 493191.9 | C36: 497336 | D36: 519703.9 | E36: 537504.2 | F36: 555321.8 | G36: 582656.3 | H36: 620153.4 | I36: 1112323.6 | J36: 1172149.8 | K36: 1217036.4 | L36: 1240755.2 | M36: 1228580.8 | N36: 1236563.1 | O36: 1269433.1 | P36: 1301438 | Q36: 1339568.5 | R36: 1353798.9 | S36: 1328095.7 | T36: 1379504.6 | U36: 1431624 | V36: 1440346.8 | W36: 1496280.1 | X36: 1501818 | Y36: 1535375.9 | Z36: 1565835.2 | AA36: 1590567.8 | AB36: 1624800.7 | AC36: 1665186.8 | AD36: 1709750.7 | AE36: 1650567.2 | AF36: 1724472.2 | AG36: 1763524.6 | AH36: 1775714.1 | AI36: =AH36 -> 1775714.1 | AJ36: 1775714.1 | AK36: 1775714.1
A37: NC | B37: 139658.4 | C37: 146367.5 | D37: 159337 | E37: 168005.7 | F37: 181287.8 | G37: 193466.7 | H37: 203815 | I37: 351977.9 | J37: 372030.3 | K37: 384115.3 | L37: 387433.9 | M37: 393685.9 | N37: 404582.5 | O37: 420579.4 | P37: 442305.6 | Q37: 470663.9 | R37: 477920.8 | S37: 492688.8 | T37: 473610.5 | U37: 482030.4 | V37: 484200.3 | W37: 488126.5 | X37: 497456.6 | Y37: 509782.4 | Z37: 525229.1 | AA37: 536308.5 | AB37: 546810.1 | AC37: 556573.7 | AD37: 568475.6 | AE37: 564794.4 | AF37: 597316.1 | AG37: 609058.2 | AH37: 625681.9 | AI37: =AH37 -> 625681.9 | AJ37: 625681.9 | AK37: 625681.9
A38: ND | B38: 11509.1 | C38: 11691.3 | D38: 12896.2 | E38: 13049.3 | F38: 14303.8 | G38: 14841.9 | H38: 16491 | I38: 23971.3 | J38: 24069.6 | K38: 24990.2 | L38: 25329.8 | M38: 26592.1 | N38: 28326.7 | O38: 28636.2 | P38: 29629 | Q38: 30911.4 | R38: 32529 | S38: 35030.4 | T38: 35971.3 | U38: 38697.4 | V38: 43300.4 | W38: 53326.8 | X38: 54690.9 | Y38: 60193 | Z38: 58694.5 | AA38: 54756 | AB38: 56530.2 | AC38: 58516.4 | AD38: 59142.3 | AE38: 55699.1 | AF38: 55401 | AG38: 54798.7 | AH38: 58014.8 | AI38: =AH38 -> 58014.8 | AJ38: 58014.8 | AK38: 58014.8
A39: OH | B39: 227412.9 | C39: 233975.4 | D39: 250649.6 | E39: 259611.6 | F39: 281924.7 | G39: 297538.2 | H39: 311120.1 | I39: 518604 | J39: 530745.6 | K39: 541005.9 | L39: 534612.4 | M39: 546688.2 | N39: 557024.5 | O39: 572308.5 | P39: 584867.7 | Q39: 582637.6 | R39: 585403 | S39: 580389 | T39: 550982.4 | U39: 563816.3 | V39: 580251.4 | W39: 586540.9 | X39: 603057.4 | Y39: 624973.4 | Z39: 633274.8 | AA39: 638157.5 | AB39: 652187.5 | AC39: 656212 | AD39: 674123.4 | AE39: 654586.3 | AF39: 686206.4 | AG39: 689681.3 | AH39: 698217.3 | AI39: =AH39 -> 698217.3 | AJ39: 698217.3 | AK39: 698217.3
A40: OK | B40: 57804.8 | C40: 59632.1 | D40: 62208.5 | E40: 65552.1 | F40: 68250.7 | G40: 70859.4 | H40: 76316.3 | I40: 114928.1 | J40: 116968.4 | K40: 121170.2 | L40: 125695.7 | M40: 127930.2 | N40: 130147.8 | O40: 134606.6 | P40: 140360.1 | Q40: 149367.1 | R40: 152879.6 | S40: 158987.8 | T40: 156856.8 | U40: 158086.4 | V40: 163859.3 | W40: 172016 | X40: 176086.8 | Y40: 186574.4 | Z40: 193792.6 | AA40: 190093.5 | AB40: 192538.6 | AC40: 196030.5 | AD40: 199462.1 | AE40: 190751.7 | AF40: 193518 | AG40: 191583 | AH40: 201658.8 | AI40: =AH40 -> 201658.8 | AJ40: 201658.8 | AK40: 201658.8
A41: OR | B41: 56565.6 | C41: 59441 | D41: 63392.3 | E41: 69408.5 | F41: 75393.1 | G41: 81553.7 | H41: 93306.4 | I41: 130425.1 | J41: 133761.7 | K41: 145094.2 | L41: 144486.5 | M41: 147432.8 | N41: 154445.3 | O41: 163046.1 | P41: 168734.4 | Q41: 177222.4 | R41: 180724.3 | S41: 184842.6 | T41: 176951.6 | U41: 180738.2 | V41: 185959.4 | W41: 187352.4 | X41: 189609.7 | Y41: 195808.2 | Z41: 205581.8 | AA41: 214769.3 | AB41: 225534.5 | AC41: 234308.3 | AD41: 239910.5 | AE41: 237670.4 | AF41: 250099.4 | AG41: 254708.4 | AH41: 260110.8 | AI41: =AH41 -> 260110.8 | AJ41: 260110.8 | AK41: 260110.8
A42: PA | B42: 245280.8 | C42: 255162.7 | D42: 269849.2 | E42: 281703.7 | F42: 296601.6 | G42: 312989.4 | H42: 325000.7 | I42: 534933.6 | J42: 552163.6 | K42: 566250.9 | L42: 577677.5 | M42: 583507.4 | N42: 598809.5 | O42: 614957.1 | P42: 626290.1 | Q42: 626589.9 | R42: 649638.1 | S42: 665148.3 | T42: 645206.7 | U42: 666805.8 | V42: 676468.3 | W42: 689007 | X42: 704195 | Y42: 718691.6 | Z42: 734145.1 | AA42: 744847.1 | AB42: 754318 | AC42: 763855.4 | AD42: 772529.5 | AE42: 736470.6 | AF42: 764601.6 | AG42: 772335.9 | AH42: 789502.3 | AI42: =AH42 -> 789502.3 | AJ42: 789502.3 | AK42: 789502.3
A43: RI | B43: 21663.9 | C43: 21737.8 | D43: 22665.2 | E43: 23566.4 | F43: 24353.7 | G43: 25549.8 | H43: 26453.7 | I43: 45381.3 | J43: 46831.2 | K43: 49113.6 | L43: 49705.2 | M43: 51284.3 | N43: 52933.1 | O43: 55160.5 | P43: 55885.9 | Q43: 57415.8 | R43: 56230.5 | S43: 54977.1 | T43: 54481.5 | U43: 56050.6 | V43: 56026.6 | W43: 56487.4 | X43: 57037.2 | Y43: 57602.7 | Z43: 58387.9 | AA43: 58630 | AB43: 58771.6 | AC43: 58740.1 | AD43: 59866.6 | AE43: 58155.2 | AF43: 60777.3 | AG43: 62190.9 | AH43: 63172.6 | AI43: =AH43 -> 63172.6 | AJ43: 63172.6 | AK43: 63172.6
A44: SC | B44: 65156.9 | C44: 68000.3 | D44: 71848 | E44: 76158.3 | F44: 82061.5 | G44: 87247.7 | H44: 90754.8 | I44: 150732.6 | J44: 157645.5 | K44: 161880.2 | L44: 162837.1 | M44: 167333 | N44: 174270.8 | O44: 177169.4 | P44: 183267.5 | Q44: 187386.1 | R44: 193386.6 | S44: 192497.1 | T44: 184081.3 | U44: 188777.2 | V44: 193221 | W44: 195406.1 | X44: 200147.3 | Y44: 206077.9 | Z44: 213212.4 | AA44: 220559.3 | AB44: 224937.6 | AC44: 231663.3 | AD44: 237511.4 | AE44: 233712.3 | AF44: 244854 | AG44: 250873.4 | AH44: 259930.2 | AI44: =AH44 -> 259930.2 | AJ44: 259930.2 | AK44: 259930.2
A45: SD | B45: 12770.3 | C45: 13736.1 | D45: 14885.5 | E45: 16104.5 | F45: 17329.6 | G45: 18053.8 | H45: 19418.7 | I45: 28772.1 | J45: 30038.3 | K45: 32124.9 | L45: 32396.9 | M45: 35776 | N45: 36141.9 | O45: 37616.6 | P45: 39330.6 | Q45: 39961.6 | R45: 41646.2 | S45: 43278.5 | T45: 44255.8 | U45: 44810.7 | V45: 47630.3 | W45: 48653.9 | X45: 48610.1 | Y45: 49640.9 | Z45: 50860.8 | AA45: 51264.3 | AB45: 51615.1 | AC45: 51937.8 | AD45: 52360.1 | AE45: 52692.1 | AF45: 55140.4 | AG45: 54959.3 | AH45: 56309.3 | AI45: =AH45 -> 56309.3 | AJ45: 56309.3 | AK45: 56309.3
A46: TN | B46: 94086.7 | C46: 101208.4 | D46: 111660.4 | E46: 119567.6 | F46: 129895.2 | G46: 137061.2 | H46: 143162.6 | I46: 240963.4 | J46: 248457.5 | K46: 251030.2 | L46: 250311.4 | M46: 258542.4 | N46: 267589.4 | O46: 281564.2 | P46: 289064.3 | Q46: 295668.2 | R46: 294819.8 | S46: 298526.9 | T46: 287308.8 | U46: 292687 | V46: 301508.9 | W46: 311754.2 | X46: 318347.9 | Y46: 323879.6 | Z46: 335461.1 | AA46: 343544.9 | AB46: 355417.5 | AC46: 362363.7 | AD46: 370088.3 | AE46: 366555.2 | AF46: 396576.2 | AG46: 412101.3 | AH46: 425409.7 | AI46: =AH46 -> 425409.7 | AJ46: 425409.7 | AK46: 425409.7
A47: TX | B47: 378943.1 | C47: 393573.9 | D47: 416401.3 | E47: 443775.4 | F47: 475989.7 | G47: 507725.3 | H47: 551512.5 | I47: 920059.6 | J47: 957247.2 | K47: 989904.9 | L47: 1020517 | M47: 1042584.4 | N47: 1052132.3 | O47: 1111189.1 | P47: 1143413.1 | Q47: 1225147.3 | R47: 1288828.7 | S47: 1287191.5 | T47: 1285560.2 | U47: 1323059.1 | V47: 1370174.9 | W47: 1438354.4 | X47: 1511806.5 | Y47: 1559636.1 | Z47: 1634127.1 | AA47: 1633863.3 | AB47: 1667313 | AC47: 1746543.3 | AD47: 1802912.8 | AE47: 1772185.6 | AF47: 1873473.4 | AG47: 1924007.5 | AH47: 2032932.9 | AI47: =AH47 -> 2032932.9 | AJ47: 2032932.9 | AK47: 2032932.9
A48: UT | B48: 31249.3 | C48: 33501 | D48: 35602.3 | E48: 38631.4 | F48: 42591.1 | G48: 46746.4 | H48: 52016 | I48: 91312.7 | J48: 95206.8 | K48: 98648.5 | L48: 100244.3 | M48: 102828.1 | N48: 104829.2 | O48: 111318.9 | P48: 118430.2 | Q48: 127539.4 | R48: 133799.8 | S48: 133662.9 | T48: 130958.6 | U48: 133739.1 | V48: 138301.1 | W48: 140622.5 | X48: 145026.9 | Y48: 150076.3 | Z48: 155431.5 | AA48: 162528.2 | AB48: 172075 | AC48: 182106 | AD48: 192698.7 | AE48: 194753.7 | AF48: 209975.2 | AG48: 213898.3 | AH48: 219180.7 | AI48: =AH48 -> 219180.7 | AJ48: 219180.7 | AK48: 219180.7
A49: VT | B49: 11673.6 | C49: 11732.6 | D49: 12538.3 | E49: 13026.9 | F49: 13689.2 | G49: 13891.4 | H49: 14672.4 | I49: 22266.5 | J49: 23561.7 | K49: 24844.6 | L49: 25681.8 | M49: 26522.8 | N49: 27548.1 | O49: 28989.2 | P49: 29283.2 | Q49: 29420.9 | R49: 29296.6 | S49: 30168.6 | T49: 29565.7 | U49: 30890.6 | V49: 31663.6 | W49: 31898.1 | X49: 31494.6 | Y49: 31847.7 | Z49: 32042.9 | AA49: 32312.7 | AB49: 32589.2 | AC49: 32827.8 | AD49: 33207.6 | AE49: 32307.1 | AF49: 33860.8 | AG49: 34609.4 | AH49: 35073.5 | AI49: =AH49 -> 35073.5 | AJ49: 35073.5 | AK49: 35073.5
A50: VA | B50: 144970.6 | C50: 151092.6 | D50: 158990.2 | E50: 167688.4 | F50: 177057.3 | G50: 186235.6 | H50: 197756.4 | I50: 338931.5 | J50: 356391.8 | K50: 372914.1 | L50: 386444.7 | M50: 390242.4 | N50: 404522.2 | O50: 421744.4 | P50: 442089.5 | Q50: 451263.1 | R50: 457568.9 | S50: 462034.7 | T50: 460075.3 | U50: 475699.3 | V50: 479571.4 | W50: 483041.4 | X50: 488741.3 | Y50: 488918.6 | Z50: 498943.6 | AA50: 505107.7 | AB50: 515167.2 | AC50: 527767.5 | AD50: 541070.2 | AE50: 533828.3 | AF50: 562888 | AG50: 576964.3 | AH50: 590802.2 | AI50: =AH50 -> 590802.2 | AJ50: 590802.2 | AK50: 590802.2
A51: WA | B51: 118640.2 | C51: 125895 | D51: 134469 | E51: 142499.7 | F51: 150805.2 | G51: 155068.6 | H51: 166539.8 | I51: 299817 | J51: 322721.6 | K51: 325857.6 | L51: 317860.6 | M51: 321977.1 | N51: 327645.2 | O51: 335449.3 | P51: 358396.3 | Q51: 372145 | R51: 394221.9 | S51: 401093.2 | T51: 390814 | U51: 403471.3 | V51: 411575.7 | W51: 426447 | X51: 439472.2 | Y51: 456186.5 | Z51: 476715.4 | AA51: 495724.9 | AB51: 527169.4 | AC51: 561785.7 | AD51: 588930.4 | AE51: 590401 | AF51: 630819.8 | AG51: 641143.6 | AH51: 672125.3 | AI51: =AH51 -> 672125.3 | AJ51: 672125.3 | AK51: 672125.3
A52: WV | B52: 27754.3 | C52: 29092.1 | D52: 30410.3 | E52: 31881.4 | F52: 34592.1 | G52: 36148.7 | H52: 37224.2 | I52: 61725.7 | J52: 63691.7 | K52: 63364.6 | L52: 63599.8 | M52: 64465.7 | N52: 65106.8 | O52: 66077.6 | P52: 67888.8 | Q52: 68900 | R52: 69374.1 | S52: 70966.8 | T52: 70886.5 | U52: 71823.8 | V52: 73175.2 | W52: 73124.5 | X52: 73949 | Y52: 74111.3 | Z52: 74261.4 | AA52: 73513.3 | AB52: 75172.4 | AC52: 77406.5 | AD52: 76786.6 | AE52: 73952.9 | AF52: 75520.5 | AG52: 76525.5 | AH52: 80135.5 | AI52: =AH52 -> 80135.5 | AJ52: 80135.5 | AK52: 80135.5
A53: WI | B53: 100235.8 | C53: 104773.9 | D53: 112972.1 | E53: 120023.9 | F53: 129436.7 | G53: 135311.3 | H53: 143443.8 | I53: 232087.1 | J53: 242026 | K53: 248572 | L53: 252941.8 | M53: 257966.9 | N53: 265745.8 | O53: 275412.4 | P53: 282065.7 | Q53: 287146.6 | R53: 289855.2 | S53: 286204.7 | T53: 277279.4 | U53: 287652.9 | V53: 293664 | W53: 299007.6 | X53: 301550.5 | Y53: 309425.8 | Z53: 315687.8 | AA53: 319272.3 | AB53: 321886.8 | AC53: 328832.4 | AD53: 333698.6 | AE53: 322972.7 | AF53: 334517.3 | AG53: 335688.5 | AH53: 336460.6 | AI53: =AH53 -> 336460.6 | AJ53: 336460.6 | AK53: 336460.6
A54: WY | B54: 12705.5 | C54: 12977.4 | D54: 13178.7 | E54: 13790.6 | F54: 14070.4 | G54: 14608.1 | H54: 15752.2 | I54: 24804.7 | J54: 25866.8 | K54: 26614.2 | L54: 28338.1 | M54: 28901.3 | N54: 29806.6 | O54: 30780.1 | P54: 32463.1 | Q54: 36655.6 | R54: 39504.8 | S54: 41641.2 | T54: 40599.6 | U54: 39135.8 | V54: 38929.8 | W54: 38085 | X54: 38408.7 | Y54: 39287.2 | Z54: 40063.9 | AA54: 37853.5 | AB54: 37620.3 | AC54: 37977.2 | AD54: 38558.2 | AE54: 36181.3 | AF54: 36929.5 | AG54: 37294.2 | AH54: 39322 | AI54: =AH54 -> 39322 | AJ54: 39322 | AK54: 39322
A56: USA* | B56: 5651746.7 | C56: 5842664.7 | D56: 6167644.2 | E56: 6467697.5 | F56: 6912843.5 | G56: 7299371.5 | H56: 7749965.4 | I56: 12924876 | J56: 13543774 | K56: 14096033 | L56: 14230726 | M56: 14472712 | N56: 14877312 | O56: 15449757 | P56: 15987957 | Q56: 16433148 | R56: 16762445 | S56: 16781485 | T56: 16349110 | U56: 16789750 | V56: 17052410 | W56: 17442759 | X56: 17812167 | Y56: 18261714 | Z56: 18799622 | AA56: 19141672 | AB56: 19612102 | AC56: 20193896 | AD56: 20692087 | AE56: 20234074 | AF56: 21407692 | AG56: 21822037 | AH56: 22376906 | AI56: =AH56 -> 22376906 | AJ56: 22376906 | AK56: 22376906
A57: * The difference between the United States and sum-of-states reflects overseas activity, economic activity taking place outside the borders of the United States by the military and associated federal civilian support staff.

Sheet Factors
I3: 1 | J3: =VLOOKUP(StateChoice,$I$4:$K$55,2,FALSE) -> Select a State . . . | K3: =VLOOKUP(StateChoice,$I$4:$K$55,3,FALSE) -> XX
I4: 1 | J4: Select a State . . . | K4: XX
I5: 2 | J5: Alabama | K5: AL
B6: CH4 GWP | C6: 28 | I6: 3 | J6: Alaska | K6: AK
B7: N2O GWP | C7: 265 | I7: 4 | J7: Arizona | K7: AZ
I8: 5 | J8: Arkansas | K8: AR
I9: 6 | J9: California | K9: CA
I10: 7 | J10: Colorado | K10: CO
B11: CO2 / C | C11: =44/12 -> 3.666666667 | I11: 8 | J11: Connecticut | K11: CT
B12: C / CO2 | C12: =12/44 -> 0.2727272727 | I12: 9 | J12: Delaware | K12: DE
I13: 10 | J13: District of Columbia | K13: DC
I14: 11 | J14: Florida | K14: FL
B15: Multiplier | C15: 1 | I15: 12 | J15: Georgia | K15: GA
B16: Units | C16: MMTCO2E | I16: 13 | J16: Hawaii | K16: HI
I17: 14 | J17: Idaho | K17: ID
I18: 15 | J18: Illinois | K18: IL
B19: VersionNumber | C19: 1 | I19: 16 | J19: Indiana | K19: IN
B20: VersionDate | C20: 2025-01-17 | I20: 17 | J20: Iowa | K20: IA
B21: Year | C21: 2022 | I21: 18 | J21: Kansas | K21: KS
I22: 19 | J22: Kentucky | K22: KY
I23: 20 | J23: Louisiana | K23: LA
I24: 21 | J24: Maine | K24: ME
I25: 22 | J25: Maryland | K25: MD
I26: 23 | J26: Massachusetts | K26: MA
I27: 24 | J27: Michigan | K27: MI
I28: 25 | J28: Minnesota | K28: MN
I29: 26 | J29: Mississippi | K29: MS
I30: 27 | J30: Missouri | K30: MO
I31: 28 | J31: Montana | K31: MT
I32: 29 | J32: Nebraska | K32: NE
I33: 30 | J33: Nevada | K33: NV
I34: 31 | J34: New Hampshire | K34: NH
I35: 32 | J35: New Jersey | K35: NJ
I36: 33 | J36: New Mexico | K36: NM
I37: 34 | J37: New York | K37: NY
I38: 35 | J38: North Carolina | K38: NC
I39: 36 | J39: North Dakota | K39: ND
I40: 37 | J40: Ohio | K40: OH
I41: 38 | J41: Oklahoma | K41: OK
I42: 39 | J42: Oregon | K42: OR
I43: 40 | J43: Pennsylvania | K43: PA
I44: 41 | J44: Rhode Island | K44: RI
I45: 42 | J45: South Carolina | K45: SC
I46: 43 | J46: South Dakota | K46: SD
I47: 44 | J47: Tennessee | K47: TN
I48: 45 | J48: Texas | K48: TX
I49: 46 | J49: Utah | K49: UT
I50: 47 | J50: Vermont | K50: VT
I51: 48 | J51: Virginia | K51: VA
I52: 49 | J52: Washington | K52: WA
I53: 50 | J53: West Virginia | K53: WV
I54: 51 | J54: Wisconsin | K54: WI
I55: 52 | J55: Wyoming | K55: WY

Sheet Notes
Z1: Wastewater
Z2: $B$4
A3: Notes and Comments
A4: Use this sheet to keep a record of data sources, edits, or any other useful notes about the use of this tool.
